{"text_format":"3","workbook":"xlsx","n_sheets":44,"sheets":["Student Page","Home","Instructions","Dues","Interview","Event35","Event34","Event33","Event32","Event31","Event30","Event29","Event28","Event27","Event26","Event25","Event24","Event23","Event22","Event21","Event20","Event19","Event18","Event17","Event16","Event15","Event14","Event13","Event12","Event11","Event10","Event9","Event8","Event7","Event6","Event5","Event4","Event3","Event2","Event1","Major Forum Roster","Due Raw","Dues Look-Up table","Mock Interview Raw Data"],"not_rendered":{"macros":1,"defined_names":4},"read":"whole","date_system":"1900"}

{"sheet":"Student Page","index":0,"n_rows":6,"n_cols":2,"rows_kept":6,"merged":[[0,1,0,2],[1,0,1,2],[2,1,2,2],[3,1,3,2],[4,1,4,2],[5,1,5,2],[6,1,6,2]]}
["Points as of: ",{"$f":"Home!C1","v":"2020-02-08"}]
["Enter your ID (ex. abc1234) to check your points"]
["ID","nmd5348"]
["Points",{"$f":"VLOOKUP(B3, Home!$D:$E, 2, FALSE)","v":8}]
["Dues",{"$f":"IFERROR(IF(VLOOKUP(B3, Home!D:F, 3, FALSE) = B3, \"YES\", \"NO\"), \"NO\")","v":"YES"}]
["Next Steps",{"$f":"IF(OR(MONTH(B1)=8, AND(MONTH(B1)=9, DAY(B1)<=17)),\nIF(AND(B4>=2, B5<>\"No\",#REF!<> \"No\"), Instructions!A11, IF(B4<2, Instructions!A6, \"\") & IF(B5=\"No\", Instructions!B6, \"\") & IF(#REF!=\"No\", Instructions!C6, \"\") & Instructions!D6),\nIF(OR(B4<2, B5=\"No\"), IF(B4<2, Instructions!A7, \"\") & IF(B5=\"No\", Instructions!B7, \"\") &  Instructions!D7,\nIF(B4<5, Instructions!A8 & Instructions!D8, IF(B4<10, Instructions!A9 & Instructions!D9, Instructions!A11))))","v":"Reach 10 points, allowing you to receive special recognition in resume book"}]

{"sheet":"Home","index":1,"n_rows":210,"n_cols":7,"rows_kept":210,"hidden":true}
["Points Updated as of: ",null,"2020-02-08"]
["Number of events:",null,35]
["Total Members:",null,{"$f":"COUNTA(D8:D999)","v":202}]
[]
[]
[]
["First","Last","Year","ID","Total","Dues","Mock Interview"]
["Chaoyi","Zhu","Sr","cxz94",{"$f":"COUNTIF(Event1!$D:$D, D8) + COUNTIF(Event2!$D:$D, D8) + COUNTIF(Event3!$D:$D, D8) + COUNTIF(Event4!$D:$D, D8) + COUNTIF(Event5!$D:$D, D8) + COUNTIF(Event6!$D:$D, D8) + COUNTIF(Event7!$D:$D, D8) + COUNTIF(Event8!$D:$D, D8) + COUNTIF(Event9!$D:$D, D8) + COUNTIF(Event10!$D:$D, D8) + COUNTIF(Event11!$D:$D, D8) + COUNTIF(Event12!$D:$D, D8) + COUNTIF(Event13!$D:$D, D8) + COUNTIF(Event14!$D:$D, D8) + COUNTIF(Event15!$D:$D, D8) + COUNTIF(Event16!$D:$D, D8) + COUNTIF(Event17!$D:$D, D8) + COUNTIF(Event18!$D:$D, D8) + COUNTIF(Event19!$D:$D, D8) + COUNTIF(Event20!$D:$D, D8) + COUNTIF(Event21!$D:$D, D8) + COUNTIF(Event22!$D:$D, D8) + COUNTIF(Event23!$D:$D, D8) + COUNTIF(Event24!$D:$D, D8) + COUNTIF(Event25!$D:$D, D8) + COUNTIF(Event26!$D:$D, D8) + COUNTIF(Event27!$D:$D, D8) + COUNTIF(Event28!$D:$D, D8) + COUNTIF(Event29!$D:$D, D8) + COUNTIF(Event30!$D:$D, D8) + COUNTIF(Event31!$D:$D, D8) + COUNTIF(Event32!$D:$D, D8) + COUNTIF(Event33!$D:$D, D8) + COUNTIF(Event34!$D:$D, D8) + COUNTIF(Event35!$D:$D, D8) + 0","v":10},{"$f":"INDEX(Dues!$D$6:$D$1000,MATCH(Home!$D8,Dues!$D$6:$D$1000, 0),)","v":"cxz94"}]
["Letitia obiero","Obiero","Fr","luo114",{"$f":"COUNTIF(Event1!$D:$D, D9) + COUNTIF(Event2!$D:$D, D9) + COUNTIF(Event3!$D:$D, D9) + COUNTIF(Event4!$D:$D, D9) + COUNTIF(Event5!$D:$D, D9) + COUNTIF(Event6!$D:$D, D9) + COUNTIF(Event7!$D:$D, D9) + COUNTIF(Event8!$D:$D, D9) + COUNTIF(Event9!$D:$D, D9) + COUNTIF(Event10!$D:$D, D9) + COUNTIF(Event11!$D:$D, D9) + COUNTIF(Event12!$D:$D, D9) + COUNTIF(Event13!$D:$D, D9) + COUNTIF(Event14!$D:$D, D9) + COUNTIF(Event15!$D:$D, D9) + COUNTIF(Event16!$D:$D, D9) + COUNTIF(Event17!$D:$D, D9) + COUNTIF(Event18!$D:$D, D9) + COUNTIF(Event19!$D:$D, D9) + COUNTIF(Event20!$D:$D, D9) + COUNTIF(Event21!$D:$D, D9) + COUNTIF(Event22!$D:$D, D9) + COUNTIF(Event23!$D:$D, D9) + COUNTIF(Event24!$D:$D, D9) + COUNTIF(Event25!$D:$D, D9) + COUNTIF(Event26!$D:$D, D9) + COUNTIF(Event27!$D:$D, D9) + COUNTIF(Event28!$D:$D, D9) + COUNTIF(Event29!$D:$D, D9) + COUNTIF(Event30!$D:$D, D9) + COUNTIF(Event31!$D:$D, D9) + COUNTIF(Event32!$D:$D, D9) + COUNTIF(Event33!$D:$D, D9) + COUNTIF(Event34!$D:$D, D9) + COUNTIF(Event35!$D:$D, D9) + 0","v":3},{"$f":"INDEX(Dues!$D$6:$D$1000,MATCH(Home!$D9,Dues!$D$6:$D$1000, 0),)","v":"luo114"}]
["Nick","Sawtelle","Fr","nus721",{"$f":"COUNTIF(Event1!$D:$D, D10) + COUNTIF(Event2!$D:$D, D10) + COUNTIF(Event3!$D:$D, D10) + COUNTIF(Event4!$D:$D, D10) + COUNTIF(Event5!$D:$D, D10) + COUNTIF(Event6!$D:$D, D10) + COUNTIF(Event7!$D:$D, D10) + COUNTIF(Event8!$D:$D, D10) + COUNTIF(Event9!$D:$D, D10) + COUNTIF(Event10!$D:$D, D10) + COUNTIF(Event11!$D:$D, D10) + COUNTIF(Event12!$D:$D, D10) + COUNTIF(Event13!$D:$D, D10) + COUNTIF(Event14!$D:$D, D10) + COUNTIF(Event15!$D:$D, D10) + COUNTIF(Event16!$D:$D, D10) + COUNTIF(Event17!$D:$D, D10) + COUNTIF(Event18!$D:$D, D10) + COUNTIF(Event19!$D:$D, D10) + COUNTIF(Event20!$D:$D, D10) + COUNTIF(Event21!$D:$D, D10) + COUNTIF(Event22!$D:$D, D10) + COUNTIF(Event23!$D:$D, D10) + COUNTIF(Event24!$D:$D, D10) + COUNTIF(Event25!$D:$D, D10) + COUNTIF(Event26!$D:$D, D10) + COUNTIF(Event27!$D:$D, D10) + COUNTIF(Event28!$D:$D, D10) + COUNTIF(Event29!$D:$D, D10) + COUNTIF(Event30!$D:$D, D10) + COUNTIF(Event31!$D:$D, D10) + COUNTIF(Event32!$D:$D, D10) + COUNTIF(Event33!$D:$D, D10) + COUNTIF(Event34!$D:$D, D10) + COUNTIF(Event35!$D:$D, D10) + 0","v":2},{"$f":"INDEX(Dues!$D$6:$D$1000,MATCH(Home!$D10,Dues!$D$6:$D$1000, 0),)","v":{"$error":"#N/A"}}]
["Kai-Uwe","Konrad","So","kwk5449",{"$f":"COUNTIF(Event1!$D:$D, D11) + COUNTIF(Event2!$D:$D, D11) + COUNTIF(Event3!$D:$D, D11) + COUNTIF(Event4!$D:$D, D11) + COUNTIF(Event5!$D:$D, D11) + COUNTIF(Event6!$D:$D, D11) + COUNTIF(Event7!$D:$D, D11) + COUNTIF(Event8!$D:$D, D11) + COUNTIF(Event9!$D:$D, D11) + COUNTIF(Event10!$D:$D, D11) + COUNTIF(Event11!$D:$D, D11) + COUNTIF(Event12!$D:$D, D11) + COUNTIF(Event13!$D:$D, D11) + COUNTIF(Event14!$D:$D, D11) + COUNTIF(Event15!$D:$D, D11) + COUNTIF(Event16!$D:$D, D11) + COUNTIF(Event17!$D:$D, D11) + COUNTIF(Event18!$D:$D, D11) + COUNTIF(Event19!$D:$D, D11) + COUNTIF(Event20!$D:$D, D11) + COUNTIF(Event21!$D:$D, D11) + COUNTIF(Event22!$D:$D, D11) + COUNTIF(Event23!$D:$D, D11) + COUNTIF(Event24!$D:$D, D11) + COUNTIF(Event25!$D:$D, D11) + COUNTIF(Event26!$D:$D, D11) + COUNTIF(Event27!$D:$D, D11) + COUNTIF(Event28!$D:$D, D11) + COUNTIF(Event29!$D:$D, D11) + COUNTIF(Event30!$D:$D, D11) + COUNTIF(Event31!$D:$D, D11) + COUNTIF(Event32!$D:$D, D11) + COUNTIF(Event33!$D:$D, D11) + COUNTIF(Event34!$D:$D, D11) + COUNTIF(Event35!$D:$D, D11) + 0","v":11},{"$f":"INDEX(Dues!$D$6:$D$1000,MATCH(Home!$D11,Dues!$D$6:$D$1000, 0),)","v":"kwk5449"}]
["Jordan","Reiter","Sr","jar6334",{"$f":"COUNTIF(Event1!$D:$D, D12) + COUNTIF(Event2!$D:$D, D12) + COUNTIF(Event3!$D:$D, D12) + COUNTIF(Event4!$D:$D, D12) + COUNTIF(Event5!$D:$D, D12) + COUNTIF(Event6!$D:$D, D12) + COUNTIF(Event7!$D:$D, D12) + COUNTIF(Event8!$D:$D, D12) + COUNTIF(Event9!$D:$D, D12) + COUNTIF(Event10!$D:$D, D12) + COUNTIF(Event11!$D:$D, D12) + COUNTIF(Event12!$D:$D, D12) + COUNTIF(Event13!$D:$D, D12) + COUNTIF(Event14!$D:$D, D12) + COUNTIF(Event15!$D:$D, D12) + COUNTIF(Event16!$D:$D, D12) + COUNTIF(Event17!$D:$D, D12) + COUNTIF(Event18!$D:$D, D12) + COUNTIF(Event19!$D:$D, D12) + COUNTIF(Event20!$D:$D, D12) + COUNTIF(Event21!$D:$D, D12) + COUNTIF(Event22!$D:$D, D12) + COUNTIF(Event23!$D:$D, D12) + COUNTIF(Event24!$D:$D, D12) + COUNTIF(Event25!$D:$D, D12) + COUNTIF(Event26!$D:$D, D12) + COUNTIF(Event27!$D:$D, D12) + COUNTIF(Event28!$D:$D, D12) + COUNTIF(Event29!$D:$D, D12) + COUNTIF(Event30!$D:$D, D12) + COUNTIF(Event31!$D:$D, D12) + COUNTIF(Event32!$D:$D, D12) + COUNTIF(Event33!$D:$D, D12) + COUNTIF(Event34!$D:$D, D12) + COUNTIF(Event35!$D:$D, D12) + 0","v":3},{"$f":"INDEX(Dues!$D$6:$D$1000,MATCH(Home!$D12,Dues!$D$6:$D$1000, 0),)","v":"jar6334"}]
["Daniel","Berlin","Fr","dnb5266",{"$f":"COUNTIF(Event1!$D:$D, D13) + COUNTIF(Event2!$D:$D, D13) + COUNTIF(Event3!$D:$D, D13) + COUNTIF(Event4!$D:$D, D13) + COUNTIF(Event5!$D:$D, D13) + COUNTIF(Event6!$D:$D, D13) + COUNTIF(Event7!$D:$D, D13) + COUNTIF(Event8!$D:$D, D13) + COUNTIF(Event9!$D:$D, D13) + COUNTIF(Event10!$D:$D, D13) + COUNTIF(Event11!$D:$D, D13) + COUNTIF(Event12!$D:$D, D13) + COUNTIF(Event13!$D:$D, D13) + COUNTIF(Event14!$D:$D, D13) + COUNTIF(Event15!$D:$D, D13) + COUNTIF(Event16!$D:$D, D13) + COUNTIF(Event17!$D:$D, D13) + COUNTIF(Event18!$D:$D, D13) + COUNTIF(Event19!$D:$D, D13) + COUNTIF(Event20!$D:$D, D13) + COUNTIF(Event21!$D:$D, D13) + COUNTIF(Event22!$D:$D, D13) + COUNTIF(Event23!$D:$D, D13) + COUNTIF(Event24!$D:$D, D13) + COUNTIF(Event25!$D:$D, D13) + COUNTIF(Event26!$D:$D, D13) + COUNTIF(Event27!$D:$D, D13) + COUNTIF(Event28!$D:$D, D13) + COUNTIF(Event29!$D:$D, D13) + COUNTIF(Event30!$D:$D, D13) + COUNTIF(Event31!$D:$D, D13) + COUNTIF(Event32!$D:$D, D13) + COUNTIF(Event33!$D:$D, D13) + COUNTIF(Event34!$D:$D, D13) + COUNTIF(Event35!$D:$D, D13) + 0","v":17},{"$f":"INDEX(Dues!$D$6:$D$1000,MATCH(Home!$D13,Dues!$D$6:$D$1000, 0),)","v":"dnb5266"}]
["Guanzong","Zi","So","gzz5074",{"$f":"COUNTIF(Event1!$D:$D, D14) + COUNTIF(Event2!$D:$D, D14) + COUNTIF(Event3!$D:$D, D14) + COUNTIF(Event4!$D:$D, D14) + COUNTIF(Event5!$D:$D, D14) + COUNTIF(Event6!$D:$D, D14) + COUNTIF(Event7!$D:$D, D14) + COUNTIF(Event8!$D:$D, D14) + COUNTIF(Event9!$D:$D, D14) + COUNTIF(Event10!$D:$D, D14) + COUNTIF(Event11!$D:$D, D14) + COUNTIF(Event12!$D:$D, D14) + COUNTIF(Event13!$D:$D, D14) + COUNTIF(Event14!$D:$D, D14) + COUNTIF(Event15!$D:$D, D14) + COUNTIF(Event16!$D:$D, D14) + COUNTIF(Event17!$D:$D, D14) + COUNTIF(Event18!$D:$D, D14) + COUNTIF(Event19!$D:$D, D14) + COUNTIF(Event20!$D:$D, D14) + COUNTIF(Event21!$D:$D, D14) + COUNTIF(Event22!$D:$D, D14) + COUNTIF(Event23!$D:$D, D14) + COUNTIF(Event24!$D:$D, D14) + COUNTIF(Event25!$D:$D, D14) + COUNTIF(Event26!$D:$D, D14) + COUNTIF(Event27!$D:$D, D14) + COUNTIF(Event28!$D:$D, D14) + COUNTIF(Event29!$D:$D, D14) + COUNTIF(Event30!$D:$D, D14) + COUNTIF(Event31!$D:$D, D14) + COUNTIF(Event32!$D:$D, D14) + COUNTIF(Event33!$D:$D, D14) + COUNTIF(Event34!$D:$D, D14) + COUNTIF(Event35!$D:$D, D14) + 0","v":11},{"$f":"INDEX(Dues!$D$6:$D$1000,MATCH(Home!$D14,Dues!$D$6:$D$1000, 0),)","v":"gzz5074"}]
["Matt","Rauber","Fr","mzr5708",{"$f":"COUNTIF(Event1!$D:$D, D15) + COUNTIF(Event2!$D:$D, D15) + COUNTIF(Event3!$D:$D, D15) + COUNTIF(Event4!$D:$D, D15) + COUNTIF(Event5!$D:$D, D15) + COUNTIF(Event6!$D:$D, D15) + COUNTIF(Event7!$D:$D, D15) + COUNTIF(Event8!$D:$D, D15) + COUNTIF(Event9!$D:$D, D15) + COUNTIF(Event10!$D:$D, D15) + COUNTIF(Event11!$D:$D, D15) + COUNTIF(Event12!$D:$D, D15) + COUNTIF(Event13!$D:$D, D15) + COUNTIF(Event14!$D:$D, D15) + COUNTIF(Event15!$D:$D, D15) + COUNTIF(Event16!$D:$D, D15) + COUNTIF(Event17!$D:$D, D15) + COUNTIF(Event18!$D:$D, D15) + COUNTIF(Event19!$D:$D, D15) + COUNTIF(Event20!$D:$D, D15) + COUNTIF(Event21!$D:$D, D15) + COUNTIF(Event22!$D:$D, D15) + COUNTIF(Event23!$D:$D, D15) + COUNTIF(Event24!$D:$D, D15) + COUNTIF(Event25!$D:$D, D15) + COUNTIF(Event26!$D:$D, D15) + COUNTIF(Event27!$D:$D, D15) + COUNTIF(Event28!$D:$D, D15) + COUNTIF(Event29!$D:$D, D15) + COUNTIF(Event30!$D:$D, D15) + COUNTIF(Event31!$D:$D, D15) + COUNTIF(Event32!$D:$D, D15) + COUNTIF(Event33!$D:$D, D15) + COUNTIF(Event34!$D:$D, D15) + COUNTIF(Event35!$D:$D, D15) + 0","v":4},{"$f":"INDEX(Dues!$D$6:$D$1000,MATCH(Home!$D15,Dues!$D$6:$D$1000, 0),)","v":"mzr5708"}]
["Solomon","Szeto","So","sms8118",{"$f":"COUNTIF(Event1!$D:$D, D16) + COUNTIF(Event2!$D:$D, D16) + COUNTIF(Event3!$D:$D, D16) + COUNTIF(Event4!$D:$D, D16) + COUNTIF(Event5!$D:$D, D16) + COUNTIF(Event6!$D:$D, D16) + COUNTIF(Event7!$D:$D, D16) + COUNTIF(Event8!$D:$D, D16) + COUNTIF(Event9!$D:$D, D16) + COUNTIF(Event10!$D:$D, D16) + COUNTIF(Event11!$D:$D, D16) + COUNTIF(Event12!$D:$D, D16) + COUNTIF(Event13!$D:$D, D16) + COUNTIF(Event14!$D:$D, D16) + COUNTIF(Event15!$D:$D, D16) + COUNTIF(Event16!$D:$D, D16) + COUNTIF(Event17!$D:$D, D16) + COUNTIF(Event18!$D:$D, D16) + COUNTIF(Event19!$D:$D, D16) + COUNTIF(Event20!$D:$D, D16) + COUNTIF(Event21!$D:$D, D16) + COUNTIF(Event22!$D:$D, D16) + COUNTIF(Event23!$D:$D, D16) + COUNTIF(Event24!$D:$D, D16) + COUNTIF(Event25!$D:$D, D16) + COUNTIF(Event26!$D:$D, D16) + COUNTIF(Event27!$D:$D, D16) + COUNTIF(Event28!$D:$D, D16) + COUNTIF(Event29!$D:$D, D16) + COUNTIF(Event30!$D:$D, D16) + COUNTIF(Event31!$D:$D, D16) + COUNTIF(Event32!$D:$D, D16) + COUNTIF(Event33!$D:$D, D16) + COUNTIF(Event34!$D:$D, D16) + COUNTIF(Event35!$D:$D, D16) + 0","v":7},{"$f":"INDEX(Dues!$D$6:$D$1000,MATCH(Home!$D16,Dues!$D$6:$D$1000, 0),)","v":"sms8118"}]
["Brandon","Crawford","Jr","bmc5819",{"$f":"COUNTIF(Event1!$D:$D, D17) + COUNTIF(Event2!$D:$D, D17) + COUNTIF(Event3!$D:$D, D17) + COUNTIF(Event4!$D:$D, D17) + COUNTIF(Event5!$D:$D, D17) + COUNTIF(Event6!$D:$D, D17) + COUNTIF(Event7!$D:$D, D17) + COUNTIF(Event8!$D:$D, D17) + COUNTIF(Event9!$D:$D, D17) + COUNTIF(Event10!$D:$D, D17) + COUNTIF(Event11!$D:$D, D17) + COUNTIF(Event12!$D:$D, D17) + COUNTIF(Event13!$D:$D, D17) + COUNTIF(Event14!$D:$D, D17) + COUNTIF(Event15!$D:$D, D17) + COUNTIF(Event16!$D:$D, D17) + COUNTIF(Event17!$D:$D, D17) + COUNTIF(Event18!$D:$D, D17) + COUNTIF(Event19!$D:$D, D17) + COUNTIF(Event20!$D:$D, D17) + COUNTIF(Event21!$D:$D, D17) + COUNTIF(Event22!$D:$D, D17) + COUNTIF(Event23!$D:$D, D17) + COUNTIF(Event24!$D:$D, D17) + COUNTIF(Event25!$D:$D, D17) + COUNTIF(Event26!$D:$D, D17) + COUNTIF(Event27!$D:$D, D17) + COUNTIF(Event28!$D:$D, D17) + COUNTIF(Event29!$D:$D, D17) + COUNTIF(Event30!$D:$D, D17) + COUNTIF(Event31!$D:$D, D17) + COUNTIF(Event32!$D:$D, D17) + COUNTIF(Event33!$D:$D, D17) + COUNTIF(Event34!$D:$D, D17) + COUNTIF(Event35!$D:$D, D17) + 0","v":13},{"$f":"INDEX(Dues!$D$6:$D$1000,MATCH(Home!$D17,Dues!$D$6:$D$1000, 0),)","v":"bmc5819"}]
["erin","wicker","So","euw60",{"$f":"COUNTIF(Event1!$D:$D, D18) + COUNTIF(Event2!$D:$D, D18) + COUNTIF(Event3!$D:$D, D18) + COUNTIF(Event4!$D:$D, D18) + COUNTIF(Event5!$D:$D, D18) + COUNTIF(Event6!$D:$D, D18) + COUNTIF(Event7!$D:$D, D18) + COUNTIF(Event8!$D:$D, D18) + COUNTIF(Event9!$D:$D, D18) + COUNTIF(Event10!$D:$D, D18) + COUNTIF(Event11!$D:$D, D18) + COUNTIF(Event12!$D:$D, D18) + COUNTIF(Event13!$D:$D, D18) + COUNTIF(Event14!$D:$D, D18) + COUNTIF(Event15!$D:$D, D18) + COUNTIF(Event16!$D:$D, D18) + COUNTIF(Event17!$D:$D, D18) + COUNTIF(Event18!$D:$D, D18) + COUNTIF(Event19!$D:$D, D18) + COUNTIF(Event20!$D:$D, D18) + COUNTIF(Event21!$D:$D, D18) + COUNTIF(Event22!$D:$D, D18) + COUNTIF(Event23!$D:$D, D18) + COUNTIF(Event24!$D:$D, D18) + COUNTIF(Event25!$D:$D, D18) + COUNTIF(Event26!$D:$D, D18) + COUNTIF(Event27!$D:$D, D18) + COUNTIF(Event28!$D:$D, D18) + COUNTIF(Event29!$D:$D, D18) + COUNTIF(Event30!$D:$D, D18) + COUNTIF(Event31!$D:$D, D18) + COUNTIF(Event32!$D:$D, D18) + COUNTIF(Event33!$D:$D, D18) + COUNTIF(Event34!$D:$D, D18) + COUNTIF(Event35!$D:$D, D18) + 0","v":10},{"$f":"INDEX(Dues!$D$6:$D$1000,MATCH(Home!$D18,Dues!$D$6:$D$1000, 0),)","v":"euw60"}]
["Nathan","Newman","Jr","ngn5017",{"$f":"COUNTIF(Event1!$D:$D, D19) + COUNTIF(Event2!$D:$D, D19) + COUNTIF(Event3!$D:$D, D19) + COUNTIF(Event4!$D:$D, D19) + COUNTIF(Event5!$D:$D, D19) + COUNTIF(Event6!$D:$D, D19) + COUNTIF(Event7!$D:$D, D19) + COUNTIF(Event8!$D:$D, D19) + COUNTIF(Event9!$D:$D, D19) + COUNTIF(Event10!$D:$D, D19) + COUNTIF(Event11!$D:$D, D19) + COUNTIF(Event12!$D:$D, D19) + COUNTIF(Event13!$D:$D, D19) + COUNTIF(Event14!$D:$D, D19) + COUNTIF(Event15!$D:$D, D19) + COUNTIF(Event16!$D:$D, D19) + COUNTIF(Event17!$D:$D, D19) + COUNTIF(Event18!$D:$D, D19) + COUNTIF(Event19!$D:$D, D19) + COUNTIF(Event20!$D:$D, D19) + COUNTIF(Event21!$D:$D, D19) + COUNTIF(Event22!$D:$D, D19) + COUNTIF(Event23!$D:$D, D19) + COUNTIF(Event24!$D:$D, D19) + COUNTIF(Event25!$D:$D, D19) + COUNTIF(Event26!$D:$D, D19) + COUNTIF(Event27!$D:$D, D19) + COUNTIF(Event28!$D:$D, D19) + COUNTIF(Event29!$D:$D, D19) + COUNTIF(Event30!$D:$D, D19) + COUNTIF(Event31!$D:$D, D19) + COUNTIF(Event32!$D:$D, D19) + COUNTIF(Event33!$D:$D, D19) + COUNTIF(Event34!$D:$D, D19) + COUNTIF(Event35!$D:$D, D19) + 0","v":8},{"$f":"INDEX(Dues!$D$6:$D$1000,MATCH(Home!$D19,Dues!$D$6:$D$1000, 0),)","v":"ngn5017"}]
["Dante","Marcucci","Jr","uum99",{"$f":"COUNTIF(Event1!$D:$D, D20) + COUNTIF(Event2!$D:$D, D20) + COUNTIF(Event3!$D:$D, D20) + COUNTIF(Event4!$D:$D, D20) + COUNTIF(Event5!$D:$D, D20) + COUNTIF(Event6!$D:$D, D20) + COUNTIF(Event7!$D:$D, D20) + COUNTIF(Event8!$D:$D, D20) + COUNTIF(Event9!$D:$D, D20) + COUNTIF(Event10!$D:$D, D20) + COUNTIF(Event11!$D:$D, D20) + COUNTIF(Event12!$D:$D, D20) + COUNTIF(Event13!$D:$D, D20) + COUNTIF(Event14!$D:$D, D20) + COUNTIF(Event15!$D:$D, D20) + COUNTIF(Event16!$D:$D, D20) + COUNTIF(Event17!$D:$D, D20) + COUNTIF(Event18!$D:$D, D20) + COUNTIF(Event19!$D:$D, D20) + COUNTIF(Event20!$D:$D, D20) + COUNTIF(Event21!$D:$D, D20) + COUNTIF(Event22!$D:$D, D20) + COUNTIF(Event23!$D:$D, D20) + COUNTIF(Event24!$D:$D, D20) + COUNTIF(Event25!$D:$D, D20) + COUNTIF(Event26!$D:$D, D20) + COUNTIF(Event27!$D:$D, D20) + COUNTIF(Event28!$D:$D, D20) + COUNTIF(Event29!$D:$D, D20) + COUNTIF(Event30!$D:$D, D20) + COUNTIF(Event31!$D:$D, D20) + COUNTIF(Event32!$D:$D, D20) + COUNTIF(Event33!$D:$D, D20) + COUNTIF(Event34!$D:$D, D20) + COUNTIF(Event35!$D:$D, D20) + 0","v":11},{"$f":"INDEX(Dues!$D$6:$D$1000,MATCH(Home!$D20,Dues!$D$6:$D$1000, 0),)","v":"uum99"}]
["Haozheng","Chen","Jr","hjc5263",{"$f":"COUNTIF(Event1!$D:$D, D21) + COUNTIF(Event2!$D:$D, D21) + COUNTIF(Event3!$D:$D, D21) + COUNTIF(Event4!$D:$D, D21) + COUNTIF(Event5!$D:$D, D21) + COUNTIF(Event6!$D:$D, D21) + COUNTIF(Event7!$D:$D, D21) + COUNTIF(Event8!$D:$D, D21) + COUNTIF(Event9!$D:$D, D21) + COUNTIF(Event10!$D:$D, D21) + COUNTIF(Event11!$D:$D, D21) + COUNTIF(Event12!$D:$D, D21) + COUNTIF(Event13!$D:$D, D21) + COUNTIF(Event14!$D:$D, D21) + COUNTIF(Event15!$D:$D, D21) + COUNTIF(Event16!$D:$D, D21) + COUNTIF(Event17!$D:$D, D21) + COUNTIF(Event18!$D:$D, D21) + COUNTIF(Event19!$D:$D, D21) + COUNTIF(Event20!$D:$D, D21) + COUNTIF(Event21!$D:$D, D21) + COUNTIF(Event22!$D:$D, D21) + COUNTIF(Event23!$D:$D, D21) + COUNTIF(Event24!$D:$D, D21) + COUNTIF(Event25!$D:$D, D21) + COUNTIF(Event26!$D:$D, D21) + COUNTIF(Event27!$D:$D, D21) + COUNTIF(Event28!$D:$D, D21) + COUNTIF(Event29!$D:$D, D21) + COUNTIF(Event30!$D:$D, D21) + COUNTIF(Event31!$D:$D, D21) + COUNTIF(Event32!$D:$D, D21) + COUNTIF(Event33!$D:$D, D21) + COUNTIF(Event34!$D:$D, D21) + COUNTIF(Event35!$D:$D, D21) + 0","v":7},{"$f":"INDEX(Dues!$D$6:$D$1000,MATCH(Home!$D21,Dues!$D$6:$D$1000, 0),)","v":"hjc5263"}]
["Peter","DeMallie","Jr","prd5123",{"$f":"COUNTIF(Event1!$D:$D, D22) + COUNTIF(Event2!$D:$D, D22) + COUNTIF(Event3!$D:$D, D22) + COUNTIF(Event4!$D:$D, D22) + COUNTIF(Event5!$D:$D, D22) + COUNTIF(Event6!$D:$D, D22) + COUNTIF(Event7!$D:$D, D22) + COUNTIF(Event8!$D:$D, D22) + COUNTIF(Event9!$D:$D, D22) + COUNTIF(Event10!$D:$D, D22) + COUNTIF(Event11!$D:$D, D22) + COUNTIF(Event12!$D:$D, D22) + COUNTIF(Event13!$D:$D, D22) + COUNTIF(Event14!$D:$D, D22) + COUNTIF(Event15!$D:$D, D22) + COUNTIF(Event16!$D:$D, D22) + COUNTIF(Event17!$D:$D, D22) + COUNTIF(Event18!$D:$D, D22) + COUNTIF(Event19!$D:$D, D22) + COUNTIF(Event20!$D:$D, D22) + COUNTIF(Event21!$D:$D, D22) + COUNTIF(Event22!$D:$D, D22) + COUNTIF(Event23!$D:$D, D22) + COUNTIF(Event24!$D:$D, D22) + COUNTIF(Event25!$D:$D, D22) + COUNTIF(Event26!$D:$D, D22) + COUNTIF(Event27!$D:$D, D22) + COUNTIF(Event28!$D:$D, D22) + COUNTIF(Event29!$D:$D, D22) + COUNTIF(Event30!$D:$D, D22) + COUNTIF(Event31!$D:$D, D22) + COUNTIF(Event32!$D:$D, D22) + COUNTIF(Event33!$D:$D, D22) + COUNTIF(Event34!$D:$D, D22) + COUNTIF(Event35!$D:$D, D22) + 0","v":10},{"$f":"INDEX(Dues!$D$6:$D$1000,MATCH(Home!$D22,Dues!$D$6:$D$1000, 0),)","v":{"$error":"#N/A"}}]
["Aidan","Lake","Jr","arl5600",{"$f":"COUNTIF(Event1!$D:$D, D23) + COUNTIF(Event2!$D:$D, D23) + COUNTIF(Event3!$D:$D, D23) + COUNTIF(Event4!$D:$D, D23) + COUNTIF(Event5!$D:$D, D23) + COUNTIF(Event6!$D:$D, D23) + COUNTIF(Event7!$D:$D, D23) + COUNTIF(Event8!$D:$D, D23) + COUNTIF(Event9!$D:$D, D23) + COUNTIF(Event10!$D:$D, D23) + COUNTIF(Event11!$D:$D, D23) + COUNTIF(Event12!$D:$D, D23) + COUNTIF(Event13!$D:$D, D23) + COUNTIF(Event14!$D:$D, D23) + COUNTIF(Event15!$D:$D, D23) + COUNTIF(Event16!$D:$D, D23) + COUNTIF(Event17!$D:$D, D23) + COUNTIF(Event18!$D:$D, D23) + COUNTIF(Event19!$D:$D, D23) + COUNTIF(Event20!$D:$D, D23) + COUNTIF(Event21!$D:$D, D23) + COUNTIF(Event22!$D:$D, D23) + COUNTIF(Event23!$D:$D, D23) + COUNTIF(Event24!$D:$D, D23) + COUNTIF(Event25!$D:$D, D23) + COUNTIF(Event26!$D:$D, D23) + COUNTIF(Event27!$D:$D, D23) + COUNTIF(Event28!$D:$D, D23) + COUNTIF(Event29!$D:$D, D23) + COUNTIF(Event30!$D:$D, D23) + COUNTIF(Event31!$D:$D, D23) + COUNTIF(Event32!$D:$D, D23) + COUNTIF(Event33!$D:$D, D23) + COUNTIF(Event34!$D:$D, D23) + COUNTIF(Event35!$D:$D, D23) + 0","v":13},{"$f":"INDEX(Dues!$D$6:$D$1000,MATCH(Home!$D23,Dues!$D$6:$D$1000, 0),)","v":"arl5600"}]
["Ella","Yuan","Jr","spy5117",{"$f":"COUNTIF(Event1!$D:$D, D24) + COUNTIF(Event2!$D:$D, D24) + COUNTIF(Event3!$D:$D, D24) + COUNTIF(Event4!$D:$D, D24) + COUNTIF(Event5!$D:$D, D24) + COUNTIF(Event6!$D:$D, D24) + COUNTIF(Event7!$D:$D, D24) + COUNTIF(Event8!$D:$D, D24) + COUNTIF(Event9!$D:$D, D24) + COUNTIF(Event10!$D:$D, D24) + COUNTIF(Event11!$D:$D, D24) + COUNTIF(Event12!$D:$D, D24) + COUNTIF(Event13!$D:$D, D24) + COUNTIF(Event14!$D:$D, D24) + COUNTIF(Event15!$D:$D, D24) + COUNTIF(Event16!$D:$D, D24) + COUNTIF(Event17!$D:$D, D24) + COUNTIF(Event18!$D:$D, D24) + COUNTIF(Event19!$D:$D, D24) + COUNTIF(Event20!$D:$D, D24) + COUNTIF(Event21!$D:$D, D24) + COUNTIF(Event22!$D:$D, D24) + COUNTIF(Event23!$D:$D, D24) + COUNTIF(Event24!$D:$D, D24) + COUNTIF(Event25!$D:$D, D24) + COUNTIF(Event26!$D:$D, D24) + COUNTIF(Event27!$D:$D, D24) + COUNTIF(Event28!$D:$D, D24) + COUNTIF(Event29!$D:$D, D24) + COUNTIF(Event30!$D:$D, D24) + COUNTIF(Event31!$D:$D, D24) + COUNTIF(Event32!$D:$D, D24) + COUNTIF(Event33!$D:$D, D24) + COUNTIF(Event34!$D:$D, D24) + COUNTIF(Event35!$D:$D, D24) + 0","v":5},{"$f":"INDEX(Dues!$D$6:$D$1000,MATCH(Home!$D24,Dues!$D$6:$D$1000, 0),)","v":"spy5117"}]
["Sawyer","Parks","So","sjp5946",{"$f":"COUNTIF(Event1!$D:$D, D25) + COUNTIF(Event2!$D:$D, D25) + COUNTIF(Event3!$D:$D, D25) + COUNTIF(Event4!$D:$D, D25) + COUNTIF(Event5!$D:$D, D25) + COUNTIF(Event6!$D:$D, D25) + COUNTIF(Event7!$D:$D, D25) + COUNTIF(Event8!$D:$D, D25) + COUNTIF(Event9!$D:$D, D25) + COUNTIF(Event10!$D:$D, D25) + COUNTIF(Event11!$D:$D, D25) + COUNTIF(Event12!$D:$D, D25) + COUNTIF(Event13!$D:$D, D25) + COUNTIF(Event14!$D:$D, D25) + COUNTIF(Event15!$D:$D, D25) + COUNTIF(Event16!$D:$D, D25) + COUNTIF(Event17!$D:$D, D25) + COUNTIF(Event18!$D:$D, D25) + COUNTIF(Event19!$D:$D, D25) + COUNTIF(Event20!$D:$D, D25) + COUNTIF(Event21!$D:$D, D25) + COUNTIF(Event22!$D:$D, D25) + COUNTIF(Event23!$D:$D, D25) + COUNTIF(Event24!$D:$D, D25) + COUNTIF(Event25!$D:$D, D25) + COUNTIF(Event26!$D:$D, D25) + COUNTIF(Event27!$D:$D, D25) + COUNTIF(Event28!$D:$D, D25) + COUNTIF(Event29!$D:$D, D25) + COUNTIF(Event30!$D:$D, D25) + COUNTIF(Event31!$D:$D, D25) + COUNTIF(Event32!$D:$D, D25) + COUNTIF(Event33!$D:$D, D25) + COUNTIF(Event34!$D:$D, D25) + COUNTIF(Event35!$D:$D, D25) + 0","v":3},{"$f":"INDEX(Dues!$D$6:$D$1000,MATCH(Home!$D25,Dues!$D$6:$D$1000, 0),)","v":"sjp5946"}]
["Jonah","Wyzomirski","So","jrw6009",{"$f":"COUNTIF(Event1!$D:$D, D26) + COUNTIF(Event2!$D:$D, D26) + COUNTIF(Event3!$D:$D, D26) + COUNTIF(Event4!$D:$D, D26) + COUNTIF(Event5!$D:$D, D26) + COUNTIF(Event6!$D:$D, D26) + COUNTIF(Event7!$D:$D, D26) + COUNTIF(Event8!$D:$D, D26) + COUNTIF(Event9!$D:$D, D26) + COUNTIF(Event10!$D:$D, D26) + COUNTIF(Event11!$D:$D, D26) + COUNTIF(Event12!$D:$D, D26) + COUNTIF(Event13!$D:$D, D26) + COUNTIF(Event14!$D:$D, D26) + COUNTIF(Event15!$D:$D, D26) + COUNTIF(Event16!$D:$D, D26) + COUNTIF(Event17!$D:$D, D26) + COUNTIF(Event18!$D:$D, D26) + COUNTIF(Event19!$D:$D, D26) + COUNTIF(Event20!$D:$D, D26) + COUNTIF(Event21!$D:$D, D26) + COUNTIF(Event22!$D:$D, D26) + COUNTIF(Event23!$D:$D, D26) + COUNTIF(Event24!$D:$D, D26) + COUNTIF(Event25!$D:$D, D26) + COUNTIF(Event26!$D:$D, D26) + COUNTIF(Event27!$D:$D, D26) + COUNTIF(Event28!$D:$D, D26) + COUNTIF(Event29!$D:$D, D26) + COUNTIF(Event30!$D:$D, D26) + COUNTIF(Event31!$D:$D, D26) + COUNTIF(Event32!$D:$D, D26) + COUNTIF(Event33!$D:$D, D26) + COUNTIF(Event34!$D:$D, D26) + COUNTIF(Event35!$D:$D, D26) + 0","v":12},{"$f":"INDEX(Dues!$D$6:$D$1000,MATCH(Home!$D26,Dues!$D$6:$D$1000, 0),)","v":"jrw6009"}]
["Kara","Gibbon","So","kxg295",{"$f":"COUNTIF(Event1!$D:$D, D27) + COUNTIF(Event2!$D:$D, D27) + COUNTIF(Event3!$D:$D, D27) + COUNTIF(Event4!$D:$D, D27) + COUNTIF(Event5!$D:$D, D27) + COUNTIF(Event6!$D:$D, D27) + COUNTIF(Event7!$D:$D, D27) + COUNTIF(Event8!$D:$D, D27) + COUNTIF(Event9!$D:$D, D27) + COUNTIF(Event10!$D:$D, D27) + COUNTIF(Event11!$D:$D, D27) + COUNTIF(Event12!$D:$D, D27) + COUNTIF(Event13!$D:$D, D27) + COUNTIF(Event14!$D:$D, D27) + COUNTIF(Event15!$D:$D, D27) + COUNTIF(Event16!$D:$D, D27) + COUNTIF(Event17!$D:$D, D27) + COUNTIF(Event18!$D:$D, D27) + COUNTIF(Event19!$D:$D, D27) + COUNTIF(Event20!$D:$D, D27) + COUNTIF(Event21!$D:$D, D27) + COUNTIF(Event22!$D:$D, D27) + COUNTIF(Event23!$D:$D, D27) + COUNTIF(Event24!$D:$D, D27) + COUNTIF(Event25!$D:$D, D27) + COUNTIF(Event26!$D:$D, D27) + COUNTIF(Event27!$D:$D, D27) + COUNTIF(Event28!$D:$D, D27) + COUNTIF(Event29!$D:$D, D27) + COUNTIF(Event30!$D:$D, D27) + COUNTIF(Event31!$D:$D, D27) + COUNTIF(Event32!$D:$D, D27) + COUNTIF(Event33!$D:$D, D27) + COUNTIF(Event34!$D:$D, D27) + COUNTIF(Event35!$D:$D, D27) + 0","v":8},{"$f":"INDEX(Dues!$D$6:$D$1000,MATCH(Home!$D27,Dues!$D$6:$D$1000, 0),)","v":"kxg295"}]
["Maya","DiGirolamo","So","mvd5783",{"$f":"COUNTIF(Event1!$D:$D, D28) + COUNTIF(Event2!$D:$D, D28) + COUNTIF(Event3!$D:$D, D28) + COUNTIF(Event4!$D:$D, D28) + COUNTIF(Event5!$D:$D, D28) + COUNTIF(Event6!$D:$D, D28) + COUNTIF(Event7!$D:$D, D28) + COUNTIF(Event8!$D:$D, D28) + COUNTIF(Event9!$D:$D, D28) + COUNTIF(Event10!$D:$D, D28) + COUNTIF(Event11!$D:$D, D28) + COUNTIF(Event12!$D:$D, D28) + COUNTIF(Event13!$D:$D, D28) + COUNTIF(Event14!$D:$D, D28) + COUNTIF(Event15!$D:$D, D28) + COUNTIF(Event16!$D:$D, D28) + COUNTIF(Event17!$D:$D, D28) + COUNTIF(Event18!$D:$D, D28) + COUNTIF(Event19!$D:$D, D28) + COUNTIF(Event20!$D:$D, D28) + COUNTIF(Event21!$D:$D, D28) + COUNTIF(Event22!$D:$D, D28) + COUNTIF(Event23!$D:$D, D28) + COUNTIF(Event24!$D:$D, D28) + COUNTIF(Event25!$D:$D, D28) + COUNTIF(Event26!$D:$D, D28) + COUNTIF(Event27!$D:$D, D28) + COUNTIF(Event28!$D:$D, D28) + COUNTIF(Event29!$D:$D, D28) + COUNTIF(Event30!$D:$D, D28) + COUNTIF(Event31!$D:$D, D28) + COUNTIF(Event32!$D:$D, D28) + COUNTIF(Event33!$D:$D, D28) + COUNTIF(Event34!$D:$D, D28) + COUNTIF(Event35!$D:$D, D28) + 0","v":9},{"$f":"INDEX(Dues!$D$6:$D$1000,MATCH(Home!$D28,Dues!$D$6:$D$1000, 0),)","v":"mvd5783"}]
["Emily","Jackson","Sr","erj5094",{"$f":"COUNTIF(Event1!$D:$D, D29) + COUNTIF(Event2!$D:$D, D29) + COUNTIF(Event3!$D:$D, D29) + COUNTIF(Event4!$D:$D, D29) + COUNTIF(Event5!$D:$D, D29) + COUNTIF(Event6!$D:$D, D29) + COUNTIF(Event7!$D:$D, D29) + COUNTIF(Event8!$D:$D, D29) + COUNTIF(Event9!$D:$D, D29) + COUNTIF(Event10!$D:$D, D29) + COUNTIF(Event11!$D:$D, D29) + COUNTIF(Event12!$D:$D, D29) + COUNTIF(Event13!$D:$D, D29) + COUNTIF(Event14!$D:$D, D29) + COUNTIF(Event15!$D:$D, D29) + COUNTIF(Event16!$D:$D, D29) + COUNTIF(Event17!$D:$D, D29) + COUNTIF(Event18!$D:$D, D29) + COUNTIF(Event19!$D:$D, D29) + COUNTIF(Event20!$D:$D, D29) + COUNTIF(Event21!$D:$D, D29) + COUNTIF(Event22!$D:$D, D29) + COUNTIF(Event23!$D:$D, D29) + COUNTIF(Event24!$D:$D, D29) + COUNTIF(Event25!$D:$D, D29) + COUNTIF(Event26!$D:$D, D29) + COUNTIF(Event27!$D:$D, D29) + COUNTIF(Event28!$D:$D, D29) + COUNTIF(Event29!$D:$D, D29) + COUNTIF(Event30!$D:$D, D29) + COUNTIF(Event31!$D:$D, D29) + COUNTIF(Event32!$D:$D, D29) + COUNTIF(Event33!$D:$D, D29) + COUNTIF(Event34!$D:$D, D29) + COUNTIF(Event35!$D:$D, D29) + 0","v":2},{"$f":"INDEX(Dues!$D$6:$D$1000,MATCH(Home!$D29,Dues!$D$6:$D$1000, 0),)","v":"erj5094"}]
["Gregory","Westfall","So","gvw5064",{"$f":"COUNTIF(Event1!$D:$D, D30) + COUNTIF(Event2!$D:$D, D30) + COUNTIF(Event3!$D:$D, D30) + COUNTIF(Event4!$D:$D, D30) + COUNTIF(Event5!$D:$D, D30) + COUNTIF(Event6!$D:$D, D30) + COUNTIF(Event7!$D:$D, D30) + COUNTIF(Event8!$D:$D, D30) + COUNTIF(Event9!$D:$D, D30) + COUNTIF(Event10!$D:$D, D30) + COUNTIF(Event11!$D:$D, D30) + COUNTIF(Event12!$D:$D, D30) + COUNTIF(Event13!$D:$D, D30) + COUNTIF(Event14!$D:$D, D30) + COUNTIF(Event15!$D:$D, D30) + COUNTIF(Event16!$D:$D, D30) + COUNTIF(Event17!$D:$D, D30) + COUNTIF(Event18!$D:$D, D30) + COUNTIF(Event19!$D:$D, D30) + COUNTIF(Event20!$D:$D, D30) + COUNTIF(Event21!$D:$D, D30) + COUNTIF(Event22!$D:$D, D30) + COUNTIF(Event23!$D:$D, D30) + COUNTIF(Event24!$D:$D, D30) + COUNTIF(Event25!$D:$D, D30) + COUNTIF(Event26!$D:$D, D30) + COUNTIF(Event27!$D:$D, D30) + COUNTIF(Event28!$D:$D, D30) + COUNTIF(Event29!$D:$D, D30) + COUNTIF(Event30!$D:$D, D30) + COUNTIF(Event31!$D:$D, D30) + COUNTIF(Event32!$D:$D, D30) + COUNTIF(Event33!$D:$D, D30) + COUNTIF(Event34!$D:$D, D30) + COUNTIF(Event35!$D:$D, D30) + 0","v":12},{"$f":"INDEX(Dues!$D$6:$D$1000,MATCH(Home!$D30,Dues!$D$6:$D$1000, 0),)","v":"gvw5064"}]
["Patrick","Voss","So","puv44",{"$f":"COUNTIF(Event1!$D:$D, D31) + COUNTIF(Event2!$D:$D, D31) + COUNTIF(Event3!$D:$D, D31) + COUNTIF(Event4!$D:$D, D31) + COUNTIF(Event5!$D:$D, D31) + COUNTIF(Event6!$D:$D, D31) + COUNTIF(Event7!$D:$D, D31) + COUNTIF(Event8!$D:$D, D31) + COUNTIF(Event9!$D:$D, D31) + COUNTIF(Event10!$D:$D, D31) + COUNTIF(Event11!$D:$D, D31) + COUNTIF(Event12!$D:$D, D31) + COUNTIF(Event13!$D:$D, D31) + COUNTIF(Event14!$D:$D, D31) + COUNTIF(Event15!$D:$D, D31) + COUNTIF(Event16!$D:$D, D31) + COUNTIF(Event17!$D:$D, D31) + COUNTIF(Event18!$D:$D, D31) + COUNTIF(Event19!$D:$D, D31) + COUNTIF(Event20!$D:$D, D31) + COUNTIF(Event21!$D:$D, D31) + COUNTIF(Event22!$D:$D, D31) + COUNTIF(Event23!$D:$D, D31) + COUNTIF(Event24!$D:$D, D31) + COUNTIF(Event25!$D:$D, D31) + COUNTIF(Event26!$D:$D, D31) + COUNTIF(Event27!$D:$D, D31) + COUNTIF(Event28!$D:$D, D31) + COUNTIF(Event29!$D:$D, D31) + COUNTIF(Event30!$D:$D, D31) + COUNTIF(Event31!$D:$D, D31) + COUNTIF(Event32!$D:$D, D31) + COUNTIF(Event33!$D:$D, D31) + COUNTIF(Event34!$D:$D, D31) + COUNTIF(Event35!$D:$D, D31) + 0","v":8},{"$f":"INDEX(Dues!$D$6:$D$1000,MATCH(Home!$D31,Dues!$D$6:$D$1000, 0),)","v":"puv44"}]
["Kelly","Waters","Jr","kfw5153",{"$f":"COUNTIF(Event1!$D:$D, D32) + COUNTIF(Event2!$D:$D, D32) + COUNTIF(Event3!$D:$D, D32) + COUNTIF(Event4!$D:$D, D32) + COUNTIF(Event5!$D:$D, D32) + COUNTIF(Event6!$D:$D, D32) + COUNTIF(Event7!$D:$D, D32) + COUNTIF(Event8!$D:$D, D32) + COUNTIF(Event9!$D:$D, D32) + COUNTIF(Event10!$D:$D, D32) + COUNTIF(Event11!$D:$D, D32) + COUNTIF(Event12!$D:$D, D32) + COUNTIF(Event13!$D:$D, D32) + COUNTIF(Event14!$D:$D, D32) + COUNTIF(Event15!$D:$D, D32) + COUNTIF(Event16!$D:$D, D32) + COUNTIF(Event17!$D:$D, D32) + COUNTIF(Event18!$D:$D, D32) + COUNTIF(Event19!$D:$D, D32) + COUNTIF(Event20!$D:$D, D32) + COUNTIF(Event21!$D:$D, D32) + COUNTIF(Event22!$D:$D, D32) + COUNTIF(Event23!$D:$D, D32) + COUNTIF(Event24!$D:$D, D32) + COUNTIF(Event25!$D:$D, D32) + COUNTIF(Event26!$D:$D, D32) + COUNTIF(Event27!$D:$D, D32) + COUNTIF(Event28!$D:$D, D32) + COUNTIF(Event29!$D:$D, D32) + COUNTIF(Event30!$D:$D, D32) + COUNTIF(Event31!$D:$D, D32) + COUNTIF(Event32!$D:$D, D32) + COUNTIF(Event33!$D:$D, D32) + COUNTIF(Event34!$D:$D, D32) + COUNTIF(Event35!$D:$D, D32) + 0","v":2},{"$f":"INDEX(Dues!$D$6:$D$1000,MATCH(Home!$D32,Dues!$D$6:$D$1000, 0),)","v":"kfw5153"}]
["Xinchen","Yuan","Jr","xpy5054",{"$f":"COUNTIF(Event1!$D:$D, D33) + COUNTIF(Event2!$D:$D, D33) + COUNTIF(Event3!$D:$D, D33) + COUNTIF(Event4!$D:$D, D33) + COUNTIF(Event5!$D:$D, D33) + COUNTIF(Event6!$D:$D, D33) + COUNTIF(Event7!$D:$D, D33) + COUNTIF(Event8!$D:$D, D33) + COUNTIF(Event9!$D:$D, D33) + COUNTIF(Event10!$D:$D, D33) + COUNTIF(Event11!$D:$D, D33) + COUNTIF(Event12!$D:$D, D33) + COUNTIF(Event13!$D:$D, D33) + COUNTIF(Event14!$D:$D, D33) + COUNTIF(Event15!$D:$D, D33) + COUNTIF(Event16!$D:$D, D33) + COUNTIF(Event17!$D:$D, D33) + COUNTIF(Event18!$D:$D, D33) + COUNTIF(Event19!$D:$D, D33) + COUNTIF(Event20!$D:$D, D33) + COUNTIF(Event21!$D:$D, D33) + COUNTIF(Event22!$D:$D, D33) + COUNTIF(Event23!$D:$D, D33) + COUNTIF(Event24!$D:$D, D33) + COUNTIF(Event25!$D:$D, D33) + COUNTIF(Event26!$D:$D, D33) + COUNTIF(Event27!$D:$D, D33) + COUNTIF(Event28!$D:$D, D33) + COUNTIF(Event29!$D:$D, D33) + COUNTIF(Event30!$D:$D, D33) + COUNTIF(Event31!$D:$D, D33) + COUNTIF(Event32!$D:$D, D33) + COUNTIF(Event33!$D:$D, D33) + COUNTIF(Event34!$D:$D, D33) + COUNTIF(Event35!$D:$D, D33) + 0","v":6},{"$f":"INDEX(Dues!$D$6:$D$1000,MATCH(Home!$D33,Dues!$D$6:$D$1000, 0),)","v":"xpy5054"}]
["Bingxin","Liu","So","bzl95",{"$f":"COUNTIF(Event1!$D:$D, D34) + COUNTIF(Event2!$D:$D, D34) + COUNTIF(Event3!$D:$D, D34) + COUNTIF(Event4!$D:$D, D34) + COUNTIF(Event5!$D:$D, D34) + COUNTIF(Event6!$D:$D, D34) + COUNTIF(Event7!$D:$D, D34) + COUNTIF(Event8!$D:$D, D34) + COUNTIF(Event9!$D:$D, D34) + COUNTIF(Event10!$D:$D, D34) + COUNTIF(Event11!$D:$D, D34) + COUNTIF(Event12!$D:$D, D34) + COUNTIF(Event13!$D:$D, D34) + COUNTIF(Event14!$D:$D, D34) + COUNTIF(Event15!$D:$D, D34) + COUNTIF(Event16!$D:$D, D34) + COUNTIF(Event17!$D:$D, D34) + COUNTIF(Event18!$D:$D, D34) + COUNTIF(Event19!$D:$D, D34) + COUNTIF(Event20!$D:$D, D34) + COUNTIF(Event21!$D:$D, D34) + COUNTIF(Event22!$D:$D, D34) + COUNTIF(Event23!$D:$D, D34) + COUNTIF(Event24!$D:$D, D34) + COUNTIF(Event25!$D:$D, D34) + COUNTIF(Event26!$D:$D, D34) + COUNTIF(Event27!$D:$D, D34) + COUNTIF(Event28!$D:$D, D34) + COUNTIF(Event29!$D:$D, D34) + COUNTIF(Event30!$D:$D, D34) + COUNTIF(Event31!$D:$D, D34) + COUNTIF(Event32!$D:$D, D34) + COUNTIF(Event33!$D:$D, D34) + COUNTIF(Event34!$D:$D, D34) + COUNTIF(Event35!$D:$D, D34) + 0","v":2},{"$f":"INDEX(Dues!$D$6:$D$1000,MATCH(Home!$D34,Dues!$D$6:$D$1000, 0),)","v":"bzl95"}]
["Alexa","Tannenbaum","So","aqt5407",{"$f":"COUNTIF(Event1!$D:$D, D35) + COUNTIF(Event2!$D:$D, D35) + COUNTIF(Event3!$D:$D, D35) + COUNTIF(Event4!$D:$D, D35) + COUNTIF(Event5!$D:$D, D35) + COUNTIF(Event6!$D:$D, D35) + COUNTIF(Event7!$D:$D, D35) + COUNTIF(Event8!$D:$D, D35) + COUNTIF(Event9!$D:$D, D35) + COUNTIF(Event10!$D:$D, D35) + COUNTIF(Event11!$D:$D, D35) + COUNTIF(Event12!$D:$D, D35) + COUNTIF(Event13!$D:$D, D35) + COUNTIF(Event14!$D:$D, D35) + COUNTIF(Event15!$D:$D, D35) + COUNTIF(Event16!$D:$D, D35) + COUNTIF(Event17!$D:$D, D35) + COUNTIF(Event18!$D:$D, D35) + COUNTIF(Event19!$D:$D, D35) + COUNTIF(Event20!$D:$D, D35) + COUNTIF(Event21!$D:$D, D35) + COUNTIF(Event22!$D:$D, D35) + COUNTIF(Event23!$D:$D, D35) + COUNTIF(Event24!$D:$D, D35) + COUNTIF(Event25!$D:$D, D35) + COUNTIF(Event26!$D:$D, D35) + COUNTIF(Event27!$D:$D, D35) + COUNTIF(Event28!$D:$D, D35) + COUNTIF(Event29!$D:$D, D35) + COUNTIF(Event30!$D:$D, D35) + COUNTIF(Event31!$D:$D, D35) + COUNTIF(Event32!$D:$D, D35) + COUNTIF(Event33!$D:$D, D35) + COUNTIF(Event34!$D:$D, D35) + COUNTIF(Event35!$D:$D, D35) + 0","v":10},{"$f":"INDEX(Dues!$D$6:$D$1000,MATCH(Home!$D35,Dues!$D$6:$D$1000, 0),)","v":"aqt5407"}]
["Jiaqi(Vickia)","Lai","Sr","jzl38",{"$f":"COUNTIF(Event1!$D:$D, D36) + COUNTIF(Event2!$D:$D, D36) + COUNTIF(Event3!$D:$D, D36) + COUNTIF(Event4!$D:$D, D36) + COUNTIF(Event5!$D:$D, D36) + COUNTIF(Event6!$D:$D, D36) + COUNTIF(Event7!$D:$D, D36) + COUNTIF(Event8!$D:$D, D36) + COUNTIF(Event9!$D:$D, D36) + COUNTIF(Event10!$D:$D, D36) + COUNTIF(Event11!$D:$D, D36) + COUNTIF(Event12!$D:$D, D36) + COUNTIF(Event13!$D:$D, D36) + COUNTIF(Event14!$D:$D, D36) + COUNTIF(Event15!$D:$D, D36) + COUNTIF(Event16!$D:$D, D36) + COUNTIF(Event17!$D:$D, D36) + COUNTIF(Event18!$D:$D, D36) + COUNTIF(Event19!$D:$D, D36) + COUNTIF(Event20!$D:$D, D36) + COUNTIF(Event21!$D:$D, D36) + COUNTIF(Event22!$D:$D, D36) + COUNTIF(Event23!$D:$D, D36) + COUNTIF(Event24!$D:$D, D36) + COUNTIF(Event25!$D:$D, D36) + COUNTIF(Event26!$D:$D, D36) + COUNTIF(Event27!$D:$D, D36) + COUNTIF(Event28!$D:$D, D36) + COUNTIF(Event29!$D:$D, D36) + COUNTIF(Event30!$D:$D, D36) + COUNTIF(Event31!$D:$D, D36) + COUNTIF(Event32!$D:$D, D36) + COUNTIF(Event33!$D:$D, D36) + COUNTIF(Event34!$D:$D, D36) + COUNTIF(Event35!$D:$D, D36) + 0","v":9},{"$f":"INDEX(Dues!$D$6:$D$1000,MATCH(Home!$D36,Dues!$D$6:$D$1000, 0),)","v":"jzl38"}]
["Akash","Patel","Jr","axp428",{"$f":"COUNTIF(Event1!$D:$D, D37) + COUNTIF(Event2!$D:$D, D37) + COUNTIF(Event3!$D:$D, D37) + COUNTIF(Event4!$D:$D, D37) + COUNTIF(Event5!$D:$D, D37) + COUNTIF(Event6!$D:$D, D37) + COUNTIF(Event7!$D:$D, D37) + COUNTIF(Event8!$D:$D, D37) + COUNTIF(Event9!$D:$D, D37) + COUNTIF(Event10!$D:$D, D37) + COUNTIF(Event11!$D:$D, D37) + COUNTIF(Event12!$D:$D, D37) + COUNTIF(Event13!$D:$D, D37) + COUNTIF(Event14!$D:$D, D37) + COUNTIF(Event15!$D:$D, D37) + COUNTIF(Event16!$D:$D, D37) + COUNTIF(Event17!$D:$D, D37) + COUNTIF(Event18!$D:$D, D37) + COUNTIF(Event19!$D:$D, D37) + COUNTIF(Event20!$D:$D, D37) + COUNTIF(Event21!$D:$D, D37) + COUNTIF(Event22!$D:$D, D37) + COUNTIF(Event23!$D:$D, D37) + COUNTIF(Event24!$D:$D, D37) + COUNTIF(Event25!$D:$D, D37) + COUNTIF(Event26!$D:$D, D37) + COUNTIF(Event27!$D:$D, D37) + COUNTIF(Event28!$D:$D, D37) + COUNTIF(Event29!$D:$D, D37) + COUNTIF(Event30!$D:$D, D37) + COUNTIF(Event31!$D:$D, D37) + COUNTIF(Event32!$D:$D, D37) + COUNTIF(Event33!$D:$D, D37) + COUNTIF(Event34!$D:$D, D37) + COUNTIF(Event35!$D:$D, D37) + 0","v":13},{"$f":"INDEX(Dues!$D$6:$D$1000,MATCH(Home!$D37,Dues!$D$6:$D$1000, 0),)","v":"axp428"}]
["Zhiyang","Liang","So","zfl5166",{"$f":"COUNTIF(Event1!$D:$D, D38) + COUNTIF(Event2!$D:$D, D38) + COUNTIF(Event3!$D:$D, D38) + COUNTIF(Event4!$D:$D, D38) + COUNTIF(Event5!$D:$D, D38) + COUNTIF(Event6!$D:$D, D38) + COUNTIF(Event7!$D:$D, D38) + COUNTIF(Event8!$D:$D, D38) + COUNTIF(Event9!$D:$D, D38) + COUNTIF(Event10!$D:$D, D38) + COUNTIF(Event11!$D:$D, D38) + COUNTIF(Event12!$D:$D, D38) + COUNTIF(Event13!$D:$D, D38) + COUNTIF(Event14!$D:$D, D38) + COUNTIF(Event15!$D:$D, D38) + COUNTIF(Event16!$D:$D, D38) + COUNTIF(Event17!$D:$D, D38) + COUNTIF(Event18!$D:$D, D38) + COUNTIF(Event19!$D:$D, D38) + COUNTIF(Event20!$D:$D, D38) + COUNTIF(Event21!$D:$D, D38) + COUNTIF(Event22!$D:$D, D38) + COUNTIF(Event23!$D:$D, D38) + COUNTIF(Event24!$D:$D, D38) + COUNTIF(Event25!$D:$D, D38) + COUNTIF(Event26!$D:$D, D38) + COUNTIF(Event27!$D:$D, D38) + COUNTIF(Event28!$D:$D, D38) + COUNTIF(Event29!$D:$D, D38) + COUNTIF(Event30!$D:$D, D38) + COUNTIF(Event31!$D:$D, D38) + COUNTIF(Event32!$D:$D, D38) + COUNTIF(Event33!$D:$D, D38) + COUNTIF(Event34!$D:$D, D38) + COUNTIF(Event35!$D:$D, D38) + 0","v":10},{"$f":"INDEX(Dues!$D$6:$D$1000,MATCH(Home!$D38,Dues!$D$6:$D$1000, 0),)","v":"zfl5166"}]
["Matt","McClintick","So","mjm7869",{"$f":"COUNTIF(Event1!$D:$D, D39) + COUNTIF(Event2!$D:$D, D39) + COUNTIF(Event3!$D:$D, D39) + COUNTIF(Event4!$D:$D, D39) + COUNTIF(Event5!$D:$D, D39) + COUNTIF(Event6!$D:$D, D39) + COUNTIF(Event7!$D:$D, D39) + COUNTIF(Event8!$D:$D, D39) + COUNTIF(Event9!$D:$D, D39) + COUNTIF(Event10!$D:$D, D39) + COUNTIF(Event11!$D:$D, D39) + COUNTIF(Event12!$D:$D, D39) + COUNTIF(Event13!$D:$D, D39) + COUNTIF(Event14!$D:$D, D39) + COUNTIF(Event15!$D:$D, D39) + COUNTIF(Event16!$D:$D, D39) + COUNTIF(Event17!$D:$D, D39) + COUNTIF(Event18!$D:$D, D39) + COUNTIF(Event19!$D:$D, D39) + COUNTIF(Event20!$D:$D, D39) + COUNTIF(Event21!$D:$D, D39) + COUNTIF(Event22!$D:$D, D39) + COUNTIF(Event23!$D:$D, D39) + COUNTIF(Event24!$D:$D, D39) + COUNTIF(Event25!$D:$D, D39) + COUNTIF(Event26!$D:$D, D39) + COUNTIF(Event27!$D:$D, D39) + COUNTIF(Event28!$D:$D, D39) + COUNTIF(Event29!$D:$D, D39) + COUNTIF(Event30!$D:$D, D39) + COUNTIF(Event31!$D:$D, D39) + COUNTIF(Event32!$D:$D, D39) + COUNTIF(Event33!$D:$D, D39) + COUNTIF(Event34!$D:$D, D39) + COUNTIF(Event35!$D:$D, D39) + 0","v":8},{"$f":"INDEX(Dues!$D$6:$D$1000,MATCH(Home!$D39,Dues!$D$6:$D$1000, 0),)","v":"mjm7869"}]
["Derek","Long","Sr","dgl5098",{"$f":"COUNTIF(Event1!$D:$D, D40) + COUNTIF(Event2!$D:$D, D40) + COUNTIF(Event3!$D:$D, D40) + COUNTIF(Event4!$D:$D, D40) + COUNTIF(Event5!$D:$D, D40) + COUNTIF(Event6!$D:$D, D40) + COUNTIF(Event7!$D:$D, D40) + COUNTIF(Event8!$D:$D, D40) + COUNTIF(Event9!$D:$D, D40) + COUNTIF(Event10!$D:$D, D40) + COUNTIF(Event11!$D:$D, D40) + COUNTIF(Event12!$D:$D, D40) + COUNTIF(Event13!$D:$D, D40) + COUNTIF(Event14!$D:$D, D40) + COUNTIF(Event15!$D:$D, D40) + COUNTIF(Event16!$D:$D, D40) + COUNTIF(Event17!$D:$D, D40) + COUNTIF(Event18!$D:$D, D40) + COUNTIF(Event19!$D:$D, D40) + COUNTIF(Event20!$D:$D, D40) + COUNTIF(Event21!$D:$D, D40) + COUNTIF(Event22!$D:$D, D40) + COUNTIF(Event23!$D:$D, D40) + COUNTIF(Event24!$D:$D, D40) + COUNTIF(Event25!$D:$D, D40) + COUNTIF(Event26!$D:$D, D40) + COUNTIF(Event27!$D:$D, D40) + COUNTIF(Event28!$D:$D, D40) + COUNTIF(Event29!$D:$D, D40) + COUNTIF(Event30!$D:$D, D40) + COUNTIF(Event31!$D:$D, D40) + COUNTIF(Event32!$D:$D, D40) + COUNTIF(Event33!$D:$D, D40) + COUNTIF(Event34!$D:$D, D40) + COUNTIF(Event35!$D:$D, D40) + 0","v":1},{"$f":"INDEX(Dues!$D$6:$D$1000,MATCH(Home!$D40,Dues!$D$6:$D$1000, 0),)","v":"dgl5098"}]
["Molly","Groarke","Jr","mag6298",{"$f":"COUNTIF(Event1!$D:$D, D41) + COUNTIF(Event2!$D:$D, D41) + COUNTIF(Event3!$D:$D, D41) + COUNTIF(Event4!$D:$D, D41) + COUNTIF(Event5!$D:$D, D41) + COUNTIF(Event6!$D:$D, D41) + COUNTIF(Event7!$D:$D, D41) + COUNTIF(Event8!$D:$D, D41) + COUNTIF(Event9!$D:$D, D41) + COUNTIF(Event10!$D:$D, D41) + COUNTIF(Event11!$D:$D, D41) + COUNTIF(Event12!$D:$D, D41) + COUNTIF(Event13!$D:$D, D41) + COUNTIF(Event14!$D:$D, D41) + COUNTIF(Event15!$D:$D, D41) + COUNTIF(Event16!$D:$D, D41) + COUNTIF(Event17!$D:$D, D41) + COUNTIF(Event18!$D:$D, D41) + COUNTIF(Event19!$D:$D, D41) + COUNTIF(Event20!$D:$D, D41) + COUNTIF(Event21!$D:$D, D41) + COUNTIF(Event22!$D:$D, D41) + COUNTIF(Event23!$D:$D, D41) + COUNTIF(Event24!$D:$D, D41) + COUNTIF(Event25!$D:$D, D41) + COUNTIF(Event26!$D:$D, D41) + COUNTIF(Event27!$D:$D, D41) + COUNTIF(Event28!$D:$D, D41) + COUNTIF(Event29!$D:$D, D41) + COUNTIF(Event30!$D:$D, D41) + COUNTIF(Event31!$D:$D, D41) + COUNTIF(Event32!$D:$D, D41) + COUNTIF(Event33!$D:$D, D41) + COUNTIF(Event34!$D:$D, D41) + COUNTIF(Event35!$D:$D, D41) + 0","v":5},{"$f":"INDEX(Dues!$D$6:$D$1000,MATCH(Home!$D41,Dues!$D$6:$D$1000, 0),)","v":"mag6298"}]
["Ilsa","Smith","Jr","ivs5154",{"$f":"COUNTIF(Event1!$D:$D, D42) + COUNTIF(Event2!$D:$D, D42) + COUNTIF(Event3!$D:$D, D42) + COUNTIF(Event4!$D:$D, D42) + COUNTIF(Event5!$D:$D, D42) + COUNTIF(Event6!$D:$D, D42) + COUNTIF(Event7!$D:$D, D42) + COUNTIF(Event8!$D:$D, D42) + COUNTIF(Event9!$D:$D, D42) + COUNTIF(Event10!$D:$D, D42) + COUNTIF(Event11!$D:$D, D42) + COUNTIF(Event12!$D:$D, D42) + COUNTIF(Event13!$D:$D, D42) + COUNTIF(Event14!$D:$D, D42) + COUNTIF(Event15!$D:$D, D42) + COUNTIF(Event16!$D:$D, D42) + COUNTIF(Event17!$D:$D, D42) + COUNTIF(Event18!$D:$D, D42) + COUNTIF(Event19!$D:$D, D42) + COUNTIF(Event20!$D:$D, D42) + COUNTIF(Event21!$D:$D, D42) + COUNTIF(Event22!$D:$D, D42) + COUNTIF(Event23!$D:$D, D42) + COUNTIF(Event24!$D:$D, D42) + COUNTIF(Event25!$D:$D, D42) + COUNTIF(Event26!$D:$D, D42) + COUNTIF(Event27!$D:$D, D42) + COUNTIF(Event28!$D:$D, D42) + COUNTIF(Event29!$D:$D, D42) + COUNTIF(Event30!$D:$D, D42) + COUNTIF(Event31!$D:$D, D42) + COUNTIF(Event32!$D:$D, D42) + COUNTIF(Event33!$D:$D, D42) + COUNTIF(Event34!$D:$D, D42) + COUNTIF(Event35!$D:$D, D42) + 0","v":4},{"$f":"INDEX(Dues!$D$6:$D$1000,MATCH(Home!$D42,Dues!$D$6:$D$1000, 0),)","v":"ivs5154"}]
["Kim","Mincin","So","kfm5441",{"$f":"COUNTIF(Event1!$D:$D, D43) + COUNTIF(Event2!$D:$D, D43) + COUNTIF(Event3!$D:$D, D43) + COUNTIF(Event4!$D:$D, D43) + COUNTIF(Event5!$D:$D, D43) + COUNTIF(Event6!$D:$D, D43) + COUNTIF(Event7!$D:$D, D43) + COUNTIF(Event8!$D:$D, D43) + COUNTIF(Event9!$D:$D, D43) + COUNTIF(Event10!$D:$D, D43) + COUNTIF(Event11!$D:$D, D43) + COUNTIF(Event12!$D:$D, D43) + COUNTIF(Event13!$D:$D, D43) + COUNTIF(Event14!$D:$D, D43) + COUNTIF(Event15!$D:$D, D43) + COUNTIF(Event16!$D:$D, D43) + COUNTIF(Event17!$D:$D, D43) + COUNTIF(Event18!$D:$D, D43) + COUNTIF(Event19!$D:$D, D43) + COUNTIF(Event20!$D:$D, D43) + COUNTIF(Event21!$D:$D, D43) + COUNTIF(Event22!$D:$D, D43) + COUNTIF(Event23!$D:$D, D43) + COUNTIF(Event24!$D:$D, D43) + COUNTIF(Event25!$D:$D, D43) + COUNTIF(Event26!$D:$D, D43) + COUNTIF(Event27!$D:$D, D43) + COUNTIF(Event28!$D:$D, D43) + COUNTIF(Event29!$D:$D, D43) + COUNTIF(Event30!$D:$D, D43) + COUNTIF(Event31!$D:$D, D43) + COUNTIF(Event32!$D:$D, D43) + COUNTIF(Event33!$D:$D, D43) + COUNTIF(Event34!$D:$D, D43) + COUNTIF(Event35!$D:$D, D43) + 0","v":4},{"$f":"INDEX(Dues!$D$6:$D$1000,MATCH(Home!$D43,Dues!$D$6:$D$1000, 0),)","v":"kfm5441"}]
["Jared","Asorer","Fr","jza5506",{"$f":"COUNTIF(Event1!$D:$D, D44) + COUNTIF(Event2!$D:$D, D44) + COUNTIF(Event3!$D:$D, D44) + COUNTIF(Event4!$D:$D, D44) + COUNTIF(Event5!$D:$D, D44) + COUNTIF(Event6!$D:$D, D44) + COUNTIF(Event7!$D:$D, D44) + COUNTIF(Event8!$D:$D, D44) + COUNTIF(Event9!$D:$D, D44) + COUNTIF(Event10!$D:$D, D44) + COUNTIF(Event11!$D:$D, D44) + COUNTIF(Event12!$D:$D, D44) + COUNTIF(Event13!$D:$D, D44) + COUNTIF(Event14!$D:$D, D44) + COUNTIF(Event15!$D:$D, D44) + COUNTIF(Event16!$D:$D, D44) + COUNTIF(Event17!$D:$D, D44) + COUNTIF(Event18!$D:$D, D44) + COUNTIF(Event19!$D:$D, D44) + COUNTIF(Event20!$D:$D, D44) + COUNTIF(Event21!$D:$D, D44) + COUNTIF(Event22!$D:$D, D44) + COUNTIF(Event23!$D:$D, D44) + COUNTIF(Event24!$D:$D, D44) + COUNTIF(Event25!$D:$D, D44) + COUNTIF(Event26!$D:$D, D44) + COUNTIF(Event27!$D:$D, D44) + COUNTIF(Event28!$D:$D, D44) + COUNTIF(Event29!$D:$D, D44) + COUNTIF(Event30!$D:$D, D44) + COUNTIF(Event31!$D:$D, D44) + COUNTIF(Event32!$D:$D, D44) + COUNTIF(Event33!$D:$D, D44) + COUNTIF(Event34!$D:$D, D44) + COUNTIF(Event35!$D:$D, D44) + 0","v":7},{"$f":"INDEX(Dues!$D$6:$D$1000,MATCH(Home!$D44,Dues!$D$6:$D$1000, 0),)","v":"jza5506"}]
["Dustin","Bauer","Fr","dtb5308",{"$f":"COUNTIF(Event1!$D:$D, D45) + COUNTIF(Event2!$D:$D, D45) + COUNTIF(Event3!$D:$D, D45) + COUNTIF(Event4!$D:$D, D45) + COUNTIF(Event5!$D:$D, D45) + COUNTIF(Event6!$D:$D, D45) + COUNTIF(Event7!$D:$D, D45) + COUNTIF(Event8!$D:$D, D45) + COUNTIF(Event9!$D:$D, D45) + COUNTIF(Event10!$D:$D, D45) + COUNTIF(Event11!$D:$D, D45) + COUNTIF(Event12!$D:$D, D45) + COUNTIF(Event13!$D:$D, D45) + COUNTIF(Event14!$D:$D, D45) + COUNTIF(Event15!$D:$D, D45) + COUNTIF(Event16!$D:$D, D45) + COUNTIF(Event17!$D:$D, D45) + COUNTIF(Event18!$D:$D, D45) + COUNTIF(Event19!$D:$D, D45) + COUNTIF(Event20!$D:$D, D45) + COUNTIF(Event21!$D:$D, D45) + COUNTIF(Event22!$D:$D, D45) + COUNTIF(Event23!$D:$D, D45) + COUNTIF(Event24!$D:$D, D45) + COUNTIF(Event25!$D:$D, D45) + COUNTIF(Event26!$D:$D, D45) + COUNTIF(Event27!$D:$D, D45) + COUNTIF(Event28!$D:$D, D45) + COUNTIF(Event29!$D:$D, D45) + COUNTIF(Event30!$D:$D, D45) + COUNTIF(Event31!$D:$D, D45) + COUNTIF(Event32!$D:$D, D45) + COUNTIF(Event33!$D:$D, D45) + COUNTIF(Event34!$D:$D, D45) + COUNTIF(Event35!$D:$D, D45) + 0","v":6},{"$f":"INDEX(Dues!$D$6:$D$1000,MATCH(Home!$D45,Dues!$D$6:$D$1000, 0),)","v":"dtb5308"}]
["Jacob","Rausch","So","jmr6884",{"$f":"COUNTIF(Event1!$D:$D, D46) + COUNTIF(Event2!$D:$D, D46) + COUNTIF(Event3!$D:$D, D46) + COUNTIF(Event4!$D:$D, D46) + COUNTIF(Event5!$D:$D, D46) + COUNTIF(Event6!$D:$D, D46) + COUNTIF(Event7!$D:$D, D46) + COUNTIF(Event8!$D:$D, D46) + COUNTIF(Event9!$D:$D, D46) + COUNTIF(Event10!$D:$D, D46) + COUNTIF(Event11!$D:$D, D46) + COUNTIF(Event12!$D:$D, D46) + COUNTIF(Event13!$D:$D, D46) + COUNTIF(Event14!$D:$D, D46) + COUNTIF(Event15!$D:$D, D46) + COUNTIF(Event16!$D:$D, D46) + COUNTIF(Event17!$D:$D, D46) + COUNTIF(Event18!$D:$D, D46) + COUNTIF(Event19!$D:$D, D46) + COUNTIF(Event20!$D:$D, D46) + COUNTIF(Event21!$D:$D, D46) + COUNTIF(Event22!$D:$D, D46) + COUNTIF(Event23!$D:$D, D46) + COUNTIF(Event24!$D:$D, D46) + COUNTIF(Event25!$D:$D, D46) + COUNTIF(Event26!$D:$D, D46) + COUNTIF(Event27!$D:$D, D46) + COUNTIF(Event28!$D:$D, D46) + COUNTIF(Event29!$D:$D, D46) + COUNTIF(Event30!$D:$D, D46) + COUNTIF(Event31!$D:$D, D46) + COUNTIF(Event32!$D:$D, D46) + COUNTIF(Event33!$D:$D, D46) + COUNTIF(Event34!$D:$D, D46) + COUNTIF(Event35!$D:$D, D46) + 0","v":2},{"$f":"INDEX(Dues!$D$6:$D$1000,MATCH(Home!$D46,Dues!$D$6:$D$1000, 0),)","v":"jmr6884"}]
["Brian","Garbacik","So","brg16",{"$f":"COUNTIF(Event1!$D:$D, D47) + COUNTIF(Event2!$D:$D, D47) + COUNTIF(Event3!$D:$D, D47) + COUNTIF(Event4!$D:$D, D47) + COUNTIF(Event5!$D:$D, D47) + COUNTIF(Event6!$D:$D, D47) + COUNTIF(Event7!$D:$D, D47) + COUNTIF(Event8!$D:$D, D47) + COUNTIF(Event9!$D:$D, D47) + COUNTIF(Event10!$D:$D, D47) + COUNTIF(Event11!$D:$D, D47) + COUNTIF(Event12!$D:$D, D47) + COUNTIF(Event13!$D:$D, D47) + COUNTIF(Event14!$D:$D, D47) + COUNTIF(Event15!$D:$D, D47) + COUNTIF(Event16!$D:$D, D47) + COUNTIF(Event17!$D:$D, D47) + COUNTIF(Event18!$D:$D, D47) + COUNTIF(Event19!$D:$D, D47) + COUNTIF(Event20!$D:$D, D47) + COUNTIF(Event21!$D:$D, D47) + COUNTIF(Event22!$D:$D, D47) + COUNTIF(Event23!$D:$D, D47) + COUNTIF(Event24!$D:$D, D47) + COUNTIF(Event25!$D:$D, D47) + COUNTIF(Event26!$D:$D, D47) + COUNTIF(Event27!$D:$D, D47) + COUNTIF(Event28!$D:$D, D47) + COUNTIF(Event29!$D:$D, D47) + COUNTIF(Event30!$D:$D, D47) + COUNTIF(Event31!$D:$D, D47) + COUNTIF(Event32!$D:$D, D47) + COUNTIF(Event33!$D:$D, D47) + COUNTIF(Event34!$D:$D, D47) + COUNTIF(Event35!$D:$D, D47) + 0","v":7},{"$f":"INDEX(Dues!$D$6:$D$1000,MATCH(Home!$D47,Dues!$D$6:$D$1000, 0),)","v":"brg16"}]
["Jake","Wagner","So","jfw5541",{"$f":"COUNTIF(Event1!$D:$D, D48) + COUNTIF(Event2!$D:$D, D48) + COUNTIF(Event3!$D:$D, D48) + COUNTIF(Event4!$D:$D, D48) + COUNTIF(Event5!$D:$D, D48) + COUNTIF(Event6!$D:$D, D48) + COUNTIF(Event7!$D:$D, D48) + COUNTIF(Event8!$D:$D, D48) + COUNTIF(Event9!$D:$D, D48) + COUNTIF(Event10!$D:$D, D48) + COUNTIF(Event11!$D:$D, D48) + COUNTIF(Event12!$D:$D, D48) + COUNTIF(Event13!$D:$D, D48) + COUNTIF(Event14!$D:$D, D48) + COUNTIF(Event15!$D:$D, D48) + COUNTIF(Event16!$D:$D, D48) + COUNTIF(Event17!$D:$D, D48) + COUNTIF(Event18!$D:$D, D48) + COUNTIF(Event19!$D:$D, D48) + COUNTIF(Event20!$D:$D, D48) + COUNTIF(Event21!$D:$D, D48) + COUNTIF(Event22!$D:$D, D48) + COUNTIF(Event23!$D:$D, D48) + COUNTIF(Event24!$D:$D, D48) + COUNTIF(Event25!$D:$D, D48) + COUNTIF(Event26!$D:$D, D48) + COUNTIF(Event27!$D:$D, D48) + COUNTIF(Event28!$D:$D, D48) + COUNTIF(Event29!$D:$D, D48) + COUNTIF(Event30!$D:$D, D48) + COUNTIF(Event31!$D:$D, D48) + COUNTIF(Event32!$D:$D, D48) + COUNTIF(Event33!$D:$D, D48) + COUNTIF(Event34!$D:$D, D48) + COUNTIF(Event35!$D:$D, D48) + 0","v":6},{"$f":"INDEX(Dues!$D$6:$D$1000,MATCH(Home!$D48,Dues!$D$6:$D$1000, 0),)","v":"jfw5541"}]
["Lauren","Spicher","Fr","les5774",{"$f":"COUNTIF(Event1!$D:$D, D49) + COUNTIF(Event2!$D:$D, D49) + COUNTIF(Event3!$D:$D, D49) + COUNTIF(Event4!$D:$D, D49) + COUNTIF(Event5!$D:$D, D49) + COUNTIF(Event6!$D:$D, D49) + COUNTIF(Event7!$D:$D, D49) + COUNTIF(Event8!$D:$D, D49) + COUNTIF(Event9!$D:$D, D49) + COUNTIF(Event10!$D:$D, D49) + COUNTIF(Event11!$D:$D, D49) + COUNTIF(Event12!$D:$D, D49) + COUNTIF(Event13!$D:$D, D49) + COUNTIF(Event14!$D:$D, D49) + COUNTIF(Event15!$D:$D, D49) + COUNTIF(Event16!$D:$D, D49) + COUNTIF(Event17!$D:$D, D49) + COUNTIF(Event18!$D:$D, D49) + COUNTIF(Event19!$D:$D, D49) + COUNTIF(Event20!$D:$D, D49) + COUNTIF(Event21!$D:$D, D49) + COUNTIF(Event22!$D:$D, D49) + COUNTIF(Event23!$D:$D, D49) + COUNTIF(Event24!$D:$D, D49) + COUNTIF(Event25!$D:$D, D49) + COUNTIF(Event26!$D:$D, D49) + COUNTIF(Event27!$D:$D, D49) + COUNTIF(Event28!$D:$D, D49) + COUNTIF(Event29!$D:$D, D49) + COUNTIF(Event30!$D:$D, D49) + COUNTIF(Event31!$D:$D, D49) + COUNTIF(Event32!$D:$D, D49) + COUNTIF(Event33!$D:$D, D49) + COUNTIF(Event34!$D:$D, D49) + COUNTIF(Event35!$D:$D, D49) + 0","v":7},{"$f":"INDEX(Dues!$D$6:$D$1000,MATCH(Home!$D49,Dues!$D$6:$D$1000, 0),)","v":"les5774"}]
["Jack","Berry","Fr","jnb5602",{"$f":"COUNTIF(Event1!$D:$D, D50) + COUNTIF(Event2!$D:$D, D50) + COUNTIF(Event3!$D:$D, D50) + COUNTIF(Event4!$D:$D, D50) + COUNTIF(Event5!$D:$D, D50) + COUNTIF(Event6!$D:$D, D50) + COUNTIF(Event7!$D:$D, D50) + COUNTIF(Event8!$D:$D, D50) + COUNTIF(Event9!$D:$D, D50) + COUNTIF(Event10!$D:$D, D50) + COUNTIF(Event11!$D:$D, D50) + COUNTIF(Event12!$D:$D, D50) + COUNTIF(Event13!$D:$D, D50) + COUNTIF(Event14!$D:$D, D50) + COUNTIF(Event15!$D:$D, D50) + COUNTIF(Event16!$D:$D, D50) + COUNTIF(Event17!$D:$D, D50) + COUNTIF(Event18!$D:$D, D50) + COUNTIF(Event19!$D:$D, D50) + COUNTIF(Event20!$D:$D, D50) + COUNTIF(Event21!$D:$D, D50) + COUNTIF(Event22!$D:$D, D50) + COUNTIF(Event23!$D:$D, D50) + COUNTIF(Event24!$D:$D, D50) + COUNTIF(Event25!$D:$D, D50) + COUNTIF(Event26!$D:$D, D50) + COUNTIF(Event27!$D:$D, D50) + COUNTIF(Event28!$D:$D, D50) + COUNTIF(Event29!$D:$D, D50) + COUNTIF(Event30!$D:$D, D50) + COUNTIF(Event31!$D:$D, D50) + COUNTIF(Event32!$D:$D, D50) + COUNTIF(Event33!$D:$D, D50) + COUNTIF(Event34!$D:$D, D50) + COUNTIF(Event35!$D:$D, D50) + 0","v":9},{"$f":"INDEX(Dues!$D$6:$D$1000,MATCH(Home!$D50,Dues!$D$6:$D$1000, 0),)","v":"jnb5602"}]
["Emmanuel","Nkgare","Jr","ebn5071",{"$f":"COUNTIF(Event1!$D:$D, D51) + COUNTIF(Event2!$D:$D, D51) + COUNTIF(Event3!$D:$D, D51) + COUNTIF(Event4!$D:$D, D51) + COUNTIF(Event5!$D:$D, D51) + COUNTIF(Event6!$D:$D, D51) + COUNTIF(Event7!$D:$D, D51) + COUNTIF(Event8!$D:$D, D51) + COUNTIF(Event9!$D:$D, D51) + COUNTIF(Event10!$D:$D, D51) + COUNTIF(Event11!$D:$D, D51) + COUNTIF(Event12!$D:$D, D51) + COUNTIF(Event13!$D:$D, D51) + COUNTIF(Event14!$D:$D, D51) + COUNTIF(Event15!$D:$D, D51) + COUNTIF(Event16!$D:$D, D51) + COUNTIF(Event17!$D:$D, D51) + COUNTIF(Event18!$D:$D, D51) + COUNTIF(Event19!$D:$D, D51) + COUNTIF(Event20!$D:$D, D51) + COUNTIF(Event21!$D:$D, D51) + COUNTIF(Event22!$D:$D, D51) + COUNTIF(Event23!$D:$D, D51) + COUNTIF(Event24!$D:$D, D51) + COUNTIF(Event25!$D:$D, D51) + COUNTIF(Event26!$D:$D, D51) + COUNTIF(Event27!$D:$D, D51) + COUNTIF(Event28!$D:$D, D51) + COUNTIF(Event29!$D:$D, D51) + COUNTIF(Event30!$D:$D, D51) + COUNTIF(Event31!$D:$D, D51) + COUNTIF(Event32!$D:$D, D51) + COUNTIF(Event33!$D:$D, D51) + COUNTIF(Event34!$D:$D, D51) + COUNTIF(Event35!$D:$D, D51) + 0","v":2},{"$f":"INDEX(Dues!$D$6:$D$1000,MATCH(Home!$D51,Dues!$D$6:$D$1000, 0),)","v":"ebn5071"}]
["Max","Cohen","Fr","mvc6160",{"$f":"COUNTIF(Event1!$D:$D, D52) + COUNTIF(Event2!$D:$D, D52) + COUNTIF(Event3!$D:$D, D52) + COUNTIF(Event4!$D:$D, D52) + COUNTIF(Event5!$D:$D, D52) + COUNTIF(Event6!$D:$D, D52) + COUNTIF(Event7!$D:$D, D52) + COUNTIF(Event8!$D:$D, D52) + COUNTIF(Event9!$D:$D, D52) + COUNTIF(Event10!$D:$D, D52) + COUNTIF(Event11!$D:$D, D52) + COUNTIF(Event12!$D:$D, D52) + COUNTIF(Event13!$D:$D, D52) + COUNTIF(Event14!$D:$D, D52) + COUNTIF(Event15!$D:$D, D52) + COUNTIF(Event16!$D:$D, D52) + COUNTIF(Event17!$D:$D, D52) + COUNTIF(Event18!$D:$D, D52) + COUNTIF(Event19!$D:$D, D52) + COUNTIF(Event20!$D:$D, D52) + COUNTIF(Event21!$D:$D, D52) + COUNTIF(Event22!$D:$D, D52) + COUNTIF(Event23!$D:$D, D52) + COUNTIF(Event24!$D:$D, D52) + COUNTIF(Event25!$D:$D, D52) + COUNTIF(Event26!$D:$D, D52) + COUNTIF(Event27!$D:$D, D52) + COUNTIF(Event28!$D:$D, D52) + COUNTIF(Event29!$D:$D, D52) + COUNTIF(Event30!$D:$D, D52) + COUNTIF(Event31!$D:$D, D52) + COUNTIF(Event32!$D:$D, D52) + COUNTIF(Event33!$D:$D, D52) + COUNTIF(Event34!$D:$D, D52) + COUNTIF(Event35!$D:$D, D52) + 0","v":3},{"$f":"INDEX(Dues!$D$6:$D$1000,MATCH(Home!$D52,Dues!$D$6:$D$1000, 0),)","v":"mvc6160"}]
["Cristina","Peloro","So","czp5434",{"$f":"COUNTIF(Event1!$D:$D, D53) + COUNTIF(Event2!$D:$D, D53) + COUNTIF(Event3!$D:$D, D53) + COUNTIF(Event4!$D:$D, D53) + COUNTIF(Event5!$D:$D, D53) + COUNTIF(Event6!$D:$D, D53) + COUNTIF(Event7!$D:$D, D53) + COUNTIF(Event8!$D:$D, D53) + COUNTIF(Event9!$D:$D, D53) + COUNTIF(Event10!$D:$D, D53) + COUNTIF(Event11!$D:$D, D53) + COUNTIF(Event12!$D:$D, D53) + COUNTIF(Event13!$D:$D, D53) + COUNTIF(Event14!$D:$D, D53) + COUNTIF(Event15!$D:$D, D53) + COUNTIF(Event16!$D:$D, D53) + COUNTIF(Event17!$D:$D, D53) + COUNTIF(Event18!$D:$D, D53) + COUNTIF(Event19!$D:$D, D53) + COUNTIF(Event20!$D:$D, D53) + COUNTIF(Event21!$D:$D, D53) + COUNTIF(Event22!$D:$D, D53) + COUNTIF(Event23!$D:$D, D53) + COUNTIF(Event24!$D:$D, D53) + COUNTIF(Event25!$D:$D, D53) + COUNTIF(Event26!$D:$D, D53) + COUNTIF(Event27!$D:$D, D53) + COUNTIF(Event28!$D:$D, D53) + COUNTIF(Event29!$D:$D, D53) + COUNTIF(Event30!$D:$D, D53) + COUNTIF(Event31!$D:$D, D53) + COUNTIF(Event32!$D:$D, D53) + COUNTIF(Event33!$D:$D, D53) + COUNTIF(Event34!$D:$D, D53) + COUNTIF(Event35!$D:$D, D53) + 0","v":8},{"$f":"INDEX(Dues!$D$6:$D$1000,MATCH(Home!$D53,Dues!$D$6:$D$1000, 0),)","v":"czp5434"}]
["Duong","Nguyen","Sr","dnn5",{"$f":"COUNTIF(Event1!$D:$D, D54) + COUNTIF(Event2!$D:$D, D54) + COUNTIF(Event3!$D:$D, D54) + COUNTIF(Event4!$D:$D, D54) + COUNTIF(Event5!$D:$D, D54) + COUNTIF(Event6!$D:$D, D54) + COUNTIF(Event7!$D:$D, D54) + COUNTIF(Event8!$D:$D, D54) + COUNTIF(Event9!$D:$D, D54) + COUNTIF(Event10!$D:$D, D54) + COUNTIF(Event11!$D:$D, D54) + COUNTIF(Event12!$D:$D, D54) + COUNTIF(Event13!$D:$D, D54) + COUNTIF(Event14!$D:$D, D54) + COUNTIF(Event15!$D:$D, D54) + COUNTIF(Event16!$D:$D, D54) + COUNTIF(Event17!$D:$D, D54) + COUNTIF(Event18!$D:$D, D54) + COUNTIF(Event19!$D:$D, D54) + COUNTIF(Event20!$D:$D, D54) + COUNTIF(Event21!$D:$D, D54) + COUNTIF(Event22!$D:$D, D54) + COUNTIF(Event23!$D:$D, D54) + COUNTIF(Event24!$D:$D, D54) + COUNTIF(Event25!$D:$D, D54) + COUNTIF(Event26!$D:$D, D54) + COUNTIF(Event27!$D:$D, D54) + COUNTIF(Event28!$D:$D, D54) + COUNTIF(Event29!$D:$D, D54) + COUNTIF(Event30!$D:$D, D54) + COUNTIF(Event31!$D:$D, D54) + COUNTIF(Event32!$D:$D, D54) + COUNTIF(Event33!$D:$D, D54) + COUNTIF(Event34!$D:$D, D54) + COUNTIF(Event35!$D:$D, D54) + 0","v":7},{"$f":"INDEX(Dues!$D$6:$D$1000,MATCH(Home!$D54,Dues!$D$6:$D$1000, 0),)","v":"dnn5"}]
["Matthew","Pidgeon","Jr","mpp5454",{"$f":"COUNTIF(Event1!$D:$D, D55) + COUNTIF(Event2!$D:$D, D55) + COUNTIF(Event3!$D:$D, D55) + COUNTIF(Event4!$D:$D, D55) + COUNTIF(Event5!$D:$D, D55) + COUNTIF(Event6!$D:$D, D55) + COUNTIF(Event7!$D:$D, D55) + COUNTIF(Event8!$D:$D, D55) + COUNTIF(Event9!$D:$D, D55) + COUNTIF(Event10!$D:$D, D55) + COUNTIF(Event11!$D:$D, D55) + COUNTIF(Event12!$D:$D, D55) + COUNTIF(Event13!$D:$D, D55) + COUNTIF(Event14!$D:$D, D55) + COUNTIF(Event15!$D:$D, D55) + COUNTIF(Event16!$D:$D, D55) + COUNTIF(Event17!$D:$D, D55) + COUNTIF(Event18!$D:$D, D55) + COUNTIF(Event19!$D:$D, D55) + COUNTIF(Event20!$D:$D, D55) + COUNTIF(Event21!$D:$D, D55) + COUNTIF(Event22!$D:$D, D55) + COUNTIF(Event23!$D:$D, D55) + COUNTIF(Event24!$D:$D, D55) + COUNTIF(Event25!$D:$D, D55) + COUNTIF(Event26!$D:$D, D55) + COUNTIF(Event27!$D:$D, D55) + COUNTIF(Event28!$D:$D, D55) + COUNTIF(Event29!$D:$D, D55) + COUNTIF(Event30!$D:$D, D55) + COUNTIF(Event31!$D:$D, D55) + COUNTIF(Event32!$D:$D, D55) + COUNTIF(Event33!$D:$D, D55) + COUNTIF(Event34!$D:$D, D55) + COUNTIF(Event35!$D:$D, D55) + 0","v":4},{"$f":"INDEX(Dues!$D$6:$D$1000,MATCH(Home!$D55,Dues!$D$6:$D$1000, 0),)","v":"mpp5454"}]
["John","Miller","Sr","jdm6057",{"$f":"COUNTIF(Event1!$D:$D, D56) + COUNTIF(Event2!$D:$D, D56) + COUNTIF(Event3!$D:$D, D56) + COUNTIF(Event4!$D:$D, D56) + COUNTIF(Event5!$D:$D, D56) + COUNTIF(Event6!$D:$D, D56) + COUNTIF(Event7!$D:$D, D56) + COUNTIF(Event8!$D:$D, D56) + COUNTIF(Event9!$D:$D, D56) + COUNTIF(Event10!$D:$D, D56) + COUNTIF(Event11!$D:$D, D56) + COUNTIF(Event12!$D:$D, D56) + COUNTIF(Event13!$D:$D, D56) + COUNTIF(Event14!$D:$D, D56) + COUNTIF(Event15!$D:$D, D56) + COUNTIF(Event16!$D:$D, D56) + COUNTIF(Event17!$D:$D, D56) + COUNTIF(Event18!$D:$D, D56) + COUNTIF(Event19!$D:$D, D56) + COUNTIF(Event20!$D:$D, D56) + COUNTIF(Event21!$D:$D, D56) + COUNTIF(Event22!$D:$D, D56) + COUNTIF(Event23!$D:$D, D56) + COUNTIF(Event24!$D:$D, D56) + COUNTIF(Event25!$D:$D, D56) + COUNTIF(Event26!$D:$D, D56) + COUNTIF(Event27!$D:$D, D56) + COUNTIF(Event28!$D:$D, D56) + COUNTIF(Event29!$D:$D, D56) + COUNTIF(Event30!$D:$D, D56) + COUNTIF(Event31!$D:$D, D56) + COUNTIF(Event32!$D:$D, D56) + COUNTIF(Event33!$D:$D, D56) + COUNTIF(Event34!$D:$D, D56) + COUNTIF(Event35!$D:$D, D56) + 0","v":6},{"$f":"INDEX(Dues!$D$6:$D$1000,MATCH(Home!$D56,Dues!$D$6:$D$1000, 0),)","v":"jdm6057"}]
["Kimberly","Anderson","Sr","ksa5170",{"$f":"COUNTIF(Event1!$D:$D, D57) + COUNTIF(Event2!$D:$D, D57) + COUNTIF(Event3!$D:$D, D57) + COUNTIF(Event4!$D:$D, D57) + COUNTIF(Event5!$D:$D, D57) + COUNTIF(Event6!$D:$D, D57) + COUNTIF(Event7!$D:$D, D57) + COUNTIF(Event8!$D:$D, D57) + COUNTIF(Event9!$D:$D, D57) + COUNTIF(Event10!$D:$D, D57) + COUNTIF(Event11!$D:$D, D57) + COUNTIF(Event12!$D:$D, D57) + COUNTIF(Event13!$D:$D, D57) + COUNTIF(Event14!$D:$D, D57) + COUNTIF(Event15!$D:$D, D57) + COUNTIF(Event16!$D:$D, D57) + COUNTIF(Event17!$D:$D, D57) + COUNTIF(Event18!$D:$D, D57) + COUNTIF(Event19!$D:$D, D57) + COUNTIF(Event20!$D:$D, D57) + COUNTIF(Event21!$D:$D, D57) + COUNTIF(Event22!$D:$D, D57) + COUNTIF(Event23!$D:$D, D57) + COUNTIF(Event24!$D:$D, D57) + COUNTIF(Event25!$D:$D, D57) + COUNTIF(Event26!$D:$D, D57) + COUNTIF(Event27!$D:$D, D57) + COUNTIF(Event28!$D:$D, D57) + COUNTIF(Event29!$D:$D, D57) + COUNTIF(Event30!$D:$D, D57) + COUNTIF(Event31!$D:$D, D57) + COUNTIF(Event32!$D:$D, D57) + COUNTIF(Event33!$D:$D, D57) + COUNTIF(Event34!$D:$D, D57) + COUNTIF(Event35!$D:$D, D57) + 0","v":2},{"$f":"INDEX(Dues!$D$6:$D$1000,MATCH(Home!$D57,Dues!$D$6:$D$1000, 0),)","v":{"$error":"#N/A"}}]
["Kyle","Mauger","Jr","kjm6235",{"$f":"COUNTIF(Event1!$D:$D, D58) + COUNTIF(Event2!$D:$D, D58) + COUNTIF(Event3!$D:$D, D58) + COUNTIF(Event4!$D:$D, D58) + COUNTIF(Event5!$D:$D, D58) + COUNTIF(Event6!$D:$D, D58) + COUNTIF(Event7!$D:$D, D58) + COUNTIF(Event8!$D:$D, D58) + COUNTIF(Event9!$D:$D, D58) + COUNTIF(Event10!$D:$D, D58) + COUNTIF(Event11!$D:$D, D58) + COUNTIF(Event12!$D:$D, D58) + COUNTIF(Event13!$D:$D, D58) + COUNTIF(Event14!$D:$D, D58) + COUNTIF(Event15!$D:$D, D58) + COUNTIF(Event16!$D:$D, D58) + COUNTIF(Event17!$D:$D, D58) + COUNTIF(Event18!$D:$D, D58) + COUNTIF(Event19!$D:$D, D58) + COUNTIF(Event20!$D:$D, D58) + COUNTIF(Event21!$D:$D, D58) + COUNTIF(Event22!$D:$D, D58) + COUNTIF(Event23!$D:$D, D58) + COUNTIF(Event24!$D:$D, D58) + COUNTIF(Event25!$D:$D, D58) + COUNTIF(Event26!$D:$D, D58) + COUNTIF(Event27!$D:$D, D58) + COUNTIF(Event28!$D:$D, D58) + COUNTIF(Event29!$D:$D, D58) + COUNTIF(Event30!$D:$D, D58) + COUNTIF(Event31!$D:$D, D58) + COUNTIF(Event32!$D:$D, D58) + COUNTIF(Event33!$D:$D, D58) + COUNTIF(Event34!$D:$D, D58) + COUNTIF(Event35!$D:$D, D58) + 0","v":2},{"$f":"INDEX(Dues!$D$6:$D$1000,MATCH(Home!$D58,Dues!$D$6:$D$1000, 0),)","v":"kjm6235"}]
["Raymond ","Lu","Jr","lmr5640",{"$f":"COUNTIF(Event1!$D:$D, D59) + COUNTIF(Event2!$D:$D, D59) + COUNTIF(Event3!$D:$D, D59) + COUNTIF(Event4!$D:$D, D59) + COUNTIF(Event5!$D:$D, D59) + COUNTIF(Event6!$D:$D, D59) + COUNTIF(Event7!$D:$D, D59) + COUNTIF(Event8!$D:$D, D59) + COUNTIF(Event9!$D:$D, D59) + COUNTIF(Event10!$D:$D, D59) + COUNTIF(Event11!$D:$D, D59) + COUNTIF(Event12!$D:$D, D59) + COUNTIF(Event13!$D:$D, D59) + COUNTIF(Event14!$D:$D, D59) + COUNTIF(Event15!$D:$D, D59) + COUNTIF(Event16!$D:$D, D59) + COUNTIF(Event17!$D:$D, D59) + COUNTIF(Event18!$D:$D, D59) + COUNTIF(Event19!$D:$D, D59) + COUNTIF(Event20!$D:$D, D59) + COUNTIF(Event21!$D:$D, D59) + COUNTIF(Event22!$D:$D, D59) + COUNTIF(Event23!$D:$D, D59) + COUNTIF(Event24!$D:$D, D59) + COUNTIF(Event25!$D:$D, D59) + COUNTIF(Event26!$D:$D, D59) + COUNTIF(Event27!$D:$D, D59) + COUNTIF(Event28!$D:$D, D59) + COUNTIF(Event29!$D:$D, D59) + COUNTIF(Event30!$D:$D, D59) + COUNTIF(Event31!$D:$D, D59) + COUNTIF(Event32!$D:$D, D59) + COUNTIF(Event33!$D:$D, D59) + COUNTIF(Event34!$D:$D, D59) + COUNTIF(Event35!$D:$D, D59) + 0","v":5},{"$f":"INDEX(Dues!$D$6:$D$1000,MATCH(Home!$D59,Dues!$D$6:$D$1000, 0),)","v":"lmr5640"}]
["Collin","O'Connell","Jr","cpo5122",{"$f":"COUNTIF(Event1!$D:$D, D60) + COUNTIF(Event2!$D:$D, D60) + COUNTIF(Event3!$D:$D, D60) + COUNTIF(Event4!$D:$D, D60) + COUNTIF(Event5!$D:$D, D60) + COUNTIF(Event6!$D:$D, D60) + COUNTIF(Event7!$D:$D, D60) + COUNTIF(Event8!$D:$D, D60) + COUNTIF(Event9!$D:$D, D60) + COUNTIF(Event10!$D:$D, D60) + COUNTIF(Event11!$D:$D, D60) + COUNTIF(Event12!$D:$D, D60) + COUNTIF(Event13!$D:$D, D60) + COUNTIF(Event14!$D:$D, D60) + COUNTIF(Event15!$D:$D, D60) + COUNTIF(Event16!$D:$D, D60) + COUNTIF(Event17!$D:$D, D60) + COUNTIF(Event18!$D:$D, D60) + COUNTIF(Event19!$D:$D, D60) + COUNTIF(Event20!$D:$D, D60) + COUNTIF(Event21!$D:$D, D60) + COUNTIF(Event22!$D:$D, D60) + COUNTIF(Event23!$D:$D, D60) + COUNTIF(Event24!$D:$D, D60) + COUNTIF(Event25!$D:$D, D60) + COUNTIF(Event26!$D:$D, D60) + COUNTIF(Event27!$D:$D, D60) + COUNTIF(Event28!$D:$D, D60) + COUNTIF(Event29!$D:$D, D60) + COUNTIF(Event30!$D:$D, D60) + COUNTIF(Event31!$D:$D, D60) + COUNTIF(Event32!$D:$D, D60) + COUNTIF(Event33!$D:$D, D60) + COUNTIF(Event34!$D:$D, D60) + COUNTIF(Event35!$D:$D, D60) + 0","v":8},{"$f":"INDEX(Dues!$D$6:$D$1000,MATCH(Home!$D60,Dues!$D$6:$D$1000, 0),)","v":"cpo5122"}]
["Noah","Donten","Jr","nmd5348",{"$f":"COUNTIF(Event1!$D:$D, D61) + COUNTIF(Event2!$D:$D, D61) + COUNTIF(Event3!$D:$D, D61) + COUNTIF(Event4!$D:$D, D61) + COUNTIF(Event5!$D:$D, D61) + COUNTIF(Event6!$D:$D, D61) + COUNTIF(Event7!$D:$D, D61) + COUNTIF(Event8!$D:$D, D61) + COUNTIF(Event9!$D:$D, D61) + COUNTIF(Event10!$D:$D, D61) + COUNTIF(Event11!$D:$D, D61) + COUNTIF(Event12!$D:$D, D61) + COUNTIF(Event13!$D:$D, D61) + COUNTIF(Event14!$D:$D, D61) + COUNTIF(Event15!$D:$D, D61) + COUNTIF(Event16!$D:$D, D61) + COUNTIF(Event17!$D:$D, D61) + COUNTIF(Event18!$D:$D, D61) + COUNTIF(Event19!$D:$D, D61) + COUNTIF(Event20!$D:$D, D61) + COUNTIF(Event21!$D:$D, D61) + COUNTIF(Event22!$D:$D, D61) + COUNTIF(Event23!$D:$D, D61) + COUNTIF(Event24!$D:$D, D61) + COUNTIF(Event25!$D:$D, D61) + COUNTIF(Event26!$D:$D, D61) + COUNTIF(Event27!$D:$D, D61) + COUNTIF(Event28!$D:$D, D61) + COUNTIF(Event29!$D:$D, D61) + COUNTIF(Event30!$D:$D, D61) + COUNTIF(Event31!$D:$D, D61) + COUNTIF(Event32!$D:$D, D61) + COUNTIF(Event33!$D:$D, D61) + COUNTIF(Event34!$D:$D, D61) + COUNTIF(Event35!$D:$D, D61) + 0","v":8},{"$f":"INDEX(Dues!$D$6:$D$1000,MATCH(Home!$D61,Dues!$D$6:$D$1000, 0),)","v":"nmd5348"}]
["Jacob","Niedermayer","Sr","jtn5161",{"$f":"COUNTIF(Event1!$D:$D, D62) + COUNTIF(Event2!$D:$D, D62) + COUNTIF(Event3!$D:$D, D62) + COUNTIF(Event4!$D:$D, D62) + COUNTIF(Event5!$D:$D, D62) + COUNTIF(Event6!$D:$D, D62) + COUNTIF(Event7!$D:$D, D62) + COUNTIF(Event8!$D:$D, D62) + COUNTIF(Event9!$D:$D, D62) + COUNTIF(Event10!$D:$D, D62) + COUNTIF(Event11!$D:$D, D62) + COUNTIF(Event12!$D:$D, D62) + COUNTIF(Event13!$D:$D, D62) + COUNTIF(Event14!$D:$D, D62) + COUNTIF(Event15!$D:$D, D62) + COUNTIF(Event16!$D:$D, D62) + COUNTIF(Event17!$D:$D, D62) + COUNTIF(Event18!$D:$D, D62) + COUNTIF(Event19!$D:$D, D62) + COUNTIF(Event20!$D:$D, D62) + COUNTIF(Event21!$D:$D, D62) + COUNTIF(Event22!$D:$D, D62) + COUNTIF(Event23!$D:$D, D62) + COUNTIF(Event24!$D:$D, D62) + COUNTIF(Event25!$D:$D, D62) + COUNTIF(Event26!$D:$D, D62) + COUNTIF(Event27!$D:$D, D62) + COUNTIF(Event28!$D:$D, D62) + COUNTIF(Event29!$D:$D, D62) + COUNTIF(Event30!$D:$D, D62) + COUNTIF(Event31!$D:$D, D62) + COUNTIF(Event32!$D:$D, D62) + COUNTIF(Event33!$D:$D, D62) + COUNTIF(Event34!$D:$D, D62) + COUNTIF(Event35!$D:$D, D62) + 0","v":7},{"$f":"INDEX(Dues!$D$6:$D$1000,MATCH(Home!$D62,Dues!$D$6:$D$1000, 0),)","v":"jtn5161"}]
["Rachel","Sudo","Sr","rbs5427",{"$f":"COUNTIF(Event1!$D:$D, D63) + COUNTIF(Event2!$D:$D, D63) + COUNTIF(Event3!$D:$D, D63) + COUNTIF(Event4!$D:$D, D63) + COUNTIF(Event5!$D:$D, D63) + COUNTIF(Event6!$D:$D, D63) + COUNTIF(Event7!$D:$D, D63) + COUNTIF(Event8!$D:$D, D63) + COUNTIF(Event9!$D:$D, D63) + COUNTIF(Event10!$D:$D, D63) + COUNTIF(Event11!$D:$D, D63) + COUNTIF(Event12!$D:$D, D63) + COUNTIF(Event13!$D:$D, D63) + COUNTIF(Event14!$D:$D, D63) + COUNTIF(Event15!$D:$D, D63) + COUNTIF(Event16!$D:$D, D63) + COUNTIF(Event17!$D:$D, D63) + COUNTIF(Event18!$D:$D, D63) + COUNTIF(Event19!$D:$D, D63) + COUNTIF(Event20!$D:$D, D63) + COUNTIF(Event21!$D:$D, D63) + COUNTIF(Event22!$D:$D, D63) + COUNTIF(Event23!$D:$D, D63) + COUNTIF(Event24!$D:$D, D63) + COUNTIF(Event25!$D:$D, D63) + COUNTIF(Event26!$D:$D, D63) + COUNTIF(Event27!$D:$D, D63) + COUNTIF(Event28!$D:$D, D63) + COUNTIF(Event29!$D:$D, D63) + COUNTIF(Event30!$D:$D, D63) + COUNTIF(Event31!$D:$D, D63) + COUNTIF(Event32!$D:$D, D63) + COUNTIF(Event33!$D:$D, D63) + COUNTIF(Event34!$D:$D, D63) + COUNTIF(Event35!$D:$D, D63) + 0","v":4},{"$f":"INDEX(Dues!$D$6:$D$1000,MATCH(Home!$D63,Dues!$D$6:$D$1000, 0),)","v":"rbs5427"}]
["Avery","Ryan","Jr","aer5483",{"$f":"COUNTIF(Event1!$D:$D, D64) + COUNTIF(Event2!$D:$D, D64) + COUNTIF(Event3!$D:$D, D64) + COUNTIF(Event4!$D:$D, D64) + COUNTIF(Event5!$D:$D, D64) + COUNTIF(Event6!$D:$D, D64) + COUNTIF(Event7!$D:$D, D64) + COUNTIF(Event8!$D:$D, D64) + COUNTIF(Event9!$D:$D, D64) + COUNTIF(Event10!$D:$D, D64) + COUNTIF(Event11!$D:$D, D64) + COUNTIF(Event12!$D:$D, D64) + COUNTIF(Event13!$D:$D, D64) + COUNTIF(Event14!$D:$D, D64) + COUNTIF(Event15!$D:$D, D64) + COUNTIF(Event16!$D:$D, D64) + COUNTIF(Event17!$D:$D, D64) + COUNTIF(Event18!$D:$D, D64) + COUNTIF(Event19!$D:$D, D64) + COUNTIF(Event20!$D:$D, D64) + COUNTIF(Event21!$D:$D, D64) + COUNTIF(Event22!$D:$D, D64) + COUNTIF(Event23!$D:$D, D64) + COUNTIF(Event24!$D:$D, D64) + COUNTIF(Event25!$D:$D, D64) + COUNTIF(Event26!$D:$D, D64) + COUNTIF(Event27!$D:$D, D64) + COUNTIF(Event28!$D:$D, D64) + COUNTIF(Event29!$D:$D, D64) + COUNTIF(Event30!$D:$D, D64) + COUNTIF(Event31!$D:$D, D64) + COUNTIF(Event32!$D:$D, D64) + COUNTIF(Event33!$D:$D, D64) + COUNTIF(Event34!$D:$D, D64) + COUNTIF(Event35!$D:$D, D64) + 0","v":4},{"$f":"INDEX(Dues!$D$6:$D$1000,MATCH(Home!$D64,Dues!$D$6:$D$1000, 0),)","v":{"$error":"#N/A"}}]
["Nicolette ","Nybro","Jr","nan5101",{"$f":"COUNTIF(Event1!$D:$D, D65) + COUNTIF(Event2!$D:$D, D65) + COUNTIF(Event3!$D:$D, D65) + COUNTIF(Event4!$D:$D, D65) + COUNTIF(Event5!$D:$D, D65) + COUNTIF(Event6!$D:$D, D65) + COUNTIF(Event7!$D:$D, D65) + COUNTIF(Event8!$D:$D, D65) + COUNTIF(Event9!$D:$D, D65) + COUNTIF(Event10!$D:$D, D65) + COUNTIF(Event11!$D:$D, D65) + COUNTIF(Event12!$D:$D, D65) + COUNTIF(Event13!$D:$D, D65) + COUNTIF(Event14!$D:$D, D65) + COUNTIF(Event15!$D:$D, D65) + COUNTIF(Event16!$D:$D, D65) + COUNTIF(Event17!$D:$D, D65) + COUNTIF(Event18!$D:$D, D65) + COUNTIF(Event19!$D:$D, D65) + COUNTIF(Event20!$D:$D, D65) + COUNTIF(Event21!$D:$D, D65) + COUNTIF(Event22!$D:$D, D65) + COUNTIF(Event23!$D:$D, D65) + COUNTIF(Event24!$D:$D, D65) + COUNTIF(Event25!$D:$D, D65) + COUNTIF(Event26!$D:$D, D65) + COUNTIF(Event27!$D:$D, D65) + COUNTIF(Event28!$D:$D, D65) + COUNTIF(Event29!$D:$D, D65) + COUNTIF(Event30!$D:$D, D65) + COUNTIF(Event31!$D:$D, D65) + COUNTIF(Event32!$D:$D, D65) + COUNTIF(Event33!$D:$D, D65) + COUNTIF(Event34!$D:$D, D65) + COUNTIF(Event35!$D:$D, D65) + 0","v":9},{"$f":"INDEX(Dues!$D$6:$D$1000,MATCH(Home!$D65,Dues!$D$6:$D$1000, 0),)","v":"nan5101"}]
["Michael","Roby","Sr","msr5385",{"$f":"COUNTIF(Event1!$D:$D, D66) + COUNTIF(Event2!$D:$D, D66) + COUNTIF(Event3!$D:$D, D66) + COUNTIF(Event4!$D:$D, D66) + COUNTIF(Event5!$D:$D, D66) + COUNTIF(Event6!$D:$D, D66) + COUNTIF(Event7!$D:$D, D66) + COUNTIF(Event8!$D:$D, D66) + COUNTIF(Event9!$D:$D, D66) + COUNTIF(Event10!$D:$D, D66) + COUNTIF(Event11!$D:$D, D66) + COUNTIF(Event12!$D:$D, D66) + COUNTIF(Event13!$D:$D, D66) + COUNTIF(Event14!$D:$D, D66) + COUNTIF(Event15!$D:$D, D66) + COUNTIF(Event16!$D:$D, D66) + COUNTIF(Event17!$D:$D, D66) + COUNTIF(Event18!$D:$D, D66) + COUNTIF(Event19!$D:$D, D66) + COUNTIF(Event20!$D:$D, D66) + COUNTIF(Event21!$D:$D, D66) + COUNTIF(Event22!$D:$D, D66) + COUNTIF(Event23!$D:$D, D66) + COUNTIF(Event24!$D:$D, D66) + COUNTIF(Event25!$D:$D, D66) + COUNTIF(Event26!$D:$D, D66) + COUNTIF(Event27!$D:$D, D66) + COUNTIF(Event28!$D:$D, D66) + COUNTIF(Event29!$D:$D, D66) + COUNTIF(Event30!$D:$D, D66) + COUNTIF(Event31!$D:$D, D66) + COUNTIF(Event32!$D:$D, D66) + COUNTIF(Event33!$D:$D, D66) + COUNTIF(Event34!$D:$D, D66) + COUNTIF(Event35!$D:$D, D66) + 0","v":3},{"$f":"INDEX(Dues!$D$6:$D$1000,MATCH(Home!$D66,Dues!$D$6:$D$1000, 0),)","v":"msr5385"}]
["Marceli","Pawlikowski","Jr","mzp5569",{"$f":"COUNTIF(Event1!$D:$D, D67) + COUNTIF(Event2!$D:$D, D67) + COUNTIF(Event3!$D:$D, D67) + COUNTIF(Event4!$D:$D, D67) + COUNTIF(Event5!$D:$D, D67) + COUNTIF(Event6!$D:$D, D67) + COUNTIF(Event7!$D:$D, D67) + COUNTIF(Event8!$D:$D, D67) + COUNTIF(Event9!$D:$D, D67) + COUNTIF(Event10!$D:$D, D67) + COUNTIF(Event11!$D:$D, D67) + COUNTIF(Event12!$D:$D, D67) + COUNTIF(Event13!$D:$D, D67) + COUNTIF(Event14!$D:$D, D67) + COUNTIF(Event15!$D:$D, D67) + COUNTIF(Event16!$D:$D, D67) + COUNTIF(Event17!$D:$D, D67) + COUNTIF(Event18!$D:$D, D67) + COUNTIF(Event19!$D:$D, D67) + COUNTIF(Event20!$D:$D, D67) + COUNTIF(Event21!$D:$D, D67) + COUNTIF(Event22!$D:$D, D67) + COUNTIF(Event23!$D:$D, D67) + COUNTIF(Event24!$D:$D, D67) + COUNTIF(Event25!$D:$D, D67) + COUNTIF(Event26!$D:$D, D67) + COUNTIF(Event27!$D:$D, D67) + COUNTIF(Event28!$D:$D, D67) + COUNTIF(Event29!$D:$D, D67) + COUNTIF(Event30!$D:$D, D67) + COUNTIF(Event31!$D:$D, D67) + COUNTIF(Event32!$D:$D, D67) + COUNTIF(Event33!$D:$D, D67) + COUNTIF(Event34!$D:$D, D67) + COUNTIF(Event35!$D:$D, D67) + 0","v":14},{"$f":"INDEX(Dues!$D$6:$D$1000,MATCH(Home!$D67,Dues!$D$6:$D$1000, 0),)","v":"mzp5569"}]
["Kristen","Chomos","Fr","kec5791",{"$f":"COUNTIF(Event1!$D:$D, D68) + COUNTIF(Event2!$D:$D, D68) + COUNTIF(Event3!$D:$D, D68) + COUNTIF(Event4!$D:$D, D68) + COUNTIF(Event5!$D:$D, D68) + COUNTIF(Event6!$D:$D, D68) + COUNTIF(Event7!$D:$D, D68) + COUNTIF(Event8!$D:$D, D68) + COUNTIF(Event9!$D:$D, D68) + COUNTIF(Event10!$D:$D, D68) + COUNTIF(Event11!$D:$D, D68) + COUNTIF(Event12!$D:$D, D68) + COUNTIF(Event13!$D:$D, D68) + COUNTIF(Event14!$D:$D, D68) + COUNTIF(Event15!$D:$D, D68) + COUNTIF(Event16!$D:$D, D68) + COUNTIF(Event17!$D:$D, D68) + COUNTIF(Event18!$D:$D, D68) + COUNTIF(Event19!$D:$D, D68) + COUNTIF(Event20!$D:$D, D68) + COUNTIF(Event21!$D:$D, D68) + COUNTIF(Event22!$D:$D, D68) + COUNTIF(Event23!$D:$D, D68) + COUNTIF(Event24!$D:$D, D68) + COUNTIF(Event25!$D:$D, D68) + COUNTIF(Event26!$D:$D, D68) + COUNTIF(Event27!$D:$D, D68) + COUNTIF(Event28!$D:$D, D68) + COUNTIF(Event29!$D:$D, D68) + COUNTIF(Event30!$D:$D, D68) + COUNTIF(Event31!$D:$D, D68) + COUNTIF(Event32!$D:$D, D68) + COUNTIF(Event33!$D:$D, D68) + COUNTIF(Event34!$D:$D, D68) + COUNTIF(Event35!$D:$D, D68) + 0","v":5},{"$f":"INDEX(Dues!$D$6:$D$1000,MATCH(Home!$D68,Dues!$D$6:$D$1000, 0),)","v":"kec5791"}]
["Ziyan","Wang","Sr","zpw5120",{"$f":"COUNTIF(Event1!$D:$D, D69) + COUNTIF(Event2!$D:$D, D69) + COUNTIF(Event3!$D:$D, D69) + COUNTIF(Event4!$D:$D, D69) + COUNTIF(Event5!$D:$D, D69) + COUNTIF(Event6!$D:$D, D69) + COUNTIF(Event7!$D:$D, D69) + COUNTIF(Event8!$D:$D, D69) + COUNTIF(Event9!$D:$D, D69) + COUNTIF(Event10!$D:$D, D69) + COUNTIF(Event11!$D:$D, D69) + COUNTIF(Event12!$D:$D, D69) + COUNTIF(Event13!$D:$D, D69) + COUNTIF(Event14!$D:$D, D69) + COUNTIF(Event15!$D:$D, D69) + COUNTIF(Event16!$D:$D, D69) + COUNTIF(Event17!$D:$D, D69) + COUNTIF(Event18!$D:$D, D69) + COUNTIF(Event19!$D:$D, D69) + COUNTIF(Event20!$D:$D, D69) + COUNTIF(Event21!$D:$D, D69) + COUNTIF(Event22!$D:$D, D69) + COUNTIF(Event23!$D:$D, D69) + COUNTIF(Event24!$D:$D, D69) + COUNTIF(Event25!$D:$D, D69) + COUNTIF(Event26!$D:$D, D69) + COUNTIF(Event27!$D:$D, D69) + COUNTIF(Event28!$D:$D, D69) + COUNTIF(Event29!$D:$D, D69) + COUNTIF(Event30!$D:$D, D69) + COUNTIF(Event31!$D:$D, D69) + COUNTIF(Event32!$D:$D, D69) + COUNTIF(Event33!$D:$D, D69) + COUNTIF(Event34!$D:$D, D69) + COUNTIF(Event35!$D:$D, D69) + 0","v":2},{"$f":"INDEX(Dues!$D$6:$D$1000,MATCH(Home!$D69,Dues!$D$6:$D$1000, 0),)","v":{"$error":"#N/A"}}]
["Grace","McStravock","Sr","gvm5232",{"$f":"COUNTIF(Event1!$D:$D, D70) + COUNTIF(Event2!$D:$D, D70) + COUNTIF(Event3!$D:$D, D70) + COUNTIF(Event4!$D:$D, D70) + COUNTIF(Event5!$D:$D, D70) + COUNTIF(Event6!$D:$D, D70) + COUNTIF(Event7!$D:$D, D70) + COUNTIF(Event8!$D:$D, D70) + COUNTIF(Event9!$D:$D, D70) + COUNTIF(Event10!$D:$D, D70) + COUNTIF(Event11!$D:$D, D70) + COUNTIF(Event12!$D:$D, D70) + COUNTIF(Event13!$D:$D, D70) + COUNTIF(Event14!$D:$D, D70) + COUNTIF(Event15!$D:$D, D70) + COUNTIF(Event16!$D:$D, D70) + COUNTIF(Event17!$D:$D, D70) + COUNTIF(Event18!$D:$D, D70) + COUNTIF(Event19!$D:$D, D70) + COUNTIF(Event20!$D:$D, D70) + COUNTIF(Event21!$D:$D, D70) + COUNTIF(Event22!$D:$D, D70) + COUNTIF(Event23!$D:$D, D70) + COUNTIF(Event24!$D:$D, D70) + COUNTIF(Event25!$D:$D, D70) + COUNTIF(Event26!$D:$D, D70) + COUNTIF(Event27!$D:$D, D70) + COUNTIF(Event28!$D:$D, D70) + COUNTIF(Event29!$D:$D, D70) + COUNTIF(Event30!$D:$D, D70) + COUNTIF(Event31!$D:$D, D70) + COUNTIF(Event32!$D:$D, D70) + COUNTIF(Event33!$D:$D, D70) + COUNTIF(Event34!$D:$D, D70) + COUNTIF(Event35!$D:$D, D70) + 0","v":3},{"$f":"INDEX(Dues!$D$6:$D$1000,MATCH(Home!$D70,Dues!$D$6:$D$1000, 0),)","v":"gvm5232"}]
["Kevin ","Suryanto","Jr","kas7146",{"$f":"COUNTIF(Event1!$D:$D, D71) + COUNTIF(Event2!$D:$D, D71) + COUNTIF(Event3!$D:$D, D71) + COUNTIF(Event4!$D:$D, D71) + COUNTIF(Event5!$D:$D, D71) + COUNTIF(Event6!$D:$D, D71) + COUNTIF(Event7!$D:$D, D71) + COUNTIF(Event8!$D:$D, D71) + COUNTIF(Event9!$D:$D, D71) + COUNTIF(Event10!$D:$D, D71) + COUNTIF(Event11!$D:$D, D71) + COUNTIF(Event12!$D:$D, D71) + COUNTIF(Event13!$D:$D, D71) + COUNTIF(Event14!$D:$D, D71) + COUNTIF(Event15!$D:$D, D71) + COUNTIF(Event16!$D:$D, D71) + COUNTIF(Event17!$D:$D, D71) + COUNTIF(Event18!$D:$D, D71) + COUNTIF(Event19!$D:$D, D71) + COUNTIF(Event20!$D:$D, D71) + COUNTIF(Event21!$D:$D, D71) + COUNTIF(Event22!$D:$D, D71) + COUNTIF(Event23!$D:$D, D71) + COUNTIF(Event24!$D:$D, D71) + COUNTIF(Event25!$D:$D, D71) + COUNTIF(Event26!$D:$D, D71) + COUNTIF(Event27!$D:$D, D71) + COUNTIF(Event28!$D:$D, D71) + COUNTIF(Event29!$D:$D, D71) + COUNTIF(Event30!$D:$D, D71) + COUNTIF(Event31!$D:$D, D71) + COUNTIF(Event32!$D:$D, D71) + COUNTIF(Event33!$D:$D, D71) + COUNTIF(Event34!$D:$D, D71) + COUNTIF(Event35!$D:$D, D71) + 0","v":4},{"$f":"INDEX(Dues!$D$6:$D$1000,MATCH(Home!$D71,Dues!$D$6:$D$1000, 0),)","v":"kas7146"}]
["Felishia","Felishia","Jr","ffn5018",{"$f":"COUNTIF(Event1!$D:$D, D72) + COUNTIF(Event2!$D:$D, D72) + COUNTIF(Event3!$D:$D, D72) + COUNTIF(Event4!$D:$D, D72) + COUNTIF(Event5!$D:$D, D72) + COUNTIF(Event6!$D:$D, D72) + COUNTIF(Event7!$D:$D, D72) + COUNTIF(Event8!$D:$D, D72) + COUNTIF(Event9!$D:$D, D72) + COUNTIF(Event10!$D:$D, D72) + COUNTIF(Event11!$D:$D, D72) + COUNTIF(Event12!$D:$D, D72) + COUNTIF(Event13!$D:$D, D72) + COUNTIF(Event14!$D:$D, D72) + COUNTIF(Event15!$D:$D, D72) + COUNTIF(Event16!$D:$D, D72) + COUNTIF(Event17!$D:$D, D72) + COUNTIF(Event18!$D:$D, D72) + COUNTIF(Event19!$D:$D, D72) + COUNTIF(Event20!$D:$D, D72) + COUNTIF(Event21!$D:$D, D72) + COUNTIF(Event22!$D:$D, D72) + COUNTIF(Event23!$D:$D, D72) + COUNTIF(Event24!$D:$D, D72) + COUNTIF(Event25!$D:$D, D72) + COUNTIF(Event26!$D:$D, D72) + COUNTIF(Event27!$D:$D, D72) + COUNTIF(Event28!$D:$D, D72) + COUNTIF(Event29!$D:$D, D72) + COUNTIF(Event30!$D:$D, D72) + COUNTIF(Event31!$D:$D, D72) + COUNTIF(Event32!$D:$D, D72) + COUNTIF(Event33!$D:$D, D72) + COUNTIF(Event34!$D:$D, D72) + COUNTIF(Event35!$D:$D, D72) + 0","v":4},{"$f":"INDEX(Dues!$D$6:$D$1000,MATCH(Home!$D72,Dues!$D$6:$D$1000, 0),)","v":"ffn5018"}]
["Alexis","Lasko","Sr","all5680",{"$f":"COUNTIF(Event1!$D:$D, D73) + COUNTIF(Event2!$D:$D, D73) + COUNTIF(Event3!$D:$D, D73) + COUNTIF(Event4!$D:$D, D73) + COUNTIF(Event5!$D:$D, D73) + COUNTIF(Event6!$D:$D, D73) + COUNTIF(Event7!$D:$D, D73) + COUNTIF(Event8!$D:$D, D73) + COUNTIF(Event9!$D:$D, D73) + COUNTIF(Event10!$D:$D, D73) + COUNTIF(Event11!$D:$D, D73) + COUNTIF(Event12!$D:$D, D73) + COUNTIF(Event13!$D:$D, D73) + COUNTIF(Event14!$D:$D, D73) + COUNTIF(Event15!$D:$D, D73) + COUNTIF(Event16!$D:$D, D73) + COUNTIF(Event17!$D:$D, D73) + COUNTIF(Event18!$D:$D, D73) + COUNTIF(Event19!$D:$D, D73) + COUNTIF(Event20!$D:$D, D73) + COUNTIF(Event21!$D:$D, D73) + COUNTIF(Event22!$D:$D, D73) + COUNTIF(Event23!$D:$D, D73) + COUNTIF(Event24!$D:$D, D73) + COUNTIF(Event25!$D:$D, D73) + COUNTIF(Event26!$D:$D, D73) + COUNTIF(Event27!$D:$D, D73) + COUNTIF(Event28!$D:$D, D73) + COUNTIF(Event29!$D:$D, D73) + COUNTIF(Event30!$D:$D, D73) + COUNTIF(Event31!$D:$D, D73) + COUNTIF(Event32!$D:$D, D73) + COUNTIF(Event33!$D:$D, D73) + COUNTIF(Event34!$D:$D, D73) + COUNTIF(Event35!$D:$D, D73) + 0","v":2},{"$f":"INDEX(Dues!$D$6:$D$1000,MATCH(Home!$D73,Dues!$D$6:$D$1000, 0),)","v":"all5680"}]
["Justin","Strecker","Sr","jxs6288",{"$f":"COUNTIF(Event1!$D:$D, D74) + COUNTIF(Event2!$D:$D, D74) + COUNTIF(Event3!$D:$D, D74) + COUNTIF(Event4!$D:$D, D74) + COUNTIF(Event5!$D:$D, D74) + COUNTIF(Event6!$D:$D, D74) + COUNTIF(Event7!$D:$D, D74) + COUNTIF(Event8!$D:$D, D74) + COUNTIF(Event9!$D:$D, D74) + COUNTIF(Event10!$D:$D, D74) + COUNTIF(Event11!$D:$D, D74) + COUNTIF(Event12!$D:$D, D74) + COUNTIF(Event13!$D:$D, D74) + COUNTIF(Event14!$D:$D, D74) + COUNTIF(Event15!$D:$D, D74) + COUNTIF(Event16!$D:$D, D74) + COUNTIF(Event17!$D:$D, D74) + COUNTIF(Event18!$D:$D, D74) + COUNTIF(Event19!$D:$D, D74) + COUNTIF(Event20!$D:$D, D74) + COUNTIF(Event21!$D:$D, D74) + COUNTIF(Event22!$D:$D, D74) + COUNTIF(Event23!$D:$D, D74) + COUNTIF(Event24!$D:$D, D74) + COUNTIF(Event25!$D:$D, D74) + COUNTIF(Event26!$D:$D, D74) + COUNTIF(Event27!$D:$D, D74) + COUNTIF(Event28!$D:$D, D74) + COUNTIF(Event29!$D:$D, D74) + COUNTIF(Event30!$D:$D, D74) + COUNTIF(Event31!$D:$D, D74) + COUNTIF(Event32!$D:$D, D74) + COUNTIF(Event33!$D:$D, D74) + COUNTIF(Event34!$D:$D, D74) + COUNTIF(Event35!$D:$D, D74) + 0","v":4},{"$f":"INDEX(Dues!$D$6:$D$1000,MATCH(Home!$D74,Dues!$D$6:$D$1000, 0),)","v":"jxs6288"}]
["Jeremy","Williams","Sr","Jsw5439",{"$f":"COUNTIF(Event1!$D:$D, D75) + COUNTIF(Event2!$D:$D, D75) + COUNTIF(Event3!$D:$D, D75) + COUNTIF(Event4!$D:$D, D75) + COUNTIF(Event5!$D:$D, D75) + COUNTIF(Event6!$D:$D, D75) + COUNTIF(Event7!$D:$D, D75) + COUNTIF(Event8!$D:$D, D75) + COUNTIF(Event9!$D:$D, D75) + COUNTIF(Event10!$D:$D, D75) + COUNTIF(Event11!$D:$D, D75) + COUNTIF(Event12!$D:$D, D75) + COUNTIF(Event13!$D:$D, D75) + COUNTIF(Event14!$D:$D, D75) + COUNTIF(Event15!$D:$D, D75) + COUNTIF(Event16!$D:$D, D75) + COUNTIF(Event17!$D:$D, D75) + COUNTIF(Event18!$D:$D, D75) + COUNTIF(Event19!$D:$D, D75) + COUNTIF(Event20!$D:$D, D75) + COUNTIF(Event21!$D:$D, D75) + COUNTIF(Event22!$D:$D, D75) + COUNTIF(Event23!$D:$D, D75) + COUNTIF(Event24!$D:$D, D75) + COUNTIF(Event25!$D:$D, D75) + COUNTIF(Event26!$D:$D, D75) + COUNTIF(Event27!$D:$D, D75) + COUNTIF(Event28!$D:$D, D75) + COUNTIF(Event29!$D:$D, D75) + COUNTIF(Event30!$D:$D, D75) + COUNTIF(Event31!$D:$D, D75) + COUNTIF(Event32!$D:$D, D75) + COUNTIF(Event33!$D:$D, D75) + COUNTIF(Event34!$D:$D, D75) + COUNTIF(Event35!$D:$D, D75) + 0","v":4},{"$f":"INDEX(Dues!$D$6:$D$1000,MATCH(Home!$D75,Dues!$D$6:$D$1000, 0),)","v":{"$error":"#N/A"}}]
["Julia","Trigg","Jr","jxt5423",{"$f":"COUNTIF(Event1!$D:$D, D76) + COUNTIF(Event2!$D:$D, D76) + COUNTIF(Event3!$D:$D, D76) + COUNTIF(Event4!$D:$D, D76) + COUNTIF(Event5!$D:$D, D76) + COUNTIF(Event6!$D:$D, D76) + COUNTIF(Event7!$D:$D, D76) + COUNTIF(Event8!$D:$D, D76) + COUNTIF(Event9!$D:$D, D76) + COUNTIF(Event10!$D:$D, D76) + COUNTIF(Event11!$D:$D, D76) + COUNTIF(Event12!$D:$D, D76) + COUNTIF(Event13!$D:$D, D76) + COUNTIF(Event14!$D:$D, D76) + COUNTIF(Event15!$D:$D, D76) + COUNTIF(Event16!$D:$D, D76) + COUNTIF(Event17!$D:$D, D76) + COUNTIF(Event18!$D:$D, D76) + COUNTIF(Event19!$D:$D, D76) + COUNTIF(Event20!$D:$D, D76) + COUNTIF(Event21!$D:$D, D76) + COUNTIF(Event22!$D:$D, D76) + COUNTIF(Event23!$D:$D, D76) + COUNTIF(Event24!$D:$D, D76) + COUNTIF(Event25!$D:$D, D76) + COUNTIF(Event26!$D:$D, D76) + COUNTIF(Event27!$D:$D, D76) + COUNTIF(Event28!$D:$D, D76) + COUNTIF(Event29!$D:$D, D76) + COUNTIF(Event30!$D:$D, D76) + COUNTIF(Event31!$D:$D, D76) + COUNTIF(Event32!$D:$D, D76) + COUNTIF(Event33!$D:$D, D76) + COUNTIF(Event34!$D:$D, D76) + COUNTIF(Event35!$D:$D, D76) + 0","v":10},{"$f":"INDEX(Dues!$D$6:$D$1000,MATCH(Home!$D76,Dues!$D$6:$D$1000, 0),)","v":"jxt5423"}]
["Mayting","Feng","Sr","muf72",{"$f":"COUNTIF(Event1!$D:$D, D77) + COUNTIF(Event2!$D:$D, D77) + COUNTIF(Event3!$D:$D, D77) + COUNTIF(Event4!$D:$D, D77) + COUNTIF(Event5!$D:$D, D77) + COUNTIF(Event6!$D:$D, D77) + COUNTIF(Event7!$D:$D, D77) + COUNTIF(Event8!$D:$D, D77) + COUNTIF(Event9!$D:$D, D77) + COUNTIF(Event10!$D:$D, D77) + COUNTIF(Event11!$D:$D, D77) + COUNTIF(Event12!$D:$D, D77) + COUNTIF(Event13!$D:$D, D77) + COUNTIF(Event14!$D:$D, D77) + COUNTIF(Event15!$D:$D, D77) + COUNTIF(Event16!$D:$D, D77) + COUNTIF(Event17!$D:$D, D77) + COUNTIF(Event18!$D:$D, D77) + COUNTIF(Event19!$D:$D, D77) + COUNTIF(Event20!$D:$D, D77) + COUNTIF(Event21!$D:$D, D77) + COUNTIF(Event22!$D:$D, D77) + COUNTIF(Event23!$D:$D, D77) + COUNTIF(Event24!$D:$D, D77) + COUNTIF(Event25!$D:$D, D77) + COUNTIF(Event26!$D:$D, D77) + COUNTIF(Event27!$D:$D, D77) + COUNTIF(Event28!$D:$D, D77) + COUNTIF(Event29!$D:$D, D77) + COUNTIF(Event30!$D:$D, D77) + COUNTIF(Event31!$D:$D, D77) + COUNTIF(Event32!$D:$D, D77) + COUNTIF(Event33!$D:$D, D77) + COUNTIF(Event34!$D:$D, D77) + COUNTIF(Event35!$D:$D, D77) + 0","v":5},{"$f":"INDEX(Dues!$D$6:$D$1000,MATCH(Home!$D77,Dues!$D$6:$D$1000, 0),)","v":{"$error":"#N/A"}}]
["Blake","Rohrbacher","Sr","bkr5178",{"$f":"COUNTIF(Event1!$D:$D, D78) + COUNTIF(Event2!$D:$D, D78) + COUNTIF(Event3!$D:$D, D78) + COUNTIF(Event4!$D:$D, D78) + COUNTIF(Event5!$D:$D, D78) + COUNTIF(Event6!$D:$D, D78) + COUNTIF(Event7!$D:$D, D78) + COUNTIF(Event8!$D:$D, D78) + COUNTIF(Event9!$D:$D, D78) + COUNTIF(Event10!$D:$D, D78) + COUNTIF(Event11!$D:$D, D78) + COUNTIF(Event12!$D:$D, D78) + COUNTIF(Event13!$D:$D, D78) + COUNTIF(Event14!$D:$D, D78) + COUNTIF(Event15!$D:$D, D78) + COUNTIF(Event16!$D:$D, D78) + COUNTIF(Event17!$D:$D, D78) + COUNTIF(Event18!$D:$D, D78) + COUNTIF(Event19!$D:$D, D78) + COUNTIF(Event20!$D:$D, D78) + COUNTIF(Event21!$D:$D, D78) + COUNTIF(Event22!$D:$D, D78) + COUNTIF(Event23!$D:$D, D78) + COUNTIF(Event24!$D:$D, D78) + COUNTIF(Event25!$D:$D, D78) + COUNTIF(Event26!$D:$D, D78) + COUNTIF(Event27!$D:$D, D78) + COUNTIF(Event28!$D:$D, D78) + COUNTIF(Event29!$D:$D, D78) + COUNTIF(Event30!$D:$D, D78) + COUNTIF(Event31!$D:$D, D78) + COUNTIF(Event32!$D:$D, D78) + COUNTIF(Event33!$D:$D, D78) + COUNTIF(Event34!$D:$D, D78) + COUNTIF(Event35!$D:$D, D78) + 0","v":2},{"$f":"INDEX(Dues!$D$6:$D$1000,MATCH(Home!$D78,Dues!$D$6:$D$1000, 0),)","v":"bkr5178"}]
["Claudia","Jung","Sr","cjj5206",{"$f":"COUNTIF(Event1!$D:$D, D79) + COUNTIF(Event2!$D:$D, D79) + COUNTIF(Event3!$D:$D, D79) + COUNTIF(Event4!$D:$D, D79) + COUNTIF(Event5!$D:$D, D79) + COUNTIF(Event6!$D:$D, D79) + COUNTIF(Event7!$D:$D, D79) + COUNTIF(Event8!$D:$D, D79) + COUNTIF(Event9!$D:$D, D79) + COUNTIF(Event10!$D:$D, D79) + COUNTIF(Event11!$D:$D, D79) + COUNTIF(Event12!$D:$D, D79) + COUNTIF(Event13!$D:$D, D79) + COUNTIF(Event14!$D:$D, D79) + COUNTIF(Event15!$D:$D, D79) + COUNTIF(Event16!$D:$D, D79) + COUNTIF(Event17!$D:$D, D79) + COUNTIF(Event18!$D:$D, D79) + COUNTIF(Event19!$D:$D, D79) + COUNTIF(Event20!$D:$D, D79) + COUNTIF(Event21!$D:$D, D79) + COUNTIF(Event22!$D:$D, D79) + COUNTIF(Event23!$D:$D, D79) + COUNTIF(Event24!$D:$D, D79) + COUNTIF(Event25!$D:$D, D79) + COUNTIF(Event26!$D:$D, D79) + COUNTIF(Event27!$D:$D, D79) + COUNTIF(Event28!$D:$D, D79) + COUNTIF(Event29!$D:$D, D79) + COUNTIF(Event30!$D:$D, D79) + COUNTIF(Event31!$D:$D, D79) + COUNTIF(Event32!$D:$D, D79) + COUNTIF(Event33!$D:$D, D79) + COUNTIF(Event34!$D:$D, D79) + COUNTIF(Event35!$D:$D, D79) + 0","v":3},{"$f":"INDEX(Dues!$D$6:$D$1000,MATCH(Home!$D79,Dues!$D$6:$D$1000, 0),)","v":"cjj5206"}]
["Qin","Zhang","Sr","qfz5029",{"$f":"COUNTIF(Event1!$D:$D, D80) + COUNTIF(Event2!$D:$D, D80) + COUNTIF(Event3!$D:$D, D80) + COUNTIF(Event4!$D:$D, D80) + COUNTIF(Event5!$D:$D, D80) + COUNTIF(Event6!$D:$D, D80) + COUNTIF(Event7!$D:$D, D80) + COUNTIF(Event8!$D:$D, D80) + COUNTIF(Event9!$D:$D, D80) + COUNTIF(Event10!$D:$D, D80) + COUNTIF(Event11!$D:$D, D80) + COUNTIF(Event12!$D:$D, D80) + COUNTIF(Event13!$D:$D, D80) + COUNTIF(Event14!$D:$D, D80) + COUNTIF(Event15!$D:$D, D80) + COUNTIF(Event16!$D:$D, D80) + COUNTIF(Event17!$D:$D, D80) + COUNTIF(Event18!$D:$D, D80) + COUNTIF(Event19!$D:$D, D80) + COUNTIF(Event20!$D:$D, D80) + COUNTIF(Event21!$D:$D, D80) + COUNTIF(Event22!$D:$D, D80) + COUNTIF(Event23!$D:$D, D80) + COUNTIF(Event24!$D:$D, D80) + COUNTIF(Event25!$D:$D, D80) + COUNTIF(Event26!$D:$D, D80) + COUNTIF(Event27!$D:$D, D80) + COUNTIF(Event28!$D:$D, D80) + COUNTIF(Event29!$D:$D, D80) + COUNTIF(Event30!$D:$D, D80) + COUNTIF(Event31!$D:$D, D80) + COUNTIF(Event32!$D:$D, D80) + COUNTIF(Event33!$D:$D, D80) + COUNTIF(Event34!$D:$D, D80) + COUNTIF(Event35!$D:$D, D80) + 0","v":7},{"$f":"INDEX(Dues!$D$6:$D$1000,MATCH(Home!$D80,Dues!$D$6:$D$1000, 0),)","v":{"$error":"#N/A"}}]
["Siyi","Ma","Sr","sbm5554",{"$f":"COUNTIF(Event1!$D:$D, D81) + COUNTIF(Event2!$D:$D, D81) + COUNTIF(Event3!$D:$D, D81) + COUNTIF(Event4!$D:$D, D81) + COUNTIF(Event5!$D:$D, D81) + COUNTIF(Event6!$D:$D, D81) + COUNTIF(Event7!$D:$D, D81) + COUNTIF(Event8!$D:$D, D81) + COUNTIF(Event9!$D:$D, D81) + COUNTIF(Event10!$D:$D, D81) + COUNTIF(Event11!$D:$D, D81) + COUNTIF(Event12!$D:$D, D81) + COUNTIF(Event13!$D:$D, D81) + COUNTIF(Event14!$D:$D, D81) + COUNTIF(Event15!$D:$D, D81) + COUNTIF(Event16!$D:$D, D81) + COUNTIF(Event17!$D:$D, D81) + COUNTIF(Event18!$D:$D, D81) + COUNTIF(Event19!$D:$D, D81) + COUNTIF(Event20!$D:$D, D81) + COUNTIF(Event21!$D:$D, D81) + COUNTIF(Event22!$D:$D, D81) + COUNTIF(Event23!$D:$D, D81) + COUNTIF(Event24!$D:$D, D81) + COUNTIF(Event25!$D:$D, D81) + COUNTIF(Event26!$D:$D, D81) + COUNTIF(Event27!$D:$D, D81) + COUNTIF(Event28!$D:$D, D81) + COUNTIF(Event29!$D:$D, D81) + COUNTIF(Event30!$D:$D, D81) + COUNTIF(Event31!$D:$D, D81) + COUNTIF(Event32!$D:$D, D81) + COUNTIF(Event33!$D:$D, D81) + COUNTIF(Event34!$D:$D, D81) + COUNTIF(Event35!$D:$D, D81) + 0","v":7},{"$f":"INDEX(Dues!$D$6:$D$1000,MATCH(Home!$D81,Dues!$D$6:$D$1000, 0),)","v":"sbm5554"}]
["Jennifer","Davis","Jr","jrd5822",{"$f":"COUNTIF(Event1!$D:$D, D82) + COUNTIF(Event2!$D:$D, D82) + COUNTIF(Event3!$D:$D, D82) + COUNTIF(Event4!$D:$D, D82) + COUNTIF(Event5!$D:$D, D82) + COUNTIF(Event6!$D:$D, D82) + COUNTIF(Event7!$D:$D, D82) + COUNTIF(Event8!$D:$D, D82) + COUNTIF(Event9!$D:$D, D82) + COUNTIF(Event10!$D:$D, D82) + COUNTIF(Event11!$D:$D, D82) + COUNTIF(Event12!$D:$D, D82) + COUNTIF(Event13!$D:$D, D82) + COUNTIF(Event14!$D:$D, D82) + COUNTIF(Event15!$D:$D, D82) + COUNTIF(Event16!$D:$D, D82) + COUNTIF(Event17!$D:$D, D82) + COUNTIF(Event18!$D:$D, D82) + COUNTIF(Event19!$D:$D, D82) + COUNTIF(Event20!$D:$D, D82) + COUNTIF(Event21!$D:$D, D82) + COUNTIF(Event22!$D:$D, D82) + COUNTIF(Event23!$D:$D, D82) + COUNTIF(Event24!$D:$D, D82) + COUNTIF(Event25!$D:$D, D82) + COUNTIF(Event26!$D:$D, D82) + COUNTIF(Event27!$D:$D, D82) + COUNTIF(Event28!$D:$D, D82) + COUNTIF(Event29!$D:$D, D82) + COUNTIF(Event30!$D:$D, D82) + COUNTIF(Event31!$D:$D, D82) + COUNTIF(Event32!$D:$D, D82) + COUNTIF(Event33!$D:$D, D82) + COUNTIF(Event34!$D:$D, D82) + COUNTIF(Event35!$D:$D, D82) + 0","v":2},{"$f":"INDEX(Dues!$D$6:$D$1000,MATCH(Home!$D82,Dues!$D$6:$D$1000, 0),)","v":"jrd5822"}]
["Wilton","Chen","Jr","wkc5083",{"$f":"COUNTIF(Event1!$D:$D, D83) + COUNTIF(Event2!$D:$D, D83) + COUNTIF(Event3!$D:$D, D83) + COUNTIF(Event4!$D:$D, D83) + COUNTIF(Event5!$D:$D, D83) + COUNTIF(Event6!$D:$D, D83) + COUNTIF(Event7!$D:$D, D83) + COUNTIF(Event8!$D:$D, D83) + COUNTIF(Event9!$D:$D, D83) + COUNTIF(Event10!$D:$D, D83) + COUNTIF(Event11!$D:$D, D83) + COUNTIF(Event12!$D:$D, D83) + COUNTIF(Event13!$D:$D, D83) + COUNTIF(Event14!$D:$D, D83) + COUNTIF(Event15!$D:$D, D83) + COUNTIF(Event16!$D:$D, D83) + COUNTIF(Event17!$D:$D, D83) + COUNTIF(Event18!$D:$D, D83) + COUNTIF(Event19!$D:$D, D83) + COUNTIF(Event20!$D:$D, D83) + COUNTIF(Event21!$D:$D, D83) + COUNTIF(Event22!$D:$D, D83) + COUNTIF(Event23!$D:$D, D83) + COUNTIF(Event24!$D:$D, D83) + COUNTIF(Event25!$D:$D, D83) + COUNTIF(Event26!$D:$D, D83) + COUNTIF(Event27!$D:$D, D83) + COUNTIF(Event28!$D:$D, D83) + COUNTIF(Event29!$D:$D, D83) + COUNTIF(Event30!$D:$D, D83) + COUNTIF(Event31!$D:$D, D83) + COUNTIF(Event32!$D:$D, D83) + COUNTIF(Event33!$D:$D, D83) + COUNTIF(Event34!$D:$D, D83) + COUNTIF(Event35!$D:$D, D83) + 0","v":2},{"$f":"INDEX(Dues!$D$6:$D$1000,MATCH(Home!$D83,Dues!$D$6:$D$1000, 0),)","v":"wkc5083"}]
["Andrew","Creager","Sr","azc5570",{"$f":"COUNTIF(Event1!$D:$D, D84) + COUNTIF(Event2!$D:$D, D84) + COUNTIF(Event3!$D:$D, D84) + COUNTIF(Event4!$D:$D, D84) + COUNTIF(Event5!$D:$D, D84) + COUNTIF(Event6!$D:$D, D84) + COUNTIF(Event7!$D:$D, D84) + COUNTIF(Event8!$D:$D, D84) + COUNTIF(Event9!$D:$D, D84) + COUNTIF(Event10!$D:$D, D84) + COUNTIF(Event11!$D:$D, D84) + COUNTIF(Event12!$D:$D, D84) + COUNTIF(Event13!$D:$D, D84) + COUNTIF(Event14!$D:$D, D84) + COUNTIF(Event15!$D:$D, D84) + COUNTIF(Event16!$D:$D, D84) + COUNTIF(Event17!$D:$D, D84) + COUNTIF(Event18!$D:$D, D84) + COUNTIF(Event19!$D:$D, D84) + COUNTIF(Event20!$D:$D, D84) + COUNTIF(Event21!$D:$D, D84) + COUNTIF(Event22!$D:$D, D84) + COUNTIF(Event23!$D:$D, D84) + COUNTIF(Event24!$D:$D, D84) + COUNTIF(Event25!$D:$D, D84) + COUNTIF(Event26!$D:$D, D84) + COUNTIF(Event27!$D:$D, D84) + COUNTIF(Event28!$D:$D, D84) + COUNTIF(Event29!$D:$D, D84) + COUNTIF(Event30!$D:$D, D84) + COUNTIF(Event31!$D:$D, D84) + COUNTIF(Event32!$D:$D, D84) + COUNTIF(Event33!$D:$D, D84) + COUNTIF(Event34!$D:$D, D84) + COUNTIF(Event35!$D:$D, D84) + 0","v":3},{"$f":"INDEX(Dues!$D$6:$D$1000,MATCH(Home!$D84,Dues!$D$6:$D$1000, 0),)","v":"azc5570"}]
["Atharv","Gupte","Sr","abg5424",{"$f":"COUNTIF(Event1!$D:$D, D85) + COUNTIF(Event2!$D:$D, D85) + COUNTIF(Event3!$D:$D, D85) + COUNTIF(Event4!$D:$D, D85) + COUNTIF(Event5!$D:$D, D85) + COUNTIF(Event6!$D:$D, D85) + COUNTIF(Event7!$D:$D, D85) + COUNTIF(Event8!$D:$D, D85) + COUNTIF(Event9!$D:$D, D85) + COUNTIF(Event10!$D:$D, D85) + COUNTIF(Event11!$D:$D, D85) + COUNTIF(Event12!$D:$D, D85) + COUNTIF(Event13!$D:$D, D85) + COUNTIF(Event14!$D:$D, D85) + COUNTIF(Event15!$D:$D, D85) + COUNTIF(Event16!$D:$D, D85) + COUNTIF(Event17!$D:$D, D85) + COUNTIF(Event18!$D:$D, D85) + COUNTIF(Event19!$D:$D, D85) + COUNTIF(Event20!$D:$D, D85) + COUNTIF(Event21!$D:$D, D85) + COUNTIF(Event22!$D:$D, D85) + COUNTIF(Event23!$D:$D, D85) + COUNTIF(Event24!$D:$D, D85) + COUNTIF(Event25!$D:$D, D85) + COUNTIF(Event26!$D:$D, D85) + COUNTIF(Event27!$D:$D, D85) + COUNTIF(Event28!$D:$D, D85) + COUNTIF(Event29!$D:$D, D85) + COUNTIF(Event30!$D:$D, D85) + COUNTIF(Event31!$D:$D, D85) + COUNTIF(Event32!$D:$D, D85) + COUNTIF(Event33!$D:$D, D85) + COUNTIF(Event34!$D:$D, D85) + COUNTIF(Event35!$D:$D, D85) + 0","v":6},{"$f":"INDEX(Dues!$D$6:$D$1000,MATCH(Home!$D85,Dues!$D$6:$D$1000, 0),)","v":"abg5424"}]
["Geoffrey","Barratt","So","gxb92",{"$f":"COUNTIF(Event1!$D:$D, D86) + COUNTIF(Event2!$D:$D, D86) + COUNTIF(Event3!$D:$D, D86) + COUNTIF(Event4!$D:$D, D86) + COUNTIF(Event5!$D:$D, D86) + COUNTIF(Event6!$D:$D, D86) + COUNTIF(Event7!$D:$D, D86) + COUNTIF(Event8!$D:$D, D86) + COUNTIF(Event9!$D:$D, D86) + COUNTIF(Event10!$D:$D, D86) + COUNTIF(Event11!$D:$D, D86) + COUNTIF(Event12!$D:$D, D86) + COUNTIF(Event13!$D:$D, D86) + COUNTIF(Event14!$D:$D, D86) + COUNTIF(Event15!$D:$D, D86) + COUNTIF(Event16!$D:$D, D86) + COUNTIF(Event17!$D:$D, D86) + COUNTIF(Event18!$D:$D, D86) + COUNTIF(Event19!$D:$D, D86) + COUNTIF(Event20!$D:$D, D86) + COUNTIF(Event21!$D:$D, D86) + COUNTIF(Event22!$D:$D, D86) + COUNTIF(Event23!$D:$D, D86) + COUNTIF(Event24!$D:$D, D86) + COUNTIF(Event25!$D:$D, D86) + COUNTIF(Event26!$D:$D, D86) + COUNTIF(Event27!$D:$D, D86) + COUNTIF(Event28!$D:$D, D86) + COUNTIF(Event29!$D:$D, D86) + COUNTIF(Event30!$D:$D, D86) + COUNTIF(Event31!$D:$D, D86) + COUNTIF(Event32!$D:$D, D86) + COUNTIF(Event33!$D:$D, D86) + COUNTIF(Event34!$D:$D, D86) + COUNTIF(Event35!$D:$D, D86) + 0","v":6},{"$f":"INDEX(Dues!$D$6:$D$1000,MATCH(Home!$D86,Dues!$D$6:$D$1000, 0),)","v":"gxb92"}]
["Kody","Allen","Sr","kla5319",{"$f":"COUNTIF(Event1!$D:$D, D87) + COUNTIF(Event2!$D:$D, D87) + COUNTIF(Event3!$D:$D, D87) + COUNTIF(Event4!$D:$D, D87) + COUNTIF(Event5!$D:$D, D87) + COUNTIF(Event6!$D:$D, D87) + COUNTIF(Event7!$D:$D, D87) + COUNTIF(Event8!$D:$D, D87) + COUNTIF(Event9!$D:$D, D87) + COUNTIF(Event10!$D:$D, D87) + COUNTIF(Event11!$D:$D, D87) + COUNTIF(Event12!$D:$D, D87) + COUNTIF(Event13!$D:$D, D87) + COUNTIF(Event14!$D:$D, D87) + COUNTIF(Event15!$D:$D, D87) + COUNTIF(Event16!$D:$D, D87) + COUNTIF(Event17!$D:$D, D87) + COUNTIF(Event18!$D:$D, D87) + COUNTIF(Event19!$D:$D, D87) + COUNTIF(Event20!$D:$D, D87) + COUNTIF(Event21!$D:$D, D87) + COUNTIF(Event22!$D:$D, D87) + COUNTIF(Event23!$D:$D, D87) + COUNTIF(Event24!$D:$D, D87) + COUNTIF(Event25!$D:$D, D87) + COUNTIF(Event26!$D:$D, D87) + COUNTIF(Event27!$D:$D, D87) + COUNTIF(Event28!$D:$D, D87) + COUNTIF(Event29!$D:$D, D87) + COUNTIF(Event30!$D:$D, D87) + COUNTIF(Event31!$D:$D, D87) + COUNTIF(Event32!$D:$D, D87) + COUNTIF(Event33!$D:$D, D87) + COUNTIF(Event34!$D:$D, D87) + COUNTIF(Event35!$D:$D, D87) + 0","v":2},{"$f":"INDEX(Dues!$D$6:$D$1000,MATCH(Home!$D87,Dues!$D$6:$D$1000, 0),)","v":"kla5319"}]
["Taylor ","Geppertt","So","stg5184",{"$f":"COUNTIF(Event1!$D:$D, D88) + COUNTIF(Event2!$D:$D, D88) + COUNTIF(Event3!$D:$D, D88) + COUNTIF(Event4!$D:$D, D88) + COUNTIF(Event5!$D:$D, D88) + COUNTIF(Event6!$D:$D, D88) + COUNTIF(Event7!$D:$D, D88) + COUNTIF(Event8!$D:$D, D88) + COUNTIF(Event9!$D:$D, D88) + COUNTIF(Event10!$D:$D, D88) + COUNTIF(Event11!$D:$D, D88) + COUNTIF(Event12!$D:$D, D88) + COUNTIF(Event13!$D:$D, D88) + COUNTIF(Event14!$D:$D, D88) + COUNTIF(Event15!$D:$D, D88) + COUNTIF(Event16!$D:$D, D88) + COUNTIF(Event17!$D:$D, D88) + COUNTIF(Event18!$D:$D, D88) + COUNTIF(Event19!$D:$D, D88) + COUNTIF(Event20!$D:$D, D88) + COUNTIF(Event21!$D:$D, D88) + COUNTIF(Event22!$D:$D, D88) + COUNTIF(Event23!$D:$D, D88) + COUNTIF(Event24!$D:$D, D88) + COUNTIF(Event25!$D:$D, D88) + COUNTIF(Event26!$D:$D, D88) + COUNTIF(Event27!$D:$D, D88) + COUNTIF(Event28!$D:$D, D88) + COUNTIF(Event29!$D:$D, D88) + COUNTIF(Event30!$D:$D, D88) + COUNTIF(Event31!$D:$D, D88) + COUNTIF(Event32!$D:$D, D88) + COUNTIF(Event33!$D:$D, D88) + COUNTIF(Event34!$D:$D, D88) + COUNTIF(Event35!$D:$D, D88) + 0","v":11},{"$f":"INDEX(Dues!$D$6:$D$1000,MATCH(Home!$D88,Dues!$D$6:$D$1000, 0),)","v":"stg5184"}]
["Kevin","Fraccalvieri","So","kkf5177",{"$f":"COUNTIF(Event1!$D:$D, D89) + COUNTIF(Event2!$D:$D, D89) + COUNTIF(Event3!$D:$D, D89) + COUNTIF(Event4!$D:$D, D89) + COUNTIF(Event5!$D:$D, D89) + COUNTIF(Event6!$D:$D, D89) + COUNTIF(Event7!$D:$D, D89) + COUNTIF(Event8!$D:$D, D89) + COUNTIF(Event9!$D:$D, D89) + COUNTIF(Event10!$D:$D, D89) + COUNTIF(Event11!$D:$D, D89) + COUNTIF(Event12!$D:$D, D89) + COUNTIF(Event13!$D:$D, D89) + COUNTIF(Event14!$D:$D, D89) + COUNTIF(Event15!$D:$D, D89) + COUNTIF(Event16!$D:$D, D89) + COUNTIF(Event17!$D:$D, D89) + COUNTIF(Event18!$D:$D, D89) + COUNTIF(Event19!$D:$D, D89) + COUNTIF(Event20!$D:$D, D89) + COUNTIF(Event21!$D:$D, D89) + COUNTIF(Event22!$D:$D, D89) + COUNTIF(Event23!$D:$D, D89) + COUNTIF(Event24!$D:$D, D89) + COUNTIF(Event25!$D:$D, D89) + COUNTIF(Event26!$D:$D, D89) + COUNTIF(Event27!$D:$D, D89) + COUNTIF(Event28!$D:$D, D89) + COUNTIF(Event29!$D:$D, D89) + COUNTIF(Event30!$D:$D, D89) + COUNTIF(Event31!$D:$D, D89) + COUNTIF(Event32!$D:$D, D89) + COUNTIF(Event33!$D:$D, D89) + COUNTIF(Event34!$D:$D, D89) + COUNTIF(Event35!$D:$D, D89) + 0","v":8},{"$f":"INDEX(Dues!$D$6:$D$1000,MATCH(Home!$D89,Dues!$D$6:$D$1000, 0),)","v":"kkf5177"}]
["Alex","Arena","Sr","afa5399",{"$f":"COUNTIF(Event1!$D:$D, D90) + COUNTIF(Event2!$D:$D, D90) + COUNTIF(Event3!$D:$D, D90) + COUNTIF(Event4!$D:$D, D90) + COUNTIF(Event5!$D:$D, D90) + COUNTIF(Event6!$D:$D, D90) + COUNTIF(Event7!$D:$D, D90) + COUNTIF(Event8!$D:$D, D90) + COUNTIF(Event9!$D:$D, D90) + COUNTIF(Event10!$D:$D, D90) + COUNTIF(Event11!$D:$D, D90) + COUNTIF(Event12!$D:$D, D90) + COUNTIF(Event13!$D:$D, D90) + COUNTIF(Event14!$D:$D, D90) + COUNTIF(Event15!$D:$D, D90) + COUNTIF(Event16!$D:$D, D90) + COUNTIF(Event17!$D:$D, D90) + COUNTIF(Event18!$D:$D, D90) + COUNTIF(Event19!$D:$D, D90) + COUNTIF(Event20!$D:$D, D90) + COUNTIF(Event21!$D:$D, D90) + COUNTIF(Event22!$D:$D, D90) + COUNTIF(Event23!$D:$D, D90) + COUNTIF(Event24!$D:$D, D90) + COUNTIF(Event25!$D:$D, D90) + COUNTIF(Event26!$D:$D, D90) + COUNTIF(Event27!$D:$D, D90) + COUNTIF(Event28!$D:$D, D90) + COUNTIF(Event29!$D:$D, D90) + COUNTIF(Event30!$D:$D, D90) + COUNTIF(Event31!$D:$D, D90) + COUNTIF(Event32!$D:$D, D90) + COUNTIF(Event33!$D:$D, D90) + COUNTIF(Event34!$D:$D, D90) + COUNTIF(Event35!$D:$D, D90) + 0","v":2},{"$f":"INDEX(Dues!$D$6:$D$1000,MATCH(Home!$D90,Dues!$D$6:$D$1000, 0),)","v":"afa5399"}]
["Michael","Noethiger","Jr","mbn5156",{"$f":"COUNTIF(Event1!$D:$D, D91) + COUNTIF(Event2!$D:$D, D91) + COUNTIF(Event3!$D:$D, D91) + COUNTIF(Event4!$D:$D, D91) + COUNTIF(Event5!$D:$D, D91) + COUNTIF(Event6!$D:$D, D91) + COUNTIF(Event7!$D:$D, D91) + COUNTIF(Event8!$D:$D, D91) + COUNTIF(Event9!$D:$D, D91) + COUNTIF(Event10!$D:$D, D91) + COUNTIF(Event11!$D:$D, D91) + COUNTIF(Event12!$D:$D, D91) + COUNTIF(Event13!$D:$D, D91) + COUNTIF(Event14!$D:$D, D91) + COUNTIF(Event15!$D:$D, D91) + COUNTIF(Event16!$D:$D, D91) + COUNTIF(Event17!$D:$D, D91) + COUNTIF(Event18!$D:$D, D91) + COUNTIF(Event19!$D:$D, D91) + COUNTIF(Event20!$D:$D, D91) + COUNTIF(Event21!$D:$D, D91) + COUNTIF(Event22!$D:$D, D91) + COUNTIF(Event23!$D:$D, D91) + COUNTIF(Event24!$D:$D, D91) + COUNTIF(Event25!$D:$D, D91) + COUNTIF(Event26!$D:$D, D91) + COUNTIF(Event27!$D:$D, D91) + COUNTIF(Event28!$D:$D, D91) + COUNTIF(Event29!$D:$D, D91) + COUNTIF(Event30!$D:$D, D91) + COUNTIF(Event31!$D:$D, D91) + COUNTIF(Event32!$D:$D, D91) + COUNTIF(Event33!$D:$D, D91) + COUNTIF(Event34!$D:$D, D91) + COUNTIF(Event35!$D:$D, D91) + 0","v":3},{"$f":"INDEX(Dues!$D$6:$D$1000,MATCH(Home!$D91,Dues!$D$6:$D$1000, 0),)","v":"mbn5156"}]
["Kevin","Logan","Jr","ktl5134",{"$f":"COUNTIF(Event1!$D:$D, D92) + COUNTIF(Event2!$D:$D, D92) + COUNTIF(Event3!$D:$D, D92) + COUNTIF(Event4!$D:$D, D92) + COUNTIF(Event5!$D:$D, D92) + COUNTIF(Event6!$D:$D, D92) + COUNTIF(Event7!$D:$D, D92) + COUNTIF(Event8!$D:$D, D92) + COUNTIF(Event9!$D:$D, D92) + COUNTIF(Event10!$D:$D, D92) + COUNTIF(Event11!$D:$D, D92) + COUNTIF(Event12!$D:$D, D92) + COUNTIF(Event13!$D:$D, D92) + COUNTIF(Event14!$D:$D, D92) + COUNTIF(Event15!$D:$D, D92) + COUNTIF(Event16!$D:$D, D92) + COUNTIF(Event17!$D:$D, D92) + COUNTIF(Event18!$D:$D, D92) + COUNTIF(Event19!$D:$D, D92) + COUNTIF(Event20!$D:$D, D92) + COUNTIF(Event21!$D:$D, D92) + COUNTIF(Event22!$D:$D, D92) + COUNTIF(Event23!$D:$D, D92) + COUNTIF(Event24!$D:$D, D92) + COUNTIF(Event25!$D:$D, D92) + COUNTIF(Event26!$D:$D, D92) + COUNTIF(Event27!$D:$D, D92) + COUNTIF(Event28!$D:$D, D92) + COUNTIF(Event29!$D:$D, D92) + COUNTIF(Event30!$D:$D, D92) + COUNTIF(Event31!$D:$D, D92) + COUNTIF(Event32!$D:$D, D92) + COUNTIF(Event33!$D:$D, D92) + COUNTIF(Event34!$D:$D, D92) + COUNTIF(Event35!$D:$D, D92) + 0","v":6},{"$f":"INDEX(Dues!$D$6:$D$1000,MATCH(Home!$D92,Dues!$D$6:$D$1000, 0),)","v":"ktl5134"}]
["Vince","Birch","So","vpb5085",{"$f":"COUNTIF(Event1!$D:$D, D93) + COUNTIF(Event2!$D:$D, D93) + COUNTIF(Event3!$D:$D, D93) + COUNTIF(Event4!$D:$D, D93) + COUNTIF(Event5!$D:$D, D93) + COUNTIF(Event6!$D:$D, D93) + COUNTIF(Event7!$D:$D, D93) + COUNTIF(Event8!$D:$D, D93) + COUNTIF(Event9!$D:$D, D93) + COUNTIF(Event10!$D:$D, D93) + COUNTIF(Event11!$D:$D, D93) + COUNTIF(Event12!$D:$D, D93) + COUNTIF(Event13!$D:$D, D93) + COUNTIF(Event14!$D:$D, D93) + COUNTIF(Event15!$D:$D, D93) + COUNTIF(Event16!$D:$D, D93) + COUNTIF(Event17!$D:$D, D93) + COUNTIF(Event18!$D:$D, D93) + COUNTIF(Event19!$D:$D, D93) + COUNTIF(Event20!$D:$D, D93) + COUNTIF(Event21!$D:$D, D93) + COUNTIF(Event22!$D:$D, D93) + COUNTIF(Event23!$D:$D, D93) + COUNTIF(Event24!$D:$D, D93) + COUNTIF(Event25!$D:$D, D93) + COUNTIF(Event26!$D:$D, D93) + COUNTIF(Event27!$D:$D, D93) + COUNTIF(Event28!$D:$D, D93) + COUNTIF(Event29!$D:$D, D93) + COUNTIF(Event30!$D:$D, D93) + COUNTIF(Event31!$D:$D, D93) + COUNTIF(Event32!$D:$D, D93) + COUNTIF(Event33!$D:$D, D93) + COUNTIF(Event34!$D:$D, D93) + COUNTIF(Event35!$D:$D, D93) + 0","v":9},{"$f":"INDEX(Dues!$D$6:$D$1000,MATCH(Home!$D93,Dues!$D$6:$D$1000, 0),)","v":"vpb5085"}]
["Hailey","Johnson","So","hqj5199",{"$f":"COUNTIF(Event1!$D:$D, D94) + COUNTIF(Event2!$D:$D, D94) + COUNTIF(Event3!$D:$D, D94) + COUNTIF(Event4!$D:$D, D94) + COUNTIF(Event5!$D:$D, D94) + COUNTIF(Event6!$D:$D, D94) + COUNTIF(Event7!$D:$D, D94) + COUNTIF(Event8!$D:$D, D94) + COUNTIF(Event9!$D:$D, D94) + COUNTIF(Event10!$D:$D, D94) + COUNTIF(Event11!$D:$D, D94) + COUNTIF(Event12!$D:$D, D94) + COUNTIF(Event13!$D:$D, D94) + COUNTIF(Event14!$D:$D, D94) + COUNTIF(Event15!$D:$D, D94) + COUNTIF(Event16!$D:$D, D94) + COUNTIF(Event17!$D:$D, D94) + COUNTIF(Event18!$D:$D, D94) + COUNTIF(Event19!$D:$D, D94) + COUNTIF(Event20!$D:$D, D94) + COUNTIF(Event21!$D:$D, D94) + COUNTIF(Event22!$D:$D, D94) + COUNTIF(Event23!$D:$D, D94) + COUNTIF(Event24!$D:$D, D94) + COUNTIF(Event25!$D:$D, D94) + COUNTIF(Event26!$D:$D, D94) + COUNTIF(Event27!$D:$D, D94) + COUNTIF(Event28!$D:$D, D94) + COUNTIF(Event29!$D:$D, D94) + COUNTIF(Event30!$D:$D, D94) + COUNTIF(Event31!$D:$D, D94) + COUNTIF(Event32!$D:$D, D94) + COUNTIF(Event33!$D:$D, D94) + COUNTIF(Event34!$D:$D, D94) + COUNTIF(Event35!$D:$D, D94) + 0","v":5},{"$f":"INDEX(Dues!$D$6:$D$1000,MATCH(Home!$D94,Dues!$D$6:$D$1000, 0),)","v":"hqj5199"}]
["Nathan","Miller","Sr","njm5536",{"$f":"COUNTIF(Event1!$D:$D, D95) + COUNTIF(Event2!$D:$D, D95) + COUNTIF(Event3!$D:$D, D95) + COUNTIF(Event4!$D:$D, D95) + COUNTIF(Event5!$D:$D, D95) + COUNTIF(Event6!$D:$D, D95) + COUNTIF(Event7!$D:$D, D95) + COUNTIF(Event8!$D:$D, D95) + COUNTIF(Event9!$D:$D, D95) + COUNTIF(Event10!$D:$D, D95) + COUNTIF(Event11!$D:$D, D95) + COUNTIF(Event12!$D:$D, D95) + COUNTIF(Event13!$D:$D, D95) + COUNTIF(Event14!$D:$D, D95) + COUNTIF(Event15!$D:$D, D95) + COUNTIF(Event16!$D:$D, D95) + COUNTIF(Event17!$D:$D, D95) + COUNTIF(Event18!$D:$D, D95) + COUNTIF(Event19!$D:$D, D95) + COUNTIF(Event20!$D:$D, D95) + COUNTIF(Event21!$D:$D, D95) + COUNTIF(Event22!$D:$D, D95) + COUNTIF(Event23!$D:$D, D95) + COUNTIF(Event24!$D:$D, D95) + COUNTIF(Event25!$D:$D, D95) + COUNTIF(Event26!$D:$D, D95) + COUNTIF(Event27!$D:$D, D95) + COUNTIF(Event28!$D:$D, D95) + COUNTIF(Event29!$D:$D, D95) + COUNTIF(Event30!$D:$D, D95) + COUNTIF(Event31!$D:$D, D95) + COUNTIF(Event32!$D:$D, D95) + COUNTIF(Event33!$D:$D, D95) + COUNTIF(Event34!$D:$D, D95) + COUNTIF(Event35!$D:$D, D95) + 0","v":2},{"$f":"INDEX(Dues!$D$6:$D$1000,MATCH(Home!$D95,Dues!$D$6:$D$1000, 0),)","v":"njm5536"}]
["Matt","Schwenk","So","mss51",{"$f":"COUNTIF(Event1!$D:$D, D96) + COUNTIF(Event2!$D:$D, D96) + COUNTIF(Event3!$D:$D, D96) + COUNTIF(Event4!$D:$D, D96) + COUNTIF(Event5!$D:$D, D96) + COUNTIF(Event6!$D:$D, D96) + COUNTIF(Event7!$D:$D, D96) + COUNTIF(Event8!$D:$D, D96) + COUNTIF(Event9!$D:$D, D96) + COUNTIF(Event10!$D:$D, D96) + COUNTIF(Event11!$D:$D, D96) + COUNTIF(Event12!$D:$D, D96) + COUNTIF(Event13!$D:$D, D96) + COUNTIF(Event14!$D:$D, D96) + COUNTIF(Event15!$D:$D, D96) + COUNTIF(Event16!$D:$D, D96) + COUNTIF(Event17!$D:$D, D96) + COUNTIF(Event18!$D:$D, D96) + COUNTIF(Event19!$D:$D, D96) + COUNTIF(Event20!$D:$D, D96) + COUNTIF(Event21!$D:$D, D96) + COUNTIF(Event22!$D:$D, D96) + COUNTIF(Event23!$D:$D, D96) + COUNTIF(Event24!$D:$D, D96) + COUNTIF(Event25!$D:$D, D96) + COUNTIF(Event26!$D:$D, D96) + COUNTIF(Event27!$D:$D, D96) + COUNTIF(Event28!$D:$D, D96) + COUNTIF(Event29!$D:$D, D96) + COUNTIF(Event30!$D:$D, D96) + COUNTIF(Event31!$D:$D, D96) + COUNTIF(Event32!$D:$D, D96) + COUNTIF(Event33!$D:$D, D96) + COUNTIF(Event34!$D:$D, D96) + COUNTIF(Event35!$D:$D, D96) + 0","v":4},{"$f":"INDEX(Dues!$D$6:$D$1000,MATCH(Home!$D96,Dues!$D$6:$D$1000, 0),)","v":"mss51"}]
["Zack","Pasquinelli","Sr","zmp5056",{"$f":"COUNTIF(Event1!$D:$D, D97) + COUNTIF(Event2!$D:$D, D97) + COUNTIF(Event3!$D:$D, D97) + COUNTIF(Event4!$D:$D, D97) + COUNTIF(Event5!$D:$D, D97) + COUNTIF(Event6!$D:$D, D97) + COUNTIF(Event7!$D:$D, D97) + COUNTIF(Event8!$D:$D, D97) + COUNTIF(Event9!$D:$D, D97) + COUNTIF(Event10!$D:$D, D97) + COUNTIF(Event11!$D:$D, D97) + COUNTIF(Event12!$D:$D, D97) + COUNTIF(Event13!$D:$D, D97) + COUNTIF(Event14!$D:$D, D97) + COUNTIF(Event15!$D:$D, D97) + COUNTIF(Event16!$D:$D, D97) + COUNTIF(Event17!$D:$D, D97) + COUNTIF(Event18!$D:$D, D97) + COUNTIF(Event19!$D:$D, D97) + COUNTIF(Event20!$D:$D, D97) + COUNTIF(Event21!$D:$D, D97) + COUNTIF(Event22!$D:$D, D97) + COUNTIF(Event23!$D:$D, D97) + COUNTIF(Event24!$D:$D, D97) + COUNTIF(Event25!$D:$D, D97) + COUNTIF(Event26!$D:$D, D97) + COUNTIF(Event27!$D:$D, D97) + COUNTIF(Event28!$D:$D, D97) + COUNTIF(Event29!$D:$D, D97) + COUNTIF(Event30!$D:$D, D97) + COUNTIF(Event31!$D:$D, D97) + COUNTIF(Event32!$D:$D, D97) + COUNTIF(Event33!$D:$D, D97) + COUNTIF(Event34!$D:$D, D97) + COUNTIF(Event35!$D:$D, D97) + 0","v":4},{"$f":"INDEX(Dues!$D$6:$D$1000,MATCH(Home!$D97,Dues!$D$6:$D$1000, 0),)","v":{"$error":"#N/A"}}]
["Tyler","Farr","So","tzf19",{"$f":"COUNTIF(Event1!$D:$D, D98) + COUNTIF(Event2!$D:$D, D98) + COUNTIF(Event3!$D:$D, D98) + COUNTIF(Event4!$D:$D, D98) + COUNTIF(Event5!$D:$D, D98) + COUNTIF(Event6!$D:$D, D98) + COUNTIF(Event7!$D:$D, D98) + COUNTIF(Event8!$D:$D, D98) + COUNTIF(Event9!$D:$D, D98) + COUNTIF(Event10!$D:$D, D98) + COUNTIF(Event11!$D:$D, D98) + COUNTIF(Event12!$D:$D, D98) + COUNTIF(Event13!$D:$D, D98) + COUNTIF(Event14!$D:$D, D98) + COUNTIF(Event15!$D:$D, D98) + COUNTIF(Event16!$D:$D, D98) + COUNTIF(Event17!$D:$D, D98) + COUNTIF(Event18!$D:$D, D98) + COUNTIF(Event19!$D:$D, D98) + COUNTIF(Event20!$D:$D, D98) + COUNTIF(Event21!$D:$D, D98) + COUNTIF(Event22!$D:$D, D98) + COUNTIF(Event23!$D:$D, D98) + COUNTIF(Event24!$D:$D, D98) + COUNTIF(Event25!$D:$D, D98) + COUNTIF(Event26!$D:$D, D98) + COUNTIF(Event27!$D:$D, D98) + COUNTIF(Event28!$D:$D, D98) + COUNTIF(Event29!$D:$D, D98) + COUNTIF(Event30!$D:$D, D98) + COUNTIF(Event31!$D:$D, D98) + COUNTIF(Event32!$D:$D, D98) + COUNTIF(Event33!$D:$D, D98) + COUNTIF(Event34!$D:$D, D98) + COUNTIF(Event35!$D:$D, D98) + 0","v":6},{"$f":"INDEX(Dues!$D$6:$D$1000,MATCH(Home!$D98,Dues!$D$6:$D$1000, 0),)","v":"tzf19"}]
["Lucas","Richardsen","So","ljr5433",{"$f":"COUNTIF(Event1!$D:$D, D99) + COUNTIF(Event2!$D:$D, D99) + COUNTIF(Event3!$D:$D, D99) + COUNTIF(Event4!$D:$D, D99) + COUNTIF(Event5!$D:$D, D99) + COUNTIF(Event6!$D:$D, D99) + COUNTIF(Event7!$D:$D, D99) + COUNTIF(Event8!$D:$D, D99) + COUNTIF(Event9!$D:$D, D99) + COUNTIF(Event10!$D:$D, D99) + COUNTIF(Event11!$D:$D, D99) + COUNTIF(Event12!$D:$D, D99) + COUNTIF(Event13!$D:$D, D99) + COUNTIF(Event14!$D:$D, D99) + COUNTIF(Event15!$D:$D, D99) + COUNTIF(Event16!$D:$D, D99) + COUNTIF(Event17!$D:$D, D99) + COUNTIF(Event18!$D:$D, D99) + COUNTIF(Event19!$D:$D, D99) + COUNTIF(Event20!$D:$D, D99) + COUNTIF(Event21!$D:$D, D99) + COUNTIF(Event22!$D:$D, D99) + COUNTIF(Event23!$D:$D, D99) + COUNTIF(Event24!$D:$D, D99) + COUNTIF(Event25!$D:$D, D99) + COUNTIF(Event26!$D:$D, D99) + COUNTIF(Event27!$D:$D, D99) + COUNTIF(Event28!$D:$D, D99) + COUNTIF(Event29!$D:$D, D99) + COUNTIF(Event30!$D:$D, D99) + COUNTIF(Event31!$D:$D, D99) + COUNTIF(Event32!$D:$D, D99) + COUNTIF(Event33!$D:$D, D99) + COUNTIF(Event34!$D:$D, D99) + COUNTIF(Event35!$D:$D, D99) + 0","v":5},{"$f":"INDEX(Dues!$D$6:$D$1000,MATCH(Home!$D99,Dues!$D$6:$D$1000, 0),)","v":"ljr5433"}]
["Craig","Feaster","Jr","ctf5107",{"$f":"COUNTIF(Event1!$D:$D, D100) + COUNTIF(Event2!$D:$D, D100) + COUNTIF(Event3!$D:$D, D100) + COUNTIF(Event4!$D:$D, D100) + COUNTIF(Event5!$D:$D, D100) + COUNTIF(Event6!$D:$D, D100) + COUNTIF(Event7!$D:$D, D100) + COUNTIF(Event8!$D:$D, D100) + COUNTIF(Event9!$D:$D, D100) + COUNTIF(Event10!$D:$D, D100) + COUNTIF(Event11!$D:$D, D100) + COUNTIF(Event12!$D:$D, D100) + COUNTIF(Event13!$D:$D, D100) + COUNTIF(Event14!$D:$D, D100) + COUNTIF(Event15!$D:$D, D100) + COUNTIF(Event16!$D:$D, D100) + COUNTIF(Event17!$D:$D, D100) + COUNTIF(Event18!$D:$D, D100) + COUNTIF(Event19!$D:$D, D100) + COUNTIF(Event20!$D:$D, D100) + COUNTIF(Event21!$D:$D, D100) + COUNTIF(Event22!$D:$D, D100) + COUNTIF(Event23!$D:$D, D100) + COUNTIF(Event24!$D:$D, D100) + COUNTIF(Event25!$D:$D, D100) + COUNTIF(Event26!$D:$D, D100) + COUNTIF(Event27!$D:$D, D100) + COUNTIF(Event28!$D:$D, D100) + COUNTIF(Event29!$D:$D, D100) + COUNTIF(Event30!$D:$D, D100) + COUNTIF(Event31!$D:$D, D100) + COUNTIF(Event32!$D:$D, D100) + COUNTIF(Event33!$D:$D, D100) + COUNTIF(Event34!$D:$D, D100) + COUNTIF(Event35!$D:$D, D100) + 0","v":3},{"$f":"INDEX(Dues!$D$6:$D$1000,MATCH(Home!$D100,Dues!$D$6:$D$1000, 0),)","v":"ctf5107"}]
["Fadhlia","Rahim-Ali","Sr","far5093",{"$f":"COUNTIF(Event1!$D:$D, D101) + COUNTIF(Event2!$D:$D, D101) + COUNTIF(Event3!$D:$D, D101) + COUNTIF(Event4!$D:$D, D101) + COUNTIF(Event5!$D:$D, D101) + COUNTIF(Event6!$D:$D, D101) + COUNTIF(Event7!$D:$D, D101) + COUNTIF(Event8!$D:$D, D101) + COUNTIF(Event9!$D:$D, D101) + COUNTIF(Event10!$D:$D, D101) + COUNTIF(Event11!$D:$D, D101) + COUNTIF(Event12!$D:$D, D101) + COUNTIF(Event13!$D:$D, D101) + COUNTIF(Event14!$D:$D, D101) + COUNTIF(Event15!$D:$D, D101) + COUNTIF(Event16!$D:$D, D101) + COUNTIF(Event17!$D:$D, D101) + COUNTIF(Event18!$D:$D, D101) + COUNTIF(Event19!$D:$D, D101) + COUNTIF(Event20!$D:$D, D101) + COUNTIF(Event21!$D:$D, D101) + COUNTIF(Event22!$D:$D, D101) + COUNTIF(Event23!$D:$D, D101) + COUNTIF(Event24!$D:$D, D101) + COUNTIF(Event25!$D:$D, D101) + COUNTIF(Event26!$D:$D, D101) + COUNTIF(Event27!$D:$D, D101) + COUNTIF(Event28!$D:$D, D101) + COUNTIF(Event29!$D:$D, D101) + COUNTIF(Event30!$D:$D, D101) + COUNTIF(Event31!$D:$D, D101) + COUNTIF(Event32!$D:$D, D101) + COUNTIF(Event33!$D:$D, D101) + COUNTIF(Event34!$D:$D, D101) + COUNTIF(Event35!$D:$D, D101) + 0","v":2},{"$f":"INDEX(Dues!$D$6:$D$1000,MATCH(Home!$D101,Dues!$D$6:$D$1000, 0),)","v":{"$error":"#N/A"}}]
["Rohan","Bhandarkar","Sr","rpb5416",{"$f":"COUNTIF(Event1!$D:$D, D102) + COUNTIF(Event2!$D:$D, D102) + COUNTIF(Event3!$D:$D, D102) + COUNTIF(Event4!$D:$D, D102) + COUNTIF(Event5!$D:$D, D102) + COUNTIF(Event6!$D:$D, D102) + COUNTIF(Event7!$D:$D, D102) + COUNTIF(Event8!$D:$D, D102) + COUNTIF(Event9!$D:$D, D102) + COUNTIF(Event10!$D:$D, D102) + COUNTIF(Event11!$D:$D, D102) + COUNTIF(Event12!$D:$D, D102) + COUNTIF(Event13!$D:$D, D102) + COUNTIF(Event14!$D:$D, D102) + COUNTIF(Event15!$D:$D, D102) + COUNTIF(Event16!$D:$D, D102) + COUNTIF(Event17!$D:$D, D102) + COUNTIF(Event18!$D:$D, D102) + COUNTIF(Event19!$D:$D, D102) + COUNTIF(Event20!$D:$D, D102) + COUNTIF(Event21!$D:$D, D102) + COUNTIF(Event22!$D:$D, D102) + COUNTIF(Event23!$D:$D, D102) + COUNTIF(Event24!$D:$D, D102) + COUNTIF(Event25!$D:$D, D102) + COUNTIF(Event26!$D:$D, D102) + COUNTIF(Event27!$D:$D, D102) + COUNTIF(Event28!$D:$D, D102) + COUNTIF(Event29!$D:$D, D102) + COUNTIF(Event30!$D:$D, D102) + COUNTIF(Event31!$D:$D, D102) + COUNTIF(Event32!$D:$D, D102) + COUNTIF(Event33!$D:$D, D102) + COUNTIF(Event34!$D:$D, D102) + COUNTIF(Event35!$D:$D, D102) + 0","v":2},{"$f":"INDEX(Dues!$D$6:$D$1000,MATCH(Home!$D102,Dues!$D$6:$D$1000, 0),)","v":"rpb5416"}]
["Zhengyan","Yuan","Sr","zqy5133",{"$f":"COUNTIF(Event1!$D:$D, D103) + COUNTIF(Event2!$D:$D, D103) + COUNTIF(Event3!$D:$D, D103) + COUNTIF(Event4!$D:$D, D103) + COUNTIF(Event5!$D:$D, D103) + COUNTIF(Event6!$D:$D, D103) + COUNTIF(Event7!$D:$D, D103) + COUNTIF(Event8!$D:$D, D103) + COUNTIF(Event9!$D:$D, D103) + COUNTIF(Event10!$D:$D, D103) + COUNTIF(Event11!$D:$D, D103) + COUNTIF(Event12!$D:$D, D103) + COUNTIF(Event13!$D:$D, D103) + COUNTIF(Event14!$D:$D, D103) + COUNTIF(Event15!$D:$D, D103) + COUNTIF(Event16!$D:$D, D103) + COUNTIF(Event17!$D:$D, D103) + COUNTIF(Event18!$D:$D, D103) + COUNTIF(Event19!$D:$D, D103) + COUNTIF(Event20!$D:$D, D103) + COUNTIF(Event21!$D:$D, D103) + COUNTIF(Event22!$D:$D, D103) + COUNTIF(Event23!$D:$D, D103) + COUNTIF(Event24!$D:$D, D103) + COUNTIF(Event25!$D:$D, D103) + COUNTIF(Event26!$D:$D, D103) + COUNTIF(Event27!$D:$D, D103) + COUNTIF(Event28!$D:$D, D103) + COUNTIF(Event29!$D:$D, D103) + COUNTIF(Event30!$D:$D, D103) + COUNTIF(Event31!$D:$D, D103) + COUNTIF(Event32!$D:$D, D103) + COUNTIF(Event33!$D:$D, D103) + COUNTIF(Event34!$D:$D, D103) + COUNTIF(Event35!$D:$D, D103) + 0","v":3},{"$f":"INDEX(Dues!$D$6:$D$1000,MATCH(Home!$D103,Dues!$D$6:$D$1000, 0),)","v":"zqy5133"}]
["Longhao","Yang","Jr","lky5069",{"$f":"COUNTIF(Event1!$D:$D, D104) + COUNTIF(Event2!$D:$D, D104) + COUNTIF(Event3!$D:$D, D104) + COUNTIF(Event4!$D:$D, D104) + COUNTIF(Event5!$D:$D, D104) + COUNTIF(Event6!$D:$D, D104) + COUNTIF(Event7!$D:$D, D104) + COUNTIF(Event8!$D:$D, D104) + COUNTIF(Event9!$D:$D, D104) + COUNTIF(Event10!$D:$D, D104) + COUNTIF(Event11!$D:$D, D104) + COUNTIF(Event12!$D:$D, D104) + COUNTIF(Event13!$D:$D, D104) + COUNTIF(Event14!$D:$D, D104) + COUNTIF(Event15!$D:$D, D104) + COUNTIF(Event16!$D:$D, D104) + COUNTIF(Event17!$D:$D, D104) + COUNTIF(Event18!$D:$D, D104) + COUNTIF(Event19!$D:$D, D104) + COUNTIF(Event20!$D:$D, D104) + COUNTIF(Event21!$D:$D, D104) + COUNTIF(Event22!$D:$D, D104) + COUNTIF(Event23!$D:$D, D104) + COUNTIF(Event24!$D:$D, D104) + COUNTIF(Event25!$D:$D, D104) + COUNTIF(Event26!$D:$D, D104) + COUNTIF(Event27!$D:$D, D104) + COUNTIF(Event28!$D:$D, D104) + COUNTIF(Event29!$D:$D, D104) + COUNTIF(Event30!$D:$D, D104) + COUNTIF(Event31!$D:$D, D104) + COUNTIF(Event32!$D:$D, D104) + COUNTIF(Event33!$D:$D, D104) + COUNTIF(Event34!$D:$D, D104) + COUNTIF(Event35!$D:$D, D104) + 0","v":2},{"$f":"INDEX(Dues!$D$6:$D$1000,MATCH(Home!$D104,Dues!$D$6:$D$1000, 0),)","v":"lky5069"}]
["Daniel","Marinelli","so","dbm5481",{"$f":"COUNTIF(Event1!$D:$D, D105) + COUNTIF(Event2!$D:$D, D105) + COUNTIF(Event3!$D:$D, D105) + COUNTIF(Event4!$D:$D, D105) + COUNTIF(Event5!$D:$D, D105) + COUNTIF(Event6!$D:$D, D105) + COUNTIF(Event7!$D:$D, D105) + COUNTIF(Event8!$D:$D, D105) + COUNTIF(Event9!$D:$D, D105) + COUNTIF(Event10!$D:$D, D105) + COUNTIF(Event11!$D:$D, D105) + COUNTIF(Event12!$D:$D, D105) + COUNTIF(Event13!$D:$D, D105) + COUNTIF(Event14!$D:$D, D105) + COUNTIF(Event15!$D:$D, D105) + COUNTIF(Event16!$D:$D, D105) + COUNTIF(Event17!$D:$D, D105) + COUNTIF(Event18!$D:$D, D105) + COUNTIF(Event19!$D:$D, D105) + COUNTIF(Event20!$D:$D, D105) + COUNTIF(Event21!$D:$D, D105) + COUNTIF(Event22!$D:$D, D105) + COUNTIF(Event23!$D:$D, D105) + COUNTIF(Event24!$D:$D, D105) + COUNTIF(Event25!$D:$D, D105) + COUNTIF(Event26!$D:$D, D105) + COUNTIF(Event27!$D:$D, D105) + COUNTIF(Event28!$D:$D, D105) + COUNTIF(Event29!$D:$D, D105) + COUNTIF(Event30!$D:$D, D105) + COUNTIF(Event31!$D:$D, D105) + COUNTIF(Event32!$D:$D, D105) + COUNTIF(Event33!$D:$D, D105) + COUNTIF(Event34!$D:$D, D105) + COUNTIF(Event35!$D:$D, D105) + 0","v":3},{"$f":"INDEX(Dues!$D$6:$D$1000,MATCH(Home!$D105,Dues!$D$6:$D$1000, 0),)","v":"dbm5481"}]
["Dehan(Roger)","Li","Jr","dzl5429",{"$f":"COUNTIF(Event1!$D:$D, D106) + COUNTIF(Event2!$D:$D, D106) + COUNTIF(Event3!$D:$D, D106) + COUNTIF(Event4!$D:$D, D106) + COUNTIF(Event5!$D:$D, D106) + COUNTIF(Event6!$D:$D, D106) + COUNTIF(Event7!$D:$D, D106) + COUNTIF(Event8!$D:$D, D106) + COUNTIF(Event9!$D:$D, D106) + COUNTIF(Event10!$D:$D, D106) + COUNTIF(Event11!$D:$D, D106) + COUNTIF(Event12!$D:$D, D106) + COUNTIF(Event13!$D:$D, D106) + COUNTIF(Event14!$D:$D, D106) + COUNTIF(Event15!$D:$D, D106) + COUNTIF(Event16!$D:$D, D106) + COUNTIF(Event17!$D:$D, D106) + COUNTIF(Event18!$D:$D, D106) + COUNTIF(Event19!$D:$D, D106) + COUNTIF(Event20!$D:$D, D106) + COUNTIF(Event21!$D:$D, D106) + COUNTIF(Event22!$D:$D, D106) + COUNTIF(Event23!$D:$D, D106) + COUNTIF(Event24!$D:$D, D106) + COUNTIF(Event25!$D:$D, D106) + COUNTIF(Event26!$D:$D, D106) + COUNTIF(Event27!$D:$D, D106) + COUNTIF(Event28!$D:$D, D106) + COUNTIF(Event29!$D:$D, D106) + COUNTIF(Event30!$D:$D, D106) + COUNTIF(Event31!$D:$D, D106) + COUNTIF(Event32!$D:$D, D106) + COUNTIF(Event33!$D:$D, D106) + COUNTIF(Event34!$D:$D, D106) + COUNTIF(Event35!$D:$D, D106) + 0","v":1},{"$f":"INDEX(Dues!$D$6:$D$1000,MATCH(Home!$D106,Dues!$D$6:$D$1000, 0),)","v":{"$error":"#N/A"}}]
["Ashley","Morris","Sr","alm6239",{"$f":"COUNTIF(Event1!$D:$D, D107) + COUNTIF(Event2!$D:$D, D107) + COUNTIF(Event3!$D:$D, D107) + COUNTIF(Event4!$D:$D, D107) + COUNTIF(Event5!$D:$D, D107) + COUNTIF(Event6!$D:$D, D107) + COUNTIF(Event7!$D:$D, D107) + COUNTIF(Event8!$D:$D, D107) + COUNTIF(Event9!$D:$D, D107) + COUNTIF(Event10!$D:$D, D107) + COUNTIF(Event11!$D:$D, D107) + COUNTIF(Event12!$D:$D, D107) + COUNTIF(Event13!$D:$D, D107) + COUNTIF(Event14!$D:$D, D107) + COUNTIF(Event15!$D:$D, D107) + COUNTIF(Event16!$D:$D, D107) + COUNTIF(Event17!$D:$D, D107) + COUNTIF(Event18!$D:$D, D107) + COUNTIF(Event19!$D:$D, D107) + COUNTIF(Event20!$D:$D, D107) + COUNTIF(Event21!$D:$D, D107) + COUNTIF(Event22!$D:$D, D107) + COUNTIF(Event23!$D:$D, D107) + COUNTIF(Event24!$D:$D, D107) + COUNTIF(Event25!$D:$D, D107) + COUNTIF(Event26!$D:$D, D107) + COUNTIF(Event27!$D:$D, D107) + COUNTIF(Event28!$D:$D, D107) + COUNTIF(Event29!$D:$D, D107) + COUNTIF(Event30!$D:$D, D107) + COUNTIF(Event31!$D:$D, D107) + COUNTIF(Event32!$D:$D, D107) + COUNTIF(Event33!$D:$D, D107) + COUNTIF(Event34!$D:$D, D107) + COUNTIF(Event35!$D:$D, D107) + 0","v":1},{"$f":"INDEX(Dues!$D$6:$D$1000,MATCH(Home!$D107,Dues!$D$6:$D$1000, 0),)","v":"alm6239"}]
["Carmen","Veltri","So","cpv5095",{"$f":"COUNTIF(Event1!$D:$D, D108) + COUNTIF(Event2!$D:$D, D108) + COUNTIF(Event3!$D:$D, D108) + COUNTIF(Event4!$D:$D, D108) + COUNTIF(Event5!$D:$D, D108) + COUNTIF(Event6!$D:$D, D108) + COUNTIF(Event7!$D:$D, D108) + COUNTIF(Event8!$D:$D, D108) + COUNTIF(Event9!$D:$D, D108) + COUNTIF(Event10!$D:$D, D108) + COUNTIF(Event11!$D:$D, D108) + COUNTIF(Event12!$D:$D, D108) + COUNTIF(Event13!$D:$D, D108) + COUNTIF(Event14!$D:$D, D108) + COUNTIF(Event15!$D:$D, D108) + COUNTIF(Event16!$D:$D, D108) + COUNTIF(Event17!$D:$D, D108) + COUNTIF(Event18!$D:$D, D108) + COUNTIF(Event19!$D:$D, D108) + COUNTIF(Event20!$D:$D, D108) + COUNTIF(Event21!$D:$D, D108) + COUNTIF(Event22!$D:$D, D108) + COUNTIF(Event23!$D:$D, D108) + COUNTIF(Event24!$D:$D, D108) + COUNTIF(Event25!$D:$D, D108) + COUNTIF(Event26!$D:$D, D108) + COUNTIF(Event27!$D:$D, D108) + COUNTIF(Event28!$D:$D, D108) + COUNTIF(Event29!$D:$D, D108) + COUNTIF(Event30!$D:$D, D108) + COUNTIF(Event31!$D:$D, D108) + COUNTIF(Event32!$D:$D, D108) + COUNTIF(Event33!$D:$D, D108) + COUNTIF(Event34!$D:$D, D108) + COUNTIF(Event35!$D:$D, D108) + 0","v":3},{"$f":"INDEX(Dues!$D$6:$D$1000,MATCH(Home!$D108,Dues!$D$6:$D$1000, 0),)","v":"cpv5095"}]
["Frankie","Haver","Sr","fph5023",{"$f":"COUNTIF(Event1!$D:$D, D109) + COUNTIF(Event2!$D:$D, D109) + COUNTIF(Event3!$D:$D, D109) + COUNTIF(Event4!$D:$D, D109) + COUNTIF(Event5!$D:$D, D109) + COUNTIF(Event6!$D:$D, D109) + COUNTIF(Event7!$D:$D, D109) + COUNTIF(Event8!$D:$D, D109) + COUNTIF(Event9!$D:$D, D109) + COUNTIF(Event10!$D:$D, D109) + COUNTIF(Event11!$D:$D, D109) + COUNTIF(Event12!$D:$D, D109) + COUNTIF(Event13!$D:$D, D109) + COUNTIF(Event14!$D:$D, D109) + COUNTIF(Event15!$D:$D, D109) + COUNTIF(Event16!$D:$D, D109) + COUNTIF(Event17!$D:$D, D109) + COUNTIF(Event18!$D:$D, D109) + COUNTIF(Event19!$D:$D, D109) + COUNTIF(Event20!$D:$D, D109) + COUNTIF(Event21!$D:$D, D109) + COUNTIF(Event22!$D:$D, D109) + COUNTIF(Event23!$D:$D, D109) + COUNTIF(Event24!$D:$D, D109) + COUNTIF(Event25!$D:$D, D109) + COUNTIF(Event26!$D:$D, D109) + COUNTIF(Event27!$D:$D, D109) + COUNTIF(Event28!$D:$D, D109) + COUNTIF(Event29!$D:$D, D109) + COUNTIF(Event30!$D:$D, D109) + COUNTIF(Event31!$D:$D, D109) + COUNTIF(Event32!$D:$D, D109) + COUNTIF(Event33!$D:$D, D109) + COUNTIF(Event34!$D:$D, D109) + COUNTIF(Event35!$D:$D, D109) + 0","v":3},{"$f":"INDEX(Dues!$D$6:$D$1000,MATCH(Home!$D109,Dues!$D$6:$D$1000, 0),)","v":"fph5023"}]
["Franklyn","Snyderman","Jr","fts5025",{"$f":"COUNTIF(Event1!$D:$D, D110) + COUNTIF(Event2!$D:$D, D110) + COUNTIF(Event3!$D:$D, D110) + COUNTIF(Event4!$D:$D, D110) + COUNTIF(Event5!$D:$D, D110) + COUNTIF(Event6!$D:$D, D110) + COUNTIF(Event7!$D:$D, D110) + COUNTIF(Event8!$D:$D, D110) + COUNTIF(Event9!$D:$D, D110) + COUNTIF(Event10!$D:$D, D110) + COUNTIF(Event11!$D:$D, D110) + COUNTIF(Event12!$D:$D, D110) + COUNTIF(Event13!$D:$D, D110) + COUNTIF(Event14!$D:$D, D110) + COUNTIF(Event15!$D:$D, D110) + COUNTIF(Event16!$D:$D, D110) + COUNTIF(Event17!$D:$D, D110) + COUNTIF(Event18!$D:$D, D110) + COUNTIF(Event19!$D:$D, D110) + COUNTIF(Event20!$D:$D, D110) + COUNTIF(Event21!$D:$D, D110) + COUNTIF(Event22!$D:$D, D110) + COUNTIF(Event23!$D:$D, D110) + COUNTIF(Event24!$D:$D, D110) + COUNTIF(Event25!$D:$D, D110) + COUNTIF(Event26!$D:$D, D110) + COUNTIF(Event27!$D:$D, D110) + COUNTIF(Event28!$D:$D, D110) + COUNTIF(Event29!$D:$D, D110) + COUNTIF(Event30!$D:$D, D110) + COUNTIF(Event31!$D:$D, D110) + COUNTIF(Event32!$D:$D, D110) + COUNTIF(Event33!$D:$D, D110) + COUNTIF(Event34!$D:$D, D110) + COUNTIF(Event35!$D:$D, D110) + 0","v":2},{"$f":"INDEX(Dues!$D$6:$D$1000,MATCH(Home!$D110,Dues!$D$6:$D$1000, 0),)","v":"fts5025"}]
["David","Wooditch","Sr","dmw5806",{"$f":"COUNTIF(Event1!$D:$D, D111) + COUNTIF(Event2!$D:$D, D111) + COUNTIF(Event3!$D:$D, D111) + COUNTIF(Event4!$D:$D, D111) + COUNTIF(Event5!$D:$D, D111) + COUNTIF(Event6!$D:$D, D111) + COUNTIF(Event7!$D:$D, D111) + COUNTIF(Event8!$D:$D, D111) + COUNTIF(Event9!$D:$D, D111) + COUNTIF(Event10!$D:$D, D111) + COUNTIF(Event11!$D:$D, D111) + COUNTIF(Event12!$D:$D, D111) + COUNTIF(Event13!$D:$D, D111) + COUNTIF(Event14!$D:$D, D111) + COUNTIF(Event15!$D:$D, D111) + COUNTIF(Event16!$D:$D, D111) + COUNTIF(Event17!$D:$D, D111) + COUNTIF(Event18!$D:$D, D111) + COUNTIF(Event19!$D:$D, D111) + COUNTIF(Event20!$D:$D, D111) + COUNTIF(Event21!$D:$D, D111) + COUNTIF(Event22!$D:$D, D111) + COUNTIF(Event23!$D:$D, D111) + COUNTIF(Event24!$D:$D, D111) + COUNTIF(Event25!$D:$D, D111) + COUNTIF(Event26!$D:$D, D111) + COUNTIF(Event27!$D:$D, D111) + COUNTIF(Event28!$D:$D, D111) + COUNTIF(Event29!$D:$D, D111) + COUNTIF(Event30!$D:$D, D111) + COUNTIF(Event31!$D:$D, D111) + COUNTIF(Event32!$D:$D, D111) + COUNTIF(Event33!$D:$D, D111) + COUNTIF(Event34!$D:$D, D111) + COUNTIF(Event35!$D:$D, D111) + 0","v":2},{"$f":"INDEX(Dues!$D$6:$D$1000,MATCH(Home!$D111,Dues!$D$6:$D$1000, 0),)","v":{"$error":"#N/A"}}]
["Collin","Cicconi","Sr","cac6338",{"$f":"COUNTIF(Event1!$D:$D, D112) + COUNTIF(Event2!$D:$D, D112) + COUNTIF(Event3!$D:$D, D112) + COUNTIF(Event4!$D:$D, D112) + COUNTIF(Event5!$D:$D, D112) + COUNTIF(Event6!$D:$D, D112) + COUNTIF(Event7!$D:$D, D112) + COUNTIF(Event8!$D:$D, D112) + COUNTIF(Event9!$D:$D, D112) + COUNTIF(Event10!$D:$D, D112) + COUNTIF(Event11!$D:$D, D112) + COUNTIF(Event12!$D:$D, D112) + COUNTIF(Event13!$D:$D, D112) + COUNTIF(Event14!$D:$D, D112) + COUNTIF(Event15!$D:$D, D112) + COUNTIF(Event16!$D:$D, D112) + COUNTIF(Event17!$D:$D, D112) + COUNTIF(Event18!$D:$D, D112) + COUNTIF(Event19!$D:$D, D112) + COUNTIF(Event20!$D:$D, D112) + COUNTIF(Event21!$D:$D, D112) + COUNTIF(Event22!$D:$D, D112) + COUNTIF(Event23!$D:$D, D112) + COUNTIF(Event24!$D:$D, D112) + COUNTIF(Event25!$D:$D, D112) + COUNTIF(Event26!$D:$D, D112) + COUNTIF(Event27!$D:$D, D112) + COUNTIF(Event28!$D:$D, D112) + COUNTIF(Event29!$D:$D, D112) + COUNTIF(Event30!$D:$D, D112) + COUNTIF(Event31!$D:$D, D112) + COUNTIF(Event32!$D:$D, D112) + COUNTIF(Event33!$D:$D, D112) + COUNTIF(Event34!$D:$D, D112) + COUNTIF(Event35!$D:$D, D112) + 0","v":3},{"$f":"INDEX(Dues!$D$6:$D$1000,MATCH(Home!$D112,Dues!$D$6:$D$1000, 0),)","v":"cac6338"}]
["Shurui","Xu","So","sxx5076",{"$f":"COUNTIF(Event1!$D:$D, D113) + COUNTIF(Event2!$D:$D, D113) + COUNTIF(Event3!$D:$D, D113) + COUNTIF(Event4!$D:$D, D113) + COUNTIF(Event5!$D:$D, D113) + COUNTIF(Event6!$D:$D, D113) + COUNTIF(Event7!$D:$D, D113) + COUNTIF(Event8!$D:$D, D113) + COUNTIF(Event9!$D:$D, D113) + COUNTIF(Event10!$D:$D, D113) + COUNTIF(Event11!$D:$D, D113) + COUNTIF(Event12!$D:$D, D113) + COUNTIF(Event13!$D:$D, D113) + COUNTIF(Event14!$D:$D, D113) + COUNTIF(Event15!$D:$D, D113) + COUNTIF(Event16!$D:$D, D113) + COUNTIF(Event17!$D:$D, D113) + COUNTIF(Event18!$D:$D, D113) + COUNTIF(Event19!$D:$D, D113) + COUNTIF(Event20!$D:$D, D113) + COUNTIF(Event21!$D:$D, D113) + COUNTIF(Event22!$D:$D, D113) + COUNTIF(Event23!$D:$D, D113) + COUNTIF(Event24!$D:$D, D113) + COUNTIF(Event25!$D:$D, D113) + COUNTIF(Event26!$D:$D, D113) + COUNTIF(Event27!$D:$D, D113) + COUNTIF(Event28!$D:$D, D113) + COUNTIF(Event29!$D:$D, D113) + COUNTIF(Event30!$D:$D, D113) + COUNTIF(Event31!$D:$D, D113) + COUNTIF(Event32!$D:$D, D113) + COUNTIF(Event33!$D:$D, D113) + COUNTIF(Event34!$D:$D, D113) + COUNTIF(Event35!$D:$D, D113) + 0","v":2},{"$f":"INDEX(Dues!$D$6:$D$1000,MATCH(Home!$D113,Dues!$D$6:$D$1000, 0),)","v":"sxx5076"}]
["Allison ","Seibert","Sr","azs6047",{"$f":"COUNTIF(Event1!$D:$D, D114) + COUNTIF(Event2!$D:$D, D114) + COUNTIF(Event3!$D:$D, D114) + COUNTIF(Event4!$D:$D, D114) + COUNTIF(Event5!$D:$D, D114) + COUNTIF(Event6!$D:$D, D114) + COUNTIF(Event7!$D:$D, D114) + COUNTIF(Event8!$D:$D, D114) + COUNTIF(Event9!$D:$D, D114) + COUNTIF(Event10!$D:$D, D114) + COUNTIF(Event11!$D:$D, D114) + COUNTIF(Event12!$D:$D, D114) + COUNTIF(Event13!$D:$D, D114) + COUNTIF(Event14!$D:$D, D114) + COUNTIF(Event15!$D:$D, D114) + COUNTIF(Event16!$D:$D, D114) + COUNTIF(Event17!$D:$D, D114) + COUNTIF(Event18!$D:$D, D114) + COUNTIF(Event19!$D:$D, D114) + COUNTIF(Event20!$D:$D, D114) + COUNTIF(Event21!$D:$D, D114) + COUNTIF(Event22!$D:$D, D114) + COUNTIF(Event23!$D:$D, D114) + COUNTIF(Event24!$D:$D, D114) + COUNTIF(Event25!$D:$D, D114) + COUNTIF(Event26!$D:$D, D114) + COUNTIF(Event27!$D:$D, D114) + COUNTIF(Event28!$D:$D, D114) + COUNTIF(Event29!$D:$D, D114) + COUNTIF(Event30!$D:$D, D114) + COUNTIF(Event31!$D:$D, D114) + COUNTIF(Event32!$D:$D, D114) + COUNTIF(Event33!$D:$D, D114) + COUNTIF(Event34!$D:$D, D114) + COUNTIF(Event35!$D:$D, D114) + 0","v":1},{"$f":"INDEX(Dues!$D$6:$D$1000,MATCH(Home!$D114,Dues!$D$6:$D$1000, 0),)","v":"azs6047"}]
["Conor","Wilkinson","Sr","cgw5129",{"$f":"COUNTIF(Event1!$D:$D, D115) + COUNTIF(Event2!$D:$D, D115) + COUNTIF(Event3!$D:$D, D115) + COUNTIF(Event4!$D:$D, D115) + COUNTIF(Event5!$D:$D, D115) + COUNTIF(Event6!$D:$D, D115) + COUNTIF(Event7!$D:$D, D115) + COUNTIF(Event8!$D:$D, D115) + COUNTIF(Event9!$D:$D, D115) + COUNTIF(Event10!$D:$D, D115) + COUNTIF(Event11!$D:$D, D115) + COUNTIF(Event12!$D:$D, D115) + COUNTIF(Event13!$D:$D, D115) + COUNTIF(Event14!$D:$D, D115) + COUNTIF(Event15!$D:$D, D115) + COUNTIF(Event16!$D:$D, D115) + COUNTIF(Event17!$D:$D, D115) + COUNTIF(Event18!$D:$D, D115) + COUNTIF(Event19!$D:$D, D115) + COUNTIF(Event20!$D:$D, D115) + COUNTIF(Event21!$D:$D, D115) + COUNTIF(Event22!$D:$D, D115) + COUNTIF(Event23!$D:$D, D115) + COUNTIF(Event24!$D:$D, D115) + COUNTIF(Event25!$D:$D, D115) + COUNTIF(Event26!$D:$D, D115) + COUNTIF(Event27!$D:$D, D115) + COUNTIF(Event28!$D:$D, D115) + COUNTIF(Event29!$D:$D, D115) + COUNTIF(Event30!$D:$D, D115) + COUNTIF(Event31!$D:$D, D115) + COUNTIF(Event32!$D:$D, D115) + COUNTIF(Event33!$D:$D, D115) + COUNTIF(Event34!$D:$D, D115) + COUNTIF(Event35!$D:$D, D115) + 0","v":1},{"$f":"INDEX(Dues!$D$6:$D$1000,MATCH(Home!$D115,Dues!$D$6:$D$1000, 0),)","v":"cgw5129"}]
["Erin","Studdert","Fr","eqs5521",{"$f":"COUNTIF(Event1!$D:$D, D116) + COUNTIF(Event2!$D:$D, D116) + COUNTIF(Event3!$D:$D, D116) + COUNTIF(Event4!$D:$D, D116) + COUNTIF(Event5!$D:$D, D116) + COUNTIF(Event6!$D:$D, D116) + COUNTIF(Event7!$D:$D, D116) + COUNTIF(Event8!$D:$D, D116) + COUNTIF(Event9!$D:$D, D116) + COUNTIF(Event10!$D:$D, D116) + COUNTIF(Event11!$D:$D, D116) + COUNTIF(Event12!$D:$D, D116) + COUNTIF(Event13!$D:$D, D116) + COUNTIF(Event14!$D:$D, D116) + COUNTIF(Event15!$D:$D, D116) + COUNTIF(Event16!$D:$D, D116) + COUNTIF(Event17!$D:$D, D116) + COUNTIF(Event18!$D:$D, D116) + COUNTIF(Event19!$D:$D, D116) + COUNTIF(Event20!$D:$D, D116) + COUNTIF(Event21!$D:$D, D116) + COUNTIF(Event22!$D:$D, D116) + COUNTIF(Event23!$D:$D, D116) + COUNTIF(Event24!$D:$D, D116) + COUNTIF(Event25!$D:$D, D116) + COUNTIF(Event26!$D:$D, D116) + COUNTIF(Event27!$D:$D, D116) + COUNTIF(Event28!$D:$D, D116) + COUNTIF(Event29!$D:$D, D116) + COUNTIF(Event30!$D:$D, D116) + COUNTIF(Event31!$D:$D, D116) + COUNTIF(Event32!$D:$D, D116) + COUNTIF(Event33!$D:$D, D116) + COUNTIF(Event34!$D:$D, D116) + COUNTIF(Event35!$D:$D, D116) + 0","v":3},{"$f":"INDEX(Dues!$D$6:$D$1000,MATCH(Home!$D116,Dues!$D$6:$D$1000, 0),)","v":"eqs5521"}]
["Olivia","Dalby","Sr","opd5013",{"$f":"COUNTIF(Event1!$D:$D, D117) + COUNTIF(Event2!$D:$D, D117) + COUNTIF(Event3!$D:$D, D117) + COUNTIF(Event4!$D:$D, D117) + COUNTIF(Event5!$D:$D, D117) + COUNTIF(Event6!$D:$D, D117) + COUNTIF(Event7!$D:$D, D117) + COUNTIF(Event8!$D:$D, D117) + COUNTIF(Event9!$D:$D, D117) + COUNTIF(Event10!$D:$D, D117) + COUNTIF(Event11!$D:$D, D117) + COUNTIF(Event12!$D:$D, D117) + COUNTIF(Event13!$D:$D, D117) + COUNTIF(Event14!$D:$D, D117) + COUNTIF(Event15!$D:$D, D117) + COUNTIF(Event16!$D:$D, D117) + COUNTIF(Event17!$D:$D, D117) + COUNTIF(Event18!$D:$D, D117) + COUNTIF(Event19!$D:$D, D117) + COUNTIF(Event20!$D:$D, D117) + COUNTIF(Event21!$D:$D, D117) + COUNTIF(Event22!$D:$D, D117) + COUNTIF(Event23!$D:$D, D117) + COUNTIF(Event24!$D:$D, D117) + COUNTIF(Event25!$D:$D, D117) + COUNTIF(Event26!$D:$D, D117) + COUNTIF(Event27!$D:$D, D117) + COUNTIF(Event28!$D:$D, D117) + COUNTIF(Event29!$D:$D, D117) + COUNTIF(Event30!$D:$D, D117) + COUNTIF(Event31!$D:$D, D117) + COUNTIF(Event32!$D:$D, D117) + COUNTIF(Event33!$D:$D, D117) + COUNTIF(Event34!$D:$D, D117) + COUNTIF(Event35!$D:$D, D117) + 0","v":1},{"$f":"INDEX(Dues!$D$6:$D$1000,MATCH(Home!$D117,Dues!$D$6:$D$1000, 0),)","v":"opd5013"}]
["Maria ","Howe","So",null,{"$f":"COUNTIF(Event1!$D:$D, D118) + COUNTIF(Event2!$D:$D, D118) + COUNTIF(Event3!$D:$D, D118) + COUNTIF(Event4!$D:$D, D118) + COUNTIF(Event5!$D:$D, D118) + COUNTIF(Event6!$D:$D, D118) + COUNTIF(Event7!$D:$D, D118) + COUNTIF(Event8!$D:$D, D118) + COUNTIF(Event9!$D:$D, D118) + COUNTIF(Event10!$D:$D, D118) + COUNTIF(Event11!$D:$D, D118) + COUNTIF(Event12!$D:$D, D118) + COUNTIF(Event13!$D:$D, D118) + COUNTIF(Event14!$D:$D, D118) + COUNTIF(Event15!$D:$D, D118) + COUNTIF(Event16!$D:$D, D118) + COUNTIF(Event17!$D:$D, D118) + COUNTIF(Event18!$D:$D, D118) + COUNTIF(Event19!$D:$D, D118) + COUNTIF(Event20!$D:$D, D118) + COUNTIF(Event21!$D:$D, D118) + COUNTIF(Event22!$D:$D, D118) + COUNTIF(Event23!$D:$D, D118) + COUNTIF(Event24!$D:$D, D118) + COUNTIF(Event25!$D:$D, D118) + COUNTIF(Event26!$D:$D, D118) + COUNTIF(Event27!$D:$D, D118) + COUNTIF(Event28!$D:$D, D118) + COUNTIF(Event29!$D:$D, D118) + COUNTIF(Event30!$D:$D, D118) + COUNTIF(Event31!$D:$D, D118) + COUNTIF(Event32!$D:$D, D118) + COUNTIF(Event33!$D:$D, D118) + COUNTIF(Event34!$D:$D, D118) + COUNTIF(Event35!$D:$D, D118) + 0","v":0},{"$f":"INDEX(Dues!$D$6:$D$1000,MATCH(Home!$D118,Dues!$D$6:$D$1000, 0),)","v":{"$error":"#N/A"}}]
["Nick ","Sawtelle","Fr","nes721",{"$f":"COUNTIF(Event1!$D:$D, D119) + COUNTIF(Event2!$D:$D, D119) + COUNTIF(Event3!$D:$D, D119) + COUNTIF(Event4!$D:$D, D119) + COUNTIF(Event5!$D:$D, D119) + COUNTIF(Event6!$D:$D, D119) + COUNTIF(Event7!$D:$D, D119) + COUNTIF(Event8!$D:$D, D119) + COUNTIF(Event9!$D:$D, D119) + COUNTIF(Event10!$D:$D, D119) + COUNTIF(Event11!$D:$D, D119) + COUNTIF(Event12!$D:$D, D119) + COUNTIF(Event13!$D:$D, D119) + COUNTIF(Event14!$D:$D, D119) + COUNTIF(Event15!$D:$D, D119) + COUNTIF(Event16!$D:$D, D119) + COUNTIF(Event17!$D:$D, D119) + COUNTIF(Event18!$D:$D, D119) + COUNTIF(Event19!$D:$D, D119) + COUNTIF(Event20!$D:$D, D119) + COUNTIF(Event21!$D:$D, D119) + COUNTIF(Event22!$D:$D, D119) + COUNTIF(Event23!$D:$D, D119) + COUNTIF(Event24!$D:$D, D119) + COUNTIF(Event25!$D:$D, D119) + COUNTIF(Event26!$D:$D, D119) + COUNTIF(Event27!$D:$D, D119) + COUNTIF(Event28!$D:$D, D119) + COUNTIF(Event29!$D:$D, D119) + COUNTIF(Event30!$D:$D, D119) + COUNTIF(Event31!$D:$D, D119) + COUNTIF(Event32!$D:$D, D119) + COUNTIF(Event33!$D:$D, D119) + COUNTIF(Event34!$D:$D, D119) + COUNTIF(Event35!$D:$D, D119) + 0","v":1},{"$f":"INDEX(Dues!$D$6:$D$1000,MATCH(Home!$D119,Dues!$D$6:$D$1000, 0),)","v":{"$error":"#N/A"}}]
["David","Turonis","Fr","dft5163",{"$f":"COUNTIF(Event1!$D:$D, D120) + COUNTIF(Event2!$D:$D, D120) + COUNTIF(Event3!$D:$D, D120) + COUNTIF(Event4!$D:$D, D120) + COUNTIF(Event5!$D:$D, D120) + COUNTIF(Event6!$D:$D, D120) + COUNTIF(Event7!$D:$D, D120) + COUNTIF(Event8!$D:$D, D120) + COUNTIF(Event9!$D:$D, D120) + COUNTIF(Event10!$D:$D, D120) + COUNTIF(Event11!$D:$D, D120) + COUNTIF(Event12!$D:$D, D120) + COUNTIF(Event13!$D:$D, D120) + COUNTIF(Event14!$D:$D, D120) + COUNTIF(Event15!$D:$D, D120) + COUNTIF(Event16!$D:$D, D120) + COUNTIF(Event17!$D:$D, D120) + COUNTIF(Event18!$D:$D, D120) + COUNTIF(Event19!$D:$D, D120) + COUNTIF(Event20!$D:$D, D120) + COUNTIF(Event21!$D:$D, D120) + COUNTIF(Event22!$D:$D, D120) + COUNTIF(Event23!$D:$D, D120) + COUNTIF(Event24!$D:$D, D120) + COUNTIF(Event25!$D:$D, D120) + COUNTIF(Event26!$D:$D, D120) + COUNTIF(Event27!$D:$D, D120) + COUNTIF(Event28!$D:$D, D120) + COUNTIF(Event29!$D:$D, D120) + COUNTIF(Event30!$D:$D, D120) + COUNTIF(Event31!$D:$D, D120) + COUNTIF(Event32!$D:$D, D120) + COUNTIF(Event33!$D:$D, D120) + COUNTIF(Event34!$D:$D, D120) + COUNTIF(Event35!$D:$D, D120) + 0","v":3},{"$f":"INDEX(Dues!$D$6:$D$1000,MATCH(Home!$D120,Dues!$D$6:$D$1000, 0),)","v":"dft5163"}]
["Rachel ","Weber","Sr","rhw5080",{"$f":"COUNTIF(Event1!$D:$D, D121) + COUNTIF(Event2!$D:$D, D121) + COUNTIF(Event3!$D:$D, D121) + COUNTIF(Event4!$D:$D, D121) + COUNTIF(Event5!$D:$D, D121) + COUNTIF(Event6!$D:$D, D121) + COUNTIF(Event7!$D:$D, D121) + COUNTIF(Event8!$D:$D, D121) + COUNTIF(Event9!$D:$D, D121) + COUNTIF(Event10!$D:$D, D121) + COUNTIF(Event11!$D:$D, D121) + COUNTIF(Event12!$D:$D, D121) + COUNTIF(Event13!$D:$D, D121) + COUNTIF(Event14!$D:$D, D121) + COUNTIF(Event15!$D:$D, D121) + COUNTIF(Event16!$D:$D, D121) + COUNTIF(Event17!$D:$D, D121) + COUNTIF(Event18!$D:$D, D121) + COUNTIF(Event19!$D:$D, D121) + COUNTIF(Event20!$D:$D, D121) + COUNTIF(Event21!$D:$D, D121) + COUNTIF(Event22!$D:$D, D121) + COUNTIF(Event23!$D:$D, D121) + COUNTIF(Event24!$D:$D, D121) + COUNTIF(Event25!$D:$D, D121) + COUNTIF(Event26!$D:$D, D121) + COUNTIF(Event27!$D:$D, D121) + COUNTIF(Event28!$D:$D, D121) + COUNTIF(Event29!$D:$D, D121) + COUNTIF(Event30!$D:$D, D121) + COUNTIF(Event31!$D:$D, D121) + COUNTIF(Event32!$D:$D, D121) + COUNTIF(Event33!$D:$D, D121) + COUNTIF(Event34!$D:$D, D121) + COUNTIF(Event35!$D:$D, D121) + 0","v":3},{"$f":"INDEX(Dues!$D$6:$D$1000,MATCH(Home!$D121,Dues!$D$6:$D$1000, 0),)","v":"rhw5080"}]
["Xinchen","Yuan","Jr","xpy5054@psu.edu",{"$f":"COUNTIF(Event1!$D:$D, D122) + COUNTIF(Event2!$D:$D, D122) + COUNTIF(Event3!$D:$D, D122) + COUNTIF(Event4!$D:$D, D122) + COUNTIF(Event5!$D:$D, D122) + COUNTIF(Event6!$D:$D, D122) + COUNTIF(Event7!$D:$D, D122) + COUNTIF(Event8!$D:$D, D122) + COUNTIF(Event9!$D:$D, D122) + COUNTIF(Event10!$D:$D, D122) + COUNTIF(Event11!$D:$D, D122) + COUNTIF(Event12!$D:$D, D122) + COUNTIF(Event13!$D:$D, D122) + COUNTIF(Event14!$D:$D, D122) + COUNTIF(Event15!$D:$D, D122) + COUNTIF(Event16!$D:$D, D122) + COUNTIF(Event17!$D:$D, D122) + COUNTIF(Event18!$D:$D, D122) + COUNTIF(Event19!$D:$D, D122) + COUNTIF(Event20!$D:$D, D122) + COUNTIF(Event21!$D:$D, D122) + COUNTIF(Event22!$D:$D, D122) + COUNTIF(Event23!$D:$D, D122) + COUNTIF(Event24!$D:$D, D122) + COUNTIF(Event25!$D:$D, D122) + COUNTIF(Event26!$D:$D, D122) + COUNTIF(Event27!$D:$D, D122) + COUNTIF(Event28!$D:$D, D122) + COUNTIF(Event29!$D:$D, D122) + COUNTIF(Event30!$D:$D, D122) + COUNTIF(Event31!$D:$D, D122) + COUNTIF(Event32!$D:$D, D122) + COUNTIF(Event33!$D:$D, D122) + COUNTIF(Event34!$D:$D, D122) + COUNTIF(Event35!$D:$D, D122) + 0","v":1},{"$f":"INDEX(Dues!$D$6:$D$1000,MATCH(Home!$D122,Dues!$D$6:$D$1000, 0),)","v":{"$error":"#N/A"}}]
["Zhiyang","Liang","So","zfl5166@psu.edu",{"$f":"COUNTIF(Event1!$D:$D, D123) + COUNTIF(Event2!$D:$D, D123) + COUNTIF(Event3!$D:$D, D123) + COUNTIF(Event4!$D:$D, D123) + COUNTIF(Event5!$D:$D, D123) + COUNTIF(Event6!$D:$D, D123) + COUNTIF(Event7!$D:$D, D123) + COUNTIF(Event8!$D:$D, D123) + COUNTIF(Event9!$D:$D, D123) + COUNTIF(Event10!$D:$D, D123) + COUNTIF(Event11!$D:$D, D123) + COUNTIF(Event12!$D:$D, D123) + COUNTIF(Event13!$D:$D, D123) + COUNTIF(Event14!$D:$D, D123) + COUNTIF(Event15!$D:$D, D123) + COUNTIF(Event16!$D:$D, D123) + COUNTIF(Event17!$D:$D, D123) + COUNTIF(Event18!$D:$D, D123) + COUNTIF(Event19!$D:$D, D123) + COUNTIF(Event20!$D:$D, D123) + COUNTIF(Event21!$D:$D, D123) + COUNTIF(Event22!$D:$D, D123) + COUNTIF(Event23!$D:$D, D123) + COUNTIF(Event24!$D:$D, D123) + COUNTIF(Event25!$D:$D, D123) + COUNTIF(Event26!$D:$D, D123) + COUNTIF(Event27!$D:$D, D123) + COUNTIF(Event28!$D:$D, D123) + COUNTIF(Event29!$D:$D, D123) + COUNTIF(Event30!$D:$D, D123) + COUNTIF(Event31!$D:$D, D123) + COUNTIF(Event32!$D:$D, D123) + COUNTIF(Event33!$D:$D, D123) + COUNTIF(Event34!$D:$D, D123) + COUNTIF(Event35!$D:$D, D123) + 0","v":1},{"$f":"INDEX(Dues!$D$6:$D$1000,MATCH(Home!$D123,Dues!$D$6:$D$1000, 0),)","v":{"$error":"#N/A"}}]
["Ahmed ","AlJaberi","Fr","ama7410@psu.edu",{"$f":"COUNTIF(Event1!$D:$D, D124) + COUNTIF(Event2!$D:$D, D124) + COUNTIF(Event3!$D:$D, D124) + COUNTIF(Event4!$D:$D, D124) + COUNTIF(Event5!$D:$D, D124) + COUNTIF(Event6!$D:$D, D124) + COUNTIF(Event7!$D:$D, D124) + COUNTIF(Event8!$D:$D, D124) + COUNTIF(Event9!$D:$D, D124) + COUNTIF(Event10!$D:$D, D124) + COUNTIF(Event11!$D:$D, D124) + COUNTIF(Event12!$D:$D, D124) + COUNTIF(Event13!$D:$D, D124) + COUNTIF(Event14!$D:$D, D124) + COUNTIF(Event15!$D:$D, D124) + COUNTIF(Event16!$D:$D, D124) + COUNTIF(Event17!$D:$D, D124) + COUNTIF(Event18!$D:$D, D124) + COUNTIF(Event19!$D:$D, D124) + COUNTIF(Event20!$D:$D, D124) + COUNTIF(Event21!$D:$D, D124) + COUNTIF(Event22!$D:$D, D124) + COUNTIF(Event23!$D:$D, D124) + COUNTIF(Event24!$D:$D, D124) + COUNTIF(Event25!$D:$D, D124) + COUNTIF(Event26!$D:$D, D124) + COUNTIF(Event27!$D:$D, D124) + COUNTIF(Event28!$D:$D, D124) + COUNTIF(Event29!$D:$D, D124) + COUNTIF(Event30!$D:$D, D124) + COUNTIF(Event31!$D:$D, D124) + COUNTIF(Event32!$D:$D, D124) + COUNTIF(Event33!$D:$D, D124) + COUNTIF(Event34!$D:$D, D124) + COUNTIF(Event35!$D:$D, D124) + 0","v":1},{"$f":"INDEX(Dues!$D$6:$D$1000,MATCH(Home!$D124,Dues!$D$6:$D$1000, 0),)","v":{"$error":"#N/A"}}]
["Haozheng","Chen","Jr","hjc5263@psu.edu",{"$f":"COUNTIF(Event1!$D:$D, D125) + COUNTIF(Event2!$D:$D, D125) + COUNTIF(Event3!$D:$D, D125) + COUNTIF(Event4!$D:$D, D125) + COUNTIF(Event5!$D:$D, D125) + COUNTIF(Event6!$D:$D, D125) + COUNTIF(Event7!$D:$D, D125) + COUNTIF(Event8!$D:$D, D125) + COUNTIF(Event9!$D:$D, D125) + COUNTIF(Event10!$D:$D, D125) + COUNTIF(Event11!$D:$D, D125) + COUNTIF(Event12!$D:$D, D125) + COUNTIF(Event13!$D:$D, D125) + COUNTIF(Event14!$D:$D, D125) + COUNTIF(Event15!$D:$D, D125) + COUNTIF(Event16!$D:$D, D125) + COUNTIF(Event17!$D:$D, D125) + COUNTIF(Event18!$D:$D, D125) + COUNTIF(Event19!$D:$D, D125) + COUNTIF(Event20!$D:$D, D125) + COUNTIF(Event21!$D:$D, D125) + COUNTIF(Event22!$D:$D, D125) + COUNTIF(Event23!$D:$D, D125) + COUNTIF(Event24!$D:$D, D125) + COUNTIF(Event25!$D:$D, D125) + COUNTIF(Event26!$D:$D, D125) + COUNTIF(Event27!$D:$D, D125) + COUNTIF(Event28!$D:$D, D125) + COUNTIF(Event29!$D:$D, D125) + COUNTIF(Event30!$D:$D, D125) + COUNTIF(Event31!$D:$D, D125) + COUNTIF(Event32!$D:$D, D125) + COUNTIF(Event33!$D:$D, D125) + COUNTIF(Event34!$D:$D, D125) + COUNTIF(Event35!$D:$D, D125) + 0","v":1},{"$f":"INDEX(Dues!$D$6:$D$1000,MATCH(Home!$D125,Dues!$D$6:$D$1000, 0),)","v":{"$error":"#N/A"}}]
["Longhao ","Yang","Jr","lky5069@psu.edu",{"$f":"COUNTIF(Event1!$D:$D, D126) + COUNTIF(Event2!$D:$D, D126) + COUNTIF(Event3!$D:$D, D126) + COUNTIF(Event4!$D:$D, D126) + COUNTIF(Event5!$D:$D, D126) + COUNTIF(Event6!$D:$D, D126) + COUNTIF(Event7!$D:$D, D126) + COUNTIF(Event8!$D:$D, D126) + COUNTIF(Event9!$D:$D, D126) + COUNTIF(Event10!$D:$D, D126) + COUNTIF(Event11!$D:$D, D126) + COUNTIF(Event12!$D:$D, D126) + COUNTIF(Event13!$D:$D, D126) + COUNTIF(Event14!$D:$D, D126) + COUNTIF(Event15!$D:$D, D126) + COUNTIF(Event16!$D:$D, D126) + COUNTIF(Event17!$D:$D, D126) + COUNTIF(Event18!$D:$D, D126) + COUNTIF(Event19!$D:$D, D126) + COUNTIF(Event20!$D:$D, D126) + COUNTIF(Event21!$D:$D, D126) + COUNTIF(Event22!$D:$D, D126) + COUNTIF(Event23!$D:$D, D126) + COUNTIF(Event24!$D:$D, D126) + COUNTIF(Event25!$D:$D, D126) + COUNTIF(Event26!$D:$D, D126) + COUNTIF(Event27!$D:$D, D126) + COUNTIF(Event28!$D:$D, D126) + COUNTIF(Event29!$D:$D, D126) + COUNTIF(Event30!$D:$D, D126) + COUNTIF(Event31!$D:$D, D126) + COUNTIF(Event32!$D:$D, D126) + COUNTIF(Event33!$D:$D, D126) + COUNTIF(Event34!$D:$D, D126) + COUNTIF(Event35!$D:$D, D126) + 0","v":1},{"$f":"INDEX(Dues!$D$6:$D$1000,MATCH(Home!$D126,Dues!$D$6:$D$1000, 0),)","v":{"$error":"#N/A"}}]
["Hanlin","Wang","Jr","hjw5133@psu.edu",{"$f":"COUNTIF(Event1!$D:$D, D127) + COUNTIF(Event2!$D:$D, D127) + COUNTIF(Event3!$D:$D, D127) + COUNTIF(Event4!$D:$D, D127) + COUNTIF(Event5!$D:$D, D127) + COUNTIF(Event6!$D:$D, D127) + COUNTIF(Event7!$D:$D, D127) + COUNTIF(Event8!$D:$D, D127) + COUNTIF(Event9!$D:$D, D127) + COUNTIF(Event10!$D:$D, D127) + COUNTIF(Event11!$D:$D, D127) + COUNTIF(Event12!$D:$D, D127) + COUNTIF(Event13!$D:$D, D127) + COUNTIF(Event14!$D:$D, D127) + COUNTIF(Event15!$D:$D, D127) + COUNTIF(Event16!$D:$D, D127) + COUNTIF(Event17!$D:$D, D127) + COUNTIF(Event18!$D:$D, D127) + COUNTIF(Event19!$D:$D, D127) + COUNTIF(Event20!$D:$D, D127) + COUNTIF(Event21!$D:$D, D127) + COUNTIF(Event22!$D:$D, D127) + COUNTIF(Event23!$D:$D, D127) + COUNTIF(Event24!$D:$D, D127) + COUNTIF(Event25!$D:$D, D127) + COUNTIF(Event26!$D:$D, D127) + COUNTIF(Event27!$D:$D, D127) + COUNTIF(Event28!$D:$D, D127) + COUNTIF(Event29!$D:$D, D127) + COUNTIF(Event30!$D:$D, D127) + COUNTIF(Event31!$D:$D, D127) + COUNTIF(Event32!$D:$D, D127) + COUNTIF(Event33!$D:$D, D127) + COUNTIF(Event34!$D:$D, D127) + COUNTIF(Event35!$D:$D, D127) + 0","v":1},{"$f":"INDEX(Dues!$D$6:$D$1000,MATCH(Home!$D127,Dues!$D$6:$D$1000, 0),)","v":{"$error":"#N/A"}}]
["Hanlin","Zhang",null,"hbz5102@psu.edu",{"$f":"COUNTIF(Event1!$D:$D, D128) + COUNTIF(Event2!$D:$D, D128) + COUNTIF(Event3!$D:$D, D128) + COUNTIF(Event4!$D:$D, D128) + COUNTIF(Event5!$D:$D, D128) + COUNTIF(Event6!$D:$D, D128) + COUNTIF(Event7!$D:$D, D128) + COUNTIF(Event8!$D:$D, D128) + COUNTIF(Event9!$D:$D, D128) + COUNTIF(Event10!$D:$D, D128) + COUNTIF(Event11!$D:$D, D128) + COUNTIF(Event12!$D:$D, D128) + COUNTIF(Event13!$D:$D, D128) + COUNTIF(Event14!$D:$D, D128) + COUNTIF(Event15!$D:$D, D128) + COUNTIF(Event16!$D:$D, D128) + COUNTIF(Event17!$D:$D, D128) + COUNTIF(Event18!$D:$D, D128) + COUNTIF(Event19!$D:$D, D128) + COUNTIF(Event20!$D:$D, D128) + COUNTIF(Event21!$D:$D, D128) + COUNTIF(Event22!$D:$D, D128) + COUNTIF(Event23!$D:$D, D128) + COUNTIF(Event24!$D:$D, D128) + COUNTIF(Event25!$D:$D, D128) + COUNTIF(Event26!$D:$D, D128) + COUNTIF(Event27!$D:$D, D128) + COUNTIF(Event28!$D:$D, D128) + COUNTIF(Event29!$D:$D, D128) + COUNTIF(Event30!$D:$D, D128) + COUNTIF(Event31!$D:$D, D128) + COUNTIF(Event32!$D:$D, D128) + COUNTIF(Event33!$D:$D, D128) + COUNTIF(Event34!$D:$D, D128) + COUNTIF(Event35!$D:$D, D128) + 0","v":1},{"$f":"INDEX(Dues!$D$6:$D$1000,MATCH(Home!$D128,Dues!$D$6:$D$1000, 0),)","v":{"$error":"#N/A"}}]
["Zhi","Li","Jr","zzl5300@psu.edu",{"$f":"COUNTIF(Event1!$D:$D, D129) + COUNTIF(Event2!$D:$D, D129) + COUNTIF(Event3!$D:$D, D129) + COUNTIF(Event4!$D:$D, D129) + COUNTIF(Event5!$D:$D, D129) + COUNTIF(Event6!$D:$D, D129) + COUNTIF(Event7!$D:$D, D129) + COUNTIF(Event8!$D:$D, D129) + COUNTIF(Event9!$D:$D, D129) + COUNTIF(Event10!$D:$D, D129) + COUNTIF(Event11!$D:$D, D129) + COUNTIF(Event12!$D:$D, D129) + COUNTIF(Event13!$D:$D, D129) + COUNTIF(Event14!$D:$D, D129) + COUNTIF(Event15!$D:$D, D129) + COUNTIF(Event16!$D:$D, D129) + COUNTIF(Event17!$D:$D, D129) + COUNTIF(Event18!$D:$D, D129) + COUNTIF(Event19!$D:$D, D129) + COUNTIF(Event20!$D:$D, D129) + COUNTIF(Event21!$D:$D, D129) + COUNTIF(Event22!$D:$D, D129) + COUNTIF(Event23!$D:$D, D129) + COUNTIF(Event24!$D:$D, D129) + COUNTIF(Event25!$D:$D, D129) + COUNTIF(Event26!$D:$D, D129) + COUNTIF(Event27!$D:$D, D129) + COUNTIF(Event28!$D:$D, D129) + COUNTIF(Event29!$D:$D, D129) + COUNTIF(Event30!$D:$D, D129) + COUNTIF(Event31!$D:$D, D129) + COUNTIF(Event32!$D:$D, D129) + COUNTIF(Event33!$D:$D, D129) + COUNTIF(Event34!$D:$D, D129) + COUNTIF(Event35!$D:$D, D129) + 0","v":1},{"$f":"INDEX(Dues!$D$6:$D$1000,MATCH(Home!$D129,Dues!$D$6:$D$1000, 0),)","v":{"$error":"#N/A"}}]
["Elysia ","Liu","Sr","yxl482@psu.edu",{"$f":"COUNTIF(Event1!$D:$D, D130) + COUNTIF(Event2!$D:$D, D130) + COUNTIF(Event3!$D:$D, D130) + COUNTIF(Event4!$D:$D, D130) + COUNTIF(Event5!$D:$D, D130) + COUNTIF(Event6!$D:$D, D130) + COUNTIF(Event7!$D:$D, D130) + COUNTIF(Event8!$D:$D, D130) + COUNTIF(Event9!$D:$D, D130) + COUNTIF(Event10!$D:$D, D130) + COUNTIF(Event11!$D:$D, D130) + COUNTIF(Event12!$D:$D, D130) + COUNTIF(Event13!$D:$D, D130) + COUNTIF(Event14!$D:$D, D130) + COUNTIF(Event15!$D:$D, D130) + COUNTIF(Event16!$D:$D, D130) + COUNTIF(Event17!$D:$D, D130) + COUNTIF(Event18!$D:$D, D130) + COUNTIF(Event19!$D:$D, D130) + COUNTIF(Event20!$D:$D, D130) + COUNTIF(Event21!$D:$D, D130) + COUNTIF(Event22!$D:$D, D130) + COUNTIF(Event23!$D:$D, D130) + COUNTIF(Event24!$D:$D, D130) + COUNTIF(Event25!$D:$D, D130) + COUNTIF(Event26!$D:$D, D130) + COUNTIF(Event27!$D:$D, D130) + COUNTIF(Event28!$D:$D, D130) + COUNTIF(Event29!$D:$D, D130) + COUNTIF(Event30!$D:$D, D130) + COUNTIF(Event31!$D:$D, D130) + COUNTIF(Event32!$D:$D, D130) + COUNTIF(Event33!$D:$D, D130) + COUNTIF(Event34!$D:$D, D130) + COUNTIF(Event35!$D:$D, D130) + 0","v":1},{"$f":"INDEX(Dues!$D$6:$D$1000,MATCH(Home!$D130,Dues!$D$6:$D$1000, 0),)","v":{"$error":"#N/A"}}]
["Nicholas","Mirandi ","So","nxm5386",{"$f":"COUNTIF(Event1!$D:$D, D131) + COUNTIF(Event2!$D:$D, D131) + COUNTIF(Event3!$D:$D, D131) + COUNTIF(Event4!$D:$D, D131) + COUNTIF(Event5!$D:$D, D131) + COUNTIF(Event6!$D:$D, D131) + COUNTIF(Event7!$D:$D, D131) + COUNTIF(Event8!$D:$D, D131) + COUNTIF(Event9!$D:$D, D131) + COUNTIF(Event10!$D:$D, D131) + COUNTIF(Event11!$D:$D, D131) + COUNTIF(Event12!$D:$D, D131) + COUNTIF(Event13!$D:$D, D131) + COUNTIF(Event14!$D:$D, D131) + COUNTIF(Event15!$D:$D, D131) + COUNTIF(Event16!$D:$D, D131) + COUNTIF(Event17!$D:$D, D131) + COUNTIF(Event18!$D:$D, D131) + COUNTIF(Event19!$D:$D, D131) + COUNTIF(Event20!$D:$D, D131) + COUNTIF(Event21!$D:$D, D131) + COUNTIF(Event22!$D:$D, D131) + COUNTIF(Event23!$D:$D, D131) + COUNTIF(Event24!$D:$D, D131) + COUNTIF(Event25!$D:$D, D131) + COUNTIF(Event26!$D:$D, D131) + COUNTIF(Event27!$D:$D, D131) + COUNTIF(Event28!$D:$D, D131) + COUNTIF(Event29!$D:$D, D131) + COUNTIF(Event30!$D:$D, D131) + COUNTIF(Event31!$D:$D, D131) + COUNTIF(Event32!$D:$D, D131) + COUNTIF(Event33!$D:$D, D131) + COUNTIF(Event34!$D:$D, D131) + COUNTIF(Event35!$D:$D, D131) + 0","v":1},{"$f":"INDEX(Dues!$D$6:$D$1000,MATCH(Home!$D131,Dues!$D$6:$D$1000, 0),)","v":"nxm5386"}]
["J.P.","Grattan","Fr","jqg5723",{"$f":"COUNTIF(Event1!$D:$D, D132) + COUNTIF(Event2!$D:$D, D132) + COUNTIF(Event3!$D:$D, D132) + COUNTIF(Event4!$D:$D, D132) + COUNTIF(Event5!$D:$D, D132) + COUNTIF(Event6!$D:$D, D132) + COUNTIF(Event7!$D:$D, D132) + COUNTIF(Event8!$D:$D, D132) + COUNTIF(Event9!$D:$D, D132) + COUNTIF(Event10!$D:$D, D132) + COUNTIF(Event11!$D:$D, D132) + COUNTIF(Event12!$D:$D, D132) + COUNTIF(Event13!$D:$D, D132) + COUNTIF(Event14!$D:$D, D132) + COUNTIF(Event15!$D:$D, D132) + COUNTIF(Event16!$D:$D, D132) + COUNTIF(Event17!$D:$D, D132) + COUNTIF(Event18!$D:$D, D132) + COUNTIF(Event19!$D:$D, D132) + COUNTIF(Event20!$D:$D, D132) + COUNTIF(Event21!$D:$D, D132) + COUNTIF(Event22!$D:$D, D132) + COUNTIF(Event23!$D:$D, D132) + COUNTIF(Event24!$D:$D, D132) + COUNTIF(Event25!$D:$D, D132) + COUNTIF(Event26!$D:$D, D132) + COUNTIF(Event27!$D:$D, D132) + COUNTIF(Event28!$D:$D, D132) + COUNTIF(Event29!$D:$D, D132) + COUNTIF(Event30!$D:$D, D132) + COUNTIF(Event31!$D:$D, D132) + COUNTIF(Event32!$D:$D, D132) + COUNTIF(Event33!$D:$D, D132) + COUNTIF(Event34!$D:$D, D132) + COUNTIF(Event35!$D:$D, D132) + 0","v":4},{"$f":"INDEX(Dues!$D$6:$D$1000,MATCH(Home!$D132,Dues!$D$6:$D$1000, 0),)","v":"jqg5723"}]
["Adie","Ramirez ","Fr","Acr5597",{"$f":"COUNTIF(Event1!$D:$D, D133) + COUNTIF(Event2!$D:$D, D133) + COUNTIF(Event3!$D:$D, D133) + COUNTIF(Event4!$D:$D, D133) + COUNTIF(Event5!$D:$D, D133) + COUNTIF(Event6!$D:$D, D133) + COUNTIF(Event7!$D:$D, D133) + COUNTIF(Event8!$D:$D, D133) + COUNTIF(Event9!$D:$D, D133) + COUNTIF(Event10!$D:$D, D133) + COUNTIF(Event11!$D:$D, D133) + COUNTIF(Event12!$D:$D, D133) + COUNTIF(Event13!$D:$D, D133) + COUNTIF(Event14!$D:$D, D133) + COUNTIF(Event15!$D:$D, D133) + COUNTIF(Event16!$D:$D, D133) + COUNTIF(Event17!$D:$D, D133) + COUNTIF(Event18!$D:$D, D133) + COUNTIF(Event19!$D:$D, D133) + COUNTIF(Event20!$D:$D, D133) + COUNTIF(Event21!$D:$D, D133) + COUNTIF(Event22!$D:$D, D133) + COUNTIF(Event23!$D:$D, D133) + COUNTIF(Event24!$D:$D, D133) + COUNTIF(Event25!$D:$D, D133) + COUNTIF(Event26!$D:$D, D133) + COUNTIF(Event27!$D:$D, D133) + COUNTIF(Event28!$D:$D, D133) + COUNTIF(Event29!$D:$D, D133) + COUNTIF(Event30!$D:$D, D133) + COUNTIF(Event31!$D:$D, D133) + COUNTIF(Event32!$D:$D, D133) + COUNTIF(Event33!$D:$D, D133) + COUNTIF(Event34!$D:$D, D133) + COUNTIF(Event35!$D:$D, D133) + 0","v":5},{"$f":"INDEX(Dues!$D$6:$D$1000,MATCH(Home!$D133,Dues!$D$6:$D$1000, 0),)","v":"acr5597"}]
["Michael","Secosky","Fr","mvs6517",{"$f":"COUNTIF(Event1!$D:$D, D134) + COUNTIF(Event2!$D:$D, D134) + COUNTIF(Event3!$D:$D, D134) + COUNTIF(Event4!$D:$D, D134) + COUNTIF(Event5!$D:$D, D134) + COUNTIF(Event6!$D:$D, D134) + COUNTIF(Event7!$D:$D, D134) + COUNTIF(Event8!$D:$D, D134) + COUNTIF(Event9!$D:$D, D134) + COUNTIF(Event10!$D:$D, D134) + COUNTIF(Event11!$D:$D, D134) + COUNTIF(Event12!$D:$D, D134) + COUNTIF(Event13!$D:$D, D134) + COUNTIF(Event14!$D:$D, D134) + COUNTIF(Event15!$D:$D, D134) + COUNTIF(Event16!$D:$D, D134) + COUNTIF(Event17!$D:$D, D134) + COUNTIF(Event18!$D:$D, D134) + COUNTIF(Event19!$D:$D, D134) + COUNTIF(Event20!$D:$D, D134) + COUNTIF(Event21!$D:$D, D134) + COUNTIF(Event22!$D:$D, D134) + COUNTIF(Event23!$D:$D, D134) + COUNTIF(Event24!$D:$D, D134) + COUNTIF(Event25!$D:$D, D134) + COUNTIF(Event26!$D:$D, D134) + COUNTIF(Event27!$D:$D, D134) + COUNTIF(Event28!$D:$D, D134) + COUNTIF(Event29!$D:$D, D134) + COUNTIF(Event30!$D:$D, D134) + COUNTIF(Event31!$D:$D, D134) + COUNTIF(Event32!$D:$D, D134) + COUNTIF(Event33!$D:$D, D134) + COUNTIF(Event34!$D:$D, D134) + COUNTIF(Event35!$D:$D, D134) + 0","v":2},{"$f":"INDEX(Dues!$D$6:$D$1000,MATCH(Home!$D134,Dues!$D$6:$D$1000, 0),)","v":"mvs6517"}]
["Joseph","Stuart","Fr","Jss5980",{"$f":"COUNTIF(Event1!$D:$D, D135) + COUNTIF(Event2!$D:$D, D135) + COUNTIF(Event3!$D:$D, D135) + COUNTIF(Event4!$D:$D, D135) + COUNTIF(Event5!$D:$D, D135) + COUNTIF(Event6!$D:$D, D135) + COUNTIF(Event7!$D:$D, D135) + COUNTIF(Event8!$D:$D, D135) + COUNTIF(Event9!$D:$D, D135) + COUNTIF(Event10!$D:$D, D135) + COUNTIF(Event11!$D:$D, D135) + COUNTIF(Event12!$D:$D, D135) + COUNTIF(Event13!$D:$D, D135) + COUNTIF(Event14!$D:$D, D135) + COUNTIF(Event15!$D:$D, D135) + COUNTIF(Event16!$D:$D, D135) + COUNTIF(Event17!$D:$D, D135) + COUNTIF(Event18!$D:$D, D135) + COUNTIF(Event19!$D:$D, D135) + COUNTIF(Event20!$D:$D, D135) + COUNTIF(Event21!$D:$D, D135) + COUNTIF(Event22!$D:$D, D135) + COUNTIF(Event23!$D:$D, D135) + COUNTIF(Event24!$D:$D, D135) + COUNTIF(Event25!$D:$D, D135) + COUNTIF(Event26!$D:$D, D135) + COUNTIF(Event27!$D:$D, D135) + COUNTIF(Event28!$D:$D, D135) + COUNTIF(Event29!$D:$D, D135) + COUNTIF(Event30!$D:$D, D135) + COUNTIF(Event31!$D:$D, D135) + COUNTIF(Event32!$D:$D, D135) + COUNTIF(Event33!$D:$D, D135) + COUNTIF(Event34!$D:$D, D135) + COUNTIF(Event35!$D:$D, D135) + 0","v":1},{"$f":"INDEX(Dues!$D$6:$D$1000,MATCH(Home!$D135,Dues!$D$6:$D$1000, 0),)","v":{"$error":"#N/A"}}]
["Vince","Melchiorre","So","vzm35",{"$f":"COUNTIF(Event1!$D:$D, D136) + COUNTIF(Event2!$D:$D, D136) + COUNTIF(Event3!$D:$D, D136) + COUNTIF(Event4!$D:$D, D136) + COUNTIF(Event5!$D:$D, D136) + COUNTIF(Event6!$D:$D, D136) + COUNTIF(Event7!$D:$D, D136) + COUNTIF(Event8!$D:$D, D136) + COUNTIF(Event9!$D:$D, D136) + COUNTIF(Event10!$D:$D, D136) + COUNTIF(Event11!$D:$D, D136) + COUNTIF(Event12!$D:$D, D136) + COUNTIF(Event13!$D:$D, D136) + COUNTIF(Event14!$D:$D, D136) + COUNTIF(Event15!$D:$D, D136) + COUNTIF(Event16!$D:$D, D136) + COUNTIF(Event17!$D:$D, D136) + COUNTIF(Event18!$D:$D, D136) + COUNTIF(Event19!$D:$D, D136) + COUNTIF(Event20!$D:$D, D136) + COUNTIF(Event21!$D:$D, D136) + COUNTIF(Event22!$D:$D, D136) + COUNTIF(Event23!$D:$D, D136) + COUNTIF(Event24!$D:$D, D136) + COUNTIF(Event25!$D:$D, D136) + COUNTIF(Event26!$D:$D, D136) + COUNTIF(Event27!$D:$D, D136) + COUNTIF(Event28!$D:$D, D136) + COUNTIF(Event29!$D:$D, D136) + COUNTIF(Event30!$D:$D, D136) + COUNTIF(Event31!$D:$D, D136) + COUNTIF(Event32!$D:$D, D136) + COUNTIF(Event33!$D:$D, D136) + COUNTIF(Event34!$D:$D, D136) + COUNTIF(Event35!$D:$D, D136) + 0","v":1},{"$f":"INDEX(Dues!$D$6:$D$1000,MATCH(Home!$D136,Dues!$D$6:$D$1000, 0),)","v":"vzm35"}]
["Andy","Chu","Fr","cjc6652",{"$f":"COUNTIF(Event1!$D:$D, D137) + COUNTIF(Event2!$D:$D, D137) + COUNTIF(Event3!$D:$D, D137) + COUNTIF(Event4!$D:$D, D137) + COUNTIF(Event5!$D:$D, D137) + COUNTIF(Event6!$D:$D, D137) + COUNTIF(Event7!$D:$D, D137) + COUNTIF(Event8!$D:$D, D137) + COUNTIF(Event9!$D:$D, D137) + COUNTIF(Event10!$D:$D, D137) + COUNTIF(Event11!$D:$D, D137) + COUNTIF(Event12!$D:$D, D137) + COUNTIF(Event13!$D:$D, D137) + COUNTIF(Event14!$D:$D, D137) + COUNTIF(Event15!$D:$D, D137) + COUNTIF(Event16!$D:$D, D137) + COUNTIF(Event17!$D:$D, D137) + COUNTIF(Event18!$D:$D, D137) + COUNTIF(Event19!$D:$D, D137) + COUNTIF(Event20!$D:$D, D137) + COUNTIF(Event21!$D:$D, D137) + COUNTIF(Event22!$D:$D, D137) + COUNTIF(Event23!$D:$D, D137) + COUNTIF(Event24!$D:$D, D137) + COUNTIF(Event25!$D:$D, D137) + COUNTIF(Event26!$D:$D, D137) + COUNTIF(Event27!$D:$D, D137) + COUNTIF(Event28!$D:$D, D137) + COUNTIF(Event29!$D:$D, D137) + COUNTIF(Event30!$D:$D, D137) + COUNTIF(Event31!$D:$D, D137) + COUNTIF(Event32!$D:$D, D137) + COUNTIF(Event33!$D:$D, D137) + COUNTIF(Event34!$D:$D, D137) + COUNTIF(Event35!$D:$D, D137) + 0","v":2},{"$f":"INDEX(Dues!$D$6:$D$1000,MATCH(Home!$D137,Dues!$D$6:$D$1000, 0),)","v":"cjc6652"}]
["Brian","Carr","Fr","bpc5419",{"$f":"COUNTIF(Event1!$D:$D, D138) + COUNTIF(Event2!$D:$D, D138) + COUNTIF(Event3!$D:$D, D138) + COUNTIF(Event4!$D:$D, D138) + COUNTIF(Event5!$D:$D, D138) + COUNTIF(Event6!$D:$D, D138) + COUNTIF(Event7!$D:$D, D138) + COUNTIF(Event8!$D:$D, D138) + COUNTIF(Event9!$D:$D, D138) + COUNTIF(Event10!$D:$D, D138) + COUNTIF(Event11!$D:$D, D138) + COUNTIF(Event12!$D:$D, D138) + COUNTIF(Event13!$D:$D, D138) + COUNTIF(Event14!$D:$D, D138) + COUNTIF(Event15!$D:$D, D138) + COUNTIF(Event16!$D:$D, D138) + COUNTIF(Event17!$D:$D, D138) + COUNTIF(Event18!$D:$D, D138) + COUNTIF(Event19!$D:$D, D138) + COUNTIF(Event20!$D:$D, D138) + COUNTIF(Event21!$D:$D, D138) + COUNTIF(Event22!$D:$D, D138) + COUNTIF(Event23!$D:$D, D138) + COUNTIF(Event24!$D:$D, D138) + COUNTIF(Event25!$D:$D, D138) + COUNTIF(Event26!$D:$D, D138) + COUNTIF(Event27!$D:$D, D138) + COUNTIF(Event28!$D:$D, D138) + COUNTIF(Event29!$D:$D, D138) + COUNTIF(Event30!$D:$D, D138) + COUNTIF(Event31!$D:$D, D138) + COUNTIF(Event32!$D:$D, D138) + COUNTIF(Event33!$D:$D, D138) + COUNTIF(Event34!$D:$D, D138) + COUNTIF(Event35!$D:$D, D138) + 0","v":1},{"$f":"INDEX(Dues!$D$6:$D$1000,MATCH(Home!$D138,Dues!$D$6:$D$1000, 0),)","v":"bpc5419"}]
["Krishna","Talamati","Fr","krt5245",{"$f":"COUNTIF(Event1!$D:$D, D139) + COUNTIF(Event2!$D:$D, D139) + COUNTIF(Event3!$D:$D, D139) + COUNTIF(Event4!$D:$D, D139) + COUNTIF(Event5!$D:$D, D139) + COUNTIF(Event6!$D:$D, D139) + COUNTIF(Event7!$D:$D, D139) + COUNTIF(Event8!$D:$D, D139) + COUNTIF(Event9!$D:$D, D139) + COUNTIF(Event10!$D:$D, D139) + COUNTIF(Event11!$D:$D, D139) + COUNTIF(Event12!$D:$D, D139) + COUNTIF(Event13!$D:$D, D139) + COUNTIF(Event14!$D:$D, D139) + COUNTIF(Event15!$D:$D, D139) + COUNTIF(Event16!$D:$D, D139) + COUNTIF(Event17!$D:$D, D139) + COUNTIF(Event18!$D:$D, D139) + COUNTIF(Event19!$D:$D, D139) + COUNTIF(Event20!$D:$D, D139) + COUNTIF(Event21!$D:$D, D139) + COUNTIF(Event22!$D:$D, D139) + COUNTIF(Event23!$D:$D, D139) + COUNTIF(Event24!$D:$D, D139) + COUNTIF(Event25!$D:$D, D139) + COUNTIF(Event26!$D:$D, D139) + COUNTIF(Event27!$D:$D, D139) + COUNTIF(Event28!$D:$D, D139) + COUNTIF(Event29!$D:$D, D139) + COUNTIF(Event30!$D:$D, D139) + COUNTIF(Event31!$D:$D, D139) + COUNTIF(Event32!$D:$D, D139) + COUNTIF(Event33!$D:$D, D139) + COUNTIF(Event34!$D:$D, D139) + COUNTIF(Event35!$D:$D, D139) + 0","v":1},{"$f":"INDEX(Dues!$D$6:$D$1000,MATCH(Home!$D139,Dues!$D$6:$D$1000, 0),)","v":"krt5245"}]
["Olivia","Gettle","Sr","olg5014",{"$f":"COUNTIF(Event1!$D:$D, D140) + COUNTIF(Event2!$D:$D, D140) + COUNTIF(Event3!$D:$D, D140) + COUNTIF(Event4!$D:$D, D140) + COUNTIF(Event5!$D:$D, D140) + COUNTIF(Event6!$D:$D, D140) + COUNTIF(Event7!$D:$D, D140) + COUNTIF(Event8!$D:$D, D140) + COUNTIF(Event9!$D:$D, D140) + COUNTIF(Event10!$D:$D, D140) + COUNTIF(Event11!$D:$D, D140) + COUNTIF(Event12!$D:$D, D140) + COUNTIF(Event13!$D:$D, D140) + COUNTIF(Event14!$D:$D, D140) + COUNTIF(Event15!$D:$D, D140) + COUNTIF(Event16!$D:$D, D140) + COUNTIF(Event17!$D:$D, D140) + COUNTIF(Event18!$D:$D, D140) + COUNTIF(Event19!$D:$D, D140) + COUNTIF(Event20!$D:$D, D140) + COUNTIF(Event21!$D:$D, D140) + COUNTIF(Event22!$D:$D, D140) + COUNTIF(Event23!$D:$D, D140) + COUNTIF(Event24!$D:$D, D140) + COUNTIF(Event25!$D:$D, D140) + COUNTIF(Event26!$D:$D, D140) + COUNTIF(Event27!$D:$D, D140) + COUNTIF(Event28!$D:$D, D140) + COUNTIF(Event29!$D:$D, D140) + COUNTIF(Event30!$D:$D, D140) + COUNTIF(Event31!$D:$D, D140) + COUNTIF(Event32!$D:$D, D140) + COUNTIF(Event33!$D:$D, D140) + COUNTIF(Event34!$D:$D, D140) + COUNTIF(Event35!$D:$D, D140) + 0","v":1},{"$f":"INDEX(Dues!$D$6:$D$1000,MATCH(Home!$D140,Dues!$D$6:$D$1000, 0),)","v":{"$error":"#N/A"}}]
["Mason","Cary","Fr","msc5673",{"$f":"COUNTIF(Event1!$D:$D, D141) + COUNTIF(Event2!$D:$D, D141) + COUNTIF(Event3!$D:$D, D141) + COUNTIF(Event4!$D:$D, D141) + COUNTIF(Event5!$D:$D, D141) + COUNTIF(Event6!$D:$D, D141) + COUNTIF(Event7!$D:$D, D141) + COUNTIF(Event8!$D:$D, D141) + COUNTIF(Event9!$D:$D, D141) + COUNTIF(Event10!$D:$D, D141) + COUNTIF(Event11!$D:$D, D141) + COUNTIF(Event12!$D:$D, D141) + COUNTIF(Event13!$D:$D, D141) + COUNTIF(Event14!$D:$D, D141) + COUNTIF(Event15!$D:$D, D141) + COUNTIF(Event16!$D:$D, D141) + COUNTIF(Event17!$D:$D, D141) + COUNTIF(Event18!$D:$D, D141) + COUNTIF(Event19!$D:$D, D141) + COUNTIF(Event20!$D:$D, D141) + COUNTIF(Event21!$D:$D, D141) + COUNTIF(Event22!$D:$D, D141) + COUNTIF(Event23!$D:$D, D141) + COUNTIF(Event24!$D:$D, D141) + COUNTIF(Event25!$D:$D, D141) + COUNTIF(Event26!$D:$D, D141) + COUNTIF(Event27!$D:$D, D141) + COUNTIF(Event28!$D:$D, D141) + COUNTIF(Event29!$D:$D, D141) + COUNTIF(Event30!$D:$D, D141) + COUNTIF(Event31!$D:$D, D141) + COUNTIF(Event32!$D:$D, D141) + COUNTIF(Event33!$D:$D, D141) + COUNTIF(Event34!$D:$D, D141) + COUNTIF(Event35!$D:$D, D141) + 0","v":4},{"$f":"INDEX(Dues!$D$6:$D$1000,MATCH(Home!$D141,Dues!$D$6:$D$1000, 0),)","v":"msc5673"}]
["Mason","Conrad","So","msc5613",{"$f":"COUNTIF(Event1!$D:$D, D142) + COUNTIF(Event2!$D:$D, D142) + COUNTIF(Event3!$D:$D, D142) + COUNTIF(Event4!$D:$D, D142) + COUNTIF(Event5!$D:$D, D142) + COUNTIF(Event6!$D:$D, D142) + COUNTIF(Event7!$D:$D, D142) + COUNTIF(Event8!$D:$D, D142) + COUNTIF(Event9!$D:$D, D142) + COUNTIF(Event10!$D:$D, D142) + COUNTIF(Event11!$D:$D, D142) + COUNTIF(Event12!$D:$D, D142) + COUNTIF(Event13!$D:$D, D142) + COUNTIF(Event14!$D:$D, D142) + COUNTIF(Event15!$D:$D, D142) + COUNTIF(Event16!$D:$D, D142) + COUNTIF(Event17!$D:$D, D142) + COUNTIF(Event18!$D:$D, D142) + COUNTIF(Event19!$D:$D, D142) + COUNTIF(Event20!$D:$D, D142) + COUNTIF(Event21!$D:$D, D142) + COUNTIF(Event22!$D:$D, D142) + COUNTIF(Event23!$D:$D, D142) + COUNTIF(Event24!$D:$D, D142) + COUNTIF(Event25!$D:$D, D142) + COUNTIF(Event26!$D:$D, D142) + COUNTIF(Event27!$D:$D, D142) + COUNTIF(Event28!$D:$D, D142) + COUNTIF(Event29!$D:$D, D142) + COUNTIF(Event30!$D:$D, D142) + COUNTIF(Event31!$D:$D, D142) + COUNTIF(Event32!$D:$D, D142) + COUNTIF(Event33!$D:$D, D142) + COUNTIF(Event34!$D:$D, D142) + COUNTIF(Event35!$D:$D, D142) + 0","v":1},{"$f":"INDEX(Dues!$D$6:$D$1000,MATCH(Home!$D142,Dues!$D$6:$D$1000, 0),)","v":"msc5613"}]
["Abby","Ake","Fr","ama7182",{"$f":"COUNTIF(Event1!$D:$D, D143) + COUNTIF(Event2!$D:$D, D143) + COUNTIF(Event3!$D:$D, D143) + COUNTIF(Event4!$D:$D, D143) + COUNTIF(Event5!$D:$D, D143) + COUNTIF(Event6!$D:$D, D143) + COUNTIF(Event7!$D:$D, D143) + COUNTIF(Event8!$D:$D, D143) + COUNTIF(Event9!$D:$D, D143) + COUNTIF(Event10!$D:$D, D143) + COUNTIF(Event11!$D:$D, D143) + COUNTIF(Event12!$D:$D, D143) + COUNTIF(Event13!$D:$D, D143) + COUNTIF(Event14!$D:$D, D143) + COUNTIF(Event15!$D:$D, D143) + COUNTIF(Event16!$D:$D, D143) + COUNTIF(Event17!$D:$D, D143) + COUNTIF(Event18!$D:$D, D143) + COUNTIF(Event19!$D:$D, D143) + COUNTIF(Event20!$D:$D, D143) + COUNTIF(Event21!$D:$D, D143) + COUNTIF(Event22!$D:$D, D143) + COUNTIF(Event23!$D:$D, D143) + COUNTIF(Event24!$D:$D, D143) + COUNTIF(Event25!$D:$D, D143) + COUNTIF(Event26!$D:$D, D143) + COUNTIF(Event27!$D:$D, D143) + COUNTIF(Event28!$D:$D, D143) + COUNTIF(Event29!$D:$D, D143) + COUNTIF(Event30!$D:$D, D143) + COUNTIF(Event31!$D:$D, D143) + COUNTIF(Event32!$D:$D, D143) + COUNTIF(Event33!$D:$D, D143) + COUNTIF(Event34!$D:$D, D143) + COUNTIF(Event35!$D:$D, D143) + 0","v":1},{"$f":"INDEX(Dues!$D$6:$D$1000,MATCH(Home!$D143,Dues!$D$6:$D$1000, 0),)","v":{"$error":"#N/A"}}]
["Matt","Owens","Fr","mro5212",{"$f":"COUNTIF(Event1!$D:$D, D144) + COUNTIF(Event2!$D:$D, D144) + COUNTIF(Event3!$D:$D, D144) + COUNTIF(Event4!$D:$D, D144) + COUNTIF(Event5!$D:$D, D144) + COUNTIF(Event6!$D:$D, D144) + COUNTIF(Event7!$D:$D, D144) + COUNTIF(Event8!$D:$D, D144) + COUNTIF(Event9!$D:$D, D144) + COUNTIF(Event10!$D:$D, D144) + COUNTIF(Event11!$D:$D, D144) + COUNTIF(Event12!$D:$D, D144) + COUNTIF(Event13!$D:$D, D144) + COUNTIF(Event14!$D:$D, D144) + COUNTIF(Event15!$D:$D, D144) + COUNTIF(Event16!$D:$D, D144) + COUNTIF(Event17!$D:$D, D144) + COUNTIF(Event18!$D:$D, D144) + COUNTIF(Event19!$D:$D, D144) + COUNTIF(Event20!$D:$D, D144) + COUNTIF(Event21!$D:$D, D144) + COUNTIF(Event22!$D:$D, D144) + COUNTIF(Event23!$D:$D, D144) + COUNTIF(Event24!$D:$D, D144) + COUNTIF(Event25!$D:$D, D144) + COUNTIF(Event26!$D:$D, D144) + COUNTIF(Event27!$D:$D, D144) + COUNTIF(Event28!$D:$D, D144) + COUNTIF(Event29!$D:$D, D144) + COUNTIF(Event30!$D:$D, D144) + COUNTIF(Event31!$D:$D, D144) + COUNTIF(Event32!$D:$D, D144) + COUNTIF(Event33!$D:$D, D144) + COUNTIF(Event34!$D:$D, D144) + COUNTIF(Event35!$D:$D, D144) + 0","v":2},{"$f":"INDEX(Dues!$D$6:$D$1000,MATCH(Home!$D144,Dues!$D$6:$D$1000, 0),)","v":"mro5212"}]
["Cody","Ventresca","So","cxv5112",{"$f":"COUNTIF(Event1!$D:$D, D145) + COUNTIF(Event2!$D:$D, D145) + COUNTIF(Event3!$D:$D, D145) + COUNTIF(Event4!$D:$D, D145) + COUNTIF(Event5!$D:$D, D145) + COUNTIF(Event6!$D:$D, D145) + COUNTIF(Event7!$D:$D, D145) + COUNTIF(Event8!$D:$D, D145) + COUNTIF(Event9!$D:$D, D145) + COUNTIF(Event10!$D:$D, D145) + COUNTIF(Event11!$D:$D, D145) + COUNTIF(Event12!$D:$D, D145) + COUNTIF(Event13!$D:$D, D145) + COUNTIF(Event14!$D:$D, D145) + COUNTIF(Event15!$D:$D, D145) + COUNTIF(Event16!$D:$D, D145) + COUNTIF(Event17!$D:$D, D145) + COUNTIF(Event18!$D:$D, D145) + COUNTIF(Event19!$D:$D, D145) + COUNTIF(Event20!$D:$D, D145) + COUNTIF(Event21!$D:$D, D145) + COUNTIF(Event22!$D:$D, D145) + COUNTIF(Event23!$D:$D, D145) + COUNTIF(Event24!$D:$D, D145) + COUNTIF(Event25!$D:$D, D145) + COUNTIF(Event26!$D:$D, D145) + COUNTIF(Event27!$D:$D, D145) + COUNTIF(Event28!$D:$D, D145) + COUNTIF(Event29!$D:$D, D145) + COUNTIF(Event30!$D:$D, D145) + COUNTIF(Event31!$D:$D, D145) + COUNTIF(Event32!$D:$D, D145) + COUNTIF(Event33!$D:$D, D145) + COUNTIF(Event34!$D:$D, D145) + COUNTIF(Event35!$D:$D, D145) + 0","v":2},{"$f":"INDEX(Dues!$D$6:$D$1000,MATCH(Home!$D145,Dues!$D$6:$D$1000, 0),)","v":"cxv5112"}]
["Qiaojuan","Tu","So","qkt5010",{"$f":"COUNTIF(Event1!$D:$D, D146) + COUNTIF(Event2!$D:$D, D146) + COUNTIF(Event3!$D:$D, D146) + COUNTIF(Event4!$D:$D, D146) + COUNTIF(Event5!$D:$D, D146) + COUNTIF(Event6!$D:$D, D146) + COUNTIF(Event7!$D:$D, D146) + COUNTIF(Event8!$D:$D, D146) + COUNTIF(Event9!$D:$D, D146) + COUNTIF(Event10!$D:$D, D146) + COUNTIF(Event11!$D:$D, D146) + COUNTIF(Event12!$D:$D, D146) + COUNTIF(Event13!$D:$D, D146) + COUNTIF(Event14!$D:$D, D146) + COUNTIF(Event15!$D:$D, D146) + COUNTIF(Event16!$D:$D, D146) + COUNTIF(Event17!$D:$D, D146) + COUNTIF(Event18!$D:$D, D146) + COUNTIF(Event19!$D:$D, D146) + COUNTIF(Event20!$D:$D, D146) + COUNTIF(Event21!$D:$D, D146) + COUNTIF(Event22!$D:$D, D146) + COUNTIF(Event23!$D:$D, D146) + COUNTIF(Event24!$D:$D, D146) + COUNTIF(Event25!$D:$D, D146) + COUNTIF(Event26!$D:$D, D146) + COUNTIF(Event27!$D:$D, D146) + COUNTIF(Event28!$D:$D, D146) + COUNTIF(Event29!$D:$D, D146) + COUNTIF(Event30!$D:$D, D146) + COUNTIF(Event31!$D:$D, D146) + COUNTIF(Event32!$D:$D, D146) + COUNTIF(Event33!$D:$D, D146) + COUNTIF(Event34!$D:$D, D146) + COUNTIF(Event35!$D:$D, D146) + 0","v":4},{"$f":"INDEX(Dues!$D$6:$D$1000,MATCH(Home!$D146,Dues!$D$6:$D$1000, 0),)","v":"qkt5010"}]
["Rhiannon","Kelly","Fr","rmk5689",{"$f":"COUNTIF(Event1!$D:$D, D147) + COUNTIF(Event2!$D:$D, D147) + COUNTIF(Event3!$D:$D, D147) + COUNTIF(Event4!$D:$D, D147) + COUNTIF(Event5!$D:$D, D147) + COUNTIF(Event6!$D:$D, D147) + COUNTIF(Event7!$D:$D, D147) + COUNTIF(Event8!$D:$D, D147) + COUNTIF(Event9!$D:$D, D147) + COUNTIF(Event10!$D:$D, D147) + COUNTIF(Event11!$D:$D, D147) + COUNTIF(Event12!$D:$D, D147) + COUNTIF(Event13!$D:$D, D147) + COUNTIF(Event14!$D:$D, D147) + COUNTIF(Event15!$D:$D, D147) + COUNTIF(Event16!$D:$D, D147) + COUNTIF(Event17!$D:$D, D147) + COUNTIF(Event18!$D:$D, D147) + COUNTIF(Event19!$D:$D, D147) + COUNTIF(Event20!$D:$D, D147) + COUNTIF(Event21!$D:$D, D147) + COUNTIF(Event22!$D:$D, D147) + COUNTIF(Event23!$D:$D, D147) + COUNTIF(Event24!$D:$D, D147) + COUNTIF(Event25!$D:$D, D147) + COUNTIF(Event26!$D:$D, D147) + COUNTIF(Event27!$D:$D, D147) + COUNTIF(Event28!$D:$D, D147) + COUNTIF(Event29!$D:$D, D147) + COUNTIF(Event30!$D:$D, D147) + COUNTIF(Event31!$D:$D, D147) + COUNTIF(Event32!$D:$D, D147) + COUNTIF(Event33!$D:$D, D147) + COUNTIF(Event34!$D:$D, D147) + COUNTIF(Event35!$D:$D, D147) + 0","v":2},{"$f":"INDEX(Dues!$D$6:$D$1000,MATCH(Home!$D147,Dues!$D$6:$D$1000, 0),)","v":"rmk5689"}]
["Julianna","Mazur","Fr","Jqm6441",{"$f":"COUNTIF(Event1!$D:$D, D148) + COUNTIF(Event2!$D:$D, D148) + COUNTIF(Event3!$D:$D, D148) + COUNTIF(Event4!$D:$D, D148) + COUNTIF(Event5!$D:$D, D148) + COUNTIF(Event6!$D:$D, D148) + COUNTIF(Event7!$D:$D, D148) + COUNTIF(Event8!$D:$D, D148) + COUNTIF(Event9!$D:$D, D148) + COUNTIF(Event10!$D:$D, D148) + COUNTIF(Event11!$D:$D, D148) + COUNTIF(Event12!$D:$D, D148) + COUNTIF(Event13!$D:$D, D148) + COUNTIF(Event14!$D:$D, D148) + COUNTIF(Event15!$D:$D, D148) + COUNTIF(Event16!$D:$D, D148) + COUNTIF(Event17!$D:$D, D148) + COUNTIF(Event18!$D:$D, D148) + COUNTIF(Event19!$D:$D, D148) + COUNTIF(Event20!$D:$D, D148) + COUNTIF(Event21!$D:$D, D148) + COUNTIF(Event22!$D:$D, D148) + COUNTIF(Event23!$D:$D, D148) + COUNTIF(Event24!$D:$D, D148) + COUNTIF(Event25!$D:$D, D148) + COUNTIF(Event26!$D:$D, D148) + COUNTIF(Event27!$D:$D, D148) + COUNTIF(Event28!$D:$D, D148) + COUNTIF(Event29!$D:$D, D148) + COUNTIF(Event30!$D:$D, D148) + COUNTIF(Event31!$D:$D, D148) + COUNTIF(Event32!$D:$D, D148) + COUNTIF(Event33!$D:$D, D148) + COUNTIF(Event34!$D:$D, D148) + COUNTIF(Event35!$D:$D, D148) + 0","v":1},{"$f":"INDEX(Dues!$D$6:$D$1000,MATCH(Home!$D148,Dues!$D$6:$D$1000, 0),)","v":"jqm6441"}]
["Ayo","Ogunrombi ","So","aeo5162",{"$f":"COUNTIF(Event1!$D:$D, D149) + COUNTIF(Event2!$D:$D, D149) + COUNTIF(Event3!$D:$D, D149) + COUNTIF(Event4!$D:$D, D149) + COUNTIF(Event5!$D:$D, D149) + COUNTIF(Event6!$D:$D, D149) + COUNTIF(Event7!$D:$D, D149) + COUNTIF(Event8!$D:$D, D149) + COUNTIF(Event9!$D:$D, D149) + COUNTIF(Event10!$D:$D, D149) + COUNTIF(Event11!$D:$D, D149) + COUNTIF(Event12!$D:$D, D149) + COUNTIF(Event13!$D:$D, D149) + COUNTIF(Event14!$D:$D, D149) + COUNTIF(Event15!$D:$D, D149) + COUNTIF(Event16!$D:$D, D149) + COUNTIF(Event17!$D:$D, D149) + COUNTIF(Event18!$D:$D, D149) + COUNTIF(Event19!$D:$D, D149) + COUNTIF(Event20!$D:$D, D149) + COUNTIF(Event21!$D:$D, D149) + COUNTIF(Event22!$D:$D, D149) + COUNTIF(Event23!$D:$D, D149) + COUNTIF(Event24!$D:$D, D149) + COUNTIF(Event25!$D:$D, D149) + COUNTIF(Event26!$D:$D, D149) + COUNTIF(Event27!$D:$D, D149) + COUNTIF(Event28!$D:$D, D149) + COUNTIF(Event29!$D:$D, D149) + COUNTIF(Event30!$D:$D, D149) + COUNTIF(Event31!$D:$D, D149) + COUNTIF(Event32!$D:$D, D149) + COUNTIF(Event33!$D:$D, D149) + COUNTIF(Event34!$D:$D, D149) + COUNTIF(Event35!$D:$D, D149) + 0","v":2},{"$f":"INDEX(Dues!$D$6:$D$1000,MATCH(Home!$D149,Dues!$D$6:$D$1000, 0),)","v":"aeo5162"}]
["Andrew","Harley","Fr","ath5305",{"$f":"COUNTIF(Event1!$D:$D, D150) + COUNTIF(Event2!$D:$D, D150) + COUNTIF(Event3!$D:$D, D150) + COUNTIF(Event4!$D:$D, D150) + COUNTIF(Event5!$D:$D, D150) + COUNTIF(Event6!$D:$D, D150) + COUNTIF(Event7!$D:$D, D150) + COUNTIF(Event8!$D:$D, D150) + COUNTIF(Event9!$D:$D, D150) + COUNTIF(Event10!$D:$D, D150) + COUNTIF(Event11!$D:$D, D150) + COUNTIF(Event12!$D:$D, D150) + COUNTIF(Event13!$D:$D, D150) + COUNTIF(Event14!$D:$D, D150) + COUNTIF(Event15!$D:$D, D150) + COUNTIF(Event16!$D:$D, D150) + COUNTIF(Event17!$D:$D, D150) + COUNTIF(Event18!$D:$D, D150) + COUNTIF(Event19!$D:$D, D150) + COUNTIF(Event20!$D:$D, D150) + COUNTIF(Event21!$D:$D, D150) + COUNTIF(Event22!$D:$D, D150) + COUNTIF(Event23!$D:$D, D150) + COUNTIF(Event24!$D:$D, D150) + COUNTIF(Event25!$D:$D, D150) + COUNTIF(Event26!$D:$D, D150) + COUNTIF(Event27!$D:$D, D150) + COUNTIF(Event28!$D:$D, D150) + COUNTIF(Event29!$D:$D, D150) + COUNTIF(Event30!$D:$D, D150) + COUNTIF(Event31!$D:$D, D150) + COUNTIF(Event32!$D:$D, D150) + COUNTIF(Event33!$D:$D, D150) + COUNTIF(Event34!$D:$D, D150) + COUNTIF(Event35!$D:$D, D150) + 0","v":1},{"$f":"INDEX(Dues!$D$6:$D$1000,MATCH(Home!$D150,Dues!$D$6:$D$1000, 0),)","v":"ath5305"}]
["Daniel","Cox","Fr","djc6240",{"$f":"COUNTIF(Event1!$D:$D, D151) + COUNTIF(Event2!$D:$D, D151) + COUNTIF(Event3!$D:$D, D151) + COUNTIF(Event4!$D:$D, D151) + COUNTIF(Event5!$D:$D, D151) + COUNTIF(Event6!$D:$D, D151) + COUNTIF(Event7!$D:$D, D151) + COUNTIF(Event8!$D:$D, D151) + COUNTIF(Event9!$D:$D, D151) + COUNTIF(Event10!$D:$D, D151) + COUNTIF(Event11!$D:$D, D151) + COUNTIF(Event12!$D:$D, D151) + COUNTIF(Event13!$D:$D, D151) + COUNTIF(Event14!$D:$D, D151) + COUNTIF(Event15!$D:$D, D151) + COUNTIF(Event16!$D:$D, D151) + COUNTIF(Event17!$D:$D, D151) + COUNTIF(Event18!$D:$D, D151) + COUNTIF(Event19!$D:$D, D151) + COUNTIF(Event20!$D:$D, D151) + COUNTIF(Event21!$D:$D, D151) + COUNTIF(Event22!$D:$D, D151) + COUNTIF(Event23!$D:$D, D151) + COUNTIF(Event24!$D:$D, D151) + COUNTIF(Event25!$D:$D, D151) + COUNTIF(Event26!$D:$D, D151) + COUNTIF(Event27!$D:$D, D151) + COUNTIF(Event28!$D:$D, D151) + COUNTIF(Event29!$D:$D, D151) + COUNTIF(Event30!$D:$D, D151) + COUNTIF(Event31!$D:$D, D151) + COUNTIF(Event32!$D:$D, D151) + COUNTIF(Event33!$D:$D, D151) + COUNTIF(Event34!$D:$D, D151) + COUNTIF(Event35!$D:$D, D151) + 0","v":1},{"$f":"INDEX(Dues!$D$6:$D$1000,MATCH(Home!$D151,Dues!$D$6:$D$1000, 0),)","v":"djc6240"}]
["Bella","Santori","Fr","ixs5175",{"$f":"COUNTIF(Event1!$D:$D, D152) + COUNTIF(Event2!$D:$D, D152) + COUNTIF(Event3!$D:$D, D152) + COUNTIF(Event4!$D:$D, D152) + COUNTIF(Event5!$D:$D, D152) + COUNTIF(Event6!$D:$D, D152) + COUNTIF(Event7!$D:$D, D152) + COUNTIF(Event8!$D:$D, D152) + COUNTIF(Event9!$D:$D, D152) + COUNTIF(Event10!$D:$D, D152) + COUNTIF(Event11!$D:$D, D152) + COUNTIF(Event12!$D:$D, D152) + COUNTIF(Event13!$D:$D, D152) + COUNTIF(Event14!$D:$D, D152) + COUNTIF(Event15!$D:$D, D152) + COUNTIF(Event16!$D:$D, D152) + COUNTIF(Event17!$D:$D, D152) + COUNTIF(Event18!$D:$D, D152) + COUNTIF(Event19!$D:$D, D152) + COUNTIF(Event20!$D:$D, D152) + COUNTIF(Event21!$D:$D, D152) + COUNTIF(Event22!$D:$D, D152) + COUNTIF(Event23!$D:$D, D152) + COUNTIF(Event24!$D:$D, D152) + COUNTIF(Event25!$D:$D, D152) + COUNTIF(Event26!$D:$D, D152) + COUNTIF(Event27!$D:$D, D152) + COUNTIF(Event28!$D:$D, D152) + COUNTIF(Event29!$D:$D, D152) + COUNTIF(Event30!$D:$D, D152) + COUNTIF(Event31!$D:$D, D152) + COUNTIF(Event32!$D:$D, D152) + COUNTIF(Event33!$D:$D, D152) + COUNTIF(Event34!$D:$D, D152) + COUNTIF(Event35!$D:$D, D152) + 0","v":1},{"$f":"INDEX(Dues!$D$6:$D$1000,MATCH(Home!$D152,Dues!$D$6:$D$1000, 0),)","v":{"$error":"#N/A"}}]
["Jake","Walinsky","Fr","jpw5829",{"$f":"COUNTIF(Event1!$D:$D, D153) + COUNTIF(Event2!$D:$D, D153) + COUNTIF(Event3!$D:$D, D153) + COUNTIF(Event4!$D:$D, D153) + COUNTIF(Event5!$D:$D, D153) + COUNTIF(Event6!$D:$D, D153) + COUNTIF(Event7!$D:$D, D153) + COUNTIF(Event8!$D:$D, D153) + COUNTIF(Event9!$D:$D, D153) + COUNTIF(Event10!$D:$D, D153) + COUNTIF(Event11!$D:$D, D153) + COUNTIF(Event12!$D:$D, D153) + COUNTIF(Event13!$D:$D, D153) + COUNTIF(Event14!$D:$D, D153) + COUNTIF(Event15!$D:$D, D153) + COUNTIF(Event16!$D:$D, D153) + COUNTIF(Event17!$D:$D, D153) + COUNTIF(Event18!$D:$D, D153) + COUNTIF(Event19!$D:$D, D153) + COUNTIF(Event20!$D:$D, D153) + COUNTIF(Event21!$D:$D, D153) + COUNTIF(Event22!$D:$D, D153) + COUNTIF(Event23!$D:$D, D153) + COUNTIF(Event24!$D:$D, D153) + COUNTIF(Event25!$D:$D, D153) + COUNTIF(Event26!$D:$D, D153) + COUNTIF(Event27!$D:$D, D153) + COUNTIF(Event28!$D:$D, D153) + COUNTIF(Event29!$D:$D, D153) + COUNTIF(Event30!$D:$D, D153) + COUNTIF(Event31!$D:$D, D153) + COUNTIF(Event32!$D:$D, D153) + COUNTIF(Event33!$D:$D, D153) + COUNTIF(Event34!$D:$D, D153) + COUNTIF(Event35!$D:$D, D153) + 0","v":2},{"$f":"INDEX(Dues!$D$6:$D$1000,MATCH(Home!$D153,Dues!$D$6:$D$1000, 0),)","v":"jpw5829"}]
["Kelli","Peritz","Fr","Kqp5476",{"$f":"COUNTIF(Event1!$D:$D, D154) + COUNTIF(Event2!$D:$D, D154) + COUNTIF(Event3!$D:$D, D154) + COUNTIF(Event4!$D:$D, D154) + COUNTIF(Event5!$D:$D, D154) + COUNTIF(Event6!$D:$D, D154) + COUNTIF(Event7!$D:$D, D154) + COUNTIF(Event8!$D:$D, D154) + COUNTIF(Event9!$D:$D, D154) + COUNTIF(Event10!$D:$D, D154) + COUNTIF(Event11!$D:$D, D154) + COUNTIF(Event12!$D:$D, D154) + COUNTIF(Event13!$D:$D, D154) + COUNTIF(Event14!$D:$D, D154) + COUNTIF(Event15!$D:$D, D154) + COUNTIF(Event16!$D:$D, D154) + COUNTIF(Event17!$D:$D, D154) + COUNTIF(Event18!$D:$D, D154) + COUNTIF(Event19!$D:$D, D154) + COUNTIF(Event20!$D:$D, D154) + COUNTIF(Event21!$D:$D, D154) + COUNTIF(Event22!$D:$D, D154) + COUNTIF(Event23!$D:$D, D154) + COUNTIF(Event24!$D:$D, D154) + COUNTIF(Event25!$D:$D, D154) + COUNTIF(Event26!$D:$D, D154) + COUNTIF(Event27!$D:$D, D154) + COUNTIF(Event28!$D:$D, D154) + COUNTIF(Event29!$D:$D, D154) + COUNTIF(Event30!$D:$D, D154) + COUNTIF(Event31!$D:$D, D154) + COUNTIF(Event32!$D:$D, D154) + COUNTIF(Event33!$D:$D, D154) + COUNTIF(Event34!$D:$D, D154) + COUNTIF(Event35!$D:$D, D154) + 0","v":4},{"$f":"INDEX(Dues!$D$6:$D$1000,MATCH(Home!$D154,Dues!$D$6:$D$1000, 0),)","v":{"$error":"#N/A"}}]
["Hanlin","Zhang","So","hbz5102",{"$f":"COUNTIF(Event1!$D:$D, D155) + COUNTIF(Event2!$D:$D, D155) + COUNTIF(Event3!$D:$D, D155) + COUNTIF(Event4!$D:$D, D155) + COUNTIF(Event5!$D:$D, D155) + COUNTIF(Event6!$D:$D, D155) + COUNTIF(Event7!$D:$D, D155) + COUNTIF(Event8!$D:$D, D155) + COUNTIF(Event9!$D:$D, D155) + COUNTIF(Event10!$D:$D, D155) + COUNTIF(Event11!$D:$D, D155) + COUNTIF(Event12!$D:$D, D155) + COUNTIF(Event13!$D:$D, D155) + COUNTIF(Event14!$D:$D, D155) + COUNTIF(Event15!$D:$D, D155) + COUNTIF(Event16!$D:$D, D155) + COUNTIF(Event17!$D:$D, D155) + COUNTIF(Event18!$D:$D, D155) + COUNTIF(Event19!$D:$D, D155) + COUNTIF(Event20!$D:$D, D155) + COUNTIF(Event21!$D:$D, D155) + COUNTIF(Event22!$D:$D, D155) + COUNTIF(Event23!$D:$D, D155) + COUNTIF(Event24!$D:$D, D155) + COUNTIF(Event25!$D:$D, D155) + COUNTIF(Event26!$D:$D, D155) + COUNTIF(Event27!$D:$D, D155) + COUNTIF(Event28!$D:$D, D155) + COUNTIF(Event29!$D:$D, D155) + COUNTIF(Event30!$D:$D, D155) + COUNTIF(Event31!$D:$D, D155) + COUNTIF(Event32!$D:$D, D155) + COUNTIF(Event33!$D:$D, D155) + COUNTIF(Event34!$D:$D, D155) + COUNTIF(Event35!$D:$D, D155) + 0","v":2},{"$f":"INDEX(Dues!$D$6:$D$1000,MATCH(Home!$D155,Dues!$D$6:$D$1000, 0),)","v":"hbz5102"}]
["Claire","Dunleavy","Fr","cud539",{"$f":"COUNTIF(Event1!$D:$D, D156) + COUNTIF(Event2!$D:$D, D156) + COUNTIF(Event3!$D:$D, D156) + COUNTIF(Event4!$D:$D, D156) + COUNTIF(Event5!$D:$D, D156) + COUNTIF(Event6!$D:$D, D156) + COUNTIF(Event7!$D:$D, D156) + COUNTIF(Event8!$D:$D, D156) + COUNTIF(Event9!$D:$D, D156) + COUNTIF(Event10!$D:$D, D156) + COUNTIF(Event11!$D:$D, D156) + COUNTIF(Event12!$D:$D, D156) + COUNTIF(Event13!$D:$D, D156) + COUNTIF(Event14!$D:$D, D156) + COUNTIF(Event15!$D:$D, D156) + COUNTIF(Event16!$D:$D, D156) + COUNTIF(Event17!$D:$D, D156) + COUNTIF(Event18!$D:$D, D156) + COUNTIF(Event19!$D:$D, D156) + COUNTIF(Event20!$D:$D, D156) + COUNTIF(Event21!$D:$D, D156) + COUNTIF(Event22!$D:$D, D156) + COUNTIF(Event23!$D:$D, D156) + COUNTIF(Event24!$D:$D, D156) + COUNTIF(Event25!$D:$D, D156) + COUNTIF(Event26!$D:$D, D156) + COUNTIF(Event27!$D:$D, D156) + COUNTIF(Event28!$D:$D, D156) + COUNTIF(Event29!$D:$D, D156) + COUNTIF(Event30!$D:$D, D156) + COUNTIF(Event31!$D:$D, D156) + COUNTIF(Event32!$D:$D, D156) + COUNTIF(Event33!$D:$D, D156) + COUNTIF(Event34!$D:$D, D156) + COUNTIF(Event35!$D:$D, D156) + 0","v":1},{"$f":"INDEX(Dues!$D$6:$D$1000,MATCH(Home!$D156,Dues!$D$6:$D$1000, 0),)","v":"cud539"}]
["William","Kuder","Fr","Wrk5091",{"$f":"COUNTIF(Event1!$D:$D, D157) + COUNTIF(Event2!$D:$D, D157) + COUNTIF(Event3!$D:$D, D157) + COUNTIF(Event4!$D:$D, D157) + COUNTIF(Event5!$D:$D, D157) + COUNTIF(Event6!$D:$D, D157) + COUNTIF(Event7!$D:$D, D157) + COUNTIF(Event8!$D:$D, D157) + COUNTIF(Event9!$D:$D, D157) + COUNTIF(Event10!$D:$D, D157) + COUNTIF(Event11!$D:$D, D157) + COUNTIF(Event12!$D:$D, D157) + COUNTIF(Event13!$D:$D, D157) + COUNTIF(Event14!$D:$D, D157) + COUNTIF(Event15!$D:$D, D157) + COUNTIF(Event16!$D:$D, D157) + COUNTIF(Event17!$D:$D, D157) + COUNTIF(Event18!$D:$D, D157) + COUNTIF(Event19!$D:$D, D157) + COUNTIF(Event20!$D:$D, D157) + COUNTIF(Event21!$D:$D, D157) + COUNTIF(Event22!$D:$D, D157) + COUNTIF(Event23!$D:$D, D157) + COUNTIF(Event24!$D:$D, D157) + COUNTIF(Event25!$D:$D, D157) + COUNTIF(Event26!$D:$D, D157) + COUNTIF(Event27!$D:$D, D157) + COUNTIF(Event28!$D:$D, D157) + COUNTIF(Event29!$D:$D, D157) + COUNTIF(Event30!$D:$D, D157) + COUNTIF(Event31!$D:$D, D157) + COUNTIF(Event32!$D:$D, D157) + COUNTIF(Event33!$D:$D, D157) + COUNTIF(Event34!$D:$D, D157) + COUNTIF(Event35!$D:$D, D157) + 0","v":1},{"$f":"INDEX(Dues!$D$6:$D$1000,MATCH(Home!$D157,Dues!$D$6:$D$1000, 0),)","v":"wrk5091"}]
["Lauren","Hughes","So","lmh5981",{"$f":"COUNTIF(Event1!$D:$D, D158) + COUNTIF(Event2!$D:$D, D158) + COUNTIF(Event3!$D:$D, D158) + COUNTIF(Event4!$D:$D, D158) + COUNTIF(Event5!$D:$D, D158) + COUNTIF(Event6!$D:$D, D158) + COUNTIF(Event7!$D:$D, D158) + COUNTIF(Event8!$D:$D, D158) + COUNTIF(Event9!$D:$D, D158) + COUNTIF(Event10!$D:$D, D158) + COUNTIF(Event11!$D:$D, D158) + COUNTIF(Event12!$D:$D, D158) + COUNTIF(Event13!$D:$D, D158) + COUNTIF(Event14!$D:$D, D158) + COUNTIF(Event15!$D:$D, D158) + COUNTIF(Event16!$D:$D, D158) + COUNTIF(Event17!$D:$D, D158) + COUNTIF(Event18!$D:$D, D158) + COUNTIF(Event19!$D:$D, D158) + COUNTIF(Event20!$D:$D, D158) + COUNTIF(Event21!$D:$D, D158) + COUNTIF(Event22!$D:$D, D158) + COUNTIF(Event23!$D:$D, D158) + COUNTIF(Event24!$D:$D, D158) + COUNTIF(Event25!$D:$D, D158) + COUNTIF(Event26!$D:$D, D158) + COUNTIF(Event27!$D:$D, D158) + COUNTIF(Event28!$D:$D, D158) + COUNTIF(Event29!$D:$D, D158) + COUNTIF(Event30!$D:$D, D158) + COUNTIF(Event31!$D:$D, D158) + COUNTIF(Event32!$D:$D, D158) + COUNTIF(Event33!$D:$D, D158) + COUNTIF(Event34!$D:$D, D158) + COUNTIF(Event35!$D:$D, D158) + 0","v":2},{"$f":"INDEX(Dues!$D$6:$D$1000,MATCH(Home!$D158,Dues!$D$6:$D$1000, 0),)","v":"lmh5981"}]
["Nicholas","Franchi","Fr","njf5314",{"$f":"COUNTIF(Event1!$D:$D, D159) + COUNTIF(Event2!$D:$D, D159) + COUNTIF(Event3!$D:$D, D159) + COUNTIF(Event4!$D:$D, D159) + COUNTIF(Event5!$D:$D, D159) + COUNTIF(Event6!$D:$D, D159) + COUNTIF(Event7!$D:$D, D159) + COUNTIF(Event8!$D:$D, D159) + COUNTIF(Event9!$D:$D, D159) + COUNTIF(Event10!$D:$D, D159) + COUNTIF(Event11!$D:$D, D159) + COUNTIF(Event12!$D:$D, D159) + COUNTIF(Event13!$D:$D, D159) + COUNTIF(Event14!$D:$D, D159) + COUNTIF(Event15!$D:$D, D159) + COUNTIF(Event16!$D:$D, D159) + COUNTIF(Event17!$D:$D, D159) + COUNTIF(Event18!$D:$D, D159) + COUNTIF(Event19!$D:$D, D159) + COUNTIF(Event20!$D:$D, D159) + COUNTIF(Event21!$D:$D, D159) + COUNTIF(Event22!$D:$D, D159) + COUNTIF(Event23!$D:$D, D159) + COUNTIF(Event24!$D:$D, D159) + COUNTIF(Event25!$D:$D, D159) + COUNTIF(Event26!$D:$D, D159) + COUNTIF(Event27!$D:$D, D159) + COUNTIF(Event28!$D:$D, D159) + COUNTIF(Event29!$D:$D, D159) + COUNTIF(Event30!$D:$D, D159) + COUNTIF(Event31!$D:$D, D159) + COUNTIF(Event32!$D:$D, D159) + COUNTIF(Event33!$D:$D, D159) + COUNTIF(Event34!$D:$D, D159) + COUNTIF(Event35!$D:$D, D159) + 0","v":1},{"$f":"INDEX(Dues!$D$6:$D$1000,MATCH(Home!$D159,Dues!$D$6:$D$1000, 0),)","v":"njf5314"}]
["Reilly","McCarthy","Fr","rxm1146",{"$f":"COUNTIF(Event1!$D:$D, D160) + COUNTIF(Event2!$D:$D, D160) + COUNTIF(Event3!$D:$D, D160) + COUNTIF(Event4!$D:$D, D160) + COUNTIF(Event5!$D:$D, D160) + COUNTIF(Event6!$D:$D, D160) + COUNTIF(Event7!$D:$D, D160) + COUNTIF(Event8!$D:$D, D160) + COUNTIF(Event9!$D:$D, D160) + COUNTIF(Event10!$D:$D, D160) + COUNTIF(Event11!$D:$D, D160) + COUNTIF(Event12!$D:$D, D160) + COUNTIF(Event13!$D:$D, D160) + COUNTIF(Event14!$D:$D, D160) + COUNTIF(Event15!$D:$D, D160) + COUNTIF(Event16!$D:$D, D160) + COUNTIF(Event17!$D:$D, D160) + COUNTIF(Event18!$D:$D, D160) + COUNTIF(Event19!$D:$D, D160) + COUNTIF(Event20!$D:$D, D160) + COUNTIF(Event21!$D:$D, D160) + COUNTIF(Event22!$D:$D, D160) + COUNTIF(Event23!$D:$D, D160) + COUNTIF(Event24!$D:$D, D160) + COUNTIF(Event25!$D:$D, D160) + COUNTIF(Event26!$D:$D, D160) + COUNTIF(Event27!$D:$D, D160) + COUNTIF(Event28!$D:$D, D160) + COUNTIF(Event29!$D:$D, D160) + COUNTIF(Event30!$D:$D, D160) + COUNTIF(Event31!$D:$D, D160) + COUNTIF(Event32!$D:$D, D160) + COUNTIF(Event33!$D:$D, D160) + COUNTIF(Event34!$D:$D, D160) + COUNTIF(Event35!$D:$D, D160) + 0","v":1},{"$f":"INDEX(Dues!$D$6:$D$1000,MATCH(Home!$D160,Dues!$D$6:$D$1000, 0),)","v":"rxm1146"}]
["Hongyan","Ke","Fr","hjk5307",{"$f":"COUNTIF(Event1!$D:$D, D161) + COUNTIF(Event2!$D:$D, D161) + COUNTIF(Event3!$D:$D, D161) + COUNTIF(Event4!$D:$D, D161) + COUNTIF(Event5!$D:$D, D161) + COUNTIF(Event6!$D:$D, D161) + COUNTIF(Event7!$D:$D, D161) + COUNTIF(Event8!$D:$D, D161) + COUNTIF(Event9!$D:$D, D161) + COUNTIF(Event10!$D:$D, D161) + COUNTIF(Event11!$D:$D, D161) + COUNTIF(Event12!$D:$D, D161) + COUNTIF(Event13!$D:$D, D161) + COUNTIF(Event14!$D:$D, D161) + COUNTIF(Event15!$D:$D, D161) + COUNTIF(Event16!$D:$D, D161) + COUNTIF(Event17!$D:$D, D161) + COUNTIF(Event18!$D:$D, D161) + COUNTIF(Event19!$D:$D, D161) + COUNTIF(Event20!$D:$D, D161) + COUNTIF(Event21!$D:$D, D161) + COUNTIF(Event22!$D:$D, D161) + COUNTIF(Event23!$D:$D, D161) + COUNTIF(Event24!$D:$D, D161) + COUNTIF(Event25!$D:$D, D161) + COUNTIF(Event26!$D:$D, D161) + COUNTIF(Event27!$D:$D, D161) + COUNTIF(Event28!$D:$D, D161) + COUNTIF(Event29!$D:$D, D161) + COUNTIF(Event30!$D:$D, D161) + COUNTIF(Event31!$D:$D, D161) + COUNTIF(Event32!$D:$D, D161) + COUNTIF(Event33!$D:$D, D161) + COUNTIF(Event34!$D:$D, D161) + COUNTIF(Event35!$D:$D, D161) + 0","v":1},{"$f":"INDEX(Dues!$D$6:$D$1000,MATCH(Home!$D161,Dues!$D$6:$D$1000, 0),)","v":{"$error":"#N/A"}}]
["Kristin","Sickau","Jr","kxs823",{"$f":"COUNTIF(Event1!$D:$D, D162) + COUNTIF(Event2!$D:$D, D162) + COUNTIF(Event3!$D:$D, D162) + COUNTIF(Event4!$D:$D, D162) + COUNTIF(Event5!$D:$D, D162) + COUNTIF(Event6!$D:$D, D162) + COUNTIF(Event7!$D:$D, D162) + COUNTIF(Event8!$D:$D, D162) + COUNTIF(Event9!$D:$D, D162) + COUNTIF(Event10!$D:$D, D162) + COUNTIF(Event11!$D:$D, D162) + COUNTIF(Event12!$D:$D, D162) + COUNTIF(Event13!$D:$D, D162) + COUNTIF(Event14!$D:$D, D162) + COUNTIF(Event15!$D:$D, D162) + COUNTIF(Event16!$D:$D, D162) + COUNTIF(Event17!$D:$D, D162) + COUNTIF(Event18!$D:$D, D162) + COUNTIF(Event19!$D:$D, D162) + COUNTIF(Event20!$D:$D, D162) + COUNTIF(Event21!$D:$D, D162) + COUNTIF(Event22!$D:$D, D162) + COUNTIF(Event23!$D:$D, D162) + COUNTIF(Event24!$D:$D, D162) + COUNTIF(Event25!$D:$D, D162) + COUNTIF(Event26!$D:$D, D162) + COUNTIF(Event27!$D:$D, D162) + COUNTIF(Event28!$D:$D, D162) + COUNTIF(Event29!$D:$D, D162) + COUNTIF(Event30!$D:$D, D162) + COUNTIF(Event31!$D:$D, D162) + COUNTIF(Event32!$D:$D, D162) + COUNTIF(Event33!$D:$D, D162) + COUNTIF(Event34!$D:$D, D162) + COUNTIF(Event35!$D:$D, D162) + 0","v":2},{"$f":"INDEX(Dues!$D$6:$D$1000,MATCH(Home!$D162,Dues!$D$6:$D$1000, 0),)","v":{"$error":"#N/A"}}]
["Brent","Nachison","Sr","bjn5158",{"$f":"COUNTIF(Event1!$D:$D, D163) + COUNTIF(Event2!$D:$D, D163) + COUNTIF(Event3!$D:$D, D163) + COUNTIF(Event4!$D:$D, D163) + COUNTIF(Event5!$D:$D, D163) + COUNTIF(Event6!$D:$D, D163) + COUNTIF(Event7!$D:$D, D163) + COUNTIF(Event8!$D:$D, D163) + COUNTIF(Event9!$D:$D, D163) + COUNTIF(Event10!$D:$D, D163) + COUNTIF(Event11!$D:$D, D163) + COUNTIF(Event12!$D:$D, D163) + COUNTIF(Event13!$D:$D, D163) + COUNTIF(Event14!$D:$D, D163) + COUNTIF(Event15!$D:$D, D163) + COUNTIF(Event16!$D:$D, D163) + COUNTIF(Event17!$D:$D, D163) + COUNTIF(Event18!$D:$D, D163) + COUNTIF(Event19!$D:$D, D163) + COUNTIF(Event20!$D:$D, D163) + COUNTIF(Event21!$D:$D, D163) + COUNTIF(Event22!$D:$D, D163) + COUNTIF(Event23!$D:$D, D163) + COUNTIF(Event24!$D:$D, D163) + COUNTIF(Event25!$D:$D, D163) + COUNTIF(Event26!$D:$D, D163) + COUNTIF(Event27!$D:$D, D163) + COUNTIF(Event28!$D:$D, D163) + COUNTIF(Event29!$D:$D, D163) + COUNTIF(Event30!$D:$D, D163) + COUNTIF(Event31!$D:$D, D163) + COUNTIF(Event32!$D:$D, D163) + COUNTIF(Event33!$D:$D, D163) + COUNTIF(Event34!$D:$D, D163) + COUNTIF(Event35!$D:$D, D163) + 0","v":1},{"$f":"INDEX(Dues!$D$6:$D$1000,MATCH(Home!$D163,Dues!$D$6:$D$1000, 0),)","v":"bjn5158"}]
["Anran","Chen","So","axc5921",{"$f":"COUNTIF(Event1!$D:$D, D164) + COUNTIF(Event2!$D:$D, D164) + COUNTIF(Event3!$D:$D, D164) + COUNTIF(Event4!$D:$D, D164) + COUNTIF(Event5!$D:$D, D164) + COUNTIF(Event6!$D:$D, D164) + COUNTIF(Event7!$D:$D, D164) + COUNTIF(Event8!$D:$D, D164) + COUNTIF(Event9!$D:$D, D164) + COUNTIF(Event10!$D:$D, D164) + COUNTIF(Event11!$D:$D, D164) + COUNTIF(Event12!$D:$D, D164) + COUNTIF(Event13!$D:$D, D164) + COUNTIF(Event14!$D:$D, D164) + COUNTIF(Event15!$D:$D, D164) + COUNTIF(Event16!$D:$D, D164) + COUNTIF(Event17!$D:$D, D164) + COUNTIF(Event18!$D:$D, D164) + COUNTIF(Event19!$D:$D, D164) + COUNTIF(Event20!$D:$D, D164) + COUNTIF(Event21!$D:$D, D164) + COUNTIF(Event22!$D:$D, D164) + COUNTIF(Event23!$D:$D, D164) + COUNTIF(Event24!$D:$D, D164) + COUNTIF(Event25!$D:$D, D164) + COUNTIF(Event26!$D:$D, D164) + COUNTIF(Event27!$D:$D, D164) + COUNTIF(Event28!$D:$D, D164) + COUNTIF(Event29!$D:$D, D164) + COUNTIF(Event30!$D:$D, D164) + COUNTIF(Event31!$D:$D, D164) + COUNTIF(Event32!$D:$D, D164) + COUNTIF(Event33!$D:$D, D164) + COUNTIF(Event34!$D:$D, D164) + COUNTIF(Event35!$D:$D, D164) + 0","v":1},{"$f":"INDEX(Dues!$D$6:$D$1000,MATCH(Home!$D164,Dues!$D$6:$D$1000, 0),)","v":{"$error":"#N/A"}}]
["Jie","Chen","Jr","jqc6228",{"$f":"COUNTIF(Event1!$D:$D, D165) + COUNTIF(Event2!$D:$D, D165) + COUNTIF(Event3!$D:$D, D165) + COUNTIF(Event4!$D:$D, D165) + COUNTIF(Event5!$D:$D, D165) + COUNTIF(Event6!$D:$D, D165) + COUNTIF(Event7!$D:$D, D165) + COUNTIF(Event8!$D:$D, D165) + COUNTIF(Event9!$D:$D, D165) + COUNTIF(Event10!$D:$D, D165) + COUNTIF(Event11!$D:$D, D165) + COUNTIF(Event12!$D:$D, D165) + COUNTIF(Event13!$D:$D, D165) + COUNTIF(Event14!$D:$D, D165) + COUNTIF(Event15!$D:$D, D165) + COUNTIF(Event16!$D:$D, D165) + COUNTIF(Event17!$D:$D, D165) + COUNTIF(Event18!$D:$D, D165) + COUNTIF(Event19!$D:$D, D165) + COUNTIF(Event20!$D:$D, D165) + COUNTIF(Event21!$D:$D, D165) + COUNTIF(Event22!$D:$D, D165) + COUNTIF(Event23!$D:$D, D165) + COUNTIF(Event24!$D:$D, D165) + COUNTIF(Event25!$D:$D, D165) + COUNTIF(Event26!$D:$D, D165) + COUNTIF(Event27!$D:$D, D165) + COUNTIF(Event28!$D:$D, D165) + COUNTIF(Event29!$D:$D, D165) + COUNTIF(Event30!$D:$D, D165) + COUNTIF(Event31!$D:$D, D165) + COUNTIF(Event32!$D:$D, D165) + COUNTIF(Event33!$D:$D, D165) + COUNTIF(Event34!$D:$D, D165) + COUNTIF(Event35!$D:$D, D165) + 0","v":1},{"$f":"INDEX(Dues!$D$6:$D$1000,MATCH(Home!$D165,Dues!$D$6:$D$1000, 0),)","v":{"$error":"#N/A"}}]
["Xingyu","Pan","So","xjp5020",{"$f":"COUNTIF(Event1!$D:$D, D166) + COUNTIF(Event2!$D:$D, D166) + COUNTIF(Event3!$D:$D, D166) + COUNTIF(Event4!$D:$D, D166) + COUNTIF(Event5!$D:$D, D166) + COUNTIF(Event6!$D:$D, D166) + COUNTIF(Event7!$D:$D, D166) + COUNTIF(Event8!$D:$D, D166) + COUNTIF(Event9!$D:$D, D166) + COUNTIF(Event10!$D:$D, D166) + COUNTIF(Event11!$D:$D, D166) + COUNTIF(Event12!$D:$D, D166) + COUNTIF(Event13!$D:$D, D166) + COUNTIF(Event14!$D:$D, D166) + COUNTIF(Event15!$D:$D, D166) + COUNTIF(Event16!$D:$D, D166) + COUNTIF(Event17!$D:$D, D166) + COUNTIF(Event18!$D:$D, D166) + COUNTIF(Event19!$D:$D, D166) + COUNTIF(Event20!$D:$D, D166) + COUNTIF(Event21!$D:$D, D166) + COUNTIF(Event22!$D:$D, D166) + COUNTIF(Event23!$D:$D, D166) + COUNTIF(Event24!$D:$D, D166) + COUNTIF(Event25!$D:$D, D166) + COUNTIF(Event26!$D:$D, D166) + COUNTIF(Event27!$D:$D, D166) + COUNTIF(Event28!$D:$D, D166) + COUNTIF(Event29!$D:$D, D166) + COUNTIF(Event30!$D:$D, D166) + COUNTIF(Event31!$D:$D, D166) + COUNTIF(Event32!$D:$D, D166) + COUNTIF(Event33!$D:$D, D166) + COUNTIF(Event34!$D:$D, D166) + COUNTIF(Event35!$D:$D, D166) + 0","v":1},{"$f":"INDEX(Dues!$D$6:$D$1000,MATCH(Home!$D166,Dues!$D$6:$D$1000, 0),)","v":{"$error":"#N/A"}}]
["Peiyue","Feng","Jr","ppf5042",{"$f":"COUNTIF(Event1!$D:$D, D167) + COUNTIF(Event2!$D:$D, D167) + COUNTIF(Event3!$D:$D, D167) + COUNTIF(Event4!$D:$D, D167) + COUNTIF(Event5!$D:$D, D167) + COUNTIF(Event6!$D:$D, D167) + COUNTIF(Event7!$D:$D, D167) + COUNTIF(Event8!$D:$D, D167) + COUNTIF(Event9!$D:$D, D167) + COUNTIF(Event10!$D:$D, D167) + COUNTIF(Event11!$D:$D, D167) + COUNTIF(Event12!$D:$D, D167) + COUNTIF(Event13!$D:$D, D167) + COUNTIF(Event14!$D:$D, D167) + COUNTIF(Event15!$D:$D, D167) + COUNTIF(Event16!$D:$D, D167) + COUNTIF(Event17!$D:$D, D167) + COUNTIF(Event18!$D:$D, D167) + COUNTIF(Event19!$D:$D, D167) + COUNTIF(Event20!$D:$D, D167) + COUNTIF(Event21!$D:$D, D167) + COUNTIF(Event22!$D:$D, D167) + COUNTIF(Event23!$D:$D, D167) + COUNTIF(Event24!$D:$D, D167) + COUNTIF(Event25!$D:$D, D167) + COUNTIF(Event26!$D:$D, D167) + COUNTIF(Event27!$D:$D, D167) + COUNTIF(Event28!$D:$D, D167) + COUNTIF(Event29!$D:$D, D167) + COUNTIF(Event30!$D:$D, D167) + COUNTIF(Event31!$D:$D, D167) + COUNTIF(Event32!$D:$D, D167) + COUNTIF(Event33!$D:$D, D167) + COUNTIF(Event34!$D:$D, D167) + COUNTIF(Event35!$D:$D, D167) + 0","v":1},{"$f":"INDEX(Dues!$D$6:$D$1000,MATCH(Home!$D167,Dues!$D$6:$D$1000, 0),)","v":{"$error":"#N/A"}}]
["Xiuqi","Liu","Jr","xzl5304",{"$f":"COUNTIF(Event1!$D:$D, D168) + COUNTIF(Event2!$D:$D, D168) + COUNTIF(Event3!$D:$D, D168) + COUNTIF(Event4!$D:$D, D168) + COUNTIF(Event5!$D:$D, D168) + COUNTIF(Event6!$D:$D, D168) + COUNTIF(Event7!$D:$D, D168) + COUNTIF(Event8!$D:$D, D168) + COUNTIF(Event9!$D:$D, D168) + COUNTIF(Event10!$D:$D, D168) + COUNTIF(Event11!$D:$D, D168) + COUNTIF(Event12!$D:$D, D168) + COUNTIF(Event13!$D:$D, D168) + COUNTIF(Event14!$D:$D, D168) + COUNTIF(Event15!$D:$D, D168) + COUNTIF(Event16!$D:$D, D168) + COUNTIF(Event17!$D:$D, D168) + COUNTIF(Event18!$D:$D, D168) + COUNTIF(Event19!$D:$D, D168) + COUNTIF(Event20!$D:$D, D168) + COUNTIF(Event21!$D:$D, D168) + COUNTIF(Event22!$D:$D, D168) + COUNTIF(Event23!$D:$D, D168) + COUNTIF(Event24!$D:$D, D168) + COUNTIF(Event25!$D:$D, D168) + COUNTIF(Event26!$D:$D, D168) + COUNTIF(Event27!$D:$D, D168) + COUNTIF(Event28!$D:$D, D168) + COUNTIF(Event29!$D:$D, D168) + COUNTIF(Event30!$D:$D, D168) + COUNTIF(Event31!$D:$D, D168) + COUNTIF(Event32!$D:$D, D168) + COUNTIF(Event33!$D:$D, D168) + COUNTIF(Event34!$D:$D, D168) + COUNTIF(Event35!$D:$D, D168) + 0","v":1},{"$f":"INDEX(Dues!$D$6:$D$1000,MATCH(Home!$D168,Dues!$D$6:$D$1000, 0),)","v":{"$error":"#N/A"}}]
["Calvin","Lien","Jr","cvl4",{"$f":"COUNTIF(Event1!$D:$D, D169) + COUNTIF(Event2!$D:$D, D169) + COUNTIF(Event3!$D:$D, D169) + COUNTIF(Event4!$D:$D, D169) + COUNTIF(Event5!$D:$D, D169) + COUNTIF(Event6!$D:$D, D169) + COUNTIF(Event7!$D:$D, D169) + COUNTIF(Event8!$D:$D, D169) + COUNTIF(Event9!$D:$D, D169) + COUNTIF(Event10!$D:$D, D169) + COUNTIF(Event11!$D:$D, D169) + COUNTIF(Event12!$D:$D, D169) + COUNTIF(Event13!$D:$D, D169) + COUNTIF(Event14!$D:$D, D169) + COUNTIF(Event15!$D:$D, D169) + COUNTIF(Event16!$D:$D, D169) + COUNTIF(Event17!$D:$D, D169) + COUNTIF(Event18!$D:$D, D169) + COUNTIF(Event19!$D:$D, D169) + COUNTIF(Event20!$D:$D, D169) + COUNTIF(Event21!$D:$D, D169) + COUNTIF(Event22!$D:$D, D169) + COUNTIF(Event23!$D:$D, D169) + COUNTIF(Event24!$D:$D, D169) + COUNTIF(Event25!$D:$D, D169) + COUNTIF(Event26!$D:$D, D169) + COUNTIF(Event27!$D:$D, D169) + COUNTIF(Event28!$D:$D, D169) + COUNTIF(Event29!$D:$D, D169) + COUNTIF(Event30!$D:$D, D169) + COUNTIF(Event31!$D:$D, D169) + COUNTIF(Event32!$D:$D, D169) + COUNTIF(Event33!$D:$D, D169) + COUNTIF(Event34!$D:$D, D169) + COUNTIF(Event35!$D:$D, D169) + 0","v":1},{"$f":"INDEX(Dues!$D$6:$D$1000,MATCH(Home!$D169,Dues!$D$6:$D$1000, 0),)","v":{"$error":"#N/A"}}]
["Sicong","Zhao","Jr","svz5249",{"$f":"COUNTIF(Event1!$D:$D, D170) + COUNTIF(Event2!$D:$D, D170) + COUNTIF(Event3!$D:$D, D170) + COUNTIF(Event4!$D:$D, D170) + COUNTIF(Event5!$D:$D, D170) + COUNTIF(Event6!$D:$D, D170) + COUNTIF(Event7!$D:$D, D170) + COUNTIF(Event8!$D:$D, D170) + COUNTIF(Event9!$D:$D, D170) + COUNTIF(Event10!$D:$D, D170) + COUNTIF(Event11!$D:$D, D170) + COUNTIF(Event12!$D:$D, D170) + COUNTIF(Event13!$D:$D, D170) + COUNTIF(Event14!$D:$D, D170) + COUNTIF(Event15!$D:$D, D170) + COUNTIF(Event16!$D:$D, D170) + COUNTIF(Event17!$D:$D, D170) + COUNTIF(Event18!$D:$D, D170) + COUNTIF(Event19!$D:$D, D170) + COUNTIF(Event20!$D:$D, D170) + COUNTIF(Event21!$D:$D, D170) + COUNTIF(Event22!$D:$D, D170) + COUNTIF(Event23!$D:$D, D170) + COUNTIF(Event24!$D:$D, D170) + COUNTIF(Event25!$D:$D, D170) + COUNTIF(Event26!$D:$D, D170) + COUNTIF(Event27!$D:$D, D170) + COUNTIF(Event28!$D:$D, D170) + COUNTIF(Event29!$D:$D, D170) + COUNTIF(Event30!$D:$D, D170) + COUNTIF(Event31!$D:$D, D170) + COUNTIF(Event32!$D:$D, D170) + COUNTIF(Event33!$D:$D, D170) + COUNTIF(Event34!$D:$D, D170) + COUNTIF(Event35!$D:$D, D170) + 0","v":1},{"$f":"INDEX(Dues!$D$6:$D$1000,MATCH(Home!$D170,Dues!$D$6:$D$1000, 0),)","v":{"$error":"#N/A"}}]
["Zhi","Li","Jr","zzl5300",{"$f":"COUNTIF(Event1!$D:$D, D171) + COUNTIF(Event2!$D:$D, D171) + COUNTIF(Event3!$D:$D, D171) + COUNTIF(Event4!$D:$D, D171) + COUNTIF(Event5!$D:$D, D171) + COUNTIF(Event6!$D:$D, D171) + COUNTIF(Event7!$D:$D, D171) + COUNTIF(Event8!$D:$D, D171) + COUNTIF(Event9!$D:$D, D171) + COUNTIF(Event10!$D:$D, D171) + COUNTIF(Event11!$D:$D, D171) + COUNTIF(Event12!$D:$D, D171) + COUNTIF(Event13!$D:$D, D171) + COUNTIF(Event14!$D:$D, D171) + COUNTIF(Event15!$D:$D, D171) + COUNTIF(Event16!$D:$D, D171) + COUNTIF(Event17!$D:$D, D171) + COUNTIF(Event18!$D:$D, D171) + COUNTIF(Event19!$D:$D, D171) + COUNTIF(Event20!$D:$D, D171) + COUNTIF(Event21!$D:$D, D171) + COUNTIF(Event22!$D:$D, D171) + COUNTIF(Event23!$D:$D, D171) + COUNTIF(Event24!$D:$D, D171) + COUNTIF(Event25!$D:$D, D171) + COUNTIF(Event26!$D:$D, D171) + COUNTIF(Event27!$D:$D, D171) + COUNTIF(Event28!$D:$D, D171) + COUNTIF(Event29!$D:$D, D171) + COUNTIF(Event30!$D:$D, D171) + COUNTIF(Event31!$D:$D, D171) + COUNTIF(Event32!$D:$D, D171) + COUNTIF(Event33!$D:$D, D171) + COUNTIF(Event34!$D:$D, D171) + COUNTIF(Event35!$D:$D, D171) + 0","v":1},{"$f":"INDEX(Dues!$D$6:$D$1000,MATCH(Home!$D171,Dues!$D$6:$D$1000, 0),)","v":"zzl5300"}]
["Bowen","Zhang","Jr","bjz5110",{"$f":"COUNTIF(Event1!$D:$D, D172) + COUNTIF(Event2!$D:$D, D172) + COUNTIF(Event3!$D:$D, D172) + COUNTIF(Event4!$D:$D, D172) + COUNTIF(Event5!$D:$D, D172) + COUNTIF(Event6!$D:$D, D172) + COUNTIF(Event7!$D:$D, D172) + COUNTIF(Event8!$D:$D, D172) + COUNTIF(Event9!$D:$D, D172) + COUNTIF(Event10!$D:$D, D172) + COUNTIF(Event11!$D:$D, D172) + COUNTIF(Event12!$D:$D, D172) + COUNTIF(Event13!$D:$D, D172) + COUNTIF(Event14!$D:$D, D172) + COUNTIF(Event15!$D:$D, D172) + COUNTIF(Event16!$D:$D, D172) + COUNTIF(Event17!$D:$D, D172) + COUNTIF(Event18!$D:$D, D172) + COUNTIF(Event19!$D:$D, D172) + COUNTIF(Event20!$D:$D, D172) + COUNTIF(Event21!$D:$D, D172) + COUNTIF(Event22!$D:$D, D172) + COUNTIF(Event23!$D:$D, D172) + COUNTIF(Event24!$D:$D, D172) + COUNTIF(Event25!$D:$D, D172) + COUNTIF(Event26!$D:$D, D172) + COUNTIF(Event27!$D:$D, D172) + COUNTIF(Event28!$D:$D, D172) + COUNTIF(Event29!$D:$D, D172) + COUNTIF(Event30!$D:$D, D172) + COUNTIF(Event31!$D:$D, D172) + COUNTIF(Event32!$D:$D, D172) + COUNTIF(Event33!$D:$D, D172) + COUNTIF(Event34!$D:$D, D172) + COUNTIF(Event35!$D:$D, D172) + 0","v":1},{"$f":"INDEX(Dues!$D$6:$D$1000,MATCH(Home!$D172,Dues!$D$6:$D$1000, 0),)","v":"bjz5110"}]
["Jiahui","Cheng","Sr","juc454",{"$f":"COUNTIF(Event1!$D:$D, D173) + COUNTIF(Event2!$D:$D, D173) + COUNTIF(Event3!$D:$D, D173) + COUNTIF(Event4!$D:$D, D173) + COUNTIF(Event5!$D:$D, D173) + COUNTIF(Event6!$D:$D, D173) + COUNTIF(Event7!$D:$D, D173) + COUNTIF(Event8!$D:$D, D173) + COUNTIF(Event9!$D:$D, D173) + COUNTIF(Event10!$D:$D, D173) + COUNTIF(Event11!$D:$D, D173) + COUNTIF(Event12!$D:$D, D173) + COUNTIF(Event13!$D:$D, D173) + COUNTIF(Event14!$D:$D, D173) + COUNTIF(Event15!$D:$D, D173) + COUNTIF(Event16!$D:$D, D173) + COUNTIF(Event17!$D:$D, D173) + COUNTIF(Event18!$D:$D, D173) + COUNTIF(Event19!$D:$D, D173) + COUNTIF(Event20!$D:$D, D173) + COUNTIF(Event21!$D:$D, D173) + COUNTIF(Event22!$D:$D, D173) + COUNTIF(Event23!$D:$D, D173) + COUNTIF(Event24!$D:$D, D173) + COUNTIF(Event25!$D:$D, D173) + COUNTIF(Event26!$D:$D, D173) + COUNTIF(Event27!$D:$D, D173) + COUNTIF(Event28!$D:$D, D173) + COUNTIF(Event29!$D:$D, D173) + COUNTIF(Event30!$D:$D, D173) + COUNTIF(Event31!$D:$D, D173) + COUNTIF(Event32!$D:$D, D173) + COUNTIF(Event33!$D:$D, D173) + COUNTIF(Event34!$D:$D, D173) + COUNTIF(Event35!$D:$D, D173) + 0","v":1},{"$f":"INDEX(Dues!$D$6:$D$1000,MATCH(Home!$D173,Dues!$D$6:$D$1000, 0),)","v":{"$error":"#N/A"}}]
["guangxuan","cai","Jr","gvc5265",{"$f":"COUNTIF(Event1!$D:$D, D174) + COUNTIF(Event2!$D:$D, D174) + COUNTIF(Event3!$D:$D, D174) + COUNTIF(Event4!$D:$D, D174) + COUNTIF(Event5!$D:$D, D174) + COUNTIF(Event6!$D:$D, D174) + COUNTIF(Event7!$D:$D, D174) + COUNTIF(Event8!$D:$D, D174) + COUNTIF(Event9!$D:$D, D174) + COUNTIF(Event10!$D:$D, D174) + COUNTIF(Event11!$D:$D, D174) + COUNTIF(Event12!$D:$D, D174) + COUNTIF(Event13!$D:$D, D174) + COUNTIF(Event14!$D:$D, D174) + COUNTIF(Event15!$D:$D, D174) + COUNTIF(Event16!$D:$D, D174) + COUNTIF(Event17!$D:$D, D174) + COUNTIF(Event18!$D:$D, D174) + COUNTIF(Event19!$D:$D, D174) + COUNTIF(Event20!$D:$D, D174) + COUNTIF(Event21!$D:$D, D174) + COUNTIF(Event22!$D:$D, D174) + COUNTIF(Event23!$D:$D, D174) + COUNTIF(Event24!$D:$D, D174) + COUNTIF(Event25!$D:$D, D174) + COUNTIF(Event26!$D:$D, D174) + COUNTIF(Event27!$D:$D, D174) + COUNTIF(Event28!$D:$D, D174) + COUNTIF(Event29!$D:$D, D174) + COUNTIF(Event30!$D:$D, D174) + COUNTIF(Event31!$D:$D, D174) + COUNTIF(Event32!$D:$D, D174) + COUNTIF(Event33!$D:$D, D174) + COUNTIF(Event34!$D:$D, D174) + COUNTIF(Event35!$D:$D, D174) + 0","v":1},{"$f":"INDEX(Dues!$D$6:$D$1000,MATCH(Home!$D174,Dues!$D$6:$D$1000, 0),)","v":{"$error":"#N/A"}}]
["Yuxin","Chen","Jr","ymc5216",{"$f":"COUNTIF(Event1!$D:$D, D175) + COUNTIF(Event2!$D:$D, D175) + COUNTIF(Event3!$D:$D, D175) + COUNTIF(Event4!$D:$D, D175) + COUNTIF(Event5!$D:$D, D175) + COUNTIF(Event6!$D:$D, D175) + COUNTIF(Event7!$D:$D, D175) + COUNTIF(Event8!$D:$D, D175) + COUNTIF(Event9!$D:$D, D175) + COUNTIF(Event10!$D:$D, D175) + COUNTIF(Event11!$D:$D, D175) + COUNTIF(Event12!$D:$D, D175) + COUNTIF(Event13!$D:$D, D175) + COUNTIF(Event14!$D:$D, D175) + COUNTIF(Event15!$D:$D, D175) + COUNTIF(Event16!$D:$D, D175) + COUNTIF(Event17!$D:$D, D175) + COUNTIF(Event18!$D:$D, D175) + COUNTIF(Event19!$D:$D, D175) + COUNTIF(Event20!$D:$D, D175) + COUNTIF(Event21!$D:$D, D175) + COUNTIF(Event22!$D:$D, D175) + COUNTIF(Event23!$D:$D, D175) + COUNTIF(Event24!$D:$D, D175) + COUNTIF(Event25!$D:$D, D175) + COUNTIF(Event26!$D:$D, D175) + COUNTIF(Event27!$D:$D, D175) + COUNTIF(Event28!$D:$D, D175) + COUNTIF(Event29!$D:$D, D175) + COUNTIF(Event30!$D:$D, D175) + COUNTIF(Event31!$D:$D, D175) + COUNTIF(Event32!$D:$D, D175) + COUNTIF(Event33!$D:$D, D175) + COUNTIF(Event34!$D:$D, D175) + COUNTIF(Event35!$D:$D, D175) + 0","v":1},{"$f":"INDEX(Dues!$D$6:$D$1000,MATCH(Home!$D175,Dues!$D$6:$D$1000, 0),)","v":"ymc5216"}]
["Xuemeng","Dai","Jr","xmd5023",{"$f":"COUNTIF(Event1!$D:$D, D176) + COUNTIF(Event2!$D:$D, D176) + COUNTIF(Event3!$D:$D, D176) + COUNTIF(Event4!$D:$D, D176) + COUNTIF(Event5!$D:$D, D176) + COUNTIF(Event6!$D:$D, D176) + COUNTIF(Event7!$D:$D, D176) + COUNTIF(Event8!$D:$D, D176) + COUNTIF(Event9!$D:$D, D176) + COUNTIF(Event10!$D:$D, D176) + COUNTIF(Event11!$D:$D, D176) + COUNTIF(Event12!$D:$D, D176) + COUNTIF(Event13!$D:$D, D176) + COUNTIF(Event14!$D:$D, D176) + COUNTIF(Event15!$D:$D, D176) + COUNTIF(Event16!$D:$D, D176) + COUNTIF(Event17!$D:$D, D176) + COUNTIF(Event18!$D:$D, D176) + COUNTIF(Event19!$D:$D, D176) + COUNTIF(Event20!$D:$D, D176) + COUNTIF(Event21!$D:$D, D176) + COUNTIF(Event22!$D:$D, D176) + COUNTIF(Event23!$D:$D, D176) + COUNTIF(Event24!$D:$D, D176) + COUNTIF(Event25!$D:$D, D176) + COUNTIF(Event26!$D:$D, D176) + COUNTIF(Event27!$D:$D, D176) + COUNTIF(Event28!$D:$D, D176) + COUNTIF(Event29!$D:$D, D176) + COUNTIF(Event30!$D:$D, D176) + COUNTIF(Event31!$D:$D, D176) + COUNTIF(Event32!$D:$D, D176) + COUNTIF(Event33!$D:$D, D176) + COUNTIF(Event34!$D:$D, D176) + COUNTIF(Event35!$D:$D, D176) + 0","v":1},{"$f":"INDEX(Dues!$D$6:$D$1000,MATCH(Home!$D176,Dues!$D$6:$D$1000, 0),)","v":{"$error":"#N/A"}}]
["Donglai","Xu","Jr","dzx5030",{"$f":"COUNTIF(Event1!$D:$D, D177) + COUNTIF(Event2!$D:$D, D177) + COUNTIF(Event3!$D:$D, D177) + COUNTIF(Event4!$D:$D, D177) + COUNTIF(Event5!$D:$D, D177) + COUNTIF(Event6!$D:$D, D177) + COUNTIF(Event7!$D:$D, D177) + COUNTIF(Event8!$D:$D, D177) + COUNTIF(Event9!$D:$D, D177) + COUNTIF(Event10!$D:$D, D177) + COUNTIF(Event11!$D:$D, D177) + COUNTIF(Event12!$D:$D, D177) + COUNTIF(Event13!$D:$D, D177) + COUNTIF(Event14!$D:$D, D177) + COUNTIF(Event15!$D:$D, D177) + COUNTIF(Event16!$D:$D, D177) + COUNTIF(Event17!$D:$D, D177) + COUNTIF(Event18!$D:$D, D177) + COUNTIF(Event19!$D:$D, D177) + COUNTIF(Event20!$D:$D, D177) + COUNTIF(Event21!$D:$D, D177) + COUNTIF(Event22!$D:$D, D177) + COUNTIF(Event23!$D:$D, D177) + COUNTIF(Event24!$D:$D, D177) + COUNTIF(Event25!$D:$D, D177) + COUNTIF(Event26!$D:$D, D177) + COUNTIF(Event27!$D:$D, D177) + COUNTIF(Event28!$D:$D, D177) + COUNTIF(Event29!$D:$D, D177) + COUNTIF(Event30!$D:$D, D177) + COUNTIF(Event31!$D:$D, D177) + COUNTIF(Event32!$D:$D, D177) + COUNTIF(Event33!$D:$D, D177) + COUNTIF(Event34!$D:$D, D177) + COUNTIF(Event35!$D:$D, D177) + 0","v":1},{"$f":"INDEX(Dues!$D$6:$D$1000,MATCH(Home!$D177,Dues!$D$6:$D$1000, 0),)","v":{"$error":"#N/A"}}]
["Embody","Cao","Jr","Ezc40",{"$f":"COUNTIF(Event1!$D:$D, D178) + COUNTIF(Event2!$D:$D, D178) + COUNTIF(Event3!$D:$D, D178) + COUNTIF(Event4!$D:$D, D178) + COUNTIF(Event5!$D:$D, D178) + COUNTIF(Event6!$D:$D, D178) + COUNTIF(Event7!$D:$D, D178) + COUNTIF(Event8!$D:$D, D178) + COUNTIF(Event9!$D:$D, D178) + COUNTIF(Event10!$D:$D, D178) + COUNTIF(Event11!$D:$D, D178) + COUNTIF(Event12!$D:$D, D178) + COUNTIF(Event13!$D:$D, D178) + COUNTIF(Event14!$D:$D, D178) + COUNTIF(Event15!$D:$D, D178) + COUNTIF(Event16!$D:$D, D178) + COUNTIF(Event17!$D:$D, D178) + COUNTIF(Event18!$D:$D, D178) + COUNTIF(Event19!$D:$D, D178) + COUNTIF(Event20!$D:$D, D178) + COUNTIF(Event21!$D:$D, D178) + COUNTIF(Event22!$D:$D, D178) + COUNTIF(Event23!$D:$D, D178) + COUNTIF(Event24!$D:$D, D178) + COUNTIF(Event25!$D:$D, D178) + COUNTIF(Event26!$D:$D, D178) + COUNTIF(Event27!$D:$D, D178) + COUNTIF(Event28!$D:$D, D178) + COUNTIF(Event29!$D:$D, D178) + COUNTIF(Event30!$D:$D, D178) + COUNTIF(Event31!$D:$D, D178) + COUNTIF(Event32!$D:$D, D178) + COUNTIF(Event33!$D:$D, D178) + COUNTIF(Event34!$D:$D, D178) + COUNTIF(Event35!$D:$D, D178) + 0","v":1},{"$f":"INDEX(Dues!$D$6:$D$1000,MATCH(Home!$D178,Dues!$D$6:$D$1000, 0),)","v":{"$error":"#N/A"}}]
["Xingliang","Tang","Jr","xmt5011",{"$f":"COUNTIF(Event1!$D:$D, D179) + COUNTIF(Event2!$D:$D, D179) + COUNTIF(Event3!$D:$D, D179) + COUNTIF(Event4!$D:$D, D179) + COUNTIF(Event5!$D:$D, D179) + COUNTIF(Event6!$D:$D, D179) + COUNTIF(Event7!$D:$D, D179) + COUNTIF(Event8!$D:$D, D179) + COUNTIF(Event9!$D:$D, D179) + COUNTIF(Event10!$D:$D, D179) + COUNTIF(Event11!$D:$D, D179) + COUNTIF(Event12!$D:$D, D179) + COUNTIF(Event13!$D:$D, D179) + COUNTIF(Event14!$D:$D, D179) + COUNTIF(Event15!$D:$D, D179) + COUNTIF(Event16!$D:$D, D179) + COUNTIF(Event17!$D:$D, D179) + COUNTIF(Event18!$D:$D, D179) + COUNTIF(Event19!$D:$D, D179) + COUNTIF(Event20!$D:$D, D179) + COUNTIF(Event21!$D:$D, D179) + COUNTIF(Event22!$D:$D, D179) + COUNTIF(Event23!$D:$D, D179) + COUNTIF(Event24!$D:$D, D179) + COUNTIF(Event25!$D:$D, D179) + COUNTIF(Event26!$D:$D, D179) + COUNTIF(Event27!$D:$D, D179) + COUNTIF(Event28!$D:$D, D179) + COUNTIF(Event29!$D:$D, D179) + COUNTIF(Event30!$D:$D, D179) + COUNTIF(Event31!$D:$D, D179) + COUNTIF(Event32!$D:$D, D179) + COUNTIF(Event33!$D:$D, D179) + COUNTIF(Event34!$D:$D, D179) + COUNTIF(Event35!$D:$D, D179) + 0","v":2},{"$f":"INDEX(Dues!$D$6:$D$1000,MATCH(Home!$D179,Dues!$D$6:$D$1000, 0),)","v":{"$error":"#N/A"}}]
["Ben","Hietsch","Sr","bmh5517",{"$f":"COUNTIF(Event1!$D:$D, D180) + COUNTIF(Event2!$D:$D, D180) + COUNTIF(Event3!$D:$D, D180) + COUNTIF(Event4!$D:$D, D180) + COUNTIF(Event5!$D:$D, D180) + COUNTIF(Event6!$D:$D, D180) + COUNTIF(Event7!$D:$D, D180) + COUNTIF(Event8!$D:$D, D180) + COUNTIF(Event9!$D:$D, D180) + COUNTIF(Event10!$D:$D, D180) + COUNTIF(Event11!$D:$D, D180) + COUNTIF(Event12!$D:$D, D180) + COUNTIF(Event13!$D:$D, D180) + COUNTIF(Event14!$D:$D, D180) + COUNTIF(Event15!$D:$D, D180) + COUNTIF(Event16!$D:$D, D180) + COUNTIF(Event17!$D:$D, D180) + COUNTIF(Event18!$D:$D, D180) + COUNTIF(Event19!$D:$D, D180) + COUNTIF(Event20!$D:$D, D180) + COUNTIF(Event21!$D:$D, D180) + COUNTIF(Event22!$D:$D, D180) + COUNTIF(Event23!$D:$D, D180) + COUNTIF(Event24!$D:$D, D180) + COUNTIF(Event25!$D:$D, D180) + COUNTIF(Event26!$D:$D, D180) + COUNTIF(Event27!$D:$D, D180) + COUNTIF(Event28!$D:$D, D180) + COUNTIF(Event29!$D:$D, D180) + COUNTIF(Event30!$D:$D, D180) + COUNTIF(Event31!$D:$D, D180) + COUNTIF(Event32!$D:$D, D180) + COUNTIF(Event33!$D:$D, D180) + COUNTIF(Event34!$D:$D, D180) + COUNTIF(Event35!$D:$D, D180) + 0","v":1},{"$f":"INDEX(Dues!$D$6:$D$1000,MATCH(Home!$D180,Dues!$D$6:$D$1000, 0),)","v":{"$error":"#N/A"}}]
["Mingyin","Xie","Jr","mvx5050",{"$f":"COUNTIF(Event1!$D:$D, D181) + COUNTIF(Event2!$D:$D, D181) + COUNTIF(Event3!$D:$D, D181) + COUNTIF(Event4!$D:$D, D181) + COUNTIF(Event5!$D:$D, D181) + COUNTIF(Event6!$D:$D, D181) + COUNTIF(Event7!$D:$D, D181) + COUNTIF(Event8!$D:$D, D181) + COUNTIF(Event9!$D:$D, D181) + COUNTIF(Event10!$D:$D, D181) + COUNTIF(Event11!$D:$D, D181) + COUNTIF(Event12!$D:$D, D181) + COUNTIF(Event13!$D:$D, D181) + COUNTIF(Event14!$D:$D, D181) + COUNTIF(Event15!$D:$D, D181) + COUNTIF(Event16!$D:$D, D181) + COUNTIF(Event17!$D:$D, D181) + COUNTIF(Event18!$D:$D, D181) + COUNTIF(Event19!$D:$D, D181) + COUNTIF(Event20!$D:$D, D181) + COUNTIF(Event21!$D:$D, D181) + COUNTIF(Event22!$D:$D, D181) + COUNTIF(Event23!$D:$D, D181) + COUNTIF(Event24!$D:$D, D181) + COUNTIF(Event25!$D:$D, D181) + COUNTIF(Event26!$D:$D, D181) + COUNTIF(Event27!$D:$D, D181) + COUNTIF(Event28!$D:$D, D181) + COUNTIF(Event29!$D:$D, D181) + COUNTIF(Event30!$D:$D, D181) + COUNTIF(Event31!$D:$D, D181) + COUNTIF(Event32!$D:$D, D181) + COUNTIF(Event33!$D:$D, D181) + COUNTIF(Event34!$D:$D, D181) + COUNTIF(Event35!$D:$D, D181) + 0","v":1},{"$f":"INDEX(Dues!$D$6:$D$1000,MATCH(Home!$D181,Dues!$D$6:$D$1000, 0),)","v":{"$error":"#N/A"}}]
["Yixiao","Jiang",null,"yxj38",{"$f":"COUNTIF(Event1!$D:$D, D182) + COUNTIF(Event2!$D:$D, D182) + COUNTIF(Event3!$D:$D, D182) + COUNTIF(Event4!$D:$D, D182) + COUNTIF(Event5!$D:$D, D182) + COUNTIF(Event6!$D:$D, D182) + COUNTIF(Event7!$D:$D, D182) + COUNTIF(Event8!$D:$D, D182) + COUNTIF(Event9!$D:$D, D182) + COUNTIF(Event10!$D:$D, D182) + COUNTIF(Event11!$D:$D, D182) + COUNTIF(Event12!$D:$D, D182) + COUNTIF(Event13!$D:$D, D182) + COUNTIF(Event14!$D:$D, D182) + COUNTIF(Event15!$D:$D, D182) + COUNTIF(Event16!$D:$D, D182) + COUNTIF(Event17!$D:$D, D182) + COUNTIF(Event18!$D:$D, D182) + COUNTIF(Event19!$D:$D, D182) + COUNTIF(Event20!$D:$D, D182) + COUNTIF(Event21!$D:$D, D182) + COUNTIF(Event22!$D:$D, D182) + COUNTIF(Event23!$D:$D, D182) + COUNTIF(Event24!$D:$D, D182) + COUNTIF(Event25!$D:$D, D182) + COUNTIF(Event26!$D:$D, D182) + COUNTIF(Event27!$D:$D, D182) + COUNTIF(Event28!$D:$D, D182) + COUNTIF(Event29!$D:$D, D182) + COUNTIF(Event30!$D:$D, D182) + COUNTIF(Event31!$D:$D, D182) + COUNTIF(Event32!$D:$D, D182) + COUNTIF(Event33!$D:$D, D182) + COUNTIF(Event34!$D:$D, D182) + COUNTIF(Event35!$D:$D, D182) + 0","v":1},{"$f":"INDEX(Dues!$D$6:$D$1000,MATCH(Home!$D182,Dues!$D$6:$D$1000, 0),)","v":"yxj38"}]
["Jack","Berry",null,"jqb6123",{"$f":"COUNTIF(Event1!$D:$D, D183) + COUNTIF(Event2!$D:$D, D183) + COUNTIF(Event3!$D:$D, D183) + COUNTIF(Event4!$D:$D, D183) + COUNTIF(Event5!$D:$D, D183) + COUNTIF(Event6!$D:$D, D183) + COUNTIF(Event7!$D:$D, D183) + COUNTIF(Event8!$D:$D, D183) + COUNTIF(Event9!$D:$D, D183) + COUNTIF(Event10!$D:$D, D183) + COUNTIF(Event11!$D:$D, D183) + COUNTIF(Event12!$D:$D, D183) + COUNTIF(Event13!$D:$D, D183) + COUNTIF(Event14!$D:$D, D183) + COUNTIF(Event15!$D:$D, D183) + COUNTIF(Event16!$D:$D, D183) + COUNTIF(Event17!$D:$D, D183) + COUNTIF(Event18!$D:$D, D183) + COUNTIF(Event19!$D:$D, D183) + COUNTIF(Event20!$D:$D, D183) + COUNTIF(Event21!$D:$D, D183) + COUNTIF(Event22!$D:$D, D183) + COUNTIF(Event23!$D:$D, D183) + COUNTIF(Event24!$D:$D, D183) + COUNTIF(Event25!$D:$D, D183) + COUNTIF(Event26!$D:$D, D183) + COUNTIF(Event27!$D:$D, D183) + COUNTIF(Event28!$D:$D, D183) + COUNTIF(Event29!$D:$D, D183) + COUNTIF(Event30!$D:$D, D183) + COUNTIF(Event31!$D:$D, D183) + COUNTIF(Event32!$D:$D, D183) + COUNTIF(Event33!$D:$D, D183) + COUNTIF(Event34!$D:$D, D183) + COUNTIF(Event35!$D:$D, D183) + 0","v":1},{"$f":"INDEX(Dues!$D$6:$D$1000,MATCH(Home!$D183,Dues!$D$6:$D$1000, 0),)","v":{"$error":"#N/A"}}]
["Elysia","Liu",null,"yxl482",{"$f":"COUNTIF(Event1!$D:$D, D184) + COUNTIF(Event2!$D:$D, D184) + COUNTIF(Event3!$D:$D, D184) + COUNTIF(Event4!$D:$D, D184) + COUNTIF(Event5!$D:$D, D184) + COUNTIF(Event6!$D:$D, D184) + COUNTIF(Event7!$D:$D, D184) + COUNTIF(Event8!$D:$D, D184) + COUNTIF(Event9!$D:$D, D184) + COUNTIF(Event10!$D:$D, D184) + COUNTIF(Event11!$D:$D, D184) + COUNTIF(Event12!$D:$D, D184) + COUNTIF(Event13!$D:$D, D184) + COUNTIF(Event14!$D:$D, D184) + COUNTIF(Event15!$D:$D, D184) + COUNTIF(Event16!$D:$D, D184) + COUNTIF(Event17!$D:$D, D184) + COUNTIF(Event18!$D:$D, D184) + COUNTIF(Event19!$D:$D, D184) + COUNTIF(Event20!$D:$D, D184) + COUNTIF(Event21!$D:$D, D184) + COUNTIF(Event22!$D:$D, D184) + COUNTIF(Event23!$D:$D, D184) + COUNTIF(Event24!$D:$D, D184) + COUNTIF(Event25!$D:$D, D184) + COUNTIF(Event26!$D:$D, D184) + COUNTIF(Event27!$D:$D, D184) + COUNTIF(Event28!$D:$D, D184) + COUNTIF(Event29!$D:$D, D184) + COUNTIF(Event30!$D:$D, D184) + COUNTIF(Event31!$D:$D, D184) + COUNTIF(Event32!$D:$D, D184) + COUNTIF(Event33!$D:$D, D184) + COUNTIF(Event34!$D:$D, D184) + COUNTIF(Event35!$D:$D, D184) + 0","v":1},{"$f":"INDEX(Dues!$D$6:$D$1000,MATCH(Home!$D184,Dues!$D$6:$D$1000, 0),)","v":"yxl482"}]
["Alexis","Coleman",null,"akc5641",{"$f":"COUNTIF(Event1!$D:$D, D185) + COUNTIF(Event2!$D:$D, D185) + COUNTIF(Event3!$D:$D, D185) + COUNTIF(Event4!$D:$D, D185) + COUNTIF(Event5!$D:$D, D185) + COUNTIF(Event6!$D:$D, D185) + COUNTIF(Event7!$D:$D, D185) + COUNTIF(Event8!$D:$D, D185) + COUNTIF(Event9!$D:$D, D185) + COUNTIF(Event10!$D:$D, D185) + COUNTIF(Event11!$D:$D, D185) + COUNTIF(Event12!$D:$D, D185) + COUNTIF(Event13!$D:$D, D185) + COUNTIF(Event14!$D:$D, D185) + COUNTIF(Event15!$D:$D, D185) + COUNTIF(Event16!$D:$D, D185) + COUNTIF(Event17!$D:$D, D185) + COUNTIF(Event18!$D:$D, D185) + COUNTIF(Event19!$D:$D, D185) + COUNTIF(Event20!$D:$D, D185) + COUNTIF(Event21!$D:$D, D185) + COUNTIF(Event22!$D:$D, D185) + COUNTIF(Event23!$D:$D, D185) + COUNTIF(Event24!$D:$D, D185) + COUNTIF(Event25!$D:$D, D185) + COUNTIF(Event26!$D:$D, D185) + COUNTIF(Event27!$D:$D, D185) + COUNTIF(Event28!$D:$D, D185) + COUNTIF(Event29!$D:$D, D185) + COUNTIF(Event30!$D:$D, D185) + COUNTIF(Event31!$D:$D, D185) + COUNTIF(Event32!$D:$D, D185) + COUNTIF(Event33!$D:$D, D185) + COUNTIF(Event34!$D:$D, D185) + COUNTIF(Event35!$D:$D, D185) + 0","v":2},{"$f":"INDEX(Dues!$D$6:$D$1000,MATCH(Home!$D185,Dues!$D$6:$D$1000, 0),)","v":"akc5641"}]
["Jared","Asprer","Fr","jza550",{"$f":"COUNTIF(Event1!$D:$D, D186) + COUNTIF(Event2!$D:$D, D186) + COUNTIF(Event3!$D:$D, D186) + COUNTIF(Event4!$D:$D, D186) + COUNTIF(Event5!$D:$D, D186) + COUNTIF(Event6!$D:$D, D186) + COUNTIF(Event7!$D:$D, D186) + COUNTIF(Event8!$D:$D, D186) + COUNTIF(Event9!$D:$D, D186) + COUNTIF(Event10!$D:$D, D186) + COUNTIF(Event11!$D:$D, D186) + COUNTIF(Event12!$D:$D, D186) + COUNTIF(Event13!$D:$D, D186) + COUNTIF(Event14!$D:$D, D186) + COUNTIF(Event15!$D:$D, D186) + COUNTIF(Event16!$D:$D, D186) + COUNTIF(Event17!$D:$D, D186) + COUNTIF(Event18!$D:$D, D186) + COUNTIF(Event19!$D:$D, D186) + COUNTIF(Event20!$D:$D, D186) + COUNTIF(Event21!$D:$D, D186) + COUNTIF(Event22!$D:$D, D186) + COUNTIF(Event23!$D:$D, D186) + COUNTIF(Event24!$D:$D, D186) + COUNTIF(Event25!$D:$D, D186) + COUNTIF(Event26!$D:$D, D186) + COUNTIF(Event27!$D:$D, D186) + COUNTIF(Event28!$D:$D, D186) + COUNTIF(Event29!$D:$D, D186) + COUNTIF(Event30!$D:$D, D186) + COUNTIF(Event31!$D:$D, D186) + COUNTIF(Event32!$D:$D, D186) + COUNTIF(Event33!$D:$D, D186) + COUNTIF(Event34!$D:$D, D186) + COUNTIF(Event35!$D:$D, D186) + 0","v":1},{"$f":"INDEX(Dues!$D$6:$D$1000,MATCH(Home!$D186,Dues!$D$6:$D$1000, 0),)","v":{"$error":"#N/A"}}]
["Alex","Hartman","Jr","auh363",{"$f":"COUNTIF(Event1!$D:$D, D187) + COUNTIF(Event2!$D:$D, D187) + COUNTIF(Event3!$D:$D, D187) + COUNTIF(Event4!$D:$D, D187) + COUNTIF(Event5!$D:$D, D187) + COUNTIF(Event6!$D:$D, D187) + COUNTIF(Event7!$D:$D, D187) + COUNTIF(Event8!$D:$D, D187) + COUNTIF(Event9!$D:$D, D187) + COUNTIF(Event10!$D:$D, D187) + COUNTIF(Event11!$D:$D, D187) + COUNTIF(Event12!$D:$D, D187) + COUNTIF(Event13!$D:$D, D187) + COUNTIF(Event14!$D:$D, D187) + COUNTIF(Event15!$D:$D, D187) + COUNTIF(Event16!$D:$D, D187) + COUNTIF(Event17!$D:$D, D187) + COUNTIF(Event18!$D:$D, D187) + COUNTIF(Event19!$D:$D, D187) + COUNTIF(Event20!$D:$D, D187) + COUNTIF(Event21!$D:$D, D187) + COUNTIF(Event22!$D:$D, D187) + COUNTIF(Event23!$D:$D, D187) + COUNTIF(Event24!$D:$D, D187) + COUNTIF(Event25!$D:$D, D187) + COUNTIF(Event26!$D:$D, D187) + COUNTIF(Event27!$D:$D, D187) + COUNTIF(Event28!$D:$D, D187) + COUNTIF(Event29!$D:$D, D187) + COUNTIF(Event30!$D:$D, D187) + COUNTIF(Event31!$D:$D, D187) + COUNTIF(Event32!$D:$D, D187) + COUNTIF(Event33!$D:$D, D187) + COUNTIF(Event34!$D:$D, D187) + COUNTIF(Event35!$D:$D, D187) + 0","v":1},{"$f":"INDEX(Dues!$D$6:$D$1000,MATCH(Home!$D187,Dues!$D$6:$D$1000, 0),)","v":{"$error":"#N/A"}}]
["Robert","Kooser","Sr","rvk5291",{"$f":"COUNTIF(Event1!$D:$D, D188) + COUNTIF(Event2!$D:$D, D188) + COUNTIF(Event3!$D:$D, D188) + COUNTIF(Event4!$D:$D, D188) + COUNTIF(Event5!$D:$D, D188) + COUNTIF(Event6!$D:$D, D188) + COUNTIF(Event7!$D:$D, D188) + COUNTIF(Event8!$D:$D, D188) + COUNTIF(Event9!$D:$D, D188) + COUNTIF(Event10!$D:$D, D188) + COUNTIF(Event11!$D:$D, D188) + COUNTIF(Event12!$D:$D, D188) + COUNTIF(Event13!$D:$D, D188) + COUNTIF(Event14!$D:$D, D188) + COUNTIF(Event15!$D:$D, D188) + COUNTIF(Event16!$D:$D, D188) + COUNTIF(Event17!$D:$D, D188) + COUNTIF(Event18!$D:$D, D188) + COUNTIF(Event19!$D:$D, D188) + COUNTIF(Event20!$D:$D, D188) + COUNTIF(Event21!$D:$D, D188) + COUNTIF(Event22!$D:$D, D188) + COUNTIF(Event23!$D:$D, D188) + COUNTIF(Event24!$D:$D, D188) + COUNTIF(Event25!$D:$D, D188) + COUNTIF(Event26!$D:$D, D188) + COUNTIF(Event27!$D:$D, D188) + COUNTIF(Event28!$D:$D, D188) + COUNTIF(Event29!$D:$D, D188) + COUNTIF(Event30!$D:$D, D188) + COUNTIF(Event31!$D:$D, D188) + COUNTIF(Event32!$D:$D, D188) + COUNTIF(Event33!$D:$D, D188) + COUNTIF(Event34!$D:$D, D188) + COUNTIF(Event35!$D:$D, D188) + 0","v":1},{"$f":"INDEX(Dues!$D$6:$D$1000,MATCH(Home!$D188,Dues!$D$6:$D$1000, 0),)","v":{"$error":"#N/A"}}]
["Michelle","Liang","Fr","mxl5839",{"$f":"COUNTIF(Event1!$D:$D, D189) + COUNTIF(Event2!$D:$D, D189) + COUNTIF(Event3!$D:$D, D189) + COUNTIF(Event4!$D:$D, D189) + COUNTIF(Event5!$D:$D, D189) + COUNTIF(Event6!$D:$D, D189) + COUNTIF(Event7!$D:$D, D189) + COUNTIF(Event8!$D:$D, D189) + COUNTIF(Event9!$D:$D, D189) + COUNTIF(Event10!$D:$D, D189) + COUNTIF(Event11!$D:$D, D189) + COUNTIF(Event12!$D:$D, D189) + COUNTIF(Event13!$D:$D, D189) + COUNTIF(Event14!$D:$D, D189) + COUNTIF(Event15!$D:$D, D189) + COUNTIF(Event16!$D:$D, D189) + COUNTIF(Event17!$D:$D, D189) + COUNTIF(Event18!$D:$D, D189) + COUNTIF(Event19!$D:$D, D189) + COUNTIF(Event20!$D:$D, D189) + COUNTIF(Event21!$D:$D, D189) + COUNTIF(Event22!$D:$D, D189) + COUNTIF(Event23!$D:$D, D189) + COUNTIF(Event24!$D:$D, D189) + COUNTIF(Event25!$D:$D, D189) + COUNTIF(Event26!$D:$D, D189) + COUNTIF(Event27!$D:$D, D189) + COUNTIF(Event28!$D:$D, D189) + COUNTIF(Event29!$D:$D, D189) + COUNTIF(Event30!$D:$D, D189) + COUNTIF(Event31!$D:$D, D189) + COUNTIF(Event32!$D:$D, D189) + COUNTIF(Event33!$D:$D, D189) + COUNTIF(Event34!$D:$D, D189) + COUNTIF(Event35!$D:$D, D189) + 0","v":1},{"$f":"INDEX(Dues!$D$6:$D$1000,MATCH(Home!$D189,Dues!$D$6:$D$1000, 0),)","v":{"$error":"#N/A"}}]
["Jeffrey","Stevens","Fr","jts5926",{"$f":"COUNTIF(Event1!$D:$D, D190) + COUNTIF(Event2!$D:$D, D190) + COUNTIF(Event3!$D:$D, D190) + COUNTIF(Event4!$D:$D, D190) + COUNTIF(Event5!$D:$D, D190) + COUNTIF(Event6!$D:$D, D190) + COUNTIF(Event7!$D:$D, D190) + COUNTIF(Event8!$D:$D, D190) + COUNTIF(Event9!$D:$D, D190) + COUNTIF(Event10!$D:$D, D190) + COUNTIF(Event11!$D:$D, D190) + COUNTIF(Event12!$D:$D, D190) + COUNTIF(Event13!$D:$D, D190) + COUNTIF(Event14!$D:$D, D190) + COUNTIF(Event15!$D:$D, D190) + COUNTIF(Event16!$D:$D, D190) + COUNTIF(Event17!$D:$D, D190) + COUNTIF(Event18!$D:$D, D190) + COUNTIF(Event19!$D:$D, D190) + COUNTIF(Event20!$D:$D, D190) + COUNTIF(Event21!$D:$D, D190) + COUNTIF(Event22!$D:$D, D190) + COUNTIF(Event23!$D:$D, D190) + COUNTIF(Event24!$D:$D, D190) + COUNTIF(Event25!$D:$D, D190) + COUNTIF(Event26!$D:$D, D190) + COUNTIF(Event27!$D:$D, D190) + COUNTIF(Event28!$D:$D, D190) + COUNTIF(Event29!$D:$D, D190) + COUNTIF(Event30!$D:$D, D190) + COUNTIF(Event31!$D:$D, D190) + COUNTIF(Event32!$D:$D, D190) + COUNTIF(Event33!$D:$D, D190) + COUNTIF(Event34!$D:$D, D190) + COUNTIF(Event35!$D:$D, D190) + 0","v":1},{"$f":"INDEX(Dues!$D$6:$D$1000,MATCH(Home!$D190,Dues!$D$6:$D$1000, 0),)","v":{"$error":"#N/A"}}]
["Haskel","Canagarajah","Fr","hkc536",{"$f":"COUNTIF(Event1!$D:$D, D191) + COUNTIF(Event2!$D:$D, D191) + COUNTIF(Event3!$D:$D, D191) + COUNTIF(Event4!$D:$D, D191) + COUNTIF(Event5!$D:$D, D191) + COUNTIF(Event6!$D:$D, D191) + COUNTIF(Event7!$D:$D, D191) + COUNTIF(Event8!$D:$D, D191) + COUNTIF(Event9!$D:$D, D191) + COUNTIF(Event10!$D:$D, D191) + COUNTIF(Event11!$D:$D, D191) + COUNTIF(Event12!$D:$D, D191) + COUNTIF(Event13!$D:$D, D191) + COUNTIF(Event14!$D:$D, D191) + COUNTIF(Event15!$D:$D, D191) + COUNTIF(Event16!$D:$D, D191) + COUNTIF(Event17!$D:$D, D191) + COUNTIF(Event18!$D:$D, D191) + COUNTIF(Event19!$D:$D, D191) + COUNTIF(Event20!$D:$D, D191) + COUNTIF(Event21!$D:$D, D191) + COUNTIF(Event22!$D:$D, D191) + COUNTIF(Event23!$D:$D, D191) + COUNTIF(Event24!$D:$D, D191) + COUNTIF(Event25!$D:$D, D191) + COUNTIF(Event26!$D:$D, D191) + COUNTIF(Event27!$D:$D, D191) + COUNTIF(Event28!$D:$D, D191) + COUNTIF(Event29!$D:$D, D191) + COUNTIF(Event30!$D:$D, D191) + COUNTIF(Event31!$D:$D, D191) + COUNTIF(Event32!$D:$D, D191) + COUNTIF(Event33!$D:$D, D191) + COUNTIF(Event34!$D:$D, D191) + COUNTIF(Event35!$D:$D, D191) + 0","v":1},{"$f":"INDEX(Dues!$D$6:$D$1000,MATCH(Home!$D191,Dues!$D$6:$D$1000, 0),)","v":{"$error":"#N/A"}}]
["Jack ","Rittenmeyer","Fr","jtr5428",{"$f":"COUNTIF(Event1!$D:$D, D192) + COUNTIF(Event2!$D:$D, D192) + COUNTIF(Event3!$D:$D, D192) + COUNTIF(Event4!$D:$D, D192) + COUNTIF(Event5!$D:$D, D192) + COUNTIF(Event6!$D:$D, D192) + COUNTIF(Event7!$D:$D, D192) + COUNTIF(Event8!$D:$D, D192) + COUNTIF(Event9!$D:$D, D192) + COUNTIF(Event10!$D:$D, D192) + COUNTIF(Event11!$D:$D, D192) + COUNTIF(Event12!$D:$D, D192) + COUNTIF(Event13!$D:$D, D192) + COUNTIF(Event14!$D:$D, D192) + COUNTIF(Event15!$D:$D, D192) + COUNTIF(Event16!$D:$D, D192) + COUNTIF(Event17!$D:$D, D192) + COUNTIF(Event18!$D:$D, D192) + COUNTIF(Event19!$D:$D, D192) + COUNTIF(Event20!$D:$D, D192) + COUNTIF(Event21!$D:$D, D192) + COUNTIF(Event22!$D:$D, D192) + COUNTIF(Event23!$D:$D, D192) + COUNTIF(Event24!$D:$D, D192) + COUNTIF(Event25!$D:$D, D192) + COUNTIF(Event26!$D:$D, D192) + COUNTIF(Event27!$D:$D, D192) + COUNTIF(Event28!$D:$D, D192) + COUNTIF(Event29!$D:$D, D192) + COUNTIF(Event30!$D:$D, D192) + COUNTIF(Event31!$D:$D, D192) + COUNTIF(Event32!$D:$D, D192) + COUNTIF(Event33!$D:$D, D192) + COUNTIF(Event34!$D:$D, D192) + COUNTIF(Event35!$D:$D, D192) + 0","v":1},{"$f":"INDEX(Dues!$D$6:$D$1000,MATCH(Home!$D192,Dues!$D$6:$D$1000, 0),)","v":{"$error":"#N/A"}}]
["Chimwemwe","Mitole","Fr","cmm7638",{"$f":"COUNTIF(Event1!$D:$D, D193) + COUNTIF(Event2!$D:$D, D193) + COUNTIF(Event3!$D:$D, D193) + COUNTIF(Event4!$D:$D, D193) + COUNTIF(Event5!$D:$D, D193) + COUNTIF(Event6!$D:$D, D193) + COUNTIF(Event7!$D:$D, D193) + COUNTIF(Event8!$D:$D, D193) + COUNTIF(Event9!$D:$D, D193) + COUNTIF(Event10!$D:$D, D193) + COUNTIF(Event11!$D:$D, D193) + COUNTIF(Event12!$D:$D, D193) + COUNTIF(Event13!$D:$D, D193) + COUNTIF(Event14!$D:$D, D193) + COUNTIF(Event15!$D:$D, D193) + COUNTIF(Event16!$D:$D, D193) + COUNTIF(Event17!$D:$D, D193) + COUNTIF(Event18!$D:$D, D193) + COUNTIF(Event19!$D:$D, D193) + COUNTIF(Event20!$D:$D, D193) + COUNTIF(Event21!$D:$D, D193) + COUNTIF(Event22!$D:$D, D193) + COUNTIF(Event23!$D:$D, D193) + COUNTIF(Event24!$D:$D, D193) + COUNTIF(Event25!$D:$D, D193) + COUNTIF(Event26!$D:$D, D193) + COUNTIF(Event27!$D:$D, D193) + COUNTIF(Event28!$D:$D, D193) + COUNTIF(Event29!$D:$D, D193) + COUNTIF(Event30!$D:$D, D193) + COUNTIF(Event31!$D:$D, D193) + COUNTIF(Event32!$D:$D, D193) + COUNTIF(Event33!$D:$D, D193) + COUNTIF(Event34!$D:$D, D193) + COUNTIF(Event35!$D:$D, D193) + 0","v":1},{"$f":"INDEX(Dues!$D$6:$D$1000,MATCH(Home!$D193,Dues!$D$6:$D$1000, 0),)","v":{"$error":"#N/A"}}]
["Kayla","Ellison","So","kle5289",{"$f":"COUNTIF(Event1!$D:$D, D194) + COUNTIF(Event2!$D:$D, D194) + COUNTIF(Event3!$D:$D, D194) + COUNTIF(Event4!$D:$D, D194) + COUNTIF(Event5!$D:$D, D194) + COUNTIF(Event6!$D:$D, D194) + COUNTIF(Event7!$D:$D, D194) + COUNTIF(Event8!$D:$D, D194) + COUNTIF(Event9!$D:$D, D194) + COUNTIF(Event10!$D:$D, D194) + COUNTIF(Event11!$D:$D, D194) + COUNTIF(Event12!$D:$D, D194) + COUNTIF(Event13!$D:$D, D194) + COUNTIF(Event14!$D:$D, D194) + COUNTIF(Event15!$D:$D, D194) + COUNTIF(Event16!$D:$D, D194) + COUNTIF(Event17!$D:$D, D194) + COUNTIF(Event18!$D:$D, D194) + COUNTIF(Event19!$D:$D, D194) + COUNTIF(Event20!$D:$D, D194) + COUNTIF(Event21!$D:$D, D194) + COUNTIF(Event22!$D:$D, D194) + COUNTIF(Event23!$D:$D, D194) + COUNTIF(Event24!$D:$D, D194) + COUNTIF(Event25!$D:$D, D194) + COUNTIF(Event26!$D:$D, D194) + COUNTIF(Event27!$D:$D, D194) + COUNTIF(Event28!$D:$D, D194) + COUNTIF(Event29!$D:$D, D194) + COUNTIF(Event30!$D:$D, D194) + COUNTIF(Event31!$D:$D, D194) + COUNTIF(Event32!$D:$D, D194) + COUNTIF(Event33!$D:$D, D194) + COUNTIF(Event34!$D:$D, D194) + COUNTIF(Event35!$D:$D, D194) + 0","v":1},{"$f":"INDEX(Dues!$D$6:$D$1000,MATCH(Home!$D194,Dues!$D$6:$D$1000, 0),)","v":{"$error":"#N/A"}}]
["Aaron ","Froio","Fr","ajf6043",{"$f":"COUNTIF(Event1!$D:$D, D195) + COUNTIF(Event2!$D:$D, D195) + COUNTIF(Event3!$D:$D, D195) + COUNTIF(Event4!$D:$D, D195) + COUNTIF(Event5!$D:$D, D195) + COUNTIF(Event6!$D:$D, D195) + COUNTIF(Event7!$D:$D, D195) + COUNTIF(Event8!$D:$D, D195) + COUNTIF(Event9!$D:$D, D195) + COUNTIF(Event10!$D:$D, D195) + COUNTIF(Event11!$D:$D, D195) + COUNTIF(Event12!$D:$D, D195) + COUNTIF(Event13!$D:$D, D195) + COUNTIF(Event14!$D:$D, D195) + COUNTIF(Event15!$D:$D, D195) + COUNTIF(Event16!$D:$D, D195) + COUNTIF(Event17!$D:$D, D195) + COUNTIF(Event18!$D:$D, D195) + COUNTIF(Event19!$D:$D, D195) + COUNTIF(Event20!$D:$D, D195) + COUNTIF(Event21!$D:$D, D195) + COUNTIF(Event22!$D:$D, D195) + COUNTIF(Event23!$D:$D, D195) + COUNTIF(Event24!$D:$D, D195) + COUNTIF(Event25!$D:$D, D195) + COUNTIF(Event26!$D:$D, D195) + COUNTIF(Event27!$D:$D, D195) + COUNTIF(Event28!$D:$D, D195) + COUNTIF(Event29!$D:$D, D195) + COUNTIF(Event30!$D:$D, D195) + COUNTIF(Event31!$D:$D, D195) + COUNTIF(Event32!$D:$D, D195) + COUNTIF(Event33!$D:$D, D195) + COUNTIF(Event34!$D:$D, D195) + COUNTIF(Event35!$D:$D, D195) + 0","v":1},{"$f":"INDEX(Dues!$D$6:$D$1000,MATCH(Home!$D195,Dues!$D$6:$D$1000, 0),)","v":{"$error":"#N/A"}}]
["Ryan","Casey","Fr","rkc5390",{"$f":"COUNTIF(Event1!$D:$D, D196) + COUNTIF(Event2!$D:$D, D196) + COUNTIF(Event3!$D:$D, D196) + COUNTIF(Event4!$D:$D, D196) + COUNTIF(Event5!$D:$D, D196) + COUNTIF(Event6!$D:$D, D196) + COUNTIF(Event7!$D:$D, D196) + COUNTIF(Event8!$D:$D, D196) + COUNTIF(Event9!$D:$D, D196) + COUNTIF(Event10!$D:$D, D196) + COUNTIF(Event11!$D:$D, D196) + COUNTIF(Event12!$D:$D, D196) + COUNTIF(Event13!$D:$D, D196) + COUNTIF(Event14!$D:$D, D196) + COUNTIF(Event15!$D:$D, D196) + COUNTIF(Event16!$D:$D, D196) + COUNTIF(Event17!$D:$D, D196) + COUNTIF(Event18!$D:$D, D196) + COUNTIF(Event19!$D:$D, D196) + COUNTIF(Event20!$D:$D, D196) + COUNTIF(Event21!$D:$D, D196) + COUNTIF(Event22!$D:$D, D196) + COUNTIF(Event23!$D:$D, D196) + COUNTIF(Event24!$D:$D, D196) + COUNTIF(Event25!$D:$D, D196) + COUNTIF(Event26!$D:$D, D196) + COUNTIF(Event27!$D:$D, D196) + COUNTIF(Event28!$D:$D, D196) + COUNTIF(Event29!$D:$D, D196) + COUNTIF(Event30!$D:$D, D196) + COUNTIF(Event31!$D:$D, D196) + COUNTIF(Event32!$D:$D, D196) + COUNTIF(Event33!$D:$D, D196) + COUNTIF(Event34!$D:$D, D196) + COUNTIF(Event35!$D:$D, D196) + 0","v":1},{"$f":"INDEX(Dues!$D$6:$D$1000,MATCH(Home!$D196,Dues!$D$6:$D$1000, 0),)","v":{"$error":"#N/A"}}]
["Beard","Mallory","mmb6124","mmb6124",{"$f":"COUNTIF(Event1!$D:$D, D197) + COUNTIF(Event2!$D:$D, D197) + COUNTIF(Event3!$D:$D, D197) + COUNTIF(Event4!$D:$D, D197) + COUNTIF(Event5!$D:$D, D197) + COUNTIF(Event6!$D:$D, D197) + COUNTIF(Event7!$D:$D, D197) + COUNTIF(Event8!$D:$D, D197) + COUNTIF(Event9!$D:$D, D197) + COUNTIF(Event10!$D:$D, D197) + COUNTIF(Event11!$D:$D, D197) + COUNTIF(Event12!$D:$D, D197) + COUNTIF(Event13!$D:$D, D197) + COUNTIF(Event14!$D:$D, D197) + COUNTIF(Event15!$D:$D, D197) + COUNTIF(Event16!$D:$D, D197) + COUNTIF(Event17!$D:$D, D197) + COUNTIF(Event18!$D:$D, D197) + COUNTIF(Event19!$D:$D, D197) + COUNTIF(Event20!$D:$D, D197) + COUNTIF(Event21!$D:$D, D197) + COUNTIF(Event22!$D:$D, D197) + COUNTIF(Event23!$D:$D, D197) + COUNTIF(Event24!$D:$D, D197) + COUNTIF(Event25!$D:$D, D197) + COUNTIF(Event26!$D:$D, D197) + COUNTIF(Event27!$D:$D, D197) + COUNTIF(Event28!$D:$D, D197) + COUNTIF(Event29!$D:$D, D197) + COUNTIF(Event30!$D:$D, D197) + COUNTIF(Event31!$D:$D, D197) + COUNTIF(Event32!$D:$D, D197) + COUNTIF(Event33!$D:$D, D197) + COUNTIF(Event34!$D:$D, D197) + COUNTIF(Event35!$D:$D, D197) + 0","v":0},{"$f":"INDEX(Dues!$D$6:$D$1000,MATCH(Home!$D197,Dues!$D$6:$D$1000, 0),)","v":"mmb6124"}]
["Cao","Enbo","exc40","exc40",{"$f":"COUNTIF(Event1!$D:$D, D198) + COUNTIF(Event2!$D:$D, D198) + COUNTIF(Event3!$D:$D, D198) + COUNTIF(Event4!$D:$D, D198) + COUNTIF(Event5!$D:$D, D198) + COUNTIF(Event6!$D:$D, D198) + COUNTIF(Event7!$D:$D, D198) + COUNTIF(Event8!$D:$D, D198) + COUNTIF(Event9!$D:$D, D198) + COUNTIF(Event10!$D:$D, D198) + COUNTIF(Event11!$D:$D, D198) + COUNTIF(Event12!$D:$D, D198) + COUNTIF(Event13!$D:$D, D198) + COUNTIF(Event14!$D:$D, D198) + COUNTIF(Event15!$D:$D, D198) + COUNTIF(Event16!$D:$D, D198) + COUNTIF(Event17!$D:$D, D198) + COUNTIF(Event18!$D:$D, D198) + COUNTIF(Event19!$D:$D, D198) + COUNTIF(Event20!$D:$D, D198) + COUNTIF(Event21!$D:$D, D198) + COUNTIF(Event22!$D:$D, D198) + COUNTIF(Event23!$D:$D, D198) + COUNTIF(Event24!$D:$D, D198) + COUNTIF(Event25!$D:$D, D198) + COUNTIF(Event26!$D:$D, D198) + COUNTIF(Event27!$D:$D, D198) + COUNTIF(Event28!$D:$D, D198) + COUNTIF(Event29!$D:$D, D198) + COUNTIF(Event30!$D:$D, D198) + COUNTIF(Event31!$D:$D, D198) + COUNTIF(Event32!$D:$D, D198) + COUNTIF(Event33!$D:$D, D198) + COUNTIF(Event34!$D:$D, D198) + COUNTIF(Event35!$D:$D, D198) + 0","v":0},{"$f":"INDEX(Dues!$D$6:$D$1000,MATCH(Home!$D198,Dues!$D$6:$D$1000, 0),)","v":"exc40"}]
["Dingman","Nick","nvd5236","nvd5236",{"$f":"COUNTIF(Event1!$D:$D, D199) + COUNTIF(Event2!$D:$D, D199) + COUNTIF(Event3!$D:$D, D199) + COUNTIF(Event4!$D:$D, D199) + COUNTIF(Event5!$D:$D, D199) + COUNTIF(Event6!$D:$D, D199) + COUNTIF(Event7!$D:$D, D199) + COUNTIF(Event8!$D:$D, D199) + COUNTIF(Event9!$D:$D, D199) + COUNTIF(Event10!$D:$D, D199) + COUNTIF(Event11!$D:$D, D199) + COUNTIF(Event12!$D:$D, D199) + COUNTIF(Event13!$D:$D, D199) + COUNTIF(Event14!$D:$D, D199) + COUNTIF(Event15!$D:$D, D199) + COUNTIF(Event16!$D:$D, D199) + COUNTIF(Event17!$D:$D, D199) + COUNTIF(Event18!$D:$D, D199) + COUNTIF(Event19!$D:$D, D199) + COUNTIF(Event20!$D:$D, D199) + COUNTIF(Event21!$D:$D, D199) + COUNTIF(Event22!$D:$D, D199) + COUNTIF(Event23!$D:$D, D199) + COUNTIF(Event24!$D:$D, D199) + COUNTIF(Event25!$D:$D, D199) + COUNTIF(Event26!$D:$D, D199) + COUNTIF(Event27!$D:$D, D199) + COUNTIF(Event28!$D:$D, D199) + COUNTIF(Event29!$D:$D, D199) + COUNTIF(Event30!$D:$D, D199) + COUNTIF(Event31!$D:$D, D199) + COUNTIF(Event32!$D:$D, D199) + COUNTIF(Event33!$D:$D, D199) + COUNTIF(Event34!$D:$D, D199) + COUNTIF(Event35!$D:$D, D199) + 0","v":0},{"$f":"INDEX(Dues!$D$6:$D$1000,MATCH(Home!$D199,Dues!$D$6:$D$1000, 0),)","v":"nvd5236"}]
["Dolan","Tyler","tmd5648","tmd5648",{"$f":"COUNTIF(Event1!$D:$D, D200) + COUNTIF(Event2!$D:$D, D200) + COUNTIF(Event3!$D:$D, D200) + COUNTIF(Event4!$D:$D, D200) + COUNTIF(Event5!$D:$D, D200) + COUNTIF(Event6!$D:$D, D200) + COUNTIF(Event7!$D:$D, D200) + COUNTIF(Event8!$D:$D, D200) + COUNTIF(Event9!$D:$D, D200) + COUNTIF(Event10!$D:$D, D200) + COUNTIF(Event11!$D:$D, D200) + COUNTIF(Event12!$D:$D, D200) + COUNTIF(Event13!$D:$D, D200) + COUNTIF(Event14!$D:$D, D200) + COUNTIF(Event15!$D:$D, D200) + COUNTIF(Event16!$D:$D, D200) + COUNTIF(Event17!$D:$D, D200) + COUNTIF(Event18!$D:$D, D200) + COUNTIF(Event19!$D:$D, D200) + COUNTIF(Event20!$D:$D, D200) + COUNTIF(Event21!$D:$D, D200) + COUNTIF(Event22!$D:$D, D200) + COUNTIF(Event23!$D:$D, D200) + COUNTIF(Event24!$D:$D, D200) + COUNTIF(Event25!$D:$D, D200) + COUNTIF(Event26!$D:$D, D200) + COUNTIF(Event27!$D:$D, D200) + COUNTIF(Event28!$D:$D, D200) + COUNTIF(Event29!$D:$D, D200) + COUNTIF(Event30!$D:$D, D200) + COUNTIF(Event31!$D:$D, D200) + COUNTIF(Event32!$D:$D, D200) + COUNTIF(Event33!$D:$D, D200) + COUNTIF(Event34!$D:$D, D200) + COUNTIF(Event35!$D:$D, D200) + 0","v":0},{"$f":"INDEX(Dues!$D$6:$D$1000,MATCH(Home!$D200,Dues!$D$6:$D$1000, 0),)","v":"tmd5648"}]
["Gao","Yang","yug61","yug61",{"$f":"COUNTIF(Event1!$D:$D, D201) + COUNTIF(Event2!$D:$D, D201) + COUNTIF(Event3!$D:$D, D201) + COUNTIF(Event4!$D:$D, D201) + COUNTIF(Event5!$D:$D, D201) + COUNTIF(Event6!$D:$D, D201) + COUNTIF(Event7!$D:$D, D201) + COUNTIF(Event8!$D:$D, D201) + COUNTIF(Event9!$D:$D, D201) + COUNTIF(Event10!$D:$D, D201) + COUNTIF(Event11!$D:$D, D201) + COUNTIF(Event12!$D:$D, D201) + COUNTIF(Event13!$D:$D, D201) + COUNTIF(Event14!$D:$D, D201) + COUNTIF(Event15!$D:$D, D201) + COUNTIF(Event16!$D:$D, D201) + COUNTIF(Event17!$D:$D, D201) + COUNTIF(Event18!$D:$D, D201) + COUNTIF(Event19!$D:$D, D201) + COUNTIF(Event20!$D:$D, D201) + COUNTIF(Event21!$D:$D, D201) + COUNTIF(Event22!$D:$D, D201) + COUNTIF(Event23!$D:$D, D201) + COUNTIF(Event24!$D:$D, D201) + COUNTIF(Event25!$D:$D, D201) + COUNTIF(Event26!$D:$D, D201) + COUNTIF(Event27!$D:$D, D201) + COUNTIF(Event28!$D:$D, D201) + COUNTIF(Event29!$D:$D, D201) + COUNTIF(Event30!$D:$D, D201) + COUNTIF(Event31!$D:$D, D201) + COUNTIF(Event32!$D:$D, D201) + COUNTIF(Event33!$D:$D, D201) + COUNTIF(Event34!$D:$D, D201) + COUNTIF(Event35!$D:$D, D201) + 0","v":0},{"$f":"INDEX(Dues!$D$6:$D$1000,MATCH(Home!$D201,Dues!$D$6:$D$1000, 0),)","v":"yug61"}]
["Gillard","Kevin","kdg5285","kdg5285",{"$f":"COUNTIF(Event1!$D:$D, D202) + COUNTIF(Event2!$D:$D, D202) + COUNTIF(Event3!$D:$D, D202) + COUNTIF(Event4!$D:$D, D202) + COUNTIF(Event5!$D:$D, D202) + COUNTIF(Event6!$D:$D, D202) + COUNTIF(Event7!$D:$D, D202) + COUNTIF(Event8!$D:$D, D202) + COUNTIF(Event9!$D:$D, D202) + COUNTIF(Event10!$D:$D, D202) + COUNTIF(Event11!$D:$D, D202) + COUNTIF(Event12!$D:$D, D202) + COUNTIF(Event13!$D:$D, D202) + COUNTIF(Event14!$D:$D, D202) + COUNTIF(Event15!$D:$D, D202) + COUNTIF(Event16!$D:$D, D202) + COUNTIF(Event17!$D:$D, D202) + COUNTIF(Event18!$D:$D, D202) + COUNTIF(Event19!$D:$D, D202) + COUNTIF(Event20!$D:$D, D202) + COUNTIF(Event21!$D:$D, D202) + COUNTIF(Event22!$D:$D, D202) + COUNTIF(Event23!$D:$D, D202) + COUNTIF(Event24!$D:$D, D202) + COUNTIF(Event25!$D:$D, D202) + COUNTIF(Event26!$D:$D, D202) + COUNTIF(Event27!$D:$D, D202) + COUNTIF(Event28!$D:$D, D202) + COUNTIF(Event29!$D:$D, D202) + COUNTIF(Event30!$D:$D, D202) + COUNTIF(Event31!$D:$D, D202) + COUNTIF(Event32!$D:$D, D202) + COUNTIF(Event33!$D:$D, D202) + COUNTIF(Event34!$D:$D, D202) + COUNTIF(Event35!$D:$D, D202) + 0","v":0},{"$f":"INDEX(Dues!$D$6:$D$1000,MATCH(Home!$D202,Dues!$D$6:$D$1000, 0),)","v":"kdg5285"}]
["Harro","Troy","tbh5102","tbh5102",{"$f":"COUNTIF(Event1!$D:$D, D203) + COUNTIF(Event2!$D:$D, D203) + COUNTIF(Event3!$D:$D, D203) + COUNTIF(Event4!$D:$D, D203) + COUNTIF(Event5!$D:$D, D203) + COUNTIF(Event6!$D:$D, D203) + COUNTIF(Event7!$D:$D, D203) + COUNTIF(Event8!$D:$D, D203) + COUNTIF(Event9!$D:$D, D203) + COUNTIF(Event10!$D:$D, D203) + COUNTIF(Event11!$D:$D, D203) + COUNTIF(Event12!$D:$D, D203) + COUNTIF(Event13!$D:$D, D203) + COUNTIF(Event14!$D:$D, D203) + COUNTIF(Event15!$D:$D, D203) + COUNTIF(Event16!$D:$D, D203) + COUNTIF(Event17!$D:$D, D203) + COUNTIF(Event18!$D:$D, D203) + COUNTIF(Event19!$D:$D, D203) + COUNTIF(Event20!$D:$D, D203) + COUNTIF(Event21!$D:$D, D203) + COUNTIF(Event22!$D:$D, D203) + COUNTIF(Event23!$D:$D, D203) + COUNTIF(Event24!$D:$D, D203) + COUNTIF(Event25!$D:$D, D203) + COUNTIF(Event26!$D:$D, D203) + COUNTIF(Event27!$D:$D, D203) + COUNTIF(Event28!$D:$D, D203) + COUNTIF(Event29!$D:$D, D203) + COUNTIF(Event30!$D:$D, D203) + COUNTIF(Event31!$D:$D, D203) + COUNTIF(Event32!$D:$D, D203) + COUNTIF(Event33!$D:$D, D203) + COUNTIF(Event34!$D:$D, D203) + COUNTIF(Event35!$D:$D, D203) + 0","v":0},{"$f":"INDEX(Dues!$D$6:$D$1000,MATCH(Home!$D203,Dues!$D$6:$D$1000, 0),)","v":"tbh5102"}]
["Johnson","Mackenzie","mlk5382","mlk5382",{"$f":"COUNTIF(Event1!$D:$D, D204) + COUNTIF(Event2!$D:$D, D204) + COUNTIF(Event3!$D:$D, D204) + COUNTIF(Event4!$D:$D, D204) + COUNTIF(Event5!$D:$D, D204) + COUNTIF(Event6!$D:$D, D204) + COUNTIF(Event7!$D:$D, D204) + COUNTIF(Event8!$D:$D, D204) + COUNTIF(Event9!$D:$D, D204) + COUNTIF(Event10!$D:$D, D204) + COUNTIF(Event11!$D:$D, D204) + COUNTIF(Event12!$D:$D, D204) + COUNTIF(Event13!$D:$D, D204) + COUNTIF(Event14!$D:$D, D204) + COUNTIF(Event15!$D:$D, D204) + COUNTIF(Event16!$D:$D, D204) + COUNTIF(Event17!$D:$D, D204) + COUNTIF(Event18!$D:$D, D204) + COUNTIF(Event19!$D:$D, D204) + COUNTIF(Event20!$D:$D, D204) + COUNTIF(Event21!$D:$D, D204) + COUNTIF(Event22!$D:$D, D204) + COUNTIF(Event23!$D:$D, D204) + COUNTIF(Event24!$D:$D, D204) + COUNTIF(Event25!$D:$D, D204) + COUNTIF(Event26!$D:$D, D204) + COUNTIF(Event27!$D:$D, D204) + COUNTIF(Event28!$D:$D, D204) + COUNTIF(Event29!$D:$D, D204) + COUNTIF(Event30!$D:$D, D204) + COUNTIF(Event31!$D:$D, D204) + COUNTIF(Event32!$D:$D, D204) + COUNTIF(Event33!$D:$D, D204) + COUNTIF(Event34!$D:$D, D204) + COUNTIF(Event35!$D:$D, D204) + 0","v":0},{"$f":"INDEX(Dues!$D$6:$D$1000,MATCH(Home!$D204,Dues!$D$6:$D$1000, 0),)","v":"mlk5382"}]
["Johnson","Caroline","crj5193","crj5193",{"$f":"COUNTIF(Event1!$D:$D, D205) + COUNTIF(Event2!$D:$D, D205) + COUNTIF(Event3!$D:$D, D205) + COUNTIF(Event4!$D:$D, D205) + COUNTIF(Event5!$D:$D, D205) + COUNTIF(Event6!$D:$D, D205) + COUNTIF(Event7!$D:$D, D205) + COUNTIF(Event8!$D:$D, D205) + COUNTIF(Event9!$D:$D, D205) + COUNTIF(Event10!$D:$D, D205) + COUNTIF(Event11!$D:$D, D205) + COUNTIF(Event12!$D:$D, D205) + COUNTIF(Event13!$D:$D, D205) + COUNTIF(Event14!$D:$D, D205) + COUNTIF(Event15!$D:$D, D205) + COUNTIF(Event16!$D:$D, D205) + COUNTIF(Event17!$D:$D, D205) + COUNTIF(Event18!$D:$D, D205) + COUNTIF(Event19!$D:$D, D205) + COUNTIF(Event20!$D:$D, D205) + COUNTIF(Event21!$D:$D, D205) + COUNTIF(Event22!$D:$D, D205) + COUNTIF(Event23!$D:$D, D205) + COUNTIF(Event24!$D:$D, D205) + COUNTIF(Event25!$D:$D, D205) + COUNTIF(Event26!$D:$D, D205) + COUNTIF(Event27!$D:$D, D205) + COUNTIF(Event28!$D:$D, D205) + COUNTIF(Event29!$D:$D, D205) + COUNTIF(Event30!$D:$D, D205) + COUNTIF(Event31!$D:$D, D205) + COUNTIF(Event32!$D:$D, D205) + COUNTIF(Event33!$D:$D, D205) + COUNTIF(Event34!$D:$D, D205) + COUNTIF(Event35!$D:$D, D205) + 0","v":0},{"$f":"INDEX(Dues!$D$6:$D$1000,MATCH(Home!$D205,Dues!$D$6:$D$1000, 0),)","v":"crj5193"}]
["Lu","Yihan","yxl5748","yxl5748",{"$f":"COUNTIF(Event1!$D:$D, D206) + COUNTIF(Event2!$D:$D, D206) + COUNTIF(Event3!$D:$D, D206) + COUNTIF(Event4!$D:$D, D206) + COUNTIF(Event5!$D:$D, D206) + COUNTIF(Event6!$D:$D, D206) + COUNTIF(Event7!$D:$D, D206) + COUNTIF(Event8!$D:$D, D206) + COUNTIF(Event9!$D:$D, D206) + COUNTIF(Event10!$D:$D, D206) + COUNTIF(Event11!$D:$D, D206) + COUNTIF(Event12!$D:$D, D206) + COUNTIF(Event13!$D:$D, D206) + COUNTIF(Event14!$D:$D, D206) + COUNTIF(Event15!$D:$D, D206) + COUNTIF(Event16!$D:$D, D206) + COUNTIF(Event17!$D:$D, D206) + COUNTIF(Event18!$D:$D, D206) + COUNTIF(Event19!$D:$D, D206) + COUNTIF(Event20!$D:$D, D206) + COUNTIF(Event21!$D:$D, D206) + COUNTIF(Event22!$D:$D, D206) + COUNTIF(Event23!$D:$D, D206) + COUNTIF(Event24!$D:$D, D206) + COUNTIF(Event25!$D:$D, D206) + COUNTIF(Event26!$D:$D, D206) + COUNTIF(Event27!$D:$D, D206) + COUNTIF(Event28!$D:$D, D206) + COUNTIF(Event29!$D:$D, D206) + COUNTIF(Event30!$D:$D, D206) + COUNTIF(Event31!$D:$D, D206) + COUNTIF(Event32!$D:$D, D206) + COUNTIF(Event33!$D:$D, D206) + COUNTIF(Event34!$D:$D, D206) + COUNTIF(Event35!$D:$D, D206) + 0","v":0},{"$f":"INDEX(Dues!$D$6:$D$1000,MATCH(Home!$D206,Dues!$D$6:$D$1000, 0),)","v":"yxl5748"}]
["Wang","Ziming","zbw5087","zbw5087",{"$f":"COUNTIF(Event1!$D:$D, D207) + COUNTIF(Event2!$D:$D, D207) + COUNTIF(Event3!$D:$D, D207) + COUNTIF(Event4!$D:$D, D207) + COUNTIF(Event5!$D:$D, D207) + COUNTIF(Event6!$D:$D, D207) + COUNTIF(Event7!$D:$D, D207) + COUNTIF(Event8!$D:$D, D207) + COUNTIF(Event9!$D:$D, D207) + COUNTIF(Event10!$D:$D, D207) + COUNTIF(Event11!$D:$D, D207) + COUNTIF(Event12!$D:$D, D207) + COUNTIF(Event13!$D:$D, D207) + COUNTIF(Event14!$D:$D, D207) + COUNTIF(Event15!$D:$D, D207) + COUNTIF(Event16!$D:$D, D207) + COUNTIF(Event17!$D:$D, D207) + COUNTIF(Event18!$D:$D, D207) + COUNTIF(Event19!$D:$D, D207) + COUNTIF(Event20!$D:$D, D207) + COUNTIF(Event21!$D:$D, D207) + COUNTIF(Event22!$D:$D, D207) + COUNTIF(Event23!$D:$D, D207) + COUNTIF(Event24!$D:$D, D207) + COUNTIF(Event25!$D:$D, D207) + COUNTIF(Event26!$D:$D, D207) + COUNTIF(Event27!$D:$D, D207) + COUNTIF(Event28!$D:$D, D207) + COUNTIF(Event29!$D:$D, D207) + COUNTIF(Event30!$D:$D, D207) + COUNTIF(Event31!$D:$D, D207) + COUNTIF(Event32!$D:$D, D207) + COUNTIF(Event33!$D:$D, D207) + COUNTIF(Event34!$D:$D, D207) + COUNTIF(Event35!$D:$D, D207) + 0","v":0},{"$f":"INDEX(Dues!$D$6:$D$1000,MATCH(Home!$D207,Dues!$D$6:$D$1000, 0),)","v":"zbw5087"}]
["Williams","Jeremy","msw5439","msw5439",{"$f":"COUNTIF(Event1!$D:$D, D208) + COUNTIF(Event2!$D:$D, D208) + COUNTIF(Event3!$D:$D, D208) + COUNTIF(Event4!$D:$D, D208) + COUNTIF(Event5!$D:$D, D208) + COUNTIF(Event6!$D:$D, D208) + COUNTIF(Event7!$D:$D, D208) + COUNTIF(Event8!$D:$D, D208) + COUNTIF(Event9!$D:$D, D208) + COUNTIF(Event10!$D:$D, D208) + COUNTIF(Event11!$D:$D, D208) + COUNTIF(Event12!$D:$D, D208) + COUNTIF(Event13!$D:$D, D208) + COUNTIF(Event14!$D:$D, D208) + COUNTIF(Event15!$D:$D, D208) + COUNTIF(Event16!$D:$D, D208) + COUNTIF(Event17!$D:$D, D208) + COUNTIF(Event18!$D:$D, D208) + COUNTIF(Event19!$D:$D, D208) + COUNTIF(Event20!$D:$D, D208) + COUNTIF(Event21!$D:$D, D208) + COUNTIF(Event22!$D:$D, D208) + COUNTIF(Event23!$D:$D, D208) + COUNTIF(Event24!$D:$D, D208) + COUNTIF(Event25!$D:$D, D208) + COUNTIF(Event26!$D:$D, D208) + COUNTIF(Event27!$D:$D, D208) + COUNTIF(Event28!$D:$D, D208) + COUNTIF(Event29!$D:$D, D208) + COUNTIF(Event30!$D:$D, D208) + COUNTIF(Event31!$D:$D, D208) + COUNTIF(Event32!$D:$D, D208) + COUNTIF(Event33!$D:$D, D208) + COUNTIF(Event34!$D:$D, D208) + COUNTIF(Event35!$D:$D, D208) + 0","v":0},{"$f":"INDEX(Dues!$D$6:$D$1000,MATCH(Home!$D208,Dues!$D$6:$D$1000, 0),)","v":"msw5439"}]
["Zhang","Zihan","zuz161","zuz161",{"$f":"COUNTIF(Event1!$D:$D, D209) + COUNTIF(Event2!$D:$D, D209) + COUNTIF(Event3!$D:$D, D209) + COUNTIF(Event4!$D:$D, D209) + COUNTIF(Event5!$D:$D, D209) + COUNTIF(Event6!$D:$D, D209) + COUNTIF(Event7!$D:$D, D209) + COUNTIF(Event8!$D:$D, D209) + COUNTIF(Event9!$D:$D, D209) + COUNTIF(Event10!$D:$D, D209) + COUNTIF(Event11!$D:$D, D209) + COUNTIF(Event12!$D:$D, D209) + COUNTIF(Event13!$D:$D, D209) + COUNTIF(Event14!$D:$D, D209) + COUNTIF(Event15!$D:$D, D209) + COUNTIF(Event16!$D:$D, D209) + COUNTIF(Event17!$D:$D, D209) + COUNTIF(Event18!$D:$D, D209) + COUNTIF(Event19!$D:$D, D209) + COUNTIF(Event20!$D:$D, D209) + COUNTIF(Event21!$D:$D, D209) + COUNTIF(Event22!$D:$D, D209) + COUNTIF(Event23!$D:$D, D209) + COUNTIF(Event24!$D:$D, D209) + COUNTIF(Event25!$D:$D, D209) + COUNTIF(Event26!$D:$D, D209) + COUNTIF(Event27!$D:$D, D209) + COUNTIF(Event28!$D:$D, D209) + COUNTIF(Event29!$D:$D, D209) + COUNTIF(Event30!$D:$D, D209) + COUNTIF(Event31!$D:$D, D209) + COUNTIF(Event32!$D:$D, D209) + COUNTIF(Event33!$D:$D, D209) + COUNTIF(Event34!$D:$D, D209) + COUNTIF(Event35!$D:$D, D209) + 0","v":0},{"$f":"INDEX(Dues!$D$6:$D$1000,MATCH(Home!$D209,Dues!$D$6:$D$1000, 0),)","v":"zuz161"}]
["Detwiler","Mitch","mxd5561","mxd5561"]

{"sheet":"Instructions","index":2,"n_rows":11,"n_cols":4,"rows_kept":11,"hidden":true,"merged":[[1,0,1,12]]}
["Operation instructions:"]
["- Enter new events on new sheets.  Make a new sheet by copying an old sheet and renaming it Eventx, where x is the next sequential event number.\n- Specify each event's name and date.  Attendance will autofill.\n- Check that no one entered their full email address in the ID field.  Also check that class standings are all in the correct abbreviations.\n- Before updating points, make sure to enter the date you are updating and the total number of events that are being counted in the yellow area at the top.                                                                                                                                                                                                                               -A common error occurs when someone submits an attendance sheet but uses an incorrect manual counting of attendance rather than the formula, resulting in more people being counted for attendance than signed in.  If the 'Home' tab seems to go haywire and add a lot of extra rows when the points macro runs, this is likely the cause of the issue."]
[]
[]
["Levels"]
["Reach 2 points, ","Pay dues, ",null,"and do this by the career fair to be in October resume book and be considered club member"]
["Reach 2 points, ","Pay dues, ",null,"and as soon as you do you can be in the resume book and be considered a club member"]
["Reach 5 points, ","Pay dues, ",null,"allowing you to be in resume book in Fall 2020 (you're eligible for the resume book until then)"]
["Reach 10 points, ","Pay dues, ",null,"allowing you to receive special recognition in resume book"]
[]
["Keep up the good work!"]

{"sheet":"Dues","index":3,"n_rows":643,"n_cols":6,"rows_kept":643,"hidden":true}
["Event: ","Dues"]
["Date:","2019-12-05","<- Date last updated"]
["Attendance:",{"$f":"COUNTA(D6:D499)","v":146}]
[]
["First","Last","Year","ID"]
["Allen","Kody","kla5319","kla5319",{"$f":"D6","v":"kla5319"},{"$f":"IF(E6=\"\",\"NO\",\"YES\")","v":"YES"}]
["Andrian","Kevin","kas7146","kas7146",{"$f":"D7","v":"kas7146"},{"$f":"IF(E7=\"\",\"NO\",\"YES\")","v":"YES"}]
["Arena","Alex","afa5399","afa5399","afa5399","YES"]
["Asprer","Jared","jza5506","jza5506","jza5506","YES"]
["Barratt","Geoffrey","gxb92","gxb92","gxb92","YES"]
["Bauer","Dustin","dtb5308","dtb5308","dtb5308","YES"]
["Beard","Mallory","mmb6124","mmb6124","mmb6124","YES"]
["Berlin","Daniel","dnb5266","dnb5266","dnb5266","YES"]
["Berry","Jack","jnb5602","jnb5602","jnb5602","YES"]
["Bhandarkar","Rohan","rpb5416","rpb5416","rpb5416","YES"]
["Birch","Vince","vpb5085","vpb5085","vpb5085","YES"]
["Cao","Enbo","exc40","exc40","exc40","YES"]
["Carr","Brian","bpc5419","bpc5419","bpc5419","YES"]
["Cary","Mason","msc5673","msc5673","msc5673","YES"]
["Chen","Wilton","wkc5083","wkc5083","wkc5083","YES"]
["Chen","Haozheng","hjc5263","hjc5263","hjc5263","YES"]
["Chen","Yucin","ymc5216","ymc5216","ymc5216","YES"]
["Chomos","Kristen","kec5791","kec5791","kec5791","YES"]
["Chu","Chang-Yu","cjc6652","cjc6652","cjc6652","YES"]
["Cicconi","Collin","cac6338","cac6338","cac6338","YES"]
["Cohen","Max","mvc6160","mvc6160","mvc6160","YES"]
["Colseman","Alexis","akc5641","akc5641","akc5641","YES"]
["Conrad","Mason","msc5613","msc5613","msc5613","YES"]
["Cox","Dan","djc6240","djc6240","djc6240","YES"]
["Crawford","Brandon","bmc5819","bmc5819","bmc5819","YES"]
["Creager","Andrew","azc5570","azc5570","azc5570","YES"]
["Dalby","Olivia","opd5013","opd5013","opd5013","YES"]
["Davis","Jennifer","jrd5822","jrd5822","jrd5822","YES"]
["DiGirolamo","Maya","mvd5783","mvd5783","mvd5783","YES"]
["Dingman","Nick","nvd5236","nvd5236","nvd5236","YES"]
["Dolan","Tyler","tmd5648","tmd5648","tmd5648","YES"]
["Donten","Noah","nmd5348","nmd5348","nmd5348","YES"]
["Dunleavy","Claire","cud539","cud539","cud539","YES"]
["Farr","Tyler","tzf19","tzf19","tzf19","YES"]
["Feaster","Craig","ctf5107","ctf5107","ctf5107","YES"]
["Felishia","Felishia","ffn5018","ffn5018","ffn5018","YES"]
["Fraccalvieri","Kevin","kkf5177","kkf5177","kkf5177","YES"]
["Franchi","Nicholas","njf5314","njf5314","njf5314","YES"]
["Gao","Yang","yug61","yug61","yug61","YES"]
["Garbacik","Brian","brg16","brg16","brg16","YES"]
["Geppert","Taylor","stg5184","stg5184","stg5184","YES"]
["Gibbon","Kara","kxg295","kxg295","kxg295","YES"]
["Gillard","Kevin","kdg5285","kdg5285","kdg5285","YES"]
["Grattan","JP","jqg5723","jqg5723","jqg5723","YES"]
["Groarke","Molly","mag6298","mag6298","mag6298","YES"]
["Gupte","Atharv","abg5424","abg5424","abg5424","YES"]
["Harley","Andrew","ath5305","ath5305","ath5305","YES"]
["Harro","Troy","tbh5102","tbh5102","tbh5102","YES"]
["Haver","Frankie","fph5023","fph5023","fph5023","YES"]
["Hughes","Lauren","lmh5981","lmh5981","lmh5981","YES"]
["Jackson","Emily","erj5094","erj5094","erj5094","YES"]
["Jiang","Yixiao","yxj38","yxj38","yxj38","YES"]
["Johnson","Mackenzie","mlk5382","mlk5382","mlk5382","YES"]
["Johnson","Hailey","hqj5199","hqj5199","hqj5199","YES"]
["Johnson","Caroline","crj5193","crj5193","crj5193","YES"]
["Jung","Claudia","cjj5206","cjj5206","cjj5206","YES"]
["Kelly","Rhiannon","rmk5689","rmk5689","rmk5689","YES"]
["Konrad","Kai-Uwe","kwk5449","kwk5449","kwk5449","YES"]
["Kuder","William","wrk5091","wrk5091","wrk5091","YES"]
["Lai","Vickia","jzl38","jzl38","jzl38","YES"]
["Lake","Aidan","arl5600","arl5600","arl5600","YES"]
["Lasko","Alexis","all5680","all5680","all5680","YES"]
["Li","Zhiyang","zzl5300","zzl5300","zzl5300","YES"]
["Liang","Zhiyang","zfl5166","zfl5166","zfl5166","YES"]
["Liu","Bingxin","bzl95","bzl95","bzl95","YES"]
["Liu","Elysia","yxl482","yxl482",{"$f":"D71","v":"yxl482"},{"$f":"IF(E71=\"\",\"NO\",\"YES\")","v":"YES"}]
["Logan","Kevin","ktl5134","ktl5134","ktl5134","YES"]
["Long","Derek","dgl5098","dgl5098","dgl5098","YES"]
["Lu","Raymond","lmr5640","lmr5640","lmr5640","YES"]
["Lu","Yihan","yxl5748","yxl5748","yxl5748","YES"]
["Ma","Siyi","sbm5554","sbm5554","sbm5554","YES"]
["Marcucci","Dante","uum99","uum99","uum99","YES"]
["Marinelli","Dan","dbm5481","dbm5481","dbm5481","YES"]
["Mauger","Kyle","kjm6235","kjm6235","kjm6235","YES"]
["Mazur","Julianna","jqm6441","jqm6441","jqm6441","YES"]
["McCarthy","Reilly","rxm1146","rxm1146","rxm1146","YES"]
["McClintick","Matthew","mjm7869","mjm7869","mjm7869","YES"]
["McStravock","Grace","gvm5232","gvm5232","gvm5232","YES"]
["Melchiorre","Vince","vzm35","vzm35","vzm35","YES"]
["Miller","John","jdm6057","jdm6057","jdm6057","YES"]
["Miller","Nathan","njm5536","njm5536","njm5536","YES"]
["Mincin","Kim","kfm5441","kfm5441","kfm5441","YES"]
["Mirandi","Nick","nxm5386","nxm5386","nxm5386","YES"]
["Morris","Ashley","alm6239","alm6239","alm6239","YES"]
["Nachison","Brent","bjn5158","bjn5158","bjn5158","YES"]
["Newman","Nathan","ngn5017","ngn5017","ngn5017","YES"]
["Nguyen","Duong","dnn5","dnn5","dnn5","YES"]
["Niedermayer","Jacob","jtn5161","jtn5161","jtn5161","YES"]
["Nkgare","Emmanuel","ebn5071","ebn5071","ebn5071","YES"]
["Noethinger","Michael","mbn5156","mbn5156","mbn5156","YES"]
["Nybro","Nicolette","nan5101","nan5101","nan5101","YES"]
["O'Connell","Collin","cpo5122","cpo5122","cpo5122","YES"]
["Obiero","Letitia","luo114","luo114","luo114","YES"]
["Ogunrombi","Ayooluwatomiwa","aeo5162","aeo5162","aeo5162","YES"]
["Owens","Matthew","mro5212","mro5212","mro5212","YES"]
["Parks","Jeffrey","sjp5946","sjp5946","sjp5946","YES"]
["Patel","Akash","axp428","axp428","axp428","YES"]
["Pawlikowski","Marceli","mzp5569","mzp5569","mzp5569","YES"]
["Peloro","Cristina","czp5434","czp5434","czp5434","YES"]
["Pidgeon","Matthew","mpp5454","mpp5454","mpp5454","YES"]
["Ramirez","Adie","acr5597","acr5597","acr5597","YES"]
["Rauber","Matthew","mzr5708","mzr5708","mzr5708","YES"]
["Rausch","Jake","jmr6884","jmr6884","jmr6884","YES"]
["Reiter ","Jordan","jar6334","jar6334","jar6334","YES"]
["Richardsen","Lucas","ljr5433","ljr5433","ljr5433","YES"]
["Roby","Michael","msr5385","msr5385","msr5385","YES"]
["Rohrbacher","Blake","bkr5178","bkr5178","bkr5178","YES"]
["Schwenk","Matthew","mss51","mss51","mss51","YES"]
["Secosky","Michael","mvs6517","mvs6517","mvs6517","YES"]
["Siebert","Allison","azs6047","azs6047","azs6047","YES"]
["Smith","Lisa","ivs5154","ivs5154","ivs5154","YES"]
["Snyderman","Franklyn","fts5025","fts5025","fts5025","YES"]
["Spicher","Lauren","les5774","les5774","les5774","YES"]
["Strecker","Justin","jxs6288","jxs6288","jxs6288","YES"]
["Studdert","Erin","eqs5521","eqs5521","eqs5521","YES"]
["Sudo","Rachel","rbs5427","rbs5427","rbs5427","YES"]
["Szeto","Solomon","sms8118","sms8118","sms8118","YES"]
["Talamati","Krishnagopal","krt5245","krt5245","krt5245","YES"]
["Tannebaum","Alexa","aqt5407","aqt5407","aqt5407","YES"]
["Trigg","Julianna","jxt5423","jxt5423","jxt5423","YES"]
["Tu","Qiaojuan","qkt5010","qkt5010","qkt5010","YES"]
["Turonis","David","dft5163","dft5163","dft5163","YES"]
["Veltri","Carmen","cpv5095","cpv5095","cpv5095","YES"]
["Ventresca","Cody","cxv5112","cxv5112","cxv5112","YES"]
["Voss","Patrick","puv44","puv44","puv44","YES"]
["Wagner","Jake","jfw5541","jfw5541","jfw5541","YES"]
["Walinsky","Jake","jpw5829","jpw5829","jpw5829","YES"]
["Wang","Ziming","zbw5087","zbw5087","zbw5087","YES"]
["Waters","Kelly","kfw5153","kfw5153","kfw5153","YES"]
["Weber","Rachel","rhw5080","rhw5080",{"$f":"D135","v":"rhw5080"},{"$f":"IF(E135=\"\",\"NO\",\"YES\")","v":"YES"}]
["Westfall","Greg","gvw5064","gvw5064","gvw5064","YES"]
["Wicker","Erin","euw60","euw60","euw60","YES"]
["Wilkinson","Conor","cgw5129","cgw5129","cgw5129","YES"]
["Williams","Jeremy","msw5439","msw5439","msw5439","YES"]
["Wyzomirski","Jonah","jrw6009","jrw6009","jrw6009","YES"]
["Xu","Shurui","sxx5076","sxx5076","sxx5076","YES"]
["Yang","Longhao","lky5069","lky5069","lky5069","YES"]
["Yaun","Xinchen","xpy5054","xpy5054","xpy5054","YES"]
["Yaun","Sunrunyi","spy5117","spy5117","spy5117","YES"]
["Yuan","Zhengyan","zqy5133","zqy5133","zqy5133","YES"]
["Zhang","Hanlin","hbz5102","hbz5102","hbz5102","YES"]
["Zhang","Bowen","bjz5110","bjz5110","bjz5110","YES"]
["Zhang","Zihan","zuz161","zuz161","zuz161","YES"]
["Zi","Guanzong","gzz5074","gzz5074","gzz5074","YES"]
["Detwiler","Mitch","mxd5561","mxd5561","mxd5561","YES"]
["Zhu","Chaoyi","cxz94","cxz94","cxz94","YES"]
[{"$nulls":4},0,"YES"]
[{"$nulls":4},0,"YES"]
[{"$nulls":4},0,"YES"]
[{"$nulls":4},0,"YES"]
[{"$nulls":4},0,"YES"]
[{"$nulls":4},0,"YES"]
[{"$nulls":4},0,"YES"]
[{"$nulls":4},0,"YES"]
[{"$nulls":4},0,"YES"]
[{"$nulls":4},0,"YES"]
[{"$nulls":4},0,"YES"]
[{"$nulls":4},0,"YES"]
[{"$nulls":4},0,"YES"]
[{"$nulls":4},0,"YES"]
[{"$nulls":4},0,"YES"]
[{"$nulls":4},0,"YES"]
[{"$nulls":4},0,"YES"]
[{"$nulls":4},0,"YES"]
[{"$nulls":4},0,"YES"]
[{"$nulls":4},0,"YES"]
[{"$nulls":4},0,"YES"]
[{"$nulls":4},0,"YES"]
[{"$nulls":4},0,"YES"]
[{"$nulls":4},0,"YES"]
[{"$nulls":4},0,"YES"]
[{"$nulls":4},0,"YES"]
{"$rows_empty":462}
[{"$nulls":3},{"$f":"IFERROR(INDEX(#REF!,MATCH(B640,#REF!,0)),\" \")","v":" "}]
[{"$nulls":3},{"$f":"IFERROR(INDEX(#REF!,MATCH(B641,#REF!,0)),\" \")","v":" "}]
[{"$nulls":3},{"$f":"IFERROR(INDEX(#REF!,MATCH(B642,#REF!,0)),\" \")","v":" "}]
[{"$nulls":3},{"$f":"IFERROR(INDEX(#REF!,MATCH(B643,#REF!,0)),\" \")","v":" "}]

{"sheet":"Interview","index":4,"n_rows":5,"n_cols":4,"rows_kept":5,"hidden":true}
["Event: ","Mock Interview"]
["Date:","2018-09-03"]
["Attendance:",{"$f":"COUNTA(D6:D206)","v":0}]
[]
["First","Last","Year","ID"]

{"sheet":"Event35","index":5,"n_rows":11,"n_cols":4,"rows_kept":11,"hidden":true}
["Event:","Resume review"]
["Date:","2020-02-03"]
["Attendance:",6]
[]
["First Name","Last Name","Year","PSU ID (ex. abc1234)"]
["Jaredf","Asprer","Fr","jza5506"]
["Ilsa","Smith","Jr","ivs5154"]
["Julia","Trigg","Jr","jxt5423"]
["Aidan","Lake","Jr","arl5600"]
["Akash","Patel","Jr","axp428"]
["Marceli","Pawlikowski","Jr","mzp5569"]

{"sheet":"Event34","index":6,"n_rows":18,"n_cols":4,"rows_kept":18,"hidden":true}
["Event:","Game Night"]
["Date:","2019-12-10"]
["Attendance:",11]
[]
["First Name","Last Name","Year","PSU ID (ex. abc1234)"]
["Nicolette","Nybro","Jr","nan5101"]
["Julia","Trigg","Jr","jxt5423"]
["Molly","Groarke","Jr","mag6298"]
["Ilsa","Smith","Jr","ivs5154"]
["Marceli","Pawlikowski","Jr","mzp5569"]
["Brandon","Crawford","Jr","bmc5819"]
["Jonah","Wyzomirski","So","jrw6009"]
["Greg","Westfall","So","gvw5064"]
["kelli","peritz","Fr","kqp5476"]
["Daniel","Berlin","Fr","dnb5266"]
["akash","patel","Jr","axp428"]
["Noah","Donten","Jr","nmd5348"]
["Aidan","Lake","Jr","arl5600"]

{"sheet":"Event33","index":7,"n_rows":15,"n_cols":4,"rows_kept":15,"hidden":true}
["Event:","Lunch With Leaders #1"]
["Date:","2019-12-06"]
["Attendance:",9]
[]
["First Name","Last Name","Year","PSU ID (ex. abc1234)"]
["Nicolette","Nybro","Jr","nan5101"]
["Vince","Birch","So","vpb5085"]
["Avery","Ryan","Jr","aer5483"]
["Julia","Trigg","Jr","jxt5423"]
["Kristen","Chomos","Fr","kec5791"]
["Brandon","Crawford","Jr","bmc5819"]
["Aidan","Lake","Jr","arl5600"]
["Daniel","Berlin","Fr","dnb5266"]
["j.p.","grattan","Fr","jqg5723"]
["Letitia","Obiero","Fr"]

{"sheet":"Event32","index":8,"n_rows":33,"n_cols":4,"rows_kept":33,"hidden":true}
["Event:","Excel workshop john miller"]
["Date:","2019-12-09","took place 9/12"]
["Attendance:",28]
[]
["First Name","Last Name","Year","PSU ID (ex. abc1234)"]
["Michael","Secosky","Fr","mvs6517"]
["Mason","Cary","Fr","msc5673"]
["Marceli","Pawlikowski","Jr","mzp5569"]
["Matt","Rauber","Fr","mzr5708"]
["Dustin ","Bauer","Fr","dtb5308"]
["Patrick ","Voss","So","puv44"]
["Robert","Kooser","Sr","rvk5291"]
["Tayor","Geppert","So","stg5184"]
["Jack","Berry","Fr","jnb5602"]
["Daniel","Berlin","Fr","dnb5266"]
["Nick ","Sawtelle","Fr","nus721"]
["Alexis","Coleman","Jr","akc5641"]
["Kevin","Fraccalvieri","So","kkf5177"]
["Michelle","Liang","Fr","mxl5839"]
["Hanlin","Zhang","So","hbz5102"]
["Jeffrey","Stevens","Fr","jts5926"]
["Noah","Donten","Jr","nmd5348"]
["Haskel","Canagarajah","Fr","hkc536"]
["Jack ","Rittenmeyer","Fr","jtr5428"]
["erin","wicker","So","euw60"]
["Greg","Westfall","So","gvw5064"]
["Akash","Patel","Jr","axp428"]
["Jonah","Wyzomirski","So","jrw6009"]
["Chimwemwe","Mitole","Fr","cmm7638"]
["Kayla","Ellison","So","kle5289"]
["Zhiyang","Liang","So","zfl5166"]
["Aaron ","Froio","Fr","ajf6043"]
["Ryan","Casey","Fr","rkc5390"]

{"sheet":"Event31","index":9,"n_rows":12,"n_cols":4,"rows_kept":12,"hidden":true}
["Event:","Mark Toniatti Evaluating an Offer"]
["Date:","2019-11-04"]
["Attendance:",7]
[]
["First Name","Last Name","Year","PSU ID (ex. abc1234)"]
["Julia","Trigg","Jr","jxt5423"]
["Chaoyi","Zhu","Sr","cxz94"]
["Max","Cohen","Fr","mvc6160"]
["Qiaojuan(Tina)","Tu ","So","qkt5010"]
["Jared","Asprer","Fr","jza550"]
["Kellien","Peritz","Fr","kqp5476"]
["Alex","Hartman","Jr","auh363"]

{"sheet":"Event30","index":10,"n_rows":52,"n_cols":4,"rows_kept":52,"hidden":true}
["Event:","Survey"]
["Date:","2019-11-03"]
["Attendance:",47]
[]
["First Name","Last Name","Year","PSU ID (ex. abc1234)"]
["Daniel","Berlin",null,"dnb5266"]
["Jake","Walinsky",null,"jpw5829"]
["Yixiao","Jiang",null,"yxj38"]
["Matt","Owens",null,"mro5212"]
["Emily","Jackson -erj5094",null,"erj5094"]
["Taylor","Taylor Geppert (stg5184 - can't type letters below)",null,"stg5184"]
["Jonah","Wyzomirski",null,"jrw6009"]
["Jack","Berry",null,"jqb6123"]
["Peter","DeMallie",null,"prd5123"]
["Chang-Yu","Chu",null,"cjc6652"]
["Qiaojuan","Tu",null,"qkt5010"]
["Alex","Arena",null,"afa5399"]
["Cristina","Peloro",null,"Czp5434"]
["Matt","Schwenk",null,"mss51"]
["Carmen","Veltri",null,"cpv5095"]
["Aidan","Lake",null,"arl5600"]
["Molly","Groarke",null,"Mag6298"]
["Tyler","Farr",null,"tzf19"]
["Brian","Garbacik",null,"brg16"]
["Jordan","Reiter",null,"jar6334"]
["Elysia","Liu",null,"yxl482"]
["J.P.","Grattan",null,"jqg5723"]
["Solomon","Szeto",null,"sms8118"]
["Erin","Studdert",null,"eqs5521"]
["Kelli","Peritz",null,"kqp5476"]
["Cody","Ventresca",null,"cxv5112"]
["Kristen","Chomos",null,"kec5791"]
["Rhiannon","Kelly",null,"rmk5689"]
["Julia","Trigg",null,"jxt5423"]
["Ziyan","Wang",null,"zpw5120"]
["Patrick","Voss",null,"puv44"]
["Kevin","Fraccalvieri",null,"kkf5177"]
["Guanzong","Zi",null,"gzz5074"]
["letitia","obiero",null,"luo114"]
["David","Wooditch",null,"dmw5806"]
["Alexis","Coleman",null,"akc5641"]
["Jared","Asprer",null,"jza5506"]
["Alexa","Tannenbaum",null,"aqt5407"]
["Mason","Cary",null,"msc5673"]
["Adie","Ramirez",null,"acr5597"]
["Craig","Feaster",null,"ctf5107"]
["Nicolette","Nybro",null,"nan5101"]
["Erin","Wicker",null,"euw60"]
["Lucas","Richardsen",null,"ljr5433"]
["Dustin","Bauer",null,"dtb5308"]
["Akash","Patel",null,"axp428"]
["Lauren","Hughes",null,"lmh5981"]

{"sheet":"Event29","index":11,"n_rows":48,"n_cols":4,"rows_kept":48,"hidden":true}
["Event:","Brian Evanko"]
["Date:","2019-10-20"]
["Attendance:",{"$f":"COUNTA(A6:A200)","v":43}]
[]
["First Name","Last Name","Year","PSU ID (ex. abc1234)"]
["Molly","Groarke","Jr","mag6298"]
["Guanzong","Zi","So","gzz5074"]
["Kristin","Sickau","Sr","kxs823"]
["Julia","Trigg","Jr","jxt5423"]
["Qiaojuan","Tu","So","qkt5010"]
["Daniel","Berlin","Fr","dnb5266"]
["Aidan","Lake","Jr","arl5600"]
["Kai-Uwe","Konrad","So","Kwk5449"]
["Anran","Chen","So","axc5921"]
["Zhiyang","Liang","So","zfl5166"]
["Rachel","Weber","Sr","rhw5080"]
["Vince","Birch","So","vpb5085"]
["Siyi","Ma","Sr","sbm5554"]
["Jie","Chen","Jr","jqc6228"]
["Jack","Berry","Fr","jnb5602"]
["Michael","Roby","Sr","msr5385"]
["Marceli","Pawlikowski ","Jr","mzp5569"]
["Jonah","Wyzomirski","So","jrw6009"]
["Kristen","Chomos","Fr","kec5791"]
["Xingyu","Pan","So","xjp5020"]
["Peiyue","Feng","Jr","ppf5042"]
["Xiuqi","Liu","Jr","xzl5304"]
["Taylor","Geppert","So","Stg5184"]
["Noah","Donten","Jr","nmd5348"]
["Calvin","Lien","Jr","cvl4"]
["Sicong","Zhao","Jr","svz5249"]
["Zhi","Li","Jr","zzl5300"]
["Bowen","Zhang","Jr","bjz5110"]
["Jiahui","Cheng","Sr","juc454"]
["Kristen","Chomos","Fr","kec5791"]
["Lucas","Richardsen","So","ljr5433"]
["guangxuan","cai","Jr","gvc5265"]
["Yuxin","Chen","Jr","ymc5216"]
["Xuemeng","Dai","Jr","xmd5023"]
["Donglai","Xu","Jr","dzx5030"]
["Sunrunyi","Yuan","Jr","spy5117"]
["Embody","Cao","Jr","Ezc40"]
["Xingliang","Tang","Jr","xmt5011"]
["Xingliang","Tang","Jr","xmt5011"]
["Xinchen","Yuan","Jr","xpy5054"]
["Ben","Hietsch","Sr","bmh5517"]
["Frankie","Haver","Sr","Fph5023"]
["Mingyin","Xie","Jr","mvx5050"]

{"sheet":"Event28","index":12,"n_rows":11,"n_cols":4,"rows_kept":11,"hidden":true}
["Event:","Underclassmen Involvment Frisbee Event"]
["Date:","2019-10-04"]
["Attendance:",4]
[]
["First Name","Last Name","Year","PSU ID (ex. abc1234)"]
["Nicolette","Nybro","Jr","nan5101"]
["Vince","Birch","So","vpb5085"]
["Adie","Ramirez","Fr","acr5597"]
["Dustin","Bauer","Fr","dtb5308"]
["David","Turonis","Fr","dft5163"]
["Matt","Rauber","Fr","mzr5708"]

{"sheet":"Event27","index":13,"n_rows":15,"n_cols":4,"rows_kept":15,"hidden":true}
["Event:","Lunch With Leaders #1"]
["Date:","2019-10-11"]
["Attendance:",10]
[]
["First Name","Last Name","Year","PSU ID (ex. abc1234)"]
["Nicolette","Nybro","Jr","nan5101"]
["Vince","Birch","So","vpb5085"]
["Dustin","Bauer","Fr","dtb5308"]
["J.P.","Grattan","Fr","jqg5723"]
["Adie","Ramirez","Fr","acr5597"]
["Tyler","Farr","So","tzf19"]
["Daniel","Berlin","Fr","dnb5266"]
["Grace","McStravock","Sr","gvm5232"]
["Brent","Nachison","Sr","bjn5158"]
["Rachel","Weber","Sr","rhw5080"]

{"sheet":"Event26","index":14,"n_rows":9,"n_cols":4,"rows_kept":9,"hidden":true}
["Event:","BlueCross BlueShield Info Session"]
["Date:","2019-09-29"]
["Attendance:",4]
[]
["First Name","Last Name","Year","PSU ID (ex. abc1234)"]
["Duong","Nguyen","Sr","dnn5"]
["Sawyer","Parks","So","sjp5946"]
["Kristin","Sickau","Jr","kxs823"]
["Ayo","Ogurnombi","So","aeo5162"]

{"sheet":"Event25","index":15,"n_rows":85,"n_cols":4,"rows_kept":85,"hidden":true}
["Event:","International Student Meeting"]
["Date:","2019-09-30"]
["Attendance:",{"$f":"COUNTA(A6:A999)","v":80}]
[]
["First Name","Last Name","Year","PSU ID (ex. abc1234)"]
["Kim","Mincin","So","kfm5441"]
["Nicholas","Mirandi ","So","nxm5386"]
["J.P.","Grattan","Fr","jqg5723"]
["Jack","Berry","Fr","jnb5602"]
["Adie","Ramirez ","Fr","Acr5597"]
["Michael","Secosky","Fr","mvs6517"]
["Joseph","Stuart","Fr","Jss5980"]
["Vince","Melchiorre","So","vzm35"]
["Vince","Birch","So","vpb5085"]
["Nicolette","Nybro","Jr","nan5101"]
["Greg","Westfall","So","gvw5064"]
["Andy","Chu","Fr","cjc6652"]
["Jake","wagner","So","Jfw5541"]
["Daniel","Berlin","Fr","dnb5266"]
["Patrick","Voss","So","puv44"]
["Brian","Carr","Fr","bpc5419"]
["Krishna","Talamati","Fr","krt5245"]
["Olivia","Gettle","Sr","olg5014"]
["Carmen","Veltri","So","cpv5095"]
["Mason","Cary","Fr","msc5673"]
["Taylor","Geppert","So","Stg5184"]
["kevin","fraccalvieri","So","kkf5177"]
["Mason","Conrad","So","msc5613"]
["Dustin","Bauer","Fr","dtb5308"]
["Erin","Studdert","Fr","Eqs5521"]
["Peter","DeMallie","Jr","Prd5123"]
["Abby","Ake","Fr","ama7182"]
["Noah","Donten","Jr","nmd5348"]
["Cristina","Peloro","So","Czp5434"]
["Aidan","Lake","Jr","Arl5600"]
["Kara","Gibbon","So","kxg295"]
["Guanzong","Zi","So","gzz5074"]
["Hailey","Johnson","So","Hqj5199"]
["Matt","Owens","Fr","mro5212"]
["Marceli","Pawlikowski ","Jr","mzp5569"]
["David","Turonis","Fr","dft5163"]
["Lauren","Spicher","Fr","les5774"]
["Cody","Ventresca","So","cxv5112"]
["Matthew","Rauber","Fr","mzr5708"]
["Qiaojuan","Tu","So","qkt5010"]
["Rhiannon","Kelly","Fr","rmk5689"]
["Franklyn","Snyderman","Jr","fts5025"]
["Julianna","Mazur","Fr","Jqm6441"]
["Raymond","Lu","Jr","Lmr5640"]
["Kyle","Mauger","Jr","kjm6235"]
["Ayo","Ogunrombi ","So","aeo5162"]
["Maya","DiGirolamo","So","mvd5783"]
["Andrew","Harley","Fr","ath5305"]
["Daniel","Cox","Fr","djc6240"]
["Max",null,"Fr","mvc6160"]
["Bella","Santori","Fr","ixs5175"]
["Bingxin","Liu","So","bzl95"]
["Jonah","Wyzomirski","So","jrw6009"]
["Jake","Walinsky","Fr","jpw5829"]
["Ilsa","Smith","Jr","ivs5154"]
["Kai-Uwe","Konrad","So","Kwk5449"]
["Matt","McClintick","So","mjm7869"]
["Jared","Asprer","Fr","jza5506"]
["Kelli","Peritz","Fr","Kqp5476"]
["Lucas","Richardsen","So","ljr5433"]
["Molly","Groarke","Jr","Mag6298"]
["Letitia","obiero","Fr","Luo114"]
["Hanlin","Zhang","So","hbz5102"]
["Dante","Marcucci","Jr","Uum99"]
["Daniel","Marinelli","So","dbm5481"]
["Claire","Dunleavy","Fr","cud539"]
["Jacob","Rausch","So","jmr6884"]
["William","Kuder","Fr","Wrk5091"]
["Akash","Patel","Jr","axp428"]
["Lauren","Hughes","So","lmh5981"]
["Brian","Garbacik","So","Brg16"]
["Sawyer","Parks","So","sjp5946"]
["Zhiyang","Liang","So","zfl5166"]
["Nicholas","Franchi","Fr","njf5314"]
["Brandon","Crawford","Jr","bmc5819"]
["Tyler","Farr","So","tzf19"]
["Mason","Cary","Fr","msc5673"]
["Reilly","McCarthy","Fr","rxm1146"]
["Adie","Ramirez ","Fr","Acr5597"]
["Hongyan","Ke","Fr","hjk5307"]

{"sheet":"Event24","index":16,"n_rows":15,"n_cols":4,"rows_kept":15,"hidden":true}
["Event:","International Student Meeting"]
["Date:","2019-09-30"]
["Attendance:",10]
[]
["First Name","Last Name","Year","PSU ID (ex. abc1234)"]
["Xinchen","Yuan","Jr","xpy5054@psu.edu"]
["Shurui","Xu","So","sxx5076"]
["Zhiyang","Liang","So","zfl5166@psu.edu"]
["Ahmed ","AlJaberi","Fr","ama7410@psu.edu"]
["Haozheng","Chen","Jr","hjc5263@psu.edu"]
["Longhao ","Yang","Jr","lky5069@psu.edu"]
["Hanlin","Wang","Jr","hjw5133@psu.edu"]
["Hanlin","Zhang",null,"hbz5102@psu.edu"]
["Zhi","Li","Jr","zzl5300@psu.edu"]
["Elysia ","Liu","Sr","yxl482@psu.edu"]

{"sheet":"Event23","index":17,"n_rows":13,"n_cols":4,"rows_kept":13,"hidden":true}
["Event:","Freshman Creamery Meet & Greet"]
["Date:","2019-09-20"]
["Attendance:",8]
[]
["First Name","Last Name","Year","PSU ID (ex. abc1234)"]
["Nicolette","Nybro","Jr","nan5101"]
["Vince","Birch","So","vpb5085"]
["Maria ","Howe","So"]
["Lauren","Spicher","Fr","les5774"]
["Nick ","Sawtelle","Fr","nes721"]
["David","Turonis","Fr","dft5163"]
["Daniel","Berlin","Fr","dnb5266"]
["Rachel ","Weber","Sr","rhw5080"]

{"sheet":"Event22","index":18,"n_rows":23,"n_cols":4,"rows_kept":23,"hidden":true}
["Event:","Deloitte Consulting "]
["Date:","2019-09-16"]
["Attendance:",18]
[]
["First Name","Last Name","Year","PSU ID (ex. abc1234)"]
["Brian","Garbacik","So","brg16"]
["Erin","Studdert","Fr","eqs5521"]
["maya","DiGirolamo","So","mvd5783"]
["Justin","Strecker","Sr","jxs6288"]
["Patrick","Voss","So","puv44"]
["Daniel","Berlin","Fr","dnb5266"]
["Matt","McClintick","So","mjm7869"]
["Olivia","Dalby","Sr","opd5013"]
["Fadhlia","Rahim-Ali","Sr","far5093"]
["Akash","Patel","Jr","axp428"]
["Matthew","Pidgeon","Jr","mpp5454"]
["Aidan","Lake","Jr","arl5600"]
["Kevin","Logan","Jr","ktl5134"]
["Collin","O'Connell","Jr","cpo5122"]
["Jake","Wagner","So","jfw5541"]
["Hailey","Johnson","So","hqj5199"]
["Kai-Uwe","Konrad","So","kwk5449"]
["Dante","Marcucci","Jr","uum99"]

{"sheet":"Event21","index":19,"n_rows":13,"n_cols":4,"rows_kept":13,"hidden":true}
["Event:","Independence Blue Cross"]
["Date:","2018-09-16"]
["Attendance:",8]
[]
["First Name","Last Name","Year","PSU ID (ex. abc1234)"]
["Akash","Patel","Jr","axp428"]
["Conor","Wilkinson","Sr","cgw5129"]
["Jacob","Niedermayer","Sr","jtn5161"]
["Geoffrey","Barratt","So","gxb92"]
["Rachel","Sudo","Sr","rbs5427"]
["Julia","Trigg","Jr","jxt5423"]
["Collin","Cicconi","Sr","cac6338"]
["Zhengyan","Yuan","Sr","zqy5133"]

{"sheet":"Event20","index":20,"n_rows":15,"n_cols":4,"rows_kept":15,"hidden":true}
["Event:","EY"]
["Date:","2019-09-16"]
["Attendance:",10]
[]
["First Name","Last Name","Year","PSU ID (ex. abc1234)"]
["Marceli","Pawlikowski","Jr","mzp5569"]
["Alexa","Tannenbaum","So","aqt5407"]
["Jiaqi","Lai","Sr","jzl38"]
["Michael","Noethiger","Jr","mbn5156"]
["Collin","Cicconi","Sr","cac6338"]
["Qin","Zhang","Sr","qfz5029"]
["May","Feng","Sr","muf72"]
["Emmanuel","Nkgare","Jr","ebn5071"]
["Zhengyan","Yuan","Sr","zqy5133"]
["Aidan","Lake","Jr","arl5600"]

{"sheet":"Event19","index":21,"n_rows":14,"n_cols":4,"rows_kept":14,"hidden":true}
["Event:","Oliver Wyman Info Session"]
["Date:","2019-09-16"]
["Attendance:",9]
[]
["First Name","Last Name","Year","PSU ID (ex. abc1234)"]
["Allison ","Seibert","Sr","azs6047"]
["May","Feng","Sr","muf72"]
["Atharv","Gupte","Sr","abg5424"]
["Marceli","Pawlikowski","Jr","mzp5569"]
["Avery","Ryan","Jr","aer5483"]
["Qin","Zhang","Sr","qfz5029"]
["Kai-Uwe","Konrad","So","kwk5449"]
["Jiaqi","Lai","Sr","jzl38"]
["Chaoyi","Zhu","Sr","cxz94"]

{"sheet":"Event18","index":22,"n_rows":19,"n_cols":4,"rows_kept":19,"hidden":true}
["Event:","GuardianInfoSession"]
["Date:","2019-09-16"]
["Attendance:",14]
[]
["First Name","Last Name","Year","PSU ID (ex. abc1234)"]
["Noah","Donten","Jr","nmd5348"]
["Solomon","Szeto","So","sms8118"]
["Franklyn","Snyderman","Jr","fts5025"]
["Lauren","Spicher","Fr","les5774"]
["erin","wicker","So","euw60"]
["Kevin","Logan","Jr","ktl5134"]
["Brian","Garbacik","So","brg16"]
["Collin","O'Connell","Jr","cpo5122"]
["Alexa","Tannenbaum","So","aqt5407"]
["Jeremy","Williams","Sr","jsw5439"]
["David","Wooditch","Sr","dmw5806"]
["Collin","Cicconi","Sr","cac6338"]
["Kai-Uwe","Konrad","So","kwk5449"]
["Shurui","Xu","So","sxx5076"]

{"sheet":"Event17","index":23,"n_rows":25,"n_cols":4,"rows_kept":25,"hidden":true}
["Event:","Munich Re Info Session"]
["Date:","2019-09-15"]
["Attendance:",20]
[]
["First Name","Last Name","Year","PSU ID (ex. abc1234)"]
["Nicolette","Nybro","Jr","nan5101"]
["Haozheng","chen","Jr","hjc5263"]
["Brandon","Crawford","Jr","bmc5819"]
["Qin ","Zhang","Sr","qfz5029"]
["Kevin","Suryanto","Jr","kas7146"]
["Felishia","Felishia","Jr","ffn5018"]
["erin","wicker","So","euw60"]
["taylor","geppert","So","stg5184"]
["Dante","Marcucci","Jr","uum99"]
["Alexa","Tannenbaum","So","aqt5407"]
["mayting","feng","Sr","muf72"]
["Lucas","Richardsen","So","ljr5433"]
["Julia","Trigg","Jr","jxt5423"]
["Jack","Berry","Fr","jnb5602"]
["Zack","Pasquinelli","Sr","zmp5056"]
["Chaoyi","zhu","Sr","cxz94"]
["Jonah","Wyzomirski","So","jrw6009"]
["Greg","Westfall","So","gvw5064"]
["Matt","McClintick","So","mjm7869"]
["Kevin","Fraccalvieri","So","kkf5177"]

{"sheet":"Event16","index":24,"n_rows":54,"n_cols":4,"rows_kept":54,"hidden":true}
["Event:","highmark Info session"]
["Date:","2019-09-15"]
["Attendance:",49]
[]
["First Name","Last Name","Year","PSU ID (ex. abc1234)"]
["erin","wicker","So","euw60"]
["Taylor ","Geppert","So","stg5184"]
["Geoffrey","Barratt","So","gxb92"]
["Kimberly","Mincin","So","kfm5441"]
["Andrew","Creager","Sr","azc5570"]
["Jared","Asprer","Fr","jza5506"]
["Lauren","Spicher","Fr","les5774"]
["Duong","Nguyen","Sr","dnn5"]
["Jordan","Reiter","Sr","jar6334"]
["Jack","Berry","Fr","jnb5602"]
["Justin","Strecker","Sr","jxs6288"]
["Nathan","Miller","Sr","njm5536"]
["Greg","Westfall","So","gvw5064"]
["Brandon","Crawford","Jr","bmc5819"]
["Matthew","Schwenk","So","mss51"]
["Vince","Birch","So","vpb5085"]
["Daniel","Marinelli","So","dbm5481"]
["Jacob","Niedermayer","Sr","jtn5161"]
["Ashley","Morris","Sr","alm6239"]
["Zack","Pasquinelli","Sr","zmp5056"]
["Daniel","Berlin","Fr","dnb5266"]
["Tyler","Farr","So","tzf19"]
["Jonah","Wyzomirski","So","jrw6009"]
["Longhao","Yang","Jr","lky5069"]
["Haozheng","Chen","Jr","hjc5263"]
["Peter","DeMallie","Jr","prd5123"]
["Chaoyi","Zhu","Sr","cxz94"]
["Marceli","Pawlikowski","Jr","mzp5569"]
["Wilton","Chen","Jr","wkc5083"]
["Craig","Feaster","Jr","ctf5107"]
["Jennifer","Davis","Jr","jrd5822"]
["Dante","Marcucci","Jr","uum99"]
["Carmen","Veltri","So","cpv5095"]
["Patrick","Voss","So","puv44"]
["Zhiyang","Liang","So","zfl5166"]
["Rohan","Bhandarkar","Sr","rpb5416"]
["Alexa ","Tannenbaum","So","aqt5407"]
["Guanzong","Zi","So","gzz5074"]
["Jiaqi ","Lai","Sr","jzl38"]
["Siyi","Ma","Sr","sbm5554"]
["Maya","DiGirolamo","So","mvd5783"]
["Cristina","Peloro","So","czp5434"]
["Kara","Gibbon","So","kxg295"]
["Sunrunyi","Yuan","Jr","spy5117"]
["Kai-Uwe","Konrad","So","kwk5449"]
["Raymond","Lu","Jr","lmr5640"]
["Nathan","Newman","Jr","ngn5017"]
["Michael","Roby","Sr","msr5385"]
["Frankie","Haver","Sr","fph5023"]

{"sheet":"Event15","index":25,"n_rows":29,"n_cols":4,"rows_kept":29,"hidden":true}
["Event:","Genworth Info Session"]
["Date:","2018-09-15"]
["Attendance:",22]
[]
["First Name","Last Name","Year","PSU ID (ex. abc1234)"]
["Alexis","Lasko","Sr","all5680"]
["Lauren","Spicher","Fr","les5774"]
["Peter","DeMallie","Jr","prd5123"]
["Greg","Westfall","So","gvw5064"]
["Dehan(Roger)","Li","Jr","dzl5429"]
["Jeremy","Williams","Sr","jsw5439"]
["Qin","Zhang","Sr","qfz5029"]
["Dante","Marcucci","Jr","uum99"]
["Collin","O'Connell","Jr","cpo5122"]
["Atharv","Gupte","Sr","abg5424"]
["Marceli","Pawlikowski","Jr","mzp5569"]
["Brandon","Crawford","Jr","bmc5819"]
["John","Miller","Sr","jdm6057"]
["Hailey","Johnson","So","hqj5199"]
["Zhiyang","Liang","So","zfl5166"]
["Haozheng","Chen","Jr","hjc5263"]
["Jiaqi","Lai","Sr","jzl38"]
["Claudia","Jung","Sr","cjj5206"]
["Siyi","Ma","Sr","sbm5554"]
["Akash","Patel","Jr","axp428"]
["Kevin","Suryanto","Jr","kas7146"]
["Felishia","Felishia","Jr","ffn5018"]
["Chaoyi","Zhu","Sr"]
["Elysia","Liu","Sr"]

{"sheet":"Event14","index":26,"n_rows":36,"n_cols":4,"rows_kept":36,"hidden":true}
["Event:","New York Life "]
["Date:","2019-09-15"]
["Attendance:",29]
[]
["First Name","Last Name","Year","PSU ID (ex. abc1234)"]
["Kevin","Suryanto","Jr","kas7146"]
["Felishia",null,"Jr","ffn5018"]
["Daniel","Berlin","Fr","dnb5266"]
["Zhengyan","Yuan","Sr","zqy5133"]
["Haozheng","Chen","Jr","hjc5263"]
["Mayting","Feng","Sr","muf72"]
["Longhao","Yang","Jr","lky5069"]
["Greg","Westfall","So","gvw5064"]
["Justin","Strecker","Sr","jxs6288"]
["Jeremy","Williams","Sr","jsw5439"]
["Jacob","Niedermayer","SR","jtn5161"]
["Daniel","Marinelli","so","dbm5481"]
["erin","wicker","so","euw60"]
["Taylor","Geppert","so","stg5184"]
["Kevin","Fraccalvieri","So","kkf5177"]
["Qin","Zhang","Sr","qfz5029"]
["Brandon","Crawford","Jr","bmc5819"]
["Atharv","Gupte","sr","abg5424"]
["Blake","Rohrbacher","sr","bkr5178"]
["Matthew","Schwenk","so","mss51"]
["Duong","Nguyen","Sr","dnn5"]
["Xinchen","Yuan","Jr","xpy5054"]
["Zack","Pasquinelli","Sr.","zmp5056"]
["Jiaqi","Lai","Sr.","jzl38"]
["John","Miller","Sr","jdm6057"]
["Collin","O'Connell","Jr","cpo5122"]
["Dante","Marcucci","Jr","uum99"]
["Siyi","ma","Sr","sbm5554"]
["Zhiyang","Liang","So","zfl5166"]
["Solomon","Szeto","So","sms8118"]
["Guanzong","Zi","So","gzz5074"]

{"sheet":"Event13","index":27,"n_rows":14,"n_cols":4,"rows_kept":14,"hidden":true}
["Event:","Wakely Consulting"]
["Date:","2019-09-15"]
["Attendance:",9]
[]
["First Name","Last Name","Year","PSU ID (ex. abc1234)"]
["Marceli","Pawlikowski","Jr","mzp5569"]
["Andrew","creager","Sr","azc5570"]
["Kai-Uwe","Konrad","So","kwk5449"]
["Rohan","Bhandarkar","Sr","rpb5416"]
["Jacob","Niedermayer","Sr","jtn5161"]
["Matt","McClintick","So","mjm7869"]
["Kevin","Logan","Jr","ktl5134"]
["John","Miller","Sr","jdm6057"]
["Dante","Marcucci","Jr","uum99"]

{"sheet":"Event12","index":28,"n_rows":53,"n_cols":4,"rows_kept":53,"hidden":true}
["Event:","Prudential Info Session"]
["Date:","2019-09-15"]
["Attendance:",36]
[]
["First Name","Last Name","Year","PSU ID (ex. abc1234)"]
["Marceli","Pawlikowski","Jr","Mzp5569"]
["erin","wicker","So","euw60"]
["Brian","Garbacik","So","brg16"]
["Michael","Noethiger","Jr","Mbn5156"]
["kevin","fraccalvieri","So","kkf5177"]
["Taylor","Geppert","So","Stg5184"]
["Lucas","Richardsen","So","ljr5433"]
["Brandon","Crawford","Jr","bmc5819"]
["Nathan","Newman","Jr","Ngn5017"]
["Peter","DeMallie","Jr","Prd5123"]
["Atharv","Gupte","Sr","abg5424"]
["Zhiyang","Liang","So","zfl5166"]
["Dante","Marcucci","Jr","Uum99"]
["Tyler","Farr","So","tzf19"]
["Chaoyi","Zhu","Sr","cxz94"]
["Jack","Berry","Fr","jnb5602"]
["Alexa","Tannenbaum","So","aqt5407"]
["Maya","DiGirolamo","So","mvd5783"]
["Jared","Asprer","Fr","jza5506"]
["Patrick","Voss","So","puv44"]
["Akash","Patel","Jr","axp428"]
["Craig","Feaster","Jr","ctf5107"]
["Jonah","Wyzomirski","So","jrw6009"]
["Xinchen","Yuan","Jr","xpy5054"]
["Geoffrey","Barratt","So","gxb92"]
["Haozheng","Chen","Jr","hjc5263"]
["Fadhlia","Rahim-Ali","Sr","far5093"]
["Noah","Donten","Jr","nmd5348"]
["Hailey","Johnson","So","Hqj5199"]
["Solomon","Szeto","So","sms8118"]
["Qin","Zhang","Sr","qfz5029"]
["Collin","O’Connell","Jr","cpo5122"]
["Grace","McStravock","Sr","gvm5232"]
["Sunrunyi ","Yuan","Jr","spy5117"]
["Greg","Westfall","So","gvw5064"]
["Jiaqi","Lai","Sr","jzl38"]
["Siyi","Ma","Sr","sbm5554"]
["Aidan","Lake","Jr","arl5600"]
["Vince","Birch","So","vpb5085"]
["Kevin","Logan","Jr","Ktl5134"]
["Jake","Wagner","So","jfw5541"]
["Julia","Trigg","Jr","jxt5423"]
["Guanzong","ZI","So","gzz5074"]
["Matthew","Pidgeon ","Jr","mpp5454"]
["Frankie","Haver","Sr","fph5023"]
["Kai-Uwe","Konrad","So","Kwk5449"]
["Taylor","Geppert","So","Stg5184"]
["Daniel","Berlin","Fr","dnb5266"]

{"sheet":"Event11","index":29,"n_rows":41,"n_cols":4,"rows_kept":41,"hidden":true}
["Event:","Prudential Info Session"]
["Date:","2019-09-15"]
["Attendance:",36]
[]
["First Name","Last Name","Year","PSU ID (ex. abc1234)"]
["Vince","Birch","So","vpb5085"]
["Hailey","Johnson","So","hqj5199"]
["Kim","Mincin","So","kfm5441"]
["maya","DiGirolamo","So","mvd5783"]
["kevin","Fraccalvieri","So","kkf5177"]
["Greg","Westfall","So","gvw5064"]
["Jared","Asprer","Fr","jza5506"]
["Lauren","Spicher","Fr","les5774"]
["Dante","Marcucci","Jr","uum99"]
["Nathan","Miller","Sr","njm5536"]
["Daniel","Berlin","Fr","dnb5266"]
["Peter","DeMallie","Jr","prd5123"]
["Duong","Nguyen","Sr","dnn5"]
["Geoffrey","Barratt","So","gxb92"]
["erin","wicker","So","euw60"]
["Matt","Schwenk","So","mss51"]
["Matt","McClintick","So","mjm7869"]
["Jacob","Niedermayer","Sr","jtn5161"]
["Jack","Berry","Fr","jnb5602"]
["Sunrunyi","Yuan","Jr","spy5117"]
["Solomon ","Szeto","So","sms8118"]
["Chaoyi","Zhu","Sr","cxz94"]
["Zack","Pasquinelli","Sr","zmp5056"]
["Taylor","Geppert","So","stg5184"]
["Brian","Garbacik","So","brg16"]
["Jake","Wagner","So","jfw5541"]
["Kevin","Logan","Jr","ktl5134"]
["Patrick","Voss","So","puv44"]
["Tyler","Farr","So","tzf19"]
["Cristina","`Peloro","So","czp5434"]
["Kara","Gibbon","So","kxg295"]
["Brandon","Crawford","Jr","bmc5819"]
["Alexa","Tannenbaum","So","aqt5407"]
["Aidan","Lake","Jr","arl5600"]
["Kai-Uwe","Konrad","So","kwk5449"]
["Noah","Donten","Jr","nmd5348"]

{"sheet":"Event10","index":30,"n_rows":16,"n_cols":4,"rows_kept":16,"hidden":true}
["Event:","Event"]
["Date:","2019-09-15"]
["Attendance:",11]
[]
["First Name","Last Name","Year","PSU ID (ex. abc1234)"]
["Aidan","Lake","Jr","arl5600"]
["Michael","Noethiger","Jr","mbn5156"]
["Kimberly","Anderson","Sr","ksa5170"]
["Kevin","Logan","Jr","ktl5134"]
["Akash","Patel","Jr","axp428"]
["Matt","McClintick","So","mjm7869"]
["Kara","Gibbon","So","kxg295"]
["Maya","DiGirolamo","So","mvd5783"]
["Cristina","Peloro","So","czp5434"]
["Raymond","Lu","Jr","lmr5640"]
["Nathan","Newman","Jr","ngn5017"]

{"sheet":"Event9","index":31,"n_rows":26,"n_cols":4,"rows_kept":26,"hidden":true}
["Event:","Guy Carpenter Information Session"]
["Date:","2019-09-15"]
["Attendance:",21]
[]
["First Name","Last Name","Year","PSU ID (ex. abc1234)"]
["Marceli","Pawlikowski","Jr","mzp5569"]
["Zhiyang","Liang","So","zfl5166"]
["`guanzong","`zi","So","gzz5074"]
["John","Miller","Sr","jdm6057"]
["Collin","O'Connell","Jr","cpo5122"]
["jiaqi","lai","Sr","jzl38"]
["Duong","Nguyen","Sr","dnn5"]
["Atharv","Gupte","Sr","abg5424"]
["Geoffrey","Barratt","So","gxb92"]
["Cristina","Peloro","So","czp5434"]
["Kara","Gibbon","So","kxg295"]
["Maya","digirolamo","So","mvd5783"]
["Peter","DeMallie","Jr","prd5123"]
["Rachel","sudo","Sr","rbs5427"]
["Xinchen","Yuan","Jr","xpy5054"]
["Nathan","Newman","Jr","ngn5017"]
["Alex","Arena","Sr","afa5399"]
["Raymond ","Lu","Jr","lmr5640"]
["Kody","Allen","Sr","kla5319"]
["Claudia","Jung","Sr","cjj5206"]
["Siyi","Ma","Sr","sbm5554"]

{"sheet":"Event8","index":32,"n_rows":24,"n_cols":4,"rows_kept":24,"hidden":true}
["Event:","Lincoln Financial Group"]
["Date:","2019-09-15"]
["Attendance:",19]
[]
["First Name","Last Name","Year","PSU ID (ex. abc1234)"]
["Akash","Patel","Jr","axp428"]
["Jennifer","Davis","Jr","jrd5822"]
["Wilton","Chen","Jr","wkc5083"]
["Greg","Westfall","So","gvw5064"]
["Duong","Nguyen","Sr","dnn5"]
["Andrew","Creager","Sr","azc5570"]
["Atharv","Gupte","Sr","abg5424"]
["Geoffrey","Barratt","So","gxb92"]
["Chaoyi","Zhu","Sr","cxz94"]
["Jacob","Niedermayer","Sr","jtn5161"]
["Kara","Gibbon","So","kxg295"]
["Cristina","Peloro","So","czp5434"]
["Kody","Allen","Sr","kla5319"]
["Brandon","Crawford","Jr","bmc5819"]
["Taylor ","Geppertt","So","stg5184"]
["Jonah","Wyzomirski","So","jrw6009"]
["erin","wicker","So","euw60"]
["Kevin","Fraccalvieri","So","kkf5177"]
["Matt","McClintick","So","mjm7869"]

{"sheet":"Event7","index":33,"n_rows":30,"n_cols":4,"rows_kept":30,"hidden":true}
["Event:","Willis Towers Watson info session"]
["Date:","2019-09-15"]
["Attendance:",25]
[]
["First Name","Last Name","Year","PSU ID (ex. abc1234)"]
["Jiaqi","Lai","Sr","jzl38"]
["Kevin ","Suryanto","Jr","kas7146"]
["Felishia","Felishia","Jr","ffn5018"]
["Alexis","Lasko","Sr","all5680"]
["Justin","Strecker","Sr","jxs6288"]
["Jeremy","Williams","Sr","Jsw5439"]
["maya","DiGirolamo","So","mvd5783"]
["Julia","Trigg","Jr","jxt5423"]
["Mayting","Feng","Sr","muf72"]
["Marceli","Pawlikowski","Jr","mzp5569"]
["Alexa","Tannenbaum","So","aqt5407"]
["Haozheng ","Chen","Jr","hjc5263"]
["John","Miller","Sr","jdm6057"]
["Dante","Marcucci","Jr","uum99"]
["Collin","O'Connell","Jr","cpo5122"]
["Blake","Rohrbacher","Sr","bkr5178"]
["Avery","Ryan","Jr","aer5483"]
["Zhiyang","Liang","So","zfl5166"]
["Rachel","Sudo","Sr","rbs5427"]
["Xinchen","Yuan","Jr","xpy5054"]
["Matt","Pidgeon","Jr","mpp5454"]
["Claudia","Jung","Sr","cjj5206"]
["Guanzong","Zi","So","gzz5074"]
["Qin","Zhang","Sr","qfz5029"]
["Siyi","Ma","Sr","sbm5554"]

{"sheet":"Event6","index":34,"n_rows":5,"n_cols":4,"rows_kept":5,"hidden":true}
["Event:","Event"]
["Date:","2019-09-10"]
["Attendance:",0,null,"mistakenly duplicated"]
[]
["First Name","Last Name","Year","PSU ID (ex. abc1234)"]

{"sheet":"Event5","index":35,"n_rows":34,"n_cols":4,"rows_kept":34,"hidden":true}
["Event:","Event"]
["Date:","2019-09-10"]
["Attendance:",29]
[]
["First Name","Last Name","Year","PSU ID (ex. abc1234)"]
["Aidan","Lake","Jr","arl5600"]
["Jonah","Wyzomirski","So","jrw6009"]
["Cristina","Peloro","So","czp5434"]
["Kara","Gibbon","So","kxg295"]
["Jake","Wagner","So","jfw5541"]
["Chaoyi","Zhu","Sr","cxz94"]
["Duong","Nguyen","Sr","dnn5"]
["Matthew","Pidgeon","Jr","mpp5454"]
["John","Miller","Sr","jdm6057"]
["Kimberly","Anderson","Sr","ksa5170"]
["Kyle","Mauger","Jr","kjm6235"]
["Raymond ","Lu","Jr","lmr5640"]
["Collin","O'Connell","Jr","cpo5122"]
["Noah","Donten","Jr","nmd5348"]
["Daniel","Berlin","Fr","dnb5266"]
["Nathan","Newman","Jr","ngn5017"]
["Jack","Berry","Fr","jnb5602"]
["Brandon","Crawford","Jr","bmc5819"]
["Jacob","Niedermayer","Sr","jtn5161"]
["Kelly","Waters","Jr","kfw5153"]
["Rachel","Sudo","Sr","rbs5427"]
["Avery","Ryan","Jr","aer5483"]
["Nicolette ","Nybro","Jr","nan5101"]
["Michael","Roby","Sr","msr5385"]
["Marceli","Pawlikowski","Jr","mzp5569"]
["Akash","Patel","Jr","axp428"]
["Kristen","Chomos","Fr","kec5791"]
["Ziyan","Wang","Sr","zpw5120"]
["Grace","McStravock","Sr","gvm5232"]

{"sheet":"Event4","index":36,"n_rows":29,"n_cols":5,"rows_kept":29,"hidden":true}
["Event:","Panel/ResumeReviews2"]
["Date:","2019-09-11"]
["Attendance:",24]
[]
["First Name","Last Name","Year","PSU ID (ex. abc1234)"]
["Zhiyang","Liang","So","zfl5166"]
["Matt","McClintick","So","mjm7869"]
["Derek","Long","Sr","dgl5098"]
["Molly","Groarke","Jr","mag6298"]
["Ilsa","Smith","Jr","ivs5154"]
["Kim","Mincin","So","kfm5441"]
["Gregory","Westfall","So","gvw5064"]
["Jared","Asorer","Fr","jza5506"]
["Dustin","Bauer","Fr","dtb5308"]
["Jacob","Rausch","So","jmr6884"]
["Brian","Garbacik","So","brg16"]
["Jake","Wagner","So","jfw5541"]
["Peter","DeMallie","Jr","prd5123"]
["Lauren","Spicher","Fr","les5774"]
["Daniel","Berlin","Fr","dnb5266"]
["Jack","Berry","Fr","jnb5602"]
["Nathan","Newman","Jr","ngn5017"]
["Brandon","Crawford","Jr","bmc5819"]
["Guanzong","Zi","So","gzz5074"]
["Solomon","Szeto","So","sms8118"]
["Emmanuel","Nkgare","Jr","ebn5071","Paid dues in cash to brent"]
["Max","Cohen","Fr","mvc6160"]
["Jonah","Wyzomirski","So","jrw6009"]
["Alexa","Tannenbaum","So","aqt5407"]

{"sheet":"Event3","index":37,"n_rows":24,"n_cols":4,"rows_kept":24,"hidden":true}
["Event:","Erie Insurance Info Session"]
["Date:","2019-09-10"]
["Attendance:",19]
[]
["First Name","Last Name","Year","PSU ID (ex. abc1234)"]
["Sawyer","Parks","So","sjp5946"]
["Daniel","Berlin","Fr","dnb5266"]
["Nathan","Newman","Jr","ngn5017"]
["Jonah","Wyzomirski","So","jrw6009"]
["Kara","Gibbon","So","kxg295"]
["Maya","DiGirolamo","So","mvd5783"]
["Emily","Jackson","Sr","erj5094"]
["Kai-Uwe","Konrad","So","kwk5449"]
["Gregory","Westfall","So","gvw5064"]
["Patrick","Voss","So","puv44"]
["Kelly","Waters","Jr","kfw5153"]
["Xinchen","Yuan","Jr","xpy5054"]
["Chaoyi","Zhu","Sr","cxz94"]
["Bingxin","Liu","So","bzl95"]
["Peter","DeMallie","Jr","prd5123"]
["Alexa","Tannenbaum","So","aqt5407"]
["Jiaqi(Vickia)","Lai","Sr","jzl38"]
["Guanzong","Zi","So","gzz5074"]
["Akash","Patel","Jr","axp428"]

{"sheet":"Event2","index":38,"n_rows":19,"n_cols":4,"rows_kept":19,"hidden":true}
["Event:","ResumeReview/Mock Interview"]
["Date:","2019-09-09"]
["Attendance:",14]
[]
["First Name","Last Name","Year","PSU ID (ex. abc1234)"]
["Kai-Uwe","Konrad","So","kwk5449"]
["Jordan","Reiter","Sr","jar6334"]
["Daniel","Berlin","Fr","dnb5266"]
["Guanzong","Zi","So","gzz5074"]
["Matt","Rauber","Fr","mzr5708"]
["Solomon","Szeto","So","sms8118"]
["Brandon","Crawford","Jr","bmc5819"]
["erin","wicker","So","euw60"]
["Nathan","Newman","Jr","ngn5017"]
["Dante","Marcucci","Jr","uum99"]
["Haozheng","Chen","Jr","hjc5263"]
["Peter","DeMallie","Jr","prd5123"]
["Aidan","Lake","Jr","arl5600"]
["Ella","Yuan","Jr","spy5117"]

{"sheet":"Event1","index":39,"n_rows":8,"n_cols":4,"rows_kept":8,"hidden":true}
["Event:","Commonwealth Actuarial Student Meeting"]
["Date:","2019-09-04"]
["Attendance:",3]
[]
["First Name","Last Name","Year","PSU ID (ex. abc1234)"]
["Chaoyi","Zhu","Sr","cxz94"]
["Letitia obiero","Obiero","Fr","luo114"]
["Nick","Sawtelle","Fr","nus721"]

{"sheet":"Major Forum Roster","index":40,"n_rows":69,"n_cols":7,"rows_kept":69,"hidden":true}
["8/23/2018 Act. Sci. Major Forum Sign-In"]
[]
["First","Last","PSU ID","Year","Paid Dues?","Phone Number (to be added in GroupMe)"]
{"$rows_empty":65}
[{"$nulls":6},"**Also signed in on other computer, paid dues"]

{"sheet":"Due Raw","index":41,"n_rows":154,"n_cols":3,"rows_kept":154,"hidden":true}
["Last Name","First Name","Paid Dues?"]
["Alladi","Shiva","yes"]
["Allen","Kody","yes"]
["Arena","Alex","yes"]
["Aument","Colby","yes"]
["Barratt","Geoffrey","yes"]
["Baurle","Kurt","yes"]
["Bhandarkar","Rohan","no"]
["Birch","Paul","yes"]
["Bromberg","David","no"]
["Cai","Ethan","yes"]
["Cash","Matthew","yes"]
["Chow","Kevin","yes"]
["Chow","Iris","yes"]
["Coleman","Alexis","yes"]
["Collin","O'Connell","yes"]
["Cramer","Myles","no"]
["Cromer","Beckett","yes"]
["Davis","Jennifer","yes"]
["DeMallie","Peter","yes"]
["Detwiler","Mitch","yes"]
["DiGirolamo","Maya","yes"]
["Dolan","Tyler","yes"]
["Dong","Siamio","no"]
["Garbacik","Brian","no"]
["Garcia","Sabrina","yes"]
["Geppert","Taylor","yes"]
["Gibbon","Kara","yes"]
["Glover","Paige","yes"]
["Harris","Remington","no"]
["Hartman","Alex","yes"]
["Hartman","Alex","yes"]
["Haver","Frankie","yes"]
["Hazel","Ryan","yes"]
["Horan","Katherine","no"]
["Howe","Maria","yes"]
["Hughes","Paige","yes"]
["Huth","Kari","yes"]
["Insley","Drew","yes"]
["Jameison","Danielle","yes"]
["Jiang","Yixiao","yes"]
["Kai","Konrad","yes"]
["Kaverman","Joseph","no"]
["Kniff","Ashley","no"]
["Koch","Benjamin","no"]
["Krueger","Konner","yes"]
["Kwon","Ian","no"]
["Lake","Aidan","no"]
["Leon","Anna","no"]
["Liang","Zhaoxin","yes"]
["Liang","Zhiyang","yes"]
["Linkoski","Holly","yes"]
["Liu","Elysia","yes"]
["Logan","Kevin","yes"]
["Lu","Raymond","yes"]
["Marcucci","Dante","yes"]
["Melchiorre","Vince","yes"]
["Mills","Erica","yes"]
["Mirandi","Nick","yes"]
["Newman","Nathan","yes"]
["Niedermayer","Jacob","yes"]
["Ogunrombi","Anu","yes"]
["Paisley","Nathan","no"]
["Pan","Jiasheng","Yes"]
["Parks","Sawyer","no"]
["Perez-Morales","Krystie","yes"]
["Piccari","Thomas","yes"]
["Pidgeon","Matt","yes"]
["Pityk","Ryan","yes"]
["Rausch","Jaccob","yes"]
["Reiter","Jordan","yes"]
["Richardsen","Lucas","yes"]
["Ridenour","Katie","no"]
["roantree","joseph","yes"]
["Rohrbacher","Blake","yes"]
["Scalies","Chris","yes"]
["Semmer","Julia","no"]
["Shafer","Bradley","yes"]
["Smith","Ilsa","no"]
["Steacker","Nikolas","yes"]
["Strecker","Justin","yes"]
["Sukunda","Joseph","No"]
["Sun","Yanan","Yes"]
["Suryanto","Kevin","yes"]
["Szeto","Solomon","no"]
["Tannenbaum","Alexa","yes"]
["Torbert","Michael","no"]
["Trigg","Julia","yes"]
["Tu","Qiaojuan","yes"]
["Veltri","Carmen","yes"]
["Birch","Vince","yes"]
["Voss","Patrick","Yes"]
["Voyack","Ryan","yes"]
["Wagner","Jake","yes"]
["Wang","Yiding","yes"]
["wang","chunxu","yes"]
["Waters","Kelly","yes"]
["Westfall","Greg","yes"]
["Westfall","Kevin","Yes"]
["Wetzel","Morgan","yes"]
["wicker","erin","no"]
["Xie","Mingyin","yes"]
["Yuan","Sunrunyi","yes"]
["Zhu","Chaoyi","yes"]
["Zi","Eric","yes"]
["Andrian","Kevin","yes"]
["Aument","Colby","yes"]
["Barrett","Brooke","yes"]
["Chen","Bokai","yes"]
["Chen","Yuxin","yes"]
["Crawford","Brandon","yes"]
["Dingman","Nick","yes"]
["Fan","Haobo","yes"]
["Felishia","Felishia","yes"]
["Frederick","Ethan","yes"]
["Han","Lily","yes"]
["Johnson","Caroline","yes"]
["Jung","Claudia","yes"]
["Klavans","Sean","yes"]
["Kohli","Kabir","yes"]
["Lai","Vickia","yes"]
["Marinelli","Daniel","yes"]
["Mauger","Kyle","yes"]
["McClintick","Matthew","yes"]
["McStravock","Grace","yes"]
["Mumford","Jon","yes"]
["Nachison","Brent","yes"]
["Nybro","Nicolette","yes"]
["O'Connell","Collin","yes"]
["Patel","Akash","yes"]
["Price","Emily","yes"]
["Stephens","Will","yes"]
["Tan","Mei Ying","yes"]
["West","Kevin","yes"]
["Williams","Jeremy","yes"]
["Wooditch","David","yes"]
["Xia","Vera","yes"]
["Yang","Longhao","yes"]
["Zhang","Hanlin","yes"]
["Han","Zhiyi","yes"]
["Modzelewski","Andrew","yes"]
["Putt","Nathan","yes"]
["Cui","Lisa","yes"]
["Chen","Hoazheng","yes"]
["Yan","Ryan","yes"]
["Liu","Bingxin","yes"]
["Peloro","Christina","yes"]
["Jubran","Yousef","yes"]
["Hsia","Mathilde","yes"]
["Ma","Siyi","yes"]
["Luo","Yu","yes"]
["Zhang","Ruby","yes"]
["Siebert","Allison","yes"]
["Harro","Troy","yes"]

{"sheet":"Dues Look-Up table","index":42,"n_rows":4,"n_cols":24,"rows_kept":4,"hidden":true}
[{"$nulls":7},"This is a lookup table to match a user ID to people who have paid dues",{"$nulls":9},"This is a list of people who paid dues and whos id we have but didn't pay dues at an event so they have to be added to the end of this list"]
[{"$nulls":7},"This will need to be updated after each new event (just copy and paste from the home tab"]
[{"$nulls":7},"There are issues if someone has paid dues but has not attended any events"]
[{"$nulls":23},"Michal Roby"]

{"sheet":"Mock Interview Raw Data","index":43,"n_rows":97,"n_cols":5,"rows_kept":97,"hidden":true}
["Name","Email","First","Last","ID"]
["Allen, Kody","KLA5319@psu.edu",{"$f":"RIGHT(A2,LEN(A2)-FIND(\",\",A2)-1)","v":"Kody"},{"$f":"LEFT(A2,FIND(\",\",A2)-1)","v":"Allen"},{"$f":"LEFT(B2,FIND(\"@\",B2)-1)","v":"KLA5319"}]
["Anderson, Kimberly","KSA5170@psu.edu","Kimberly","Anderson","KSA5170"]
["Arena, Alexander","AFA5399@psu.edu","Alexander","Arena","AFA5399"]
["Azhar, Ahmad Mohd","AQM6158@psu.edu","Ahmad Mohd","Azhar","AQM6158"]
["Beard, Mallory","MMB6124@psu.edu","Mallory","Beard","MMB6124"]
["California, Margot","MAC6866@psu.edu","Margot","California","MAC6866"]
["Carp, Alexis","AMC7067@psu.edu","Alexis","Carp","AMC7067"]
["Chen, Shumin","QUC54@psu.edu","Shumin","Chen","QUC54"]
["Chen, Ying","YMC5189@psu.edu","Ying","Chen","YMC5189"]
["Cherry, Courtney","CLC5887@psu.edu","Courtney","Cherry","CLC5887"]
["Cikowski, Shannon","SPC5519@psu.edu","Shannon","Cikowski","SPC5519"]
["Dalby, Olivia","OPD5013@psu.edu","Olivia","Dalby","OPD5013"]
["Dobransky, Alexis","ALD5655@psu.edu","Alexis","Dobransky","ALD5655"]
["Dougherty, Kyle","KJD5424@psu.edu","Kyle","Dougherty","KJD5424"]
["Feng, Mayting","MUF72@psu.edu","Mayting","Feng","MUF72"]
["Gao, Yang","YUG61@psu.edu","Yang","Gao","YUG61"]
["Gersh, Aaron","ARG5600@psu.edu","Aaron","Gersh","ARG5600"]
["Grawbowski, Connor","ctg5142@psu.edu","Connor","Grawbowski","ctg5142"]
["Guanowsky, Taras","TXG206@psu.edu","Taras","Guanowsky","TXG206"]
["Gupte, Atharv","ABG5424@psu.edu","Atharv","Gupte","ABG5424"]
["Han, Zhiyi","ZVH5145@psu.edu","Zhiyi","Han","ZVH5145"]
["Haridan, Muhamad Hadi","MFH5449@psu.edu","Muhamad Hadi","Haridan","MFH5449"]
["Harro, Troy","TBH5102@psu.edu","Troy","Harro","TBH5102"]
["Haver, Frankie","FPH5023@psu.edu","Frankie","Haver","FPH5023"]
["Hobman, Rebecca","RBH5207@psu.edu","Rebecca","Hobman","RBH5207"]
["Jiang, Yixiao","YXJ38@psu.edu","Yixiao","Jiang","YXJ38"]
["Johnson, Caroline","CRJ5193@psu.edu","Caroline","Johnson","CRJ5193"]
["Jung, Claudia Ho Yan","CJJ5206@psu.edu","Claudia Ho Yan","Jung","CJJ5206"]
["Kahn, Judith","JBK5410@psu.edu","Judith","Kahn","JBK5410"]
["Klavans, Sean","SAK5707@psu.edu","Sean","Klavans","SAK5707"]
["Krueger, Konner","KJK5709@psu.edu","Konner","Krueger","KJK5709"]
["Lai, Jiaqi","JZL38@psu.edu","Jiaqi","Lai","JZL38"]
["Ledven, Mitchell","MRL5449@psu.edu",{"$f":"RIGHT(A34,LEN(A34)-FIND(\",\",A34)-1)","v":"Mitchell"},{"$f":"LEFT(A34,FIND(\",\",A34)-1)","v":"Ledven"},{"$f":"LEFT(B34,FIND(\"@\",B34)-1)","v":"MRL5449"}]
["Li, Hanzhang","HPL5120@psu.edu","Hanzhang","Li","HPL5120"]
["Liu, Heming","HXL335@psu.edu","Heming","Liu","HXL335"]
["Liu, Yixuan","YXL482@psu.edu","Yixuan","Liu","YXL482"]
["Lu, Hao","hfl5046@psu.edu","Hao","Lu","hfl5046"]
["Luo, Jiayu","JZL299@psu.edu","Jiayu","Luo","JZL299"]
["Luo, Xijia","XKL5056@psu.edu","Xijia","Luo","XKL5056"]
["Luo, Yu","YML5242@psu.edu","Yu","Luo","YML5242"]
["Ma, Siyi","SBM5554@psu.edu","Siyi","Ma","SBM5554"]
["Mai, Lang","LUM95@psu.edu","Lang","Mai","LUM95"]
["Malhotra, Twinkle","TZM5406@psu.edu","Twinkle","Malhotra","TZM5406"]
["Mautner Wizentier, Marina","MQM6104@psu.edu","Marina","Mautner Wizentier","MQM6104"]
["Mccormack, Alexandra","AVM5978@psu.edu","Alexandra","Mccormack","AVM5978"]
["Mcstravock, Grace","GVM5232@psu.edu","Grace","Mcstravock","GVM5232"]
["Miller, John","JDM6057@psu.edu","John","Miller","JDM6057"]
["Miller, Nathan","NJM5536@psu.edu","Nathan","Miller","NJM5536"]
["Mo, Chunlan","CXM981@psu.edu","Chunlan","Mo","CXM981"]
["Mohamad Saufi, Iffah","IVM5141@psu.edu","Iffah","Mohamad Saufi","IVM5141"]
["Nachison, Brent","BJN5158@psu.edu","Brent","Nachison","BJN5158"]
["Nguyen, Duong (Willow)","dnn5@psu.edu","Duong (Willow)","Nguyen","dnn5"]
["Niedermayer, Jacob","JTN5161@psu.edu","Jacob","Niedermayer","JTN5161"]
["Parvess, Emma Lee","EMP5462@psu.edu","Emma Lee","Parvess","EMP5462"]
["Pawlikowsky, Kiera","KJP5515@psu.edu","Kiera","Pawlikowsky","KJP5515"]
["Putt, Nathan","NRP5173@psu.edu","Nathan","Putt","NRP5173"]
["Razali, Alia","AUR268@psu.edu","Alia","Razali","AUR268"]
["Reiter, Jordan","JAR6334@psu.edu","Jordan","Reiter","JAR6334"]
["Roby, Michael","MSR5385@psu.edu","Michael","Roby","MSR5385"]
["Rohrbacher, Blake","BKR5178@psu.edu","Blake","Rohrbacher","BKR5178"]
["Seibert, Allison","AZS6047@psu.edu","Allison","Seibert","AZS6047"]
["Shan, Zhengyang","ZJS5170@psu.edu","Zhengyang","Shan","ZJS5170"]
["Shuter, Amanda May","axs6075@psu.edu","Amanda May","Shuter","axs6075"]
["Strecker, Justin","JXS6288@psu.edu","Justin","Strecker","JXS6288"]
["Sudo, Rachel","RBS5427@psu.edu",{"$f":"RIGHT(A66,LEN(A66)-FIND(\",\",A66)-1)","v":"Rachel"},{"$f":"LEFT(A66,FIND(\",\",A66)-1)","v":"Sudo"},{"$f":"LEFT(B66,FIND(\"@\",B66)-1)","v":"RBS5427"}]
["Sui, Helin","HZS58@psu.edu","Helin","Sui","HZS58"]
["Sun, Yanan","YZS70@psu.edu","Yanan","Sun","YZS70"]
["Thompson, Rebekah","RGT5044@psu.edu","Rebekah","Thompson","RGT5044"]
["Tong, Ruxin","RXT26@psu.edu","Ruxin","Tong","RXT26"]
["Van Schaik, Juliette","JIV5171@psu.edu","Juliette","Van Schaik","JIV5171"]
["Wang, Yiding","YZW164@psu.edu","Yiding","Wang","YZW164"]
["Wang, Yuchen","YPW5144@psu.edu","Yuchen","Wang","YPW5144"]
["Wang, Ziming","ZBW5087@psu.edu","Ziming","Wang","ZBW5087"]
["Weber, Rachel","RHW5080@psu.edu","Rachel","Weber","RHW5080"]
["Wiley, Jake","JRW5844@psu.edu","Jake","Wiley","JRW5844"]
["Wilkinson, Conor","CGW5129@psu.edu","Conor","Wilkinson","CGW5129"]
["Wooddell, Zachary","ZTW5052@psu.edu","Zachary","Wooddell","ZTW5052"]
["Xiao, Zhendong","ZPX5023@psu.edu","Zhendong","Xiao","ZPX5023"]
["Xu, Zhengyuan","ZKX5016@psu.edu","Zhengyuan","Xu","ZKX5016"]
["Zhang, Aoshu","AXZ31@psu.edu","Aoshu","Zhang","AXZ31"]
["Zhang, Qin","QFZ5029@psu.edu","Qin","Zhang","QFZ5029"]
["Zhang, Yichi","YXZ362@psu.edu","Yichi","Zhang","YXZ362"]
["Zhang, Zihan","ZUZ161@psu.edu","Zihan","Zhang","ZUZ161"]
["Zuchelli, Nicholas","NQZ5067@psu.edu","Nicholas","Zuchelli","NQZ5067"]
["Trigg, Julia","jxt5423@psu.edu","Julia","Trigg","jxt5423"]
["Wang, Tianhao",null,"Tianhao","Wang","tvw5292"]
["Patel, Akash",null,"Akash","Patel","axp428"]
["Reif, Thomas",null,"Thomas","Reif","tjr5576"]
["Marcucci, Dante",null,"Dante","Marcucci","uum99"]
["Logan, Kevin",null,"Kevin","Logan","ktl5134"]
["Jacob Rausch","jmr6884@psu.edu","Jacob","Rausch","jmr6884"]
["David Wooditch","dmw5806@psu.edu","David","Wooditch","dmw5806"]
["Matt Pidgeon","mpp5454","Matt","Pidgeon","mpp5454"]
["Rohan Bhandakar","rpb5416","Rohan","Bhandarkar","rpb5416"]
["Huiyang Ding","hvd5093","Huiyang","Ding","hvd5093"]
["Kevin Suryanto","kas7146","Kevin","Suryanto","kas7146"]